Workbook

Sheet Instructions
C35: Date of Optimization | D35: 2019-07-02 | F35: AAA | G35: AA | H35: A | I35: BBB | J35: BBB-
F36: 5 | G36: 12 | H36: 45 | I36: 39 | J36: 0

Sheet Net of default costs
B1: Default and Transition costs come from the appropriate tab of the EIOPA_RDR_20141231_PD_CoD spreadsheet
C2: Find it here | F2: https://eiopa.europa.eu/Publications/Standards/EIOPA_RFR_20141231.zip
B3: Note that Classes below BBB have been excluded due to the difficulty of matching up spreads and default costs
B4: Ignore spreads and RC beyond year 20 | H4: Weight Financials: | J4: 0.5 | U4: CORPORATE BONDS
D5: Loading | E5: 0.35 | H5: We do not have stats, but Europe seems heavily into financials (varying by country) | BH5: GT Testing -------------->>>> | CF5: 0.05 | CG5: 0.1 | CH5: 0.4 | CI5: 0.35 | CJ5: 0.1
H6: However they are using 50% mix for their model. | CF6: AAA | CG6: AA | CH6: A | CI6: BBB | CJ6: BBB- | CL6: =CF5*CF8+CG5*CG8+CH5*CH8+CI5*CI8+CJ5*CJ8 -> 2.982761905
A7: =I10 -> USD | C7: Discount Rates | E7: 12.31.2014 | J7: Composite. PD+CoD | V7: Financial. Probability of default (probability) | AF7: Financial. Probability of default (percentages) | AP7: Financial. Fundamental spread (percentages) | AZ7: Financial. Cost of downgrade (percentages) | BY7: As an average of the LTAS: | CB7: =CD8*35% -> 0.2167829491 | CF7: Average long term spread: | CY7: =CF5*CF8+CG5*CG8+CH5*CH8+CI5*CI8+CJ5*CJ8 -> 2.982761905
R8: Weighted | BP8: This indicates that the fundamental spread was topped up in nearly all cases | BY8: Overall average of PD+CoD as % of FundSprd | CD8: =AVERAGE(BX11:CD40) -> 0.6193798547 | CF8: =AVERAGE(CF11:CF40) -> 0.7314285714 | CG8: 1.4 | CH8: 2.145714286 | CI8: 3.251428571 | CJ8: 8.099047619 | CK8: 19.45238095 | CL8: 20.85428571
B9: Risk | C9: Gross | D9: Risk | E9: Net | F9: Gross | I9: Weights | J9: 0.05 | K9: 0.12 | L9: 0.45 | M9: 0.39 | R9: Average | Y9: Credit quality steps | AI9: Credit quality steps | AS9: Credit quality steps | BC9: Credit quality steps
B10: Free | C10: Spread | D10: Correction | E10: spread | F10: Rate | I10: =U10 -> USD | J10: 0 | K10: 1 | L10: 2 | M10: 3 | N10: 4 | O10: 5 | P10: 6 | U10: USD | V10: 0 | W10: 1 | X10: 2 | Y10: 3 | Z10: 4 | AA10: 5 | AB10: 6 | AE10: USD | AF10: 0 | AG10: 1 | AH10: 2 | AI10: 3 | AJ10: 4 | AK10: 5 | AL10: 6 | AO10: USD | AP10: 0 | AQ10: 1 | AR10: 2 | AS10: 3 | AT10: 4 | AU10: 5 | AV10: 6 | AY10: USD | AZ10: 0 | BA10: 1 | BB10: 2 | BC10: 3 | BD10: 4 | BE10: 5 | BF10: 6 | BH10: PD + CoD | BP10: Excess Fundamental Spread over PD+CoD | BX10: What percent are the costs of the fundamental spread? | CF10: Estimate the LTAS by dividing fundamental spread by 35% (since it applies in nearly all cases
A11: 1 | B11: ='Data Entry'!M3 -> 0.01952929505 | C11: ='Final Spread'!B3 -> 0.003824037492 | D11: =(R11*(1+E$5))/100 -> 0.0011907 | E11: =C11-D11 -> 0.002633337492 | F11: =MAX(E11+B11,0) -> 0.02216263255 | I11: 1 | J11: =$J$4*(AF11+AZ11)+(1-$J$4)*(AF51+AZ51) -> 0 | K11: =$J$4*(AG11+BA11)+(1-$J$4)*(AG51+BA51) -> 0.025 | L11: =$J$4*(AH11+BB11)+(1-$J$4)*(AH51+BB51) -> 0.055 | M11: =$J$4*(AI11+BC11)+(1-$J$4)*(AI51+BC51) -> 0.155 | N11: =$J$4*(AJ11+BD11)+(1-$J$4)*(AJ51+BD51) -> 0.685 | O11: =$J$4*(AK11+BE11)+(1-$J$4)*(AK51+BE51) -> 2.745 | P11: =$J$4*(AL11+BF11)+(1-$J$4)*(AL51+BF51) -> 21.6 | R11: =SUMPRODUCT(J$9:M$9,J11:M11) -> 0.0882 | T11: Maturity | U11: 1 | V11: 0 | W11: 0.0007 | X11: 0.001 | Y11: 0.0025 | Z11: 0.011 | AA11: 0.0332 | AB11: 0.1692 | AD11: Maturity | AE11: 1 | AF11: 0 | AG11: 0.05 | AH11: 0.07 | AI11: 0.18 | AJ11: 0.78 | AK11: 2.39 | AL11: 13.51 | AN11: Maturity | AO11: 1 | AP11: 0.17 | AQ11: 0.27 | AR11: 0.54 | AS11: 1.16 | AT11: 2.6 | AU11: 6.58 | AV11: 13.51 | AX11: Maturity | AY11: 1 | AZ11: 0 | BA11: 0 | BB11: 0 | BC11: 0 | BD11: 0 | BE11: 0 | BF11: 0 | BH11: =AZ11+AF11 -> 0 | BI11: =BA11+AG11 -> 0.05 | BJ11: =BB11+AH11 -> 0.07 | BK11: =BC11+AI11 -> 0.18 | BL11: =BD11+AJ11 -> 0.78 | BM11: =BE11+AK11 -> 2.39 | BN11: =BF11+AL11 -> 13.51 | BP11: =AP11-BH11 -> 0.17 | BQ11: =AQ11-BI11 -> 0.22 | BR11: =AR11-BJ11 -> 0.47 | BS11: =AS11-BK11 -> 0.98 | BT11: =AT11-BL11 -> 1.82 | BU11: =AU11-BM11 -> 4.19 | BV11: =AV11-BN11 -> 0 | BX11: =BH11/AP11 -> 0 | BY11: =BI11/AQ11 -> 0.1851851852 | BZ11: =BJ11/AR11 -> 0.1296296296 | CA11: =BK11/AS11 -> 0.1551724138 | CB11: =BL11/AT11 -> 0.3 | CC11: =BM11/AU11 -> 0.3632218845 | CD11: =BN11/AV11 -> 1 | CF11: =AP11/0.35 -> 0.4857142857 | CG11: =AQ11/0.35 -> 0.7714285714 | CH11: =AR11/0.35 -> 1.542857143 | CI11: =AS11/0.35 -> 3.314285714 | CJ11: =AT11/0.35 -> 7.428571429 | CK11: =AU11/0.35 -> 18.8 | CL11: =AV11/0.35 -> 38.6 | CO11: =(AF11+AZ11+AF51+AZ51)/2 -> 0 | CP11: =(AG11+BA11+AG51+BA51)/2 -> 0.025 | CQ11: =(AH11+BB11+AH51+BB51)/2 -> 0.055 | CR11: =(AI11+BC11+AI51+BC51)/2 -> 0.155 | CS11: =(AJ11+BD11+AJ51+BD51)/2 -> 0.685 | CT11: =(AK11+BE11+AK51+BE51)/2 -> 2.745 | CU11: =(AL11+BF11+AL51+BF51)/2 -> 21.6
A12: =1+A11 -> 2 | B12: ='Data Entry'!M4 -> 0.01740677095 | C12: ='Final Spread'!B4 -> 0.005632117031 | D12: 0.001718977202 | E12: 0.003913139829 | F12: =MAX(E12+B12,0) -> 0.02131991077 | I12: 2 | J12: 0.01180471881 | K12: 0.03535595949 | L12: 0.08610227823 | M12: 0.2147504316 | N12: 0.8897704146 | O12: 2.979027908 | P12: 16.785 | R12: 0.1273316446 | U12: 2 | V12: 0.00027961 | W12: 0.00147632 | X12: 0.00211938 | Y12: 0.00552137 | Z12: 0.02428142 | AA12: 0.06730863 | AB12: 0.27444586 | AE12: 2 | AF12: 0.01 | AG12: 0.05 | AH12: 0.08 | AI12: 0.2 | AJ12: 0.87 | AK12: 2.43 | AL12: 10.99 | AO12: 2 | AP12: 0.08 | AQ12: 0.27 | AR12: 0.54 | AS12: 1.16 | AT12: 2.67 | AU12: 6.65 | AV12: 10.99 | AY12: 2 | AZ12: 0.008710498807 | BA12: 0.009655264217 | BB12: 0.02004739328 | BC12: 0.03153100042 | BD12: 0.0951260452 | BE12: 0.02394138785 | BF12: 0 | BH12: 0.01871049881 | BI12: 0.05965526422 | BJ12: 0.1000473933 | BK12: 0.2315310004 | BL12: 0.9651260452 | BM12: 2.453941388 | BN12: 10.99 | BP12: 0.06128950119 | BQ12: 0.2103447358 | BR12: 0.4399526067 | BS12: 0.9284689996 | BT12: 1.704873955 | BU12: 4.196058612 | BV12: 0 | BX12: 0.2338812351 | BY12: 0.220945423 | BZ12: 0.1852729505 | CA12: 0.19959569 | CB12: 0.3614704289 | CC12: 0.3690137425 | CD12: 1 | CF12: 0.2285714286 | CG12: 0.7714285714 | CH12: 1.542857143 | CI12: 3.314285714 | CJ12: 7.628571429 | CK12: 19 | CL12: 31.4 | CO12: 0.01180471881 | CP12: 0.03535595949 | CQ12: 0.08610227823 | CR12: 0.2147504316 | CS12: 0.8897704146 | CT12: 2.979027908 | CU12: 16.785
A13: 3 | B13: ='Data Entry'!M5 -> 0.01675741072 | C13: ='Final Spread'!B5 -> 0.007440196569 | D13: 0.002268709761 | E13: 0.005171486809 | F13: 0.02192889753 | I13: 3 | J13: 0.02378545875 | K13: 0.05603780851 | L13: 0.117799 | M13: 0.2746902947 | N13: 1.070805442 | O13: 3.090179205 | P13: 13.34493354 | R13: 0.1680525749 | U13: 3 | V13: 0.000749237296 | W13: 0.002323652414 | X13: 0.003372945376 | Y13: 0.00902414611 | Z13: 0.03890402252 | AA13: 0.1002778228 | AB13: 0.3432175769 | AE13: 3 | AF13: 0.02 | AG13: 0.06 | AH13: 0.08 | AI13: 0.22 | AJ13: 0.93 | AK13: 2.42 | AL13: 9.12 | AO13: 3 | AP13: 0.09 | AQ13: 0.3 | AR13: 0.56 | AS13: 1.09 | AT13: 2.69 | AU13: 6.67 | AV13: 9.12 | AY13: 3 | AZ13: 0.01759952049 | BA13: 0.01962009506 | BB13: 0.04048226817 | BC13: 0.06304914849 | BD13: 0.185600428 | BE13: 0.05157440456 | BF13: 0.005132850904 | BH13: 0.03759952049 | BI13: 0.07962009506 | BJ13: 0.1204822682 | BK13: 0.2830491485 | BL13: 1.115600428 | BM13: 2.471574405 | BN13: 9.125132851 | BP13: 0.05240047951 | BQ13: 0.2203799049 | BR13: 0.4395177318 | BS13: 0.8069508515 | BT13: 1.574399572 | BU13: 4.198425595 | BV13: -0.005132850904 | BX13: 0.4177724499 | BY13: 0.2654003169 | BZ13: 0.2151469074 | CA13: 0.2596781179 | CB13: 0.4147213487 | CC13: 0.3705508852 | CD13: 1.000562813 | CF13: 0.2571428571 | CG13: 0.8571428571 | CH13: 1.6 | CI13: 3.114285714 | CJ13: 7.685714286 | CK13: 19.05714286 | CL13: 26.05714286 | CO13: 0.02378545875 | CP13: 0.05603780851 | CQ13: 0.117799 | CR13: 0.2746902947 | CS13: 1.070805442 | CT13: 3.090179205 | CU13: 13.34493354
A14: 4 | B14: ='Data Entry'!M6 -> 0.01667957341 | C14: ='Final Spread'!B6 -> 0.009248276108 | D14: 0.002783274225 | E14: 0.006465001883 | F14: 0.02314457529 | I14: 4 | J14: 0.03096592377 | K14: 0.06708327855 | L14: 0.1551920175 | M14: 0.3249583682 | N14: 1.238780569 | O14: 3.128106148 | P14: 10.86838288 | R14: 0.2061684611 | U14: 4 | V14: 0.001356747817 | W14: 0.003242514677 | X14: 0.00477145944 | Y14: 0.01296649009 | Z14: 0.05422525645 | AA14: 0.1312365545 | AB14: 0.390797247 | AE14: 4 | AF14: 0.02 | AG14: 0.06 | AH14: 0.09 | AI14: 0.23 | AJ14: 0.98 | AK14: 2.38 | AL14: 7.69 | AO14: 4 | AP14: 0.12 | AQ14: 0.35 | AR14: 0.59 | AS14: 1.05 | AT14: 2.73 | AU14: 6.7 | AV14: 7.7 | AY14: 4 | AZ14: 0.0266968142 | BA14: 0.02992959013 | BB14: 0.06137749108 | BC14: 0.09467945032 | BD14: 0.2721796625 | BE14: 0.08224384017 | BF14: 0.01434802433 | BH14: 0.0466968142 | BI14: 0.08992959013 | BJ14: 0.1513774911 | BK14: 0.3246794503 | BL14: 1.252179663 | BM14: 2.46224384 | BN14: 7.704348024 | BP14: 0.0733031858 | BQ14: 0.2600704099 | BR14: 0.4386225089 | BS14: 0.7253205497 | BT14: 1.477820337 | BU14: 4.23775616 | BV14: -0.004348024327 | BX14: 0.3891401184 | BY14: 0.2569416861 | BZ14: 0.2565720188 | CA14: 0.3092185241 | CB14: 0.4586738691 | CC14: 0.3674990806 | CD14: 1.000564678 | CF14: 0.3428571429 | CG14: 1 | CH14: 1.685714286 | CI14: 3 | CJ14: 7.8 | CK14: 19.14285714 | CL14: 22 | CO14: 0.03096592377 | CP14: 0.06708327855 | CQ14: 0.1551920175 | CR14: 0.3249583682 | CS14: 1.238780569 | CT14: 3.128106148 | CU14: 10.86838288
A15: 5 | B15: ='Data Entry'!M7 -> 0.0169050575 | C15: ='Final Spread'!B7 -> 0.01105635565 | D15: 0.003338137137 | E15: 0.007718218509 | F15: 0.02462327601 | I15: 5 | J15: 0.04334023367 | K15: 0.08348528261 | L15: 0.1882716602 | M15: 0.3855433972 | N15: 1.383925062 | O15: 3.117396717 | P15: 9.059392917 | R15: 0.2472694176 | U15: 5 | V15: 0.002071494612 | W15: 0.004236497683 | X15: 0.006322461566 | Y15: 0.01730462455 | Z15: 0.06980602491 | AA15: 0.1599089471 | AB15: 0.4257442597 | AE15: 5 | AF15: 0.03 | AG15: 0.06 | AH15: 0.09 | AI15: 0.25 | AJ15: 1.01 | AK15: 2.33 | AL15: 6.59 | AO15: 5 | AP15: 0.16 | AQ15: 0.41 | AR15: 0.64 | AS15: 1.08 | AT15: 2.77 | AU15: 6.74 | AV15: 6.74 | AY15: 5 | AZ15: 0.03599427376 | BA15: 0.04057702445 | BB15: 0.08271975857 | BC15: 0.1264102571 | BD15: 0.355160337 | BE15: 0.115297122 | BF15: 0.02680683993 | BH15: 0.06599427376 | BI15: 0.1005770245 | BJ15: 0.1727197586 | BK15: 0.3764102571 | BL15: 1.365160337 | BM15: 2.445297122 | BN15: 6.61680684 | BP15: 0.09400572624 | BQ15: 0.3094229755 | BR15: 0.4672802414 | BS15: 0.7035897429 | BT15: 1.404839663 | BU15: 4.294702878 | BV15: 0.1231931601 | BX15: 0.412464211 | BY15: 0.2453098157 | BZ15: 0.2698746228 | CA15: 0.3485280158 | CB15: 0.4928376668 | CC15: 0.3628037273 | CD15: 0.9817220831 | CF15: 0.4571428571 | CG15: 1.171428571 | CH15: 1.828571429 | CI15: 3.085714286 | CJ15: 7.914285714 | CK15: 19.25714286 | CL15: 19.25714286 | CO15: 0.04334023367 | CP15: 0.08348528261 | CQ15: 0.1882716602 | CR15: 0.3855433972 | CS15: 1.383925062 | CT15: 3.117396717 | CU15: 9.059392917
A16: 6 | B16: ='Data Entry'!M8 -> 0.01729925633 | C16: ='Final Spread'!B8 -> 0.01286443519 | D16: 0.003931775235 | E16: 0.008932659951 | F16: 0.02623191628 | I16: 6 | J16: 0.05593993531 | K16: 0.1002943693 | L16: 0.2271734292 | M16: 0.446621143 | N16: 1.521913936 | O16: 3.082865377 | P16: 7.712328028 | R16: 0.29124261 | U16: 6 | V16: 0.00287540502 | W16: 0.005310670865 | X16: 0.008030801354 | Y16: 0.02199390319 | Z16: 0.08534806415 | AA16: 0.1863069865 | AB16: 0.4529010469 | AE16: 6 | AF16: 0.03 | AG16: 0.07 | AH16: 0.1 | AI16: 0.27 | AJ16: 1.04 | AK16: 2.26 | AL16: 5.73 | AO16: 6 | AP16: 0.18 | AQ16: 0.45 | AR16: 0.68 | AS16: 1.02 | AT16: 2.79 | AU16: 6.77 | AV16: 6.77 | AY16: 6 | AZ16: 0.0455313623 | BA16: 0.0516094204 | BB16: 0.1046058546 | BC16: 0.1583971868 | BD16: 0.4352680848 | BE16: 0.1503321886 | BF16: 0.04187041769 | BH16: 0.0755313623 | BI16: 0.1216094204 | BJ16: 0.2046058546 | BK16: 0.4283971868 | BL16: 1.475268085 | BM16: 2.410332189 | BN16: 5.771870418 | BP16: 0.1044686377 | BQ16: 0.3283905796 | BR16: 0.4753941454 | BS16: 0.5916028132 | BT16: 1.314731915 | BU16: 4.359667811 | BV16: 0.9981295823 | BX16: 0.4196186794 | BY16: 0.2702431564 | BZ16: 0.3008909626 | CA16: 0.419997242 | CB16: 0.5287699229 | CC16: 0.3560313425 | CD16: 0.8525657929 | CF16: 0.5142857143 | CG16: 1.285714286 | CH16: 1.942857143 | CI16: 2.914285714 | CJ16: 7.971428571 | CK16: 19.34285714 | CL16: 19.34285714 | CO16: 0.05593993531 | CP16: 0.1002943693 | CQ16: 0.2271734292 | CR16: 0.446621143 | CS16: 1.521913936 | CT16: 3.082865377 | CU16: 7.712328028
A17: 7 | B17: ='Data Entry'!M9 -> 0.01771971084 | C17: ='Final Spread'!B9 -> 0.01467251472 | D17: 0.004510857743 | E17: 0.01016165698 | F17: 0.02788136782 | I17: 7 | J17: 0.06874809645 | K17: 0.1174869894 | L17: 0.2718495043 | M17: 0.4981268977 | N17: 1.637772773 | O17: 3.024156475 | P17: 6.676693639 | R17: 0.3341376106 | U17: 7 | V17: 0.00375795052 | W17: 0.006470642244 | X17: 0.00989903777 | Y17: 0.02699009947 | Z17: 0.1006515175 | AA17: 0.2105707559 | AB17: 0.4750458148 | AE17: 7 | AF17: 0.04 | AG17: 0.07 | AH17: 0.11 | AI17: 0.28 | AJ17: 1.05 | AK17: 2.18 | AL17: 5.04 | AO17: 7 | AP17: 0.19 | AQ17: 0.47 | AR17: 0.66 | AS17: 0.94 | AT17: 2.81 | AU17: 6.78 | AV17: 6.78 | AY17: 7 | AZ17: 0.05528592471 | BA17: 0.0630046315 | BB17: 0.1269917335 | BC17: 0.1905786422 | BD17: 0.5125752672 | BE17: 0.1868324267 | BF17: 0.05898059405 | BH17: 0.09528592471 | BI17: 0.1330046315 | BJ17: 0.2369917335 | BK17: 0.4705786422 | BL17: 1.562575267 | BM17: 2.366832427 | BN17: 5.098980594 | BP17: 0.09471407529 | BQ17: 0.3369953685 | BR17: 0.4230082665 | BS17: 0.4694213578 | BT17: 1.247424733 | BU17: 4.413167573 | BV17: 1.681019406 | BX17: 0.5015048669 | BY17: 0.2829885777 | BZ17: 0.3590783841 | CA17: 0.5006155769 | CB17: 0.5560766075 | CC17: 0.3490903284 | CD17: 0.7520620345 | CF17: 0.5428571429 | CG17: 1.342857143 | CH17: 1.885714286 | CI17: 2.685714286 | CJ17: 8.028571429 | CK17: 19.37142857 | CL17: 19.37142857 | CO17: 0.06874809645 | CP17: 0.1174869894 | CQ17: 0.2718495043 | CR17: 0.4981268977 | CS17: 1.637772773 | CT17: 3.024156475 | CU17: 6.676693639
A18: 8 | B18: ='Data Entry'!M10 -> 0.01817638616 | C18: ='Final Spread'!B10 -> 0.01589440343 | D18: 0.005080900963 | E18: 0.01081350247 | F18: 0.02898988863 | I18: 8 | J18: 0.07681423396 | K18: 0.1301423112 | L18: 0.3075089493 | M18: 0.560323636 | N18: 1.747317774 | O18: 2.971260843 | P18: 5.877190298 | R18: 0.3763630343 | U18: 8 | V18: 0.004713259669 | W18: 0.00772199675 | X18: 0.01192777179 | Y18: 0.03225053182 | Z18: 0.1155857086 | AA18: 0.2328873569 | AB18: 0.4938033134 | AE18: 8 | AF18: 0.04 | AG18: 0.07 | AH18: 0.11 | AI18: 0.3 | AJ18: 1.06 | AK18: 2.11 | AL18: 4.49 | AO18: 8 | AP18: 0.15 | AQ18: 0.43 | AR18: 0.64 | AS18: 0.92 | AT18: 2.82 | AU18: 6.79 | AV18: 6.79 | AY18: 8 | AZ18: 0.06531990054 | BA18: 0.0748363521 | BB18: 0.1500276549 | BC18: 0.2231849544 | BD18: 0.5879205982 | BE18: 0.2246361768 | BF18: 0.07776314757 | BH18: 0.1053199005 | BI18: 0.1448363521 | BJ18: 0.2600276549 | BK18: 0.5231849544 | BL18: 1.647920598 | BM18: 2.334636177 | BN18: 4.567763148 | BP18: 0.04468009946 | BQ18: 0.2851636479 | BR18: 0.3799723451 | BS18: 0.3968150456 | BT18: 1.172079402 | BU18: 4.455363823 | BV18: 2.222236852 | BX18: 0.7021326702 | BY18: 0.3368287258 | BZ18: 0.4062932108 | CA18: 0.5686792982 | CB18: 0.5843690064 | CC18: 0.3438344885 | CD18: 0.6727191675 | CF18: 0.4285714286 | CG18: 1.228571429 | CH18: 1.828571429 | CI18: 2.628571429 | CJ18: 8.057142857 | CK18: 19.4 | CL18: 19.4 | CO18: 0.07681423396 | CP18: 0.1301423112 | CQ18: 0.3075089493 | CR18: 0.560323636 | CS18: 1.747317774 | CT18: 2.971260843 | CU18: 5.877190298
A19: 9 | B19: ='Data Entry'!M11 -> 0.01861904204 | C19: ='Final Spread'!B11 -> 0.01715331906 | D19: 0.005652273033 | E19: 0.01150104603 | F19: 0.03012008807 | I19: 9 | J19: 0.08507339186 | K19: 0.1531628692 | L19: 0.3489249204 | M19: 0.6129165726 | N19: 1.844970109 | O19: 2.908679279 | P19: 5.228458156 | R19: 0.4186868914 | U19: 9 | V19: 0.005738420572 | W19: 0.009069958742 | X19: 0.01411594173 | Y19: 0.03773490295 | Z19: 0.1300687295 | AA19: 0.2534513747 | AB19: 0.5101482577 | AE19: 9 | AF19: 0.04 | AG19: 0.08 | AH19: 0.12 | AI19: 0.31 | AJ19: 1.06 | AK19: 2.03 | AL19: 4.03 | AO19: 9 | AP19: 0.15 | AQ19: 0.44 | AR19: 0.66 | AS19: 0.96 | AT19: 2.83 | AU19: 6.8 | AV19: 6.8 | AY19: 9 | AZ19: 0.07555067463 | BA19: 0.08701334715 | BB19: 0.1735319913 | BC19: 0.255947834 | BD19: 0.6607701397 | BE19: 0.2631456116 | BF19: 0.09775775123 | BH19: 0.1155506746 | BI19: 0.1670133471 | BJ19: 0.2935319913 | BK19: 0.565947834 | BL19: 1.72077014 | BM19: 2.293145612 | BN19: 4.127757751 | BP19: 0.03444932537 | BQ19: 0.2729866529 | BR19: 0.3664680087 | BS19: 0.394052166 | BT19: 1.10922986 | BU19: 4.506854388 | BV19: 2.672242249 | BX19: 0.7703378309 | BY19: 0.379575789 | BZ19: 0.4447454413 | CA19: 0.5895289938 | CB19: 0.6080459858 | CC19: 0.3372272958 | CD19: 0.6070231987 | CF19: 0.4285714286 | CG19: 1.257142857 | CH19: 1.885714286 | CI19: 2.742857143 | CJ19: 8.085714286 | CK19: 19.42857143 | CL19: 19.42857143 | CO19: 0.08507339186 | CP19: 0.1531628692 | CQ19: 0.3489249204 | CR19: 0.6129165726 | CS19: 1.844970109 | CT19: 2.908679279 | CU19: 5.228458156
A20: 10 | B20: ='Data Entry'!M12 -> 0.01905003643 | C20: ='Final Spread'!B12 -> 0.01837520777 | D20: 0.0062496442 | E20: 0.01212556357 | F20: 0.0311756 | I20: 10 | J20: 0.09861801789 | K20: 0.1666952919 | L20: 0.3914772411 | M20: 0.6713782385 | N20: 1.936995656 | O20: 2.846668335 | P20: 4.705404118 | R20: 0.4629366074 | U20: 10 | V20: 0.006832449594 | W20: 0.01051919171 | X20: 0.01646109201 | Y20: 0.04340584867 | Z20: 0.1440530304 | AA20: 0.272446947 | AB20: 0.5246847475 | AE20: 10 | AF20: 0.05 | AG20: 0.08 | AH20: 0.13 | AI20: 0.32 | AJ20: 1.06 | AK20: 1.96 | AL20: 3.65 | AO20: 10 | AP20: 0.17 | AQ20: 0.47 | AR20: 0.69 | AS20: 1.01 | AT20: 2.83 | AU20: 6.81 | AV20: 6.81 | AY20: 10 | AZ20: 0.08609410352 | BA20: 0.09967223645 | BB20: 0.1977812215 | BC20: 0.2892803738 | BD20: 0.7323790339 | BE20: 0.3025049782 | BF20: 0.11880893 | BH20: 0.1360941035 | BI20: 0.1796722365 | BJ20: 0.3277812215 | BK20: 0.6092803738 | BL20: 1.792379034 | BM20: 2.262504978 | BN20: 3.76880893 | BP20: 0.03390589648 | BQ20: 0.2903277635 | BR20: 0.3622187785 | BS20: 0.4007196262 | BT20: 1.037620966 | BU20: 4.547495022 | BV20: 3.04119107 | BX20: 0.8005535501 | BY20: 0.3822813542 | BZ20: 0.4750452485 | CA20: 0.6032478949 | CB20: 0.6333494819 | CC20: 0.3322327428 | CD20: 0.5534227504 | CF20: 0.4857142857 | CG20: 1.342857143 | CH20: 1.971428571 | CI20: 2.885714286 | CJ20: 8.085714286 | CK20: 19.45714286 | CL20: 19.45714286 | CO20: 0.09861801789 | CP20: 0.1666952919 | CQ20: 0.3914772411 | CR20: 0.6713782385 | CS20: 1.936995656 | CT20: 2.846668335 | CU20: 4.705404118
A21: 11 | B21: ='Data Entry'!M13 -> 0.01947845827 | C21: ='Final Spread'!B13 -> 0.01884229085 | D21: 0.006878257191 | E21: 0.01196403366 | F21: 0.03144249193 | I21: 11 | J21: 0.1124911297 | K21: 0.190811001 | L21: 0.4353616166 | M21: 0.7309382784 | N21: 2.019019661 | O21: 2.790280605 | P21: 4.277925617 | R21: 0.5095005327 | U21: 11 | V21: 0.0079956386 | W21: 0.01207368485 | X21: 0.0189596185 | Y21: 0.04922923842 | Z21: 0.1575151653 | AA21: 0.2900408038 | AB21: 0.5378022409 | AE21: 11 | AF21: 0.05 | AG21: 0.09 | AH21: 0.13 | AI21: 0.34 | AJ21: 1.05 | AK21: 1.89 | AL21: 3.34 | AO21: 11 | AP21: 0.18 | AQ21: 0.49 | AR21: 0.7 | AS21: 1.04 | AT21: 2.84 | AU21: 6.81 | AV21: 6.81 | AY21: 11 | AZ21: 0.09700315597 | BA21: 0.112879408 | BB21: 0.2229090871 | BC21: 0.3233752197 | BD21: 0.8033603871 | BE21: 0.3426904455 | BF21: 0.140754744 | BH21: 0.147003156 | BI21: 0.202879408 | BJ21: 0.3529090871 | BK21: 0.6633752197 | BL21: 1.853360387 | BM21: 2.232690445 | BN21: 3.480754744 | BP21: 0.03299684403 | BQ21: 0.287120592 | BR21: 0.3470909129 | BS21: 0.3766247803 | BT21: 0.9866396129 | BU21: 4.577309555 | BV21: 3.329245256 | BX21: 0.8166841998 | BY21: 0.4140396082 | BZ21: 0.5041558386 | CA21: 0.6378607882 | CB21: 0.6525916856 | CC21: 0.327854691 | CD21: 0.5111240446 | CF21: 0.5142857143 | CG21: 1.4 | CH21: 2 | CI21: 2.971428571 | CJ21: 8.114285714 | CK21: 19.45714286 | CL21: 19.45714286 | CO21: 0.1124911297 | CP21: 0.190811001 | CQ21: 0.4353616166 | CR21: 0.7309382784 | CS21: 2.019019661 | CT21: 2.790280605 | CU21: 4.277925617
A22: 12 | B22: ='Data Entry'!M14 -> 0.0198392384 | C22: ='Final Spread'!B14 -> 0.01930937393 | D22: 0.007476517805 | E22: 0.01183285612 | F22: 0.03167209452 | I22: 12 | J22: 0.1215395136 | K22: 0.2102750612 | L22: 0.4800205324 | M22: 0.7858895155 | N22: 2.099473043 | O22: 2.733688508 | P22: 3.910646315 | R22: 0.5538161337 | U22: 12 | V22: 0.009229122007 | W22: 0.01373669665 | X22: 0.02160699067 | Y22: 0.05517428245 | Z22: 0.1704484555 | AA22: 0.306380672 | AB22: 0.5497632937 | AE22: 12 | AF22: 0.05 | AG22: 0.09 | AH22: 0.14 | AI22: 0.35 | AJ22: 1.04 | AK22: 1.82 | AL22: 3.06 | AO22: 12 | AP22: 0.2 | AQ22: 0.51 | AR22: 0.71 | AS22: 1.05 | AT22: 2.84 | AU22: 6.82 | AV22: 6.82 | AY22: 12 | AZ22: 0.1080851117 | BA22: 0.1264150654 | BB22: 0.2484823489 | BC22: 0.3575985884 | BD22: 0.8722134051 | BE22: 0.382829219 | BF22: 0.1631078781 | BH22: 0.1580851117 | BI22: 0.2164150654 | BJ22: 0.3884823489 | BK22: 0.7075985884 | BL22: 1.912213405 | BM22: 2.202829219 | BN22: 3.223107878 | BP22: 0.04191488833 | BQ22: 0.2935849346 | BR22: 0.3215176511 | BS22: 0.3424014116 | BT22: 0.9277865949 | BU22: 4.617170781 | BV22: 3.596892122 | BX22: 0.7904255583 | BY22: 0.4243432656 | BZ22: 0.5471582379 | CA22: 0.6739034175 | CB22: 0.6733145793 | CC22: 0.3229954867 | CD22: 0.4725964631 | CF22: 0.5714285714 | CG22: 1.457142857 | CH22: 2.028571429 | CI22: 3 | CJ22: 8.114285714 | CK22: 19.48571429 | CL22: 19.48571429 | CO22: 0.1215395136 | CP22: 0.2102750612 | CQ22: 0.4800205324 | CR22: 0.7858895155 | CS22: 2.099473043 | CT22: 2.733688508 | CU22: 3.910646315
A23: 13 | B23: ='Data Entry'!M15 -> 0.02014951906 | C23: ='Final Spread'!B15 -> 0.019776457 | D23: 0.008081549923 | E23: 0.01169490708 | F23: 0.03184442614 | I23: 13 | J23: 0.1360284497 | K23: 0.2355076551 | L23: 0.5265186527 | M23: 0.8375322893 | N23: 2.171436597 | O23: 2.683001191 | P23: 3.60386277 | R23: 0.5986333276 | U23: 13 | V23: 0.01053457562 | W23: 0.01551073682 | X23: 0.02439795014 | Y23: 0.06121349819 | Z23: 0.1828577252 | AA23: 0.3215961286 | AB23: 0.5607534297 | AE23: 13 | AF23: 0.06 | AG23: 0.1 | AH23: 0.15 | AI23: 0.35 | AJ23: 1.03 | AK23: 1.75 | AL23: 2.82 | AO23: 13 | AP23: 0.21 | AQ23: 0.53 | AR23: 0.72 | AS23: 1.05 | AT23: 2.85 | AU23: 6.82 | AV23: 6.82 | AY23: 13 | AZ23: 0.1196711087 | BA23: 0.1406712089 | BB23: 0.2752818225 | BC23: 0.393080996 | BD23: 0.9418898321 | BE23: 0.4239603178 | BF23: 0.1861920799 | BH23: 0.1796711087 | BI23: 0.2406712089 | BJ23: 0.4252818225 | BK23: 0.743080996 | BL23: 1.971889832 | BM23: 2.173960318 | BN23: 3.00619208 | BP23: 0.03032889128 | BQ23: 0.2893287911 | BR23: 0.2947181775 | BS23: 0.306919004 | BT23: 0.8781101679 | BU23: 4.646039682 | BV23: 3.81380792 | BX23: 0.8555767082 | BY23: 0.4540966206 | BZ23: 0.5906691979 | CA23: 0.7076961866 | CB23: 0.6918911692 | CC23: 0.3187625099 | CD23: 0.4407906276 | CF23: 0.6 | CG23: 1.514285714 | CH23: 2.057142857 | CI23: 3 | CJ23: 8.142857143 | CK23: 19.48571429 | CL23: 19.48571429 | CO23: 0.1360284497 | CP23: 0.2355076551 | CQ23: 0.5265186527 | CR23: 0.8375322893 | CS23: 2.171436597 | CT23: 2.683001191 | CU23: 3.60386277
A24: 14 | B24: ='Data Entry'!M16 -> 0.02042821221 | C24: ='Final Spread'!B16 -> 0.02024354008 | D24: 0.008707747279 | E24: 0.0115357928 | F24: 0.03196400501 | I24: 14 | J24: 0.1507450848 | K24: 0.2511806227 | L24: 0.5740763383 | M24: 0.8948847071 | N24: 2.24770389 | O24: 2.637153493 | P24: 3.337140041 | R24: 0.645018317 | U24: 14 | V24: 0.01191399798 | W24: 0.01739757473 | X24: 0.02732668599 | Y24: 0.0673225801 | Z24: 0.1947555206 | AA24: 0.3358004246 | AB24: 0.5709098802 | AE24: 14 | AF24: 0.06 | AG24: 0.1 | AH24: 0.15 | AI24: 0.36 | AJ24: 1.02 | AK24: 1.69 | AL24: 2.61 | AO24: 14 | AP24: 0.2 | AQ24: 0.53 | AR24: 0.72 | AS24: 1.05 | AT24: 2.85 | AU24: 6.82 | AV24: 6.82 | AY24: 14 | AZ24: 0.1314943151 | BA24: 0.1553408218 | BB24: 0.302705007 | BC24: 0.4289458427 | BD24: 1.010272378 | BE24: 0.4649939627 | BF24: 0.2094554506 | BH24: 0.1914943151 | BI24: 0.2553408218 | BJ24: 0.452705007 | BK24: 0.7889458427 | BL24: 2.030272378 | BM24: 2.154993963 | BN24: 2.819455451 | BP24: 0.008505684916 | BQ24: 0.2746591782 | BR24: 0.267294993 | BS24: 0.2610541573 | BT24: 0.8197276221 | BU24: 4.665006037 | BV24: 4.000544549 | BX24: 0.9574715754 | BY24: 0.4817751356 | BZ24: 0.6287569542 | CA24: 0.7513769931 | CB24: 0.7123762729 | CC24: 0.3159815195 | CD24: 0.4134098901 | CF24: 0.5714285714 | CG24: 1.514285714 | CH24: 2.057142857 | CI24: 3 | CJ24: 8.142857143 | CK24: 19.48571429 | CL24: 19.48571429 | CO24: 0.1507450848 | CP24: 0.2511806227 | CQ24: 0.5740763383 | CR24: 0.8948847071 | CS24: 2.24770389 | CT24: 2.637153493 | CU24: 3.337140041
A25: 15 | B25: ='Data Entry'!M17 -> 0.02065669135 | C25: ='Final Spread'!B17 -> 0.02071062316 | D25: 0.009344723028 | E25: 0.01136590013 | F25: 0.03202259148 | I25: 15 | J25: 0.160583937 | K25: 0.2721316277 | L25: 0.6223255203 | M25: 0.9524877679 | N25: 2.312328944 | O25: 2.585599142 | P25: 3.100213397 | R25: 0.6922017058 | U25: 15 | V25: 0.01336954625 | W25: 0.01939826598 | X25: 0.03038698729 | Y25: 0.0734802081 | Z25: 0.2061593976 | AA25: 0.3490925572 | AB25: 0.5803384435 | AE25: 15 | AF25: 0.06 | AG25: 0.1 | AH25: 0.16 | AI25: 0.37 | AJ25: 1.01 | AK25: 1.63 | AL25: 2.42 | AO25: 15 | AP25: 0.21 | AQ25: 0.53 | AR25: 0.72 | AS25: 1.05 | AT25: 2.85 | AU25: 6.83 | AV25: 6.83 | AY25: 15 | AZ25: 0.1434235831 | BA25: 0.1702716896 | BB25: 0.3304611699 | BC25: 0.4647822957 | BD25: 1.076470643 | BE25: 0.5053471719 | BF25: 0.2325487875 | BH25: 0.2034235831 | BI25: 0.2702716896 | BJ25: 0.4904611699 | BK25: 0.8347822957 | BL25: 2.086470643 | BM25: 2.135347172 | BN25: 2.652548787 | BP25: 0.006576416929 | BQ25: 0.2597283104 | BR25: 0.2295388301 | BS25: 0.2152177043 | BT25: 0.7635293569 | BU25: 4.694652828 | BV25: 4.177451213 | BX25: 0.9686837289 | BY25: 0.5099465842 | BZ25: 0.6811960693 | CA25: 0.7950307578 | CB25: 0.7320949625 | CC25: 0.3126423385 | CD25: 0.3883673188 | CF25: 0.6 | CG25: 1.514285714 | CH25: 2.057142857 | CI25: 3 | CJ25: 8.142857143 | CK25: 19.51428571 | CL25: 19.51428571 | CO25: 0.160583937 | CP25: 0.2721316277 | CQ25: 0.6223255203 | CR25: 0.9524877679 | CS25: 2.312328944 | CT25: 2.585599142 | CU25: 3.100213397
A26: 16 | B26: ='Data Entry'!M18 -> 0.02087013174 | C26: ='Final Spread'!B18 -> 0.02117770624 | D26: 0.009988453978 | E26: 0.01118925226 | F26: 0.032059384 | I26: 16 | J26: 0.1807682744 | K26: 0.2987183761 | L26: 0.672191326 | M26: 1.006448114 | N26: 2.377858668 | O26: 2.544289285 | P26: 2.898378025 | R26: 0.7398854799 | U26: 16 | V26: 0.01490341019 | W26: 0.02151319161 | X26: 0.03357237407 | Y26: 0.07966782093 | Z26: 0.2170899845 | AA26: 0.3615592614 | AB26: 0.5891236038 | AE26: 16 | AF26: 0.07 | AG26: 0.11 | AH26: 0.17 | AI26: 0.38 | AJ26: 0.99 | AK26: 1.57 | AL26: 2.26 | AO26: 16 | AP26: 0.22 | AQ26: 0.53 | AR26: 0.72 | AS26: 1.05 | AT26: 2.84 | AU26: 6.82 | AV26: 6.82 | AY26: 16 | AZ26: 0.1557366835 | BA26: 0.1857972853 | BB26: 0.3592145749 | BC26: 0.5015378506 | BD26: 1.142881877 | BE26: 0.5459395816 | BF26: 0.2558120956 | BH26: 0.2257366835 | BI26: 0.2957972853 | BJ26: 0.5292145749 | BK26: 0.8815378506 | BL26: 2.132881877 | BM26: 2.115939582 | BN26: 2.515812096 | BP26: -0.005736683524 | BQ26: 0.2342027147 | BR26: 0.1907854251 | BS26: 0.1684621494 | BT26: 0.7071181231 | BU26: 4.704060418 | BV26: 4.304187904 | BX26: 1.026075834 | BY26: 0.5581080854 | BZ26: 0.735020243 | CA26: 0.8395598577 | CB26: 0.7510147454 | CC26: 0.3102550706 | CD26: 0.368887404 | CF26: 0.6285714286 | CG26: 1.514285714 | CH26: 2.057142857 | CI26: 3 | CJ26: 8.114285714 | CK26: 19.48571429 | CL26: 19.48571429 | CO26: 0.1807682744 | CP26: 0.2987183761 | CQ26: 0.672191326 | CR26: 1.006448114 | CS26: 2.377858668 | CT26: 2.544289285 | CU26: 2.898378025
A27: 17 | B27: ='Data Entry'!M19 -> 0.02105340511 | C27: ='Final Spread'!B19 -> 0.02164478932 | D27: 0.01060899596 | E27: 0.01103579335 | F27: 0.03208919847 | I27: 17 | J27: 0.1913579009 | K27: 0.3210434125 | L27: 0.7189770194 | M27: 1.06209946 | N27: 2.445049323 | O27: 2.503432586 | P27: 2.72167696 | R27: 0.7858515528 | U27: 17 | V27: 0.01651771465 | W27: 0.02374210535 | X27: 0.03687620838 | Y27: 0.08586937356 | Z27: 0.2275696046 | AA27: 0.3732767877 | AB27: 0.5973347725 | AE27: 17 | AF27: 0.07 | AG27: 0.11 | AH27: 0.17 | AI27: 0.38 | AJ27: 0.98 | AK27: 1.51 | AL27: 2.11 | AO27: 17 | AP27: 0.24 | AQ27: 0.53 | AR27: 0.72 | AS27: 1.05 | AT27: 2.84 | AU27: 6.82 | AV27: 6.82 | AY27: 17 | AZ27: 0.168507001 | BA27: 0.2020126385 | BB27: 0.3891592305 | BC27: 0.5394772593 | BD27: 1.210179408 | BE27: 0.5869639763 | BF27: 0.2792849814 | BH27: 0.238507001 | BI27: 0.3120126385 | BJ27: 0.5591592305 | BK27: 0.9194772593 | BL27: 2.190179408 | BM27: 2.096963976 | BN27: 2.389284981 | BP27: 0.001492999009 | BQ27: 0.2179873615 | BR27: 0.1608407695 | BS27: 0.1305227407 | BT27: 0.649820592 | BU27: 4.723036024 | BV27: 4.430715019 | BX27: 0.9937791708 | BY27: 0.5887030915 | BZ27: 0.7766100424 | CA27: 0.8756926279 | CB27: 0.7711899324 | CC27: 0.3074727238 | CD27: 0.3503350413 | CF27: 0.6857142857 | CG27: 1.514285714 | CH27: 2.057142857 | CI27: 3 | CJ27: 8.114285714 | CK27: 19.48571429 | CL27: 19.48571429 | CO27: 0.1913579009 | CP27: 0.3210434125 | CQ27: 0.7189770194 | CR27: 1.06209946 | CS27: 2.445049323 | CT27: 2.503432586 | CU27: 2.72167696
A28: 18 | B28: ='Data Entry'!M20 -> 0.02119459632 | C28: ='Final Spread'!B20 -> 0.02211187239 | D28: 0.01132381887 | E28: 0.01078805352 | F28: 0.03198264984 | I28: 18 | J28: 0.2073378147 | K28: 0.3490916218 | L28: 0.7777027213 | M28: 1.119428944 | N28: 2.508882027 | O28: 2.467907602 | P28: 2.570034311 | R28: 0.8388013981 | U28: 18 | V28: 0.0182144439 | W28: 0.0260841861 | X28: 0.0402917872 | Y28: 0.09207109207 | Z28: 0.2376213079 | AA28: 0.3843124341 | AB28: 0.6050302644 | AE28: 18 | AF28: 0.07 | AG28: 0.12 | AH28: 0.18 | AI28: 0.39 | AJ28: 0.96 | AK28: 1.46 | AL28: 1.98 | AO28: 18 | AP28: 0.26 | AQ28: 0.53 | AR28: 0.72 | AS28: 1.05 | AT28: 2.84 | AU28: 6.82 | AV28: 6.82 | AY28: 18 | AZ28: 0.1817150501 | BA28: 0.2189027557 | BB28: 0.4202753357 | BC28: 0.5785612555 | BD28: 1.278298047 | BE28: 0.6282865202 | BF28: 0.3028636924 | BH28: 0.2517150501 | BI28: 0.3389027557 | BJ28: 0.6002753357 | BK28: 0.9685612555 | BL28: 2.238298047 | BM28: 2.08828652 | BN28: 2.282863692 | BP28: 0.00828494988 | BQ28: 0.1910972443 | BR28: 0.1197246643 | BS28: 0.0814387445 | BT28: 0.601701953 | BU28: 4.73171348 | BV28: 4.537136308 | BX28: 0.9681348082 | BY28: 0.6394391617 | BZ28: 0.833715744 | CA28: 0.922439291 | CB28: 0.7881331152 | CC28: 0.3062003695 | CD28: 0.3347307467 | CF28: 0.7428571429 | CG28: 1.514285714 | CH28: 2.057142857 | CI28: 3 | CJ28: 8.114285714 | CK28: 19.48571429 | CL28: 19.48571429 | CO28: 0.2073378147 | CP28: 0.3490916218 | CQ28: 0.7777027213 | CR28: 1.119428944 | CS28: 2.508882027 | CT28: 2.467907602 | CU28: 2.570034311
A29: 19 | B29: ='Data Entry'!M21 -> 0.02131671745 | C29: ='Final Spread'!B21 -> 0.02257895547 | D29: 0.0120217832 | E29: 0.01055717228 | F29: 0.03187388972 | I29: 19 | J29: 0.2236822922 | K29: 0.3728310037 | L29: 0.8333548424 | M29: 1.17838191 | N29: 2.574253098 | O29: 2.437554757 | P29: 2.428360609 | R29: 0.8905024591 | U29: 19 | V29: 0.01999538397 | W29: 0.02853809291 | X29: 0.04381241915 | Y29: 0.09826123495 | Z29: 0.247268198 | AA29: 0.3947258402 | AB29: 0.6122599239 | AE29: 19 | AF29: 0.08 | AG29: 0.12 | AH29: 0.19 | AI29: 0.39 | AJ29: 0.95 | AK29: 1.41 | AL29: 1.86 | AO29: 19 | AP29: 0.27 | AQ29: 0.53 | AR29: 0.72 | AS29: 1.05 | AT29: 2.85 | AU29: 6.82 | AV29: 6.82 | AY29: 19 | AZ29: 0.1953283918 | BA29: 0.2364367563 | BB29: 0.4525147307 | BC29: 0.6187126414 | BD29: 1.347089258 | BE29: 0.6697366071 | BF29: 0.3264289975 | BH29: 0.2753283918 | BI29: 0.3564367563 | BJ29: 0.6425147307 | BK29: 1.008712641 | BL29: 2.297089258 | BM29: 2.079736607 | BN29: 2.186428997 | BP29: -0.005328391844 | BQ29: 0.1735632437 | BR29: 0.07748526935 | BS29: 0.04128735864 | BT29: 0.5529107425 | BU29: 4.740263393 | BV29: 4.633571003 | BX29: 1.019734785 | BY29: 0.6725221816 | BZ29: 0.8923815704 | CA29: 0.9606787061 | CB29: 0.8059962307 | CC29: 0.3049467166 | CD29: 0.3205907621 | CF29: 0.7714285714 | CG29: 1.514285714 | CH29: 2.057142857 | CI29: 3 | CJ29: 8.142857143 | CK29: 19.48571429 | CL29: 19.48571429 | CO29: 0.2236822922 | CP29: 0.3728310037 | CQ29: 0.8333548424 | CR29: 1.17838191 | CS29: 2.574253098 | CT29: 2.437554757 | CU29: 2.428360609
A30: 20 | B30: ='Data Entry'!M22 -> 0.02142566832 | C30: ='Final Spread'!B22 -> 0.02304603855 | D30: 0.01270664058 | E30: 0.01033939797 | F30: 0.03176506629 | I30: 20 | J30: 0.2353537293 | K30: 0.3972104573 | L30: 0.8858799923 | M30: 1.238855635 | N30: 2.640962257 | O30: 2.412172959 | P30: 2.306551633 | R30: 0.9412326357 | U30: 20 | V30: 0.02186207959 | W30: 0.03110202089 | X30: 0.04743148684 | Y30: 0.1044298665 | Z30: 0.2565329738 | AA30: 0.4045700709 | AB30: 0.6190669241 | AE30: 20 | AF30: 0.08 | AG30: 0.13 | AH30: 0.19 | AI30: 0.4 | AJ30: 0.93 | AK30: 1.36 | AL30: 1.75 | AO30: 20 | AP30: 0.29 | AQ30: 0.53 | AR30: 0.72 | AS30: 1.06 | AT30: 2.86 | AU30: 6.84 | AV30: 6.84 | AY30: 20 | AZ30: 0.2093003092 | BA30: 0.2545658211 | BB30: 0.4857968736 | BC30: 0.6598115669 | BD30: 1.416312128 | BE30: 0.7111028294 | BF30: 0.3498442183 | BH30: 0.2893003092 | BI30: 0.3845658211 | BJ30: 0.6757968736 | BK30: 1.059811567 | BL30: 2.346312128 | BM30: 2.071102829 | BN30: 2.099844218 | BP30: 0.0006996908487 | BQ30: 0.1454341789 | BR30: 0.04420312644 | BS30: 0.0001884331152 | BT30: 0.5136878722 | BU30: 4.768897171 | BV30: 4.740155782 | BX30: 0.9975872729 | BY30: 0.7255958889 | BZ30: 0.9386067688 | CA30: 0.9998222329 | CB30: 0.8203888559 | CC30: 0.3027928113 | CD30: 0.3069947688 | CF30: 0.8285714286 | CG30: 1.514285714 | CH30: 2.057142857 | CI30: 3.028571429 | CJ30: 8.171428571 | CK30: 19.54285714 | CL30: 19.54285714 | CO30: 0.2353537293 | CP30: 0.3972104573 | CQ30: 0.8858799923 | CR30: 1.238855635 | CS30: 2.640962257 | CT30: 2.412172959 | CU30: 2.306551633
A31: 21 | B31: ='Data Entry'!M23 -> 0.02149451104 | E31: =E30 -> 0.01033939797 | F31: 0.03183390901 | I31: 21 | J31: 0.2523159659 | K31: 0.4221809297 | L31: 0.9452378129 | M31: 1.295761881 | N31: 2.708847351 | O31: 2.381578607 | P31: 2.194511573 | R31: 0.9939816594 | U31: 21 | V31: 0.02381580349 | W31: 0.03377375641 | X31: 0.05114249679 | Y31: 0.110568646 | Z31: 0.2654376266 | AA31: 0.413892522 | AB31: 0.6254890469 | AE31: 21 | AF31: 0.08 | AG31: 0.13 | AH31: 0.2 | AI31: 0.4 | AJ31: 0.92 | AK31: 1.31 | AL31: 1.65 | AO31: 21 | AP31: 0.31 | AQ31: 0.53 | AR31: 0.72 | AS31: 1.1 | AT31: 2.88 | AU31: 6.85 | AV31: 6.85 | AY31: 21 | AZ31: 0.2235862999 | BA31: 0.2732429588 | BB31: 0.5200472281 | BC31: 0.7017491456 | BD31: 1.485758112 | BE31: 0.752192401 | BF31: 0.372983771 | BH31: 0.3035862999 | BI31: 0.4032429588 | BJ31: 0.7200472281 | BK31: 1.101749146 | BL31: 2.405758112 | BM31: 2.062192401 | BN31: 2.022983771 | BP31: 0.006413700127 | BQ31: 0.1267570412 | BR31: -4.722808732e-05 | BS31: -0.001749145556 | BT31: 0.4742418876 | BU31: 4.787807599 | BV31: 4.827016229 | BX31: 0.9793106448 | BY31: 0.7608357714 | BZ31: 1.000065595 | CA31: 1.001590132 | CB31: 0.8353326779 | CC31: 0.3010499855 | CD31: 0.295326098 | CF31: 0.8857142857 | CG31: 1.514285714 | CH31: 2.057142857 | CI31: 3.142857143 | CJ31: 8.228571429 | CK31: 19.57142857 | CL31: 19.57142857 | CO31: 0.2523159659 | CP31: 0.4221809297 | CQ31: 0.9452378129 | CR31: 1.295761881 | CS31: 2.708847351 | CT31: 2.381578607 | CU31: 2.194511573
A32: 22 | B32: ='Data Entry'!M24 -> 0.02155689779 | E32: 0.01033939797 | F32: 0.03189629576 | I32: 22 | J32: 0.2745826941 | K32: 0.4527741447 | L32: 1.001603929 | M32: 1.359260772 | N32: 2.773278907 | O32: 2.360811564 | P32: 2.087233502 | R32: 1.048895501 | U32: 22 | V32: 0.02585753614 | W32: 0.03655073078 | X32: 0.05493911853 | Y32: 0.1166706336 | Z32: 0.2740032483 | AA32: 0.4227356761 | AB32: 0.6315596258 | AE32: 22 | AF32: 0.09 | AG32: 0.14 | AH32: 0.2 | AI32: 0.41 | AJ32: 0.9 | AK32: 1.27 | AL32: 1.55 | AO32: 22 | AP32: 0.33 | AQ32: 0.53 | AR32: 0.76 | AS32: 1.15 | AT32: 2.89 | AU32: 6.86 | AV32: 6.86 | AY32: 22 | AZ32: 0.2382035126 | BA32: 0.2924964688 | BB32: 0.5553404711 | BC32: 0.7446229424 | BD32: 1.555694721 | BE32: 0.79304072 | BF32: 0.3958341989 | BH32: 0.3282035126 | BI32: 0.4324964688 | BJ32: 0.7553404711 | BK32: 1.154622942 | BL32: 2.455694721 | BM32: 2.06304072 | BN32: 1.945834199 | BP32: 0.001796487403 | BQ32: 0.09750353116 | BR32: 0.004659528867 | BS32: -0.004622942408 | BT32: 0.4343052787 | BU32: 4.79695928 | BV32: 4.914165801 | BX32: 0.9945560988 | BY32: 0.8160310733 | BZ32: 0.993869041 | CA32: 1.00401995 | CB32: 0.8497213569 | CC32: 0.3007347988 | CD32: 0.2836493001 | CF32: 0.9428571429 | CG32: 1.514285714 | CH32: 2.171428571 | CI32: 3.285714286 | CJ32: 8.257142857 | CK32: 19.6 | CL32: 19.6 | CO32: 0.2745826941 | CP32: 0.4527741447 | CQ32: 1.001603929 | CR32: 1.359260772 | CS32: 2.773278907 | CT32: 2.360811564 | CU32: 2.087233502
A33: 23 | B33: ='Data Entry'!M25 -> 0.02161229783 | E33: 0.01033939797 | F33: 0.0319516958 | I33: 23 | J33: 0.2871825542 | K33: 0.4790473746 | L33: 1.065236493 | M33: 1.41459861 | N33: 2.839805286 | O33: 2.334977896 | P33: 1.999738984 | R33: 1.102894692 | U33: 23 | V33: 0.02798795414 | W33: 0.03943007143 | X33: 0.05881521456 | Y33: 0.1227301146 | Z33: 0.2822499194 | AA33: 0.4311377369 | AB33: 0.6373082617 | AE33: 23 | AF33: 0.09 | AG33: 0.14 | AH33: 0.21 | AI33: 0.41 | AJ33: 0.88 | AK33: 1.22 | AL33: 1.47 | AO33: 23 | AP33: 0.34 | AQ33: 0.53 | AR33: 0.8 | AS33: 1.2 | AT33: 2.89 | AU33: 6.87 | AV33: 6.87 | AY33: 23 | AZ33: 0.2531874683 | BA33: 0.3123783234 | BB33: 0.5918000704 | BC33: 0.788595302 | BD33: 1.626529165 | BE33: 0.833752714 | BF33: 0.4184193566 | BH33: 0.3431874683 | BI33: 0.4523783234 | BJ33: 0.8018000704 | BK33: 1.198595302 | BL33: 2.506529165 | BM33: 2.053752714 | BN33: 1.888419357 | BP33: -0.00318746832 | BQ33: 0.07762167656 | BR33: -0.001800070381 | BS33: 0.001404697954 | BT33: 0.3834708352 | BU33: 4.816247286 | BV33: 4.981580643 | BX33: 1.009374907 | BY33: 0.8535440065 | BZ33: 1.002250088 | CA33: 0.9988294184 | CB33: 0.8673111297 | CC33: 0.2989450821 | CD33: 0.2748790912 | CF33: 0.9714285714 | CG33: 1.514285714 | CH33: 2.285714286 | CI33: 3.428571429 | CJ33: 8.257142857 | CK33: 19.62857143 | CL33: 19.62857143 | CO33: 0.2871825542 | CP33: 0.4790473746 | CQ33: 1.065236493 | CR33: 1.41459861 | CS33: 2.839805286 | CT33: 2.334977896 | CU33: 1.999738984
A34: 24 | B34: ='Data Entry'!M26 -> 0.02166028256 | E34: 0.01033939797 | F34: 0.03199968053 | I34: 24 | J34: 0.3051451855 | K34: 0.511061247 | L34: 1.126424675 | M34: 1.477045 | N34: 2.914020442 | O34: 2.31918797 | P34: 1.917053268 | R34: 1.159523263 | U34: 24 | V34: 0.03020742596 | W34: 0.04240865036 | X34: 0.06276486251 | Y34: 0.1287424409 | Z34: 0.2901966535 | AA34: 0.4391331628 | AB34: 0.642761381 | AE34: 24 | AF34: 0.09 | AG34: 0.15 | AH34: 0.21 | AI34: 0.41 | AJ34: 0.87 | AK34: 1.18 | AL34: 1.39 | AO34: 24 | AP34: 0.36 | AQ34: 0.53 | AR34: 0.84 | AS34: 1.25 | AT34: 2.9 | AU34: 6.88 | AV34: 6.88 | AY34: 24 | AZ34: 0.268574856 | BA34: 0.3329434106 | BB34: 0.629558472 | BC34: 0.8338380669 | BD34: 1.698681849 | BE34: 0.8744396916 | BF34: 0.4407692327 | BH34: 0.358574856 | BI34: 0.4829434106 | BJ34: 0.839558472 | BK34: 1.243838067 | BL34: 2.568681849 | BM34: 2.054439692 | BN34: 1.830769233 | BP34: 0.001425144003 | BQ34: 0.04705658939 | BR34: 0.0004415279646 | BS34: 0.006161933058 | BT34: 0.3313181513 | BU34: 4.825560308 | BV34: 5.049230767 | BX34: 0.9960412667 | BY34: 0.9112139823 | BZ34: 0.9994743715 | CA34: 0.9950704536 | CB34: 0.8857523616 | CC34: 0.2986104203 | CD34: 0.2661001792 | CF34: 1.028571429 | CG34: 1.514285714 | CH34: 2.4 | CI34: 3.571428571 | CJ34: 8.285714286 | CK34: 19.65714286 | CL34: 19.65714286 | CO34: 0.3051451855 | CP34: 0.511061247 | CQ34: 1.126424675 | CR34: 1.477045 | CS34: 2.914020442 | CT34: 2.31918797 | CU34: 1.917053268
A35: 25 | B35: ='Data Entry'!M27 -> 0.02170051217 | E35: 0.01033939797 | F35: 0.03203991014 | I35: 25 | J35: 0.3235006459 | K35: 0.5388790231 | L35: 1.195492275 | M35: 1.541894487 | N35: 2.986572076 | O35: 2.303553414 | P35: 1.839203229 | R35: 1.220150889 | U35: 25 | V35: 0.03251601371 | W35: 0.04548312916 | X35: 0.06678237076 | Y35: 0.1347038887 | Z35: 0.297861381 | AA35: 0.446753119 | AB35: 0.6479426817 | AE35: 25 | AF35: 0.1 | AG35: 0.15 | AH35: 0.22 | AI35: 0.41 | AJ35: 0.85 | AK35: 1.14 | AL35: 1.31 | AO35: 25 | AP35: 0.38 | AQ35: 0.53 | AR35: 0.89 | AS35: 1.29 | AT35: 2.9 | AU35: 6.88 | AV35: 6.88 | AY35: 25 | AZ35: 0.2844028372 | BA35: 0.3542488205 | BB35: 0.6687565431 | BC35: 0.880531866 | BD35: 1.772587446 | BE35: 0.9152158238 | BF35: 0.4629171231 | BH35: 0.3844028372 | BI35: 0.5042488205 | BJ35: 0.8887565431 | BK35: 1.290531866 | BL35: 2.622587446 | BM35: 2.055215824 | BN35: 1.772917123 | BP35: -0.004402837153 | BQ35: 0.02575117946 | BR35: 0.001243456859 | BS35: -0.0005318660326 | BT35: 0.2774125544 | BU35: 4.824784176 | BV35: 5.107082877 | BX35: 1.011586414 | BY35: 0.9514128689 | BZ35: 0.9986028575 | CA35: 1.000412299 | CB35: 0.9043404985 | CC35: 0.2987232302 | CD35: 0.2576914423 | CF35: 1.085714286 | CG35: 1.514285714 | CH35: 2.542857143 | CI35: 3.685714286 | CJ35: 8.285714286 | CK35: 19.65714286 | CL35: 19.65714286 | CO35: 0.3235006459 | CP35: 0.5388790231 | CQ35: 1.195492275 | CR35: 1.541894487 | CS35: 2.986572076 | CT35: 2.303553414 | CU35: 1.839203229
A36: 26 | B36: ='Data Entry'!M28 -> 0.02173293316 | E36: 0.01033939797 | F36: 0.03207233113 | I36: 26 | J36: 0.3422814311 | K36: 0.5725701891 | L36: 1.262814267 | M36: 1.609482125 | N36: 3.063200637 | O36: 2.288195181 | P36: 1.776219732 | R36: 1.281786943 | U36: 26 | V36: 0.03491347986 | W36: 0.04865000076 | X36: 0.07086228869 | Y36: 0.1406115331 | Z36: 0.3052609599 | AA36: 0.454025862 | AB36: 0.6528734955 | AE36: 26 | AF36: 0.1 | AG36: 0.16 | AH36: 0.22 | AI36: 0.42 | AJ36: 0.84 | AK36: 1.1 | AL36: 1.25 | AO36: 26 | AP36: 0.4 | AQ36: 0.53 | AR36: 0.93 | AS36: 1.34 | AT36: 2.9 | AU36: 6.88 | AV36: 6.88 | AY36: 26 | AZ36: 0.3007115378 | BA36: 0.3763571456 | BB36: 0.7095510368 | BC36: 0.9288762638 | BD36: 1.848720764 | BE36: 0.956206042 | BF36: 0.4849024296 | BH36: 0.4007115378 | BI36: 0.5363571456 | BJ36: 0.9295510368 | BK36: 1.348876264 | BL36: 2.688720764 | BM36: 2.056206042 | BN36: 1.73490243 | BP36: -0.00071153778 | BQ36: -0.006357145589 | BR36: 0.000448963175 | BS36: -0.008876263835 | BT36: 0.2112792359 | BU36: 4.823793958 | BV36: 5.14509757 | BX36: 1.001778844 | BY36: 1.011994614 | BZ36: 0.9995172439 | CA36: 1.006624077 | CB36: 0.9271450911 | CC36: 0.2988671573 | CD36: 0.2521660508 | CF36: 1.142857143 | CG36: 1.514285714 | CH36: 2.657142857 | CI36: 3.828571429 | CJ36: 8.285714286 | CK36: 19.65714286 | CL36: 19.65714286 | CO36: 0.3422814311 | CP36: 0.5725701891 | CQ36: 1.262814267 | CR36: 1.609482125 | CS36: 3.063200637 | CT36: 2.288195181 | CU36: 1.776219732
A37: 27 | B37: ='Data Entry'!M29 -> 0.0217571474 | E37: 0.01033939797 | F37: 0.03209654537 | I37: 27 | J37: 0.36153042 | K37: 0.5972240748 | L37: 1.338863601 | M37: 1.680231411 | N37: 3.144849034 | O37: 2.278275799 | P37: 1.713149277 | R37: 1.347522281 | U37: 27 | V37: 0.03739929797 | W37: 0.05190562754 | X37: 0.07499941238 | Y37: 0.1464631363 | Z37: 0.3124112047 | AA37: 0.460977069 | AB37: 0.6575730863 | AE37: 27 | AF37: 0.11 | AG37: 0.16 | AH37: 0.23 | AI37: 0.42 | AJ37: 0.82 | AK37: 1.07 | AL37: 1.18 | AO37: 27 | AP37: 0.42 | AQ37: 0.56 | AR37: 0.98 | AS37: 1.4 | AT37: 2.91 | AU37: 6.88 | AV37: 6.88 | AY37: 27 | AZ37: 0.3175537657 | BA37: 0.3993491001 | BB37: 0.7521407624 | BC37: 0.979124852 | BD37: 1.92767887 | BE37: 0.9975787778 | BF37: 0.5067853234 | BH37: 0.4275537657 | BI37: 0.5593491001 | BJ37: 0.9821407624 | BK37: 1.399124852 | BL37: 2.74767887 | BM37: 2.067578778 | BN37: 1.686785323 | BP37: -0.007553765747 | BQ37: 0.0006508998732 | BR37: -0.002140762397 | BS37: 0.0008751479544 | BT37: 0.1623211304 | BU37: 4.812421222 | BV37: 5.193214677 | BX37: 1.017985157 | BY37: 0.9988376788 | BZ37: 1.002184451 | CA37: 0.9993748943 | CB37: 0.9442195428 | CC37: 0.3005201712 | CD37: 0.2451722854 | CF37: 1.2 | CG37: 1.6 | CH37: 2.8 | CI37: 4 | CJ37: 8.314285714 | CK37: 19.65714286 | CL37: 19.65714286 | CO37: 0.36153042 | CP37: 0.5972240748 | CQ37: 1.338863601 | CR37: 1.680231411 | CS37: 3.144849034 | CT37: 2.278275799 | CU37: 1.713149277
A38: 28 | B38: ='Data Entry'!M30 -> 0.02177302383 | E38: 0.01033939797 | F38: 0.0321124218 | I38: 28 | J38: 0.3812944916 | K38: 0.6329399587 | L38: 1.41419949 | M38: 1.749633919 | N38: 3.232632951 | O38: 2.268971928 | P38: 1.660042519 | R38: 1.413764519 | U38: 28 | V38: 0.03997266647 | W38: 0.05524627605 | X38: 0.07918878672 | Y38: 0.152257049 | Z38: 0.319326927 | AA38: 0.4676301217 | AB38: 0.6620589011 | AE38: 28 | AF38: 0.11 | AG38: 0.17 | AH38: 0.23 | AI38: 0.42 | AJ38: 0.8 | AK38: 1.03 | AL38: 1.13 | AO38: 28 | AP38: 0.44 | AQ38: 0.59 | AR38: 1.03 | AS38: 1.45 | AT38: 2.91 | AU38: 6.88 | AV38: 6.88 | AY38: 28 | AZ38: 0.3349871947 | BA38: 0.4233142049 | BB38: 0.7967501546 | BC38: 1.031562751 | BD38: 2.010134812 | BE38: 1.039517827 | BF38: 0.5286322108 | BH38: 0.4449871947 | BI38: 0.5933142049 | BJ38: 1.026750155 | BK38: 1.451562751 | BL38: 2.810134812 | BM38: 2.069517827 | BN38: 1.658632211 | BP38: -0.004987194671 | BQ38: -0.003314204916 | BR38: 0.003249845391 | BS38: -0.001562751176 | BT38: 0.09986518752 | BU38: 4.810482173 | BV38: 5.221367789 | BX38: 1.011334533 | BY38: 1.005617296 | BZ38: 0.9968448103 | CA38: 1.001077759 | CB38: 0.9656820661 | CC38: 0.3008020097 | CD38: 0.2410802632 | CF38: 1.257142857 | CG38: 1.685714286 | CH38: 2.942857143 | CI38: 4.142857143 | CJ38: 8.314285714 | CK38: 19.65714286 | CL38: 19.65714286 | CO38: 0.3812944916 | CP38: 0.6329399587 | CQ38: 1.41419949 | CR38: 1.749633919 | CS38: 3.232632951 | CT38: 2.268971928 | CU38: 1.660042519
A39: 29 | B39: ='Data Entry'!M31 -> 0.02178048443 | E39: 0.01033939797 | F39: 0.0321198824 | I39: 29 | J39: 0.4016221655 | K39: 0.6648237087 | L39: 1.499476601 | M39: 1.823250945 | N39: 3.332864801 | O39: 2.265464655 | P39: 1.606949746 | R39: 1.485692292 | U39: 29 | V39: 0.04263252488 | W39: 0.05866814816 | X39: 0.08342570459 | Y39: 0.1579921244 | Z39: 0.326021983 | AA39: 0.4740063517 | AB39: 0.6663467805 | AE39: 29 | AF39: 0.11 | AG39: 0.17 | AH39: 0.24 | AI39: 0.42 | AJ39: 0.79 | AK39: 1 | AL39: 1.07 | AO39: 29 | AP39: 0.47 | AQ39: 0.62 | AR39: 1.08 | AS39: 1.51 | AT39: 2.9 | AU39: 6.88 | AV39: 6.88 | AY39: 29 | AZ39: 0.3530715119 | BA39: 0.4483475597 | BB39: 0.8436250741 | BC39: 1.086501057 | BD39: 2.096832039 | BE39: 1.082212276 | BF39: 0.5505099085 | BH39: 0.4630715119 | BI39: 0.6183475597 | BJ39: 1.083625074 | BK39: 1.506501057 | BL39: 2.886832039 | BM39: 2.082212276 | BN39: 1.620509909 | BP39: 0.006928488073 | BQ39: 0.001652440286 | BR39: -0.003625074083 | BS39: 0.003498943335 | BT39: 0.01316796125 | BU39: 4.797787724 | BV39: 5.259490091 | BX39: 0.985258536 | BY39: 0.9973347737 | BZ39: 1.00335655 | CA39: 0.997682819 | CB39: 0.9954593237 | CC39: 0.3026471331 | CD39: 0.2355392309 | CF39: 1.342857143 | CG39: 1.771428571 | CH39: 3.085714286 | CI39: 4.314285714 | CJ39: 8.285714286 | CK39: 19.65714286 | CL39: 19.65714286 | CO39: 0.4016221655 | CP39: 0.6648237087 | CQ39: 1.499476601 | CR39: 1.823250945 | CS39: 3.332864801 | CT39: 2.265464655 | CU39: 1.606949746
A40: 30 | B40: ='Data Entry'!M32 -> 0.02177949874 | E40: 0.01033939797 | F40: 0.03211889671 | I40: 30 | J40: 0.4225636578 | K40: 0.702988479 | L40: 1.585471452 | M40: 1.906731171 | N40: 3.442122244 | O40: 2.267940173 | P40: 1.563920387 | R40: 1.56257411 | U40: 30 | V40: 0.04537757174 | W40: 0.06216740903 | X40: 0.0877057037 | Y40: 0.1636676423 | Z40: 0.3325093244 | AA40: 0.4801252543 | AB40: 0.6704511397 | AE40: 30 | AF40: 0.12 | AG40: 0.18 | AH40: 0.24 | AI40: 0.42 | AJ40: 0.78 | AK40: 0.97 | AL40: 1.02 | AO40: 30 | AP40: 0.49 | AQ40: 0.65 | AR40: 1.13 | AS40: 1.56 | AT40: 2.96 | AU40: 6.88 | AV40: 6.88 | AY40: 30 | AZ40: 0.3718685351 | BA40: 0.4745503804 | BB40: 0.8930364843 | BC40: 1.144282034 | BD40: 2.188605465 | BE40: 1.125857069 | BF40: 0.5724849412 | BH40: 0.4918685351 | BI40: 0.6545503804 | BJ40: 1.133036484 | BK40: 1.564282034 | BL40: 2.968605465 | BM40: 2.095857069 | BN40: 1.592484941 | BP40: -0.001868535067 | BQ40: -0.004550380372 | BR40: -0.003036484288 | BS40: -0.004282033933 | BT40: -0.008605464823 | BU40: 4.784142931 | BV40: 5.287515059 | BX40: 1.003813337 | BY40: 1.007000585 | BZ40: 1.002687154 | CA40: 1.002744894 | CB40: 1.002907252 | CC40: 0.3046303879 | CD40: 0.2314658345 | CF40: 1.4 | CG40: 1.857142857 | CH40: 3.228571429 | CI40: 4.457142857 | CJ40: 8.457142857 | CK40: 19.65714286 | CL40: 19.65714286 | CO40: 0.4225636578 | CP40: 0.702988479 | CQ40: 1.585471452 | CR40: 1.906731171 | CS40: 3.442122244 | CT40: 2.267940173 | CU40: 1.563920387
A41: 31 | B41: ='Data Entry'!M33 -> 0.02181913448 | E41: 0.01033939797 | F41: 0.03215853245
A42: 32 | B42: ='Data Entry'!M34 -> 0.02191107491 | E42: 0.01033939797 | F42: 0.03225047288
A43: 33 | B43: ='Data Entry'!M35 -> 0.02205199878 | E43: 0.01033939797 | F43: 0.03239139675
A44: =1+A43 -> 34 | B44: ='Data Entry'!M36 -> 0.02223857395 | E44: 0.01033939797 | F44: 0.03257797192
A45: 35 | B45: ='Data Entry'!M37 -> 0.02246745167 | E45: 0.01033939797 | F45: 0.03280684964 | BH45: GT Testing -------------->>>> | CF45: 0.05 | CG45: 0.1 | CH45: 0.4 | CI45: 0.35 | CJ45: 0.1
A46: 36 | B46: ='Data Entry'!M38 -> 0.0227352739 | E46: 0.01033939797 | F46: 0.03307467187 | CF46: AAA | CG46: AA | CH46: A | CI46: BBB | CJ46: BBB- | CL46: =CF45*CF48+CG45*CG48+CH45*CH48+CI45*CI48+CJ45*CJ48 -> 3.134571429
A47: 37 | B47: ='Data Entry'!M39 -> 0.02303867078 | E47: 0.01033939797 | F47: 0.03337806875 | V47: Non-financial. Probability of default (probability) | AF47: Non-financial. Probability of default (percentages) | AP47: Non-financial. Fundamental spread (percentages) | AZ47: Non-financial. Cost of downgrade (percentages) | BY47: As an average of the LTAS: | CB47: =CD48*35% -> 0.233658219 | CF47: Average long term spread:
A48: 38 | B48: ='Data Entry'!M40 -> 0.02337426097 | E48: 0.01033939797 | F48: 0.03371365894 | BP48: This indicates that the fundamental spread was topped up in nearly all cases | BY48: Overall average of PD+CoD as % of FundSprd | CD48: =AVERAGE(BX51:CD80) -> 0.6675949115 | CF48: =AVERAGE(CF51:CF80) -> 0.4247619048 | CG48: 1.171428571 | CH48: 2.61047619 | CI48: 3.436190476 | CJ48: 7.493333333 | CK48: 59.55619048 | CL48: 60.6
A49: 39 | B49: ='Data Entry'!M41 -> 0.02373865496 | E49: 0.01033939797 | F49: 0.03407805293 | Y49: Credit quality steps | AI49: Credit quality steps | AS49: Credit quality steps | BC49: Credit quality steps
A50: 40 | B50: ='Data Entry'!M42 -> 0.02412845123 | E50: 0.01033939797 | F50: 0.0344678492 | U50: USD | V50: 0 | W50: 1 | X50: 2 | Y50: 3 | Z50: 4 | AA50: 5 | AB50: 6 | AE50: USD | AF50: 0 | AG50: 1 | AH50: 2 | AI50: 3 | AJ50: 4 | AK50: 5 | AL50: 6 | AO50: USD | AP50: 0 | AQ50: 1 | AR50: 2 | AS50: 3 | AT50: 4 | AU50: 5 | AV50: 6 | AY50: USD | AZ50: 0 | BA50: 1 | BB50: 2 | BC50: 3 | BD50: 4 | BE50: 5 | BF50: 6 | BH50: PD + CoD | BP50: Excess Fundamental Spread over PD+CoD | BX50: What percent are the costs of the fundamental spread? | CF50: Estimate the LTAS by dividing fundamental spread by 35% (since it applies in nearly all cases
A51: 41 | B51: ='Data Entry'!M43 -> 0.02454024099 | E51: 0.01033939797 | F51: 0.03487963896 | T51: Maturity | U51: 1 | V51: 0 | W51: 0 | X51: 0.0005 | Y51: 0.0019 | Z51: 0.0083 | AA51: 0.0427 | AB51: 0.3256 | AD51: Maturity | AE51: 1 | AF51: 0 | AG51: 0 | AH51: 0.04 | AI51: 0.13 | AJ51: 0.59 | AK51: 3.1 | AL51: 29.69 | AN51: Maturity | AO51: 1 | AP51: 0.06 | AQ51: 0.14 | AR51: 0.27 | AS51: 0.55 | AT51: 1.71 | AU51: 20.62 | AV51: 29.69 | AX51: Maturity | AY51: 1 | AZ51: 0 | BA51: 0 | BB51: 0 | BC51: 0 | BD51: 0 | BE51: 0 | BF51: 0 | BH51: =AZ51+AF51 -> 0 | BI51: =BA51+AG51 -> 0 | BJ51: =BB51+AH51 -> 0.04 | BK51: =BC51+AI51 -> 0.13 | BL51: =BD51+AJ51 -> 0.59 | BM51: =BE51+AK51 -> 3.1 | BN51: =BF51+AL51 -> 29.69 | BP51: =AP51-BH51 -> 0.06 | BQ51: =AQ51-BI51 -> 0.14 | BR51: =AR51-BJ51 -> 0.23 | BS51: =AS51-BK51 -> 0.42 | BT51: =AT51-BL51 -> 1.12 | BU51: =AU51-BM51 -> 17.52 | BV51: =AV51-BN51 -> 0 | BX51: =BH51/AP51 -> 0 | BY51: =BI51/AQ51 -> 0 | BZ51: =BJ51/AR51 -> 0.1481481481 | CA51: =BK51/AS51 -> 0.2363636364 | CB51: =BL51/AT51 -> 0.3450292398 | CC51: =BM51/AU51 -> 0.1503394762 | CD51: =BN51/AV51 -> 1 | CF51: =AP51/0.35 -> 0.1714285714 | CG51: =AQ51/0.35 -> 0.4 | CH51: =AR51/0.35 -> 0.7714285714 | CI51: =AS51/0.35 -> 1.571428571 | CJ51: =AT51/0.35 -> 4.885714286 | CK51: =AU51/0.35 -> 58.91428571 | CL51: =AV51/0.35 -> 84.82857143
A52: 42 | B52: ='Data Entry'!M44 -> 0.02497060401 | E52: 0.01033939797 | F52: 0.03531000198 | U52: 2 | V52: 1.366e-05 | W52: 8.797e-05 | X52: 0.00121255 | Y52: 0.00448965 | Z52: 0.02019262 | AA52: 0.09474471 | AB52: 0.48924141 | AE52: 2 | AF52: 0 | AG52: 0 | AH52: 0.04 | AI52: 0.16 | AJ52: 0.72 | AK52: 3.47 | AL52: 22.58 | AO52: 2 | AP52: 0.01 | AQ52: 0.14 | AR52: 0.27 | AS52: 0.55 | AT52: 1.78 | AU52: 20.69 | AV52: 22.58 | AY52: 2 | AZ52: 0.004898938814 | BA52: 0.01105665476 | BB52: 0.03215716317 | BC52: 0.03796986271 | BD52: 0.09441478393 | BE52: 0.0341144285 | BF52: 0 | BH52: 0.004898938814 | BI52: 0.01105665476 | BJ52: 0.07215716317 | BK52: 0.1979698627 | BL52: 0.8144147839 | BM52: 3.504114429 | BN52: 22.58 | BP52: 0.005101061186 | BQ52: 0.1289433452 | BR52: 0.1978428368 | BS52: 0.3520301373 | BT52: 0.9655852161 | BU52: 17.18588557 | BV52: 0 | BX52: 0.4898938814 | BY52: 0.07897610542 | BZ52: 0.2672487525 | CA52: 0.3599452049 | CB52: 0.4575363955 | CC52: 0.169362708 | CD52: 1 | CF52: 0.02857142857 | CG52: 0.4 | CH52: 0.7714285714 | CI52: 1.571428571 | CJ52: 5.085714286 | CK52: 59.11428571 | CL52: 64.51428571
A53: 43 | B53: ='Data Entry'!M45 -> 0.02541611202 | E53: 0.01033939797 | F53: 0.03575550999 | U53: 3 | V53: 5.2615662e-05 | W53: 0.000285705689 | X53: 0.002177073029 | Y53: 0.007786574 | Z53: 0.03523885593 | AA53: 0.1472572493 | AB53: 0.5772976181 | AE53: 3 | AF53: 0 | AG53: 0.01 | AH53: 0.05 | AI53: 0.19 | AJ53: 0.84 | AK53: 3.64 | AL53: 17.56 | AO53: 3 | AP53: 0.01 | AQ53: 0.16 | AR53: 0.29 | AS53: 0.58 | AT53: 1.78 | AU53: 20.7 | AV53: 20.7 | AY53: 3 | AZ53: 0.009971397004 | BA53: 0.02245552196 | BB53: 0.0651157318 | BC53: 0.07633144083 | BD53: 0.1860104551 | BE53: 0.06878400512 | BF53: 0.004734237827 | BH53: 0.009971397004 | BI53: 0.03245552196 | BJ53: 0.1151157318 | BK53: 0.2663314408 | BL53: 1.026010455 | BM53: 3.708784005 | BN53: 17.56473424 | BP53: 2.860299551e-05 | BQ53: 0.127544478 | BR53: 0.1748842682 | BS53: 0.3136685592 | BT53: 0.7539895449 | BU53: 16.99121599 | BV53: 3.135265762 | BX53: 0.9971397004 | BY53: 0.2028470122 | BZ53: 0.3969507993 | CA53: 0.4591921394 | CB53: 0.576410368 | CC53: 0.1791683094 | CD53: 0.8485378859 | CF53: 0.02857142857 | CG53: 0.4571428571 | CH53: 0.8285714286 | CI53: 1.657142857 | CJ53: 5.085714286 | CK53: 59.14285714 | CL53: 59.14285714
A54: 44 | B54: ='Data Entry'!M46 -> 0.02587332647 | E54: 0.01033939797 | F54: 0.03621272444 | U54: 4 | V54: 0.0001289689854 | W54: 0.0006100993397 | X54: 0.003424201052 | Y54: 0.01181153763 | Z54: 0.0527337935 | AA54: 0.1967847028 | AB54: 0.6293520911 | AE54: 4 | AF54: 0 | AG54: 0.01 | AH54: 0.06 | AI54: 0.21 | AJ54: 0.95 | AK54: 3.69 | AL54: 14.02 | AO54: 4 | AP54: 0.02 | AQ54: 0.19 | AR54: 0.32 | AS54: 0.63 | AT54: 1.83 | AU54: 20.74 | AV54: 20.74 | AY54: 4 | AZ54: 0.01523503334 | BA54: 0.03423696697 | BB54: 0.09900654401 | BC54: 0.115237286 | BD54: 0.2753814753 | BE54: 0.1039684553 | BF54: 0.01241772681 | BH54: 0.01523503334 | BI54: 0.04423696697 | BJ54: 0.159006544 | BK54: 0.325237286 | BL54: 1.225381475 | BM54: 3.793968455 | BN54: 14.03241773 | BP54: 0.004764966655 | BQ54: 0.145763033 | BR54: 0.160993456 | BS54: 0.304762714 | BT54: 0.6046185247 | BU54: 16.94603154 | BV54: 6.707582273 | BX54: 0.7617516672 | BY54: 0.2328261419 | BZ54: 0.49689545 | CA54: 0.5162496603 | CB54: 0.6696073635 | CC54: 0.1829300123 | CD54: 0.6765871614 | CF54: 0.05714285714 | CG54: 0.5428571429 | CH54: 0.9142857143 | CI54: 1.8 | CJ54: 5.228571429 | CK54: 59.25714286 | CL54: 59.25714286
A55: 45 | B55: ='Data Entry'!M47 -> 0.02633880079 | E55: 0.01033939797 | F55: 0.03667819876 | U55: 5 | V55: 0.0002544758932 | W55: 0.001076643091 | X55: 0.00497984044 | Y55: 0.01656893937 | Z55: 0.07197347429 | AA55: 0.2422345041 | AB55: 0.6636589766 | AE55: 5 | AF55: 0 | AG55: 0.02 | AH55: 0.07 | AI55: 0.24 | AJ55: 1.04 | AK55: 3.65 | AL55: 11.48 | AO55: 5 | AP55: 0.02 | AQ55: 0.22 | AR55: 0.37 | AS55: 0.68 | AT55: 1.87 | AU55: 20.78 | AV55: 20.78 | AY55: 5 | AZ55: 0.02068619358 | BA55: 0.04639354077 | BB55: 0.1338235618 | BC55: 0.1546765373 | BD55: 0.3626897868 | BE55: 0.1394963112 | BF55: 0.02197899355 | BH55: 0.02068619358 | BI55: 0.06639354077 | BJ55: 0.2038235618 | BK55: 0.3946765373 | BL55: 1.402689787 | BM55: 3.789496311 | BN55: 11.50197899 | BP55: -0.0006861935847 | BQ55: 0.1536064592 | BR55: 0.1661764382 | BS55: 0.2853234627 | BT55: 0.4673102132 | BU55: 16.99050369 | BV55: 9.278021006 | BX55: 1.034309679 | BY55: 0.3017888217 | BZ55: 0.5508744913 | CA55: 0.5804066725 | CB55: 0.7501014903 | CC55: 0.1823626714 | CD55: 0.5535119824 | CF55: 0.05714285714 | CG55: 0.6285714286 | CH55: 1.057142857 | CI55: 1.942857143 | CJ55: 5.342857143 | CK55: 59.37142857 | CL55: 59.37142857
A56: 46 | B56: ='Data Entry'!M48 -> 0.02680907757 | E56: 0.01033939797 | F56: 0.03714847554 | U56: 6 | V56: 0.00044043215 | W56: 0.001700695765 | X56: 0.006866098389 | Y56: 0.02204371697 | Z56: 0.09234884452 | AA56: 0.2835025608 | AB56: 0.688728766 | AE56: 6 | AF56: 0.01 | AG56: 0.02 | AH56: 0.08 | AI56: 0.27 | AJ56: 1.12 | AK56: 3.58 | AL56: 9.62 | AO56: 6 | AP56: 0.03 | AQ56: 0.25 | AR56: 0.39 | AS56: 0.69 | AT56: 1.89 | AU56: 20.8 | AV56: 20.8 | AY56: 6 | AZ56: 0.02634850832 | BA56: 0.05897931818 | BB56: 0.1697410038 | BC56: 0.1948450991 | BD56: 0.4485597865 | BE56: 0.1753985662 | BF56: 0.03278563807 | BH56: 0.03634850832 | BI56: 0.07897931818 | BJ56: 0.2497410038 | BK56: 0.4648450991 | BL56: 1.568559786 | BM56: 3.755398566 | BN56: 9.652785638 | BP56: -0.006348508323 | BQ56: 0.1710206818 | BR56: 0.1402589962 | BS56: 0.2251549009 | BT56: 0.3214402135 | BU56: 17.04460143 | BV56: 11.14721436 | BX56: 1.211616944 | BY56: 0.3159172727 | BZ56: 0.6403615481 | CA56: 0.6736885495 | CB56: 0.8299258129 | CC56: 0.180548008 | CD56: 0.4640762326 | CF56: 0.08571428571 | CG56: 0.7142857143 | CH56: 1.114285714 | CI56: 1.971428571 | CJ56: 5.4 | CK56: 59.42857143 | CL56: 59.42857143
A57: 47 | B57: ='Data Entry'!M49 -> 0.0272806914 | E57: 0.01033939797 | F57: 0.03762008937 | U57: 7 | V57: 0.0006977889574 | W57: 0.002497739174 | X57: 0.009101192736 | Y57: 0.02820422165 | Z57: 0.1133671119 | AA57: 0.3208661113 | AB57: 0.708604337 | AE57: 7 | AF57: 0.01 | AG57: 0.03 | AH57: 0.1 | AI57: 0.29 | AJ57: 1.18 | AK57: 3.47 | AL57: 8.21 | AO57: 7 | AP57: 0.04 | AQ57: 0.29 | AR57: 0.42 | AS57: 0.71 | AT57: 1.91 | AU57: 20.82 | AV57: 20.82 | AY57: 7 | AZ57: 0.03221026819 | BA57: 0.07196934727 | BB57: 0.206707275 | BC57: 0.2356751532 | BD57: 0.5329702791 | BE57: 0.2114805234 | BF57: 0.04440668451 | BH57: 0.04221026819 | BI57: 0.1019693473 | BJ57: 0.306707275 | BK57: 0.5256751532 | BL57: 1.712970279 | BM57: 3.681480523 | BN57: 8.254406685 | BP57: -0.00221026819 | BQ57: 0.1880306527 | BR57: 0.113292725 | BS57: 0.1843248468 | BT57: 0.1970297209 | BU57: 17.13851948 | BV57: 12.56559332 | BX57: 1.055256705 | BY57: 0.3516184389 | BZ57: 0.7302554166 | CA57: 0.7403875397 | CB57: 0.8968430781 | CC57: 0.1768242326 | CD57: 0.3964652586 | CF57: 0.1142857143 | CG57: 0.8285714286 | CH57: 1.2 | CI57: 2.028571429 | CJ57: 5.457142857 | CK57: 59.48571429 | CL57: 59.48571429
A58: 48 | B58: ='Data Entry'!M50 -> 0.02775016727 | E58: 0.01033939797 | F58: 0.03808956524 | U58: 8 | V58: 0.001037303621 | W58: 0.003483202383 | X58: 0.0116991872 | Y58: 0.03500666576 | Z58: 0.1346448045 | AA58: 0.3547208277 | AB58: 0.7252668602 | AE58: 8 | AF58: 0.01 | AG58: 0.03 | AH58: 0.11 | AI58: 0.32 | AJ58: 1.23 | AK58: 3.36 | AL58: 7.13 | AO58: 8 | AP58: 0.06 | AQ58: 0.32 | AR58: 0.45 | AS58: 0.73 | AT58: 1.92 | AU58: 20.83 | AV58: 20.83 | AY58: 8 | AZ58: 0.03830856739 | BA58: 0.08544827031 | BB58: 0.2449902437 | BC58: 0.2774623176 | BD58: 0.6167149494 | BE58: 0.2478855089 | BF58: 0.05661744831 | BH58: 0.04830856739 | BI58: 0.1154482703 | BJ58: 0.3549902437 | BK58: 0.5974623176 | BL58: 1.846714949 | BM58: 3.607885509 | BN58: 7.186617448 | BP58: 0.01169143261 | BQ58: 0.2045517297 | BR58: 0.09500975632 | BS58: 0.1325376824 | BT58: 0.07328505059 | BU58: 17.22211449 | BV58: 13.64338255 | BX58: 0.8051427899 | BY58: 0.3607758447 | BZ58: 0.7888672082 | CA58: 0.818441531 | CB58: 0.9618307028 | CC58: 0.1732062174 | CD58: 0.3450128396 | CF58: 0.1714285714 | CG58: 0.9142857143 | CH58: 1.285714286 | CI58: 2.085714286 | CJ58: 5.485714286 | CK58: 59.51428571 | CL58: 59.51428571
A59: 49 | B59: ='Data Entry'!M51 -> 0.02821402196 | E59: 0.01033939797 | F59: 0.03855341993 | U59: 9 | V59: 0.001469652832 | W59: 0.004672128548 | X59: 0.01466984368 | Y59: 0.04239942068 | Z59: 0.1558916408 | AA59: 0.3854717349 | AB59: 0.7397354697 | AE59: 9 | AF59: 0.01 | AG59: 0.04 | AH59: 0.12 | AI59: 0.34 | AJ59: 1.27 | AK59: 3.24 | AL59: 6.26 | AO59: 9 | AP59: 0.07 | AQ59: 0.34 | AR59: 0.48 | AS59: 0.73 | AT59: 1.97 | AU59: 20.84 | AV59: 20.84 | AY59: 9 | AZ59: 0.04459610908 | BA59: 0.09931239128 | BB59: 0.2843178494 | BC59: 0.3198853111 | BD59: 0.6991700781 | BE59: 0.2842129463 | BF59: 0.06915856169 | BH59: 0.05459610908 | BI59: 0.1393123913 | BJ59: 0.4043178494 | BK59: 0.6598853111 | BL59: 1.969170078 | BM59: 3.524212946 | BN59: 6.329158562 | BP59: 0.01540389092 | BQ59: 0.2006876087 | BR59: 0.07568215055 | BS59: 0.07011468888 | BT59: 0.0008299218635 | BU59: 17.31578705 | BV59: 14.51084144 | BX59: 0.7799444155 | BY59: 0.4097423273 | BZ59: 0.842328853 | CA59: 0.903952481 | CB59: 0.9995787199 | CC59: 0.1691081068 | CD59: 0.3037024262 | CF59: 0.2 | CG59: 0.9714285714 | CH59: 1.371428571 | CI59: 2.085714286 | CJ59: 5.628571429 | CK59: 59.54285714 | CL59: 59.54285714
A60: 50 | B60: ='Data Entry'!M52 -> 0.02866876267 | E60: 0.01033939797 | F60: 0.03900816064 | U60: 10 | V60: 0.002005489247 | W60: 0.006078814339 | X60: 0.01801865728 | Y60: 0.05032659234 | Z60: 0.1768930952 | AA60: 0.413491944 | AB60: 0.7525719246 | AE60: 10 | AF60: 0.01 | AG60: 0.04 | AH60: 0.13 | AI60: 0.37 | AJ60: 1.3 | AK60: 3.11 | AL60: 5.56 | AO60: 10 | AP60: 0.08 | AQ60: 0.36 | AR60: 0.49 | AS60: 0.74 | AT60: 2.08 | AU60: 20.84 | AV60: 20.84 | AY60: 10 | AZ60: 0.05114193225 | BA60: 0.1137183473 | BB60: 0.3251732607 | BC60: 0.3634761031 | BD60: 0.7816122776 | BE60: 0.320831692 | BF60: 0.08199930668 | BH60: 0.06114193225 | BI60: 0.1537183473 | BJ60: 0.4551732607 | BK60: 0.7334761031 | BL60: 2.081612278 | BM60: 3.430831692 | BN60: 5.641999307 | BP60: 0.01885806775 | BQ60: 0.2062816527 | BR60: 0.03482673933 | BS60: 0.006523896906 | BT60: -0.001612277559 | BU60: 17.40916831 | BV60: 15.19800069 | BX60: 0.7642741531 | BY60: 0.4269954093 | BZ60: 0.9289250218 | CA60: 0.9911839231 | CB60: 1.000775133 | CC60: 0.1646272405 | CD60: 0.2707293333 | CF60: 0.2285714286 | CG60: 1.028571429 | CH60: 1.4 | CI60: 2.114285714 | CJ60: 5.942857143 | CK60: 59.54285714 | CL60: 59.54285714
A61: 51 | B61: ='Data Entry'!M53 -> 0.02911088811 | E61: 0.01033939797 | F61: 0.03945028608 | U61: 11 | V61: 0.00265544395 | W61: 0.007716481841 | X61: 0.02174705487 | Y61: 0.05873077667 | Z61: 0.1974946143 | AA61: 0.4391105447 | AB61: 0.7641138238 | AE61: 11 | AF61: 0.02 | AG61: 0.05 | AH61: 0.15 | AI61: 0.39 | AJ61: 1.32 | AK61: 2.99 | AL61: 4.98 | AO61: 11 | AP61: 0.08 | AQ61: 0.37 | AR61: 0.51 | AS61: 0.8 | AT61: 2.19 | AU61: 20.85 | AV61: 20.85 | AY61: 11 | AZ61: 0.05797910342 | BA61: 0.1287425939 | BB61: 0.3678141462 | BC61: 0.4085013372 | BD61: 0.8646789351 | BE61: 0.3578707645 | BF61: 0.09509649066 | BH61: 0.07797910342 | BI61: 0.1787425939 | BJ61: 0.5178141462 | BK61: 0.7985013372 | BL61: 2.184678935 | BM61: 3.347870764 | BN61: 5.075096491 | BP61: 0.002020896579 | BQ61: 0.1912574061 | BR61: -0.007814146199 | BS61: 0.001498662828 | BT61: 0.005321064911 | BU61: 17.50212924 | BV61: 15.77490351 | BX61: 0.9747387928 | BY61: 0.4830880917 | BZ61: 1.015321855 | CA61: 0.9981266715 | CB61: 0.99757029 | CC61: 0.1605693412 | CD61: 0.2434099036 | CF61: 0.2285714286 | CG61: 1.057142857 | CH61: 1.457142857 | CI61: 2.285714286 | CJ61: 6.257142857 | CK61: 59.57142857 | CL61: 59.57142857
A62: 52 | B62: ='Data Entry'!M54 -> 0.02953688827 | E62: 0.01033939797 | F62: 0.03987628624 | U62: 12 | V62: 0.003430085325 | W62: 0.009597008135 | X62: 0.02585271378 | Y62: 0.06755507466 | Z62: 0.2175883365 | AA62: 0.4626124308 | AB62: 0.7745836591 | AE62: 12 | AF62: 0.02 | AG62: 0.06 | AH62: 0.16 | AI62: 0.41 | AJ62: 1.34 | AK62: 2.87 | AL62: 4.49 | AO62: 12 | AP62: 0.09 | AQ62: 0.39 | AR62: 0.57 | AS62: 0.87 | AT62: 2.28 | AU62: 20.85 | AV62: 20.85 | AY62: 12 | AZ62: 0.06499391562 | BA62: 0.144135057 | BB62: 0.4115587159 | BC62: 0.4541804427 | BD62: 0.9467326809 | BE62: 0.3945477963 | BF62: 0.1081847522 | BH62: 0.08499391562 | BI62: 0.204135057 | BJ62: 0.5715587159 | BK62: 0.8641804427 | BL62: 2.286732681 | BM62: 3.264547796 | BN62: 4.598184752 | BP62: 0.005006084383 | BQ62: 0.185864943 | BR62: -0.001558715904 | BS62: 0.005819557296 | BT62: -0.006732680861 | BU62: 17.5854522 | BV62: 16.25181525 | BX62: 0.9443768402 | BY62: 0.5234232232 | BZ62: 1.002734589 | CA62: 0.9933108537 | CB62: 1.00295293 | CC62: 0.1565730358 | CD62: 0.220536439 | CF62: 0.2571428571 | CG62: 1.114285714 | CH62: 1.628571429 | CI62: 2.485714286 | CJ62: 6.514285714 | CK62: 59.57142857 | CL62: 59.57142857
A63: 53 | B63: ='Data Entry'!M55 -> 0.02994324527 | E63: =E62 -> 0.01033939797 | F63: 0.04028264324 | U63: 13 | V63: 0.00433984657 | W63: 0.01173072033 | X63: 0.03032995578 | Y63: 0.07674449864 | Z63: 0.2371023194 | AA63: 0.4842425046 | AB63: 0.784140818 | AE63: 13 | AF63: 0.02 | AG63: 0.07 | AH63: 0.17 | AI63: 0.43 | AJ63: 1.34 | AK63: 2.76 | AL63: 4.08 | AO63: 13 | AP63: 0.1 | AQ63: 0.4 | AR63: 0.63 | AS63: 0.93 | AT63: 2.38 | AU63: 20.86 | AV63: 20.86 | AY63: 13 | AZ63: 0.07238579066 | BA63: 0.1603441012 | BB63: 0.457755483 | BC63: 0.5019835825 | BD63: 1.030983363 | BE63: 0.4320420637 | BF63: 0.1215334591 | BH63: 0.09238579066 | BI63: 0.2303441012 | BJ63: 0.627755483 | BK63: 0.9319835825 | BL63: 2.370983363 | BM63: 3.192042064 | BN63: 4.201533459 | BP63: 0.007614209343 | BQ63: 0.1696558988 | BR63: 0.002244516975 | BS63: -0.00198358255 | BT63: 0.009016637384 | BU63: 17.66795794 | BV63: 16.65846654 | BX63: 0.9238579066 | BY63: 0.575860253 | BZ63: 0.9964372746 | CA63: 1.002132884 | CB63: 0.9962114969 | CC63: 0.1530221507 | CD63: 0.2014157938 | CF63: 0.2857142857 | CG63: 1.142857143 | CH63: 1.8 | CI63: 2.657142857 | CJ63: 6.8 | CK63: 59.6 | CL63: 59.6
A64: 54 | B64: ='Data Entry'!M56 -> 0.03032643173 | E64: 0.01033939797 | F64: 0.0406658297 | U64: 14 | V64: 0.005394933388 | W64: 0.01412625496 | X64: 0.03517017905 | Y64: 0.08624690207 | Z64: 0.2559919732 | AA64: 0.5042110384 | AB64: 0.7929071713 | AE64: 14 | AF64: 0.03 | AG64: 0.07 | AH64: 0.19 | AI64: 0.45 | AJ64: 1.35 | AK64: 2.65 | AL64: 3.72 | AO64: 14 | AP64: 0.11 | AQ64: 0.4 | AR64: 0.69 | AS64: 1 | AT64: 2.46 | AU64: 20.86 | AV64: 20.86 | AY64: 14 | AZ64: 0.07999585449 | BA64: 0.1770204235 | BB64: 0.5054476696 | BC64: 0.5508235715 | BD64: 1.115135401 | BE64: 0.4693130226 | BF64: 0.134824631 | BH64: 0.1099958545 | BI64: 0.2470204235 | BJ64: 0.6954476696 | BK64: 1.000823572 | BL64: 2.465135401 | BM64: 3.119313023 | BN64: 3.854824631 | BP64: 4.145508168e-06 | BQ64: 0.1529795765 | BR64: -0.005447669588 | BS64: -0.0008235715093 | BT64: -0.005135401273 | BU64: 17.74068698 | BV64: 17.00517537 | BX64: 0.9999623136 | BY64: 0.6175510588 | BZ64: 1.007895173 | CA64: 1.000823572 | CB64: 1.002087561 | CC64: 0.1495356195 | CD64: 0.1847950446 | CF64: 0.3142857143 | CG64: 1.142857143 | CH64: 1.971428571 | CI64: 2.857142857 | CJ64: 7.028571429 | CK64: 59.6 | CL64: 59.6
A65: 55 | B65: ='Data Entry'!M57 -> 0.03068291329 | E65: 0.01033939797 | F65: 0.04102231126 | U65: 15 | V65: 0.006605221564 | W65: 0.01679047637 | X65: 0.04036229983 | Y65: 0.09601354793 | Z65: 0.2742333323 | AA65: 0.5226989003 | AB65: 0.8009802688 | AE65: 15 | AF65: 0.03 | AG65: 0.08 | AH65: 0.2 | AI65: 0.47 | AJ65: 1.34 | AK65: 2.53 | AL65: 3.4 | AO65: 15 | AP65: 0.12 | AQ65: 0.4 | AR65: 0.75 | AS65: 1.07 | AT65: 2.54 | AU65: 20.86 | AV65: 20.86 | AY65: 15 | AZ65: 0.08774429087 | BA65: 0.1939915657 | BB65: 0.5541898708 | BC65: 0.6001932401 | BD65: 1.198187245 | BE65: 0.5058511114 | BF65: 0.1478780058 | BH65: 0.1177442909 | BI65: 0.2739915657 | BJ65: 0.7541898708 | BK65: 1.07019324 | BL65: 2.538187245 | BM65: 3.035851111 | BN65: 3.547878006 | BP65: 0.002255709133 | BQ65: 0.1260084343 | BR65: -0.004189870783 | BS65: -0.0001932401111 | BT65: 0.001812754957 | BU65: 17.82414889 | BV65: 17.31212199 | BX65: 0.9812024239 | BY65: 0.6849789142 | BZ65: 1.005586494 | CA65: 1.000180598 | CB65: 0.9992863169 | CC65: 0.1455345691 | CD65: 0.1700804413 | CF65: 0.3428571429 | CG65: 1.142857143 | CH65: 2.142857143 | CI65: 3.057142857 | CJ65: 7.257142857 | CK65: 59.6 | CL65: 59.6
A66: 56 | B66: ='Data Entry'!M58 -> 0.03100914698 | E66: 0.01033939797 | F66: 0.04134854495 | U66: 16 | V66: 0.007980152284 | W66: 0.01972844664 | X66: 0.04589318338 | Y66: 0.1059994098 | Z66: 0.2918178099 | AA66: 0.5398621911 | AB66: 0.8084405993 | AE66: 16 | AF66: 0.04 | AG66: 0.09 | AH66: 0.21 | AI66: 0.48 | AJ66: 1.34 | AK66: 2.43 | AL66: 3.12 | AO66: 16 | AP66: 0.13 | AQ66: 0.4 | AR66: 0.82 | AS66: 1.14 | AT66: 2.62 | AU66: 20.85 | AV66: 20.85 | AY66: 16 | AZ66: 0.09579986532 | BA66: 0.211639467 | BB66: 0.605168077 | BC66: 0.6513583767 | BD66: 1.282835459 | BE66: 0.5426389874 | BF66: 0.1609439546 | BH66: 0.1357998653 | BI66: 0.301639467 | BJ66: 0.815168077 | BK66: 1.131358377 | BL66: 2.622835459 | BM66: 2.972638987 | BN66: 3.280943955 | BP66: -0.005799865322 | BQ66: 0.09836053302 | BR66: 0.004831922958 | BS66: 0.008641623261 | BT66: -0.002835459372 | BU66: 17.87736101 | BV66: 17.56905605 | BX66: 1.044614349 | BY66: 0.7540986675 | BZ66: 0.994107411 | CA66: 0.9924196287 | CB66: 1.001082236 | CC66: 0.1425726133 | CD66: 0.1573594223 | CF66: 0.3714285714 | CG66: 1.142857143 | CH66: 2.342857143 | CI66: 3.257142857 | CJ66: 7.485714286 | CK66: 59.57142857 | CL66: 59.57142857
A67: 57 | B67: ='Data Entry'!M59 -> 0.03130158236 | E67: 0.01033939797 | F67: 0.04164098033 | U67: 17 | V67: 0.009528631142 | W67: 0.02294343896 | X67: 0.05174805089 | Y67: 0.1161632798 | Z67: 0.3087481342 | AA67: 0.5558361916 | AB67: 0.8153559084 | AE67: 17 | AF67: 0.04 | AG67: 0.1 | AH67: 0.22 | AI67: 0.5 | AJ67: 1.33 | AK67: 2.33 | AL67: 2.88 | AO67: 17 | AP67: 0.14 | AQ67: 0.4 | AR67: 0.88 | AS67: 1.2 | AT67: 2.7 | AU67: 20.85 | AV67: 20.85 | AY67: 17 | AZ67: 0.1042088008 | BA67: 0.2300741866 | BB67: 0.6587948082 | BC67: 0.7047216611 | BD67: 1.369919237 | BE67: 0.5799011966 | BF67: 0.1740689388 | BH67: 0.1442088008 | BI67: 0.3300741866 | BJ67: 0.8787948082 | BK67: 1.204721661 | BL67: 2.699919237 | BM67: 2.909901197 | BN67: 3.054068939 | BP67: -0.004208800779 | BQ67: 0.0699258134 | BR67: 0.001205191755 | BS67: -0.004721661139 | BT67: 8.076253008e-05 | BU67: 17.9400988 | BV67: 17.79593106 | BX67: 1.030062863 | BY67: 0.8251854665 | BZ67: 0.9986304639 | CA67: 1.003934718 | CB67: 0.999970088 | CC67: 0.1395636066 | CD67: 0.1464781266 | CF67: 0.4 | CG67: 1.142857143 | CH67: 2.514285714 | CI67: 3.428571429 | CJ67: 7.714285714 | CK67: 59.57142857 | CL67: 59.57142857
A68: 58 | B68: ='Data Entry'!M60 -> 0.03155666094 | E68: 0.01033939797 | F68: 0.04189605891 | U68: 18 | V68: 0.01125893521 | W68: 0.02643698662 | X68: 0.05791085414 | Y68: 0.1264677398 | Z68: 0.3250352136 | AA68: 0.570738659 | AB68: 0.8217839881 | AE68: 18 | AF68: 0.05 | AG68: 0.11 | AH68: 0.24 | AI68: 0.51 | AJ68: 1.32 | AK68: 2.23 | AL68: 2.67 | AO68: 18 | AP68: 0.16 | AQ68: 0.4 | AR68: 0.95 | AS68: 1.27 | AT68: 2.78 | AU68: 20.85 | AV68: 20.85 | AY68: 18 | AZ68: 0.1129605792 | BA68: 0.2492804879 | BB68: 0.715130107 | BC68: 0.7602966326 | BD68: 1.459466006 | BE68: 0.6175286836 | BF68: 0.1872049288 | BH68: 0.1629605792 | BI68: 0.3592804879 | BJ68: 0.955130107 | BK68: 1.270296633 | BL68: 2.779466006 | BM68: 2.847528684 | BN68: 2.857204929 | BP68: -0.002960579245 | BQ68: 0.04071951214 | BR68: -0.005130106976 | BS68: -0.0002966325671 | BT68: 0.0005339935765 | BU68: 18.00247132 | BV68: 17.99279507 | BX68: 1.01850362 | BY68: 0.8982012196 | BZ68: 1.005400113 | CA68: 1.000233569 | CB68: 0.999807916 | CC68: 0.1365721191 | CD68: 0.1370362076 | CF68: 0.4571428571 | CG68: 1.142857143 | CH68: 2.714285714 | CI68: 3.628571429 | CJ68: 7.942857143 | CK68: 59.57142857 | CL68: 59.57142857
A69: 59 | B69: ='Data Entry'!M61 -> 0.03177081714 | E69: 0.01033939797 | F69: 0.04211021511 | U69: 19 | V69: 0.01317863111 | W69: 0.03020896 | X69: 0.06436461337 | Y69: 0.1368790402 | Z69: 0.3406957311 | AA69: 0.5846725575 | AB69: 0.8277746164 | AE69: 19 | AF69: 0.05 | AG69: 0.12 | AH69: 0.25 | AI69: 0.53 | AJ69: 1.3 | AK69: 2.14 | AL69: 2.47 | AO69: 19 | AP69: 0.17 | AQ69: 0.4 | AR69: 1.02 | AS69: 1.34 | AT69: 2.85 | AU69: 20.86 | AV69: 20.86 | AY69: 19 | AZ69: 0.1220361926 | BA69: 0.2692252512 | BB69: 0.7741949541 | BC69: 0.818051179 | BD69: 1.551416938 | BE69: 0.6553729075 | BF69: 0.2002922199 | BH69: 0.1720361926 | BI69: 0.3892252512 | BJ69: 1.024194954 | BK69: 1.348051179 | BL69: 2.851416938 | BM69: 2.795372908 | BN69: 2.67029222 | BP69: -0.002036192629 | BQ69: 0.01077474878 | BR69: -0.004194954098 | BS69: -0.00805117902 | BT69: -0.00141693811 | BU69: 18.06462709 | BV69: 18.18970778 | BX69: 1.011977604 | BY69: 0.9730631281 | BZ69: 1.0041127 | CA69: 1.006008343 | CB69: 1.000497171 | CC69: 0.1340063714 | CD69: 0.1280101735 | CF69: 0.4857142857 | CG69: 1.142857143 | CH69: 2.914285714 | CI69: 3.828571429 | CJ69: 8.142857143 | CK69: 59.6 | CL69: 59.6
A70: 60 | B70: ='Data Entry'!M62 -> 0.0319404779 | E70: 0.01033939797 | F70: 0.04227987587 | U70: 20 | V70: 0.01529450602 | W70: 0.03425766488 | X70: 0.07109171683 | Y70: 0.1473669174 | Z70: 0.3557503074 | AA70: 0.597728313 | AB70: 0.8333709867 | AE70: 20 | AF70: 0.05 | AG70: 0.12 | AH70: 0.26 | AI70: 0.54 | AJ70: 1.29 | AK70: 2.06 | AL70: 2.3 | AO70: 20 | AP70: 0.19 | AQ70: 0.41 | AR70: 1.1 | AS70: 1.42 | AT70: 2.93 | AU70: 20.88 | AV70: 20.88 | AY70: 20 | AZ70: 0.1314071494 | BA70: 0.2898550934 | BB70: 0.8359631111 | BC70: 0.8778997039 | BD70: 1.645612386 | BE70: 0.6932430885 | BF70: 0.2132590485 | BH70: 0.1814071494 | BI70: 0.4098550934 | BJ70: 1.095963111 | BK70: 1.417899704 | BL70: 2.935612386 | BM70: 2.753243089 | BN70: 2.513259049 | BP70: 0.008592850645 | BQ70: 0.0001449065947 | BR70: 0.004036888919 | BS70: 0.002100296076 | BT70: -0.005612385768 | BU70: 18.12675691 | BV70: 18.36674095 | BX70: 0.9547744703 | BY70: 0.9996465693 | BZ70: 0.996330101 | CA70: 0.9985209183 | CB70: 1.00191549 | CC70: 0.1318603012 | CD70: 0.1203668127 | CF70: 0.5428571429 | CG70: 1.171428571 | CH70: 3.142857143 | CI70: 4.057142857 | CJ70: 8.371428571 | CK70: 59.65714286 | CL70: 59.65714286
A71: 61 | B71: ='Data Entry'!M63 -> 0.03210460254 | E71: 0.01033939797 | F71: 0.04244400051 | U71: 21 | V71: 0.01761251244 | W71: 0.03857995612 | X71: 0.07807418229 | Y71: 0.1579043749 | Z71: 0.3702221059 | AA71: 0.609985677 | AB71: 0.8386108085 | AE71: 21 | AF71: 0.06 | AG71: 0.13 | AH71: 0.27 | AI71: 0.55 | AJ71: 1.27 | AK71: 1.97 | AL71: 2.14 | AO71: 21 | AP71: 0.2 | AQ71: 0.44 | AR71: 1.17 | AS71: 1.49 | AT71: 3.01 | AU71: 20.89 | AV71: 20.89 | AY71: 21 | AZ71: 0.1410456318 | BA71: 0.3111189006 | BB71: 0.9004283977 | BC71: 0.9397746169 | BD71: 1.741936589 | BE71: 0.7309648129 | BF71: 0.2260393742 | BH71: 0.2010456318 | BI71: 0.4411189006 | BJ71: 1.170428398 | BK71: 1.489774617 | BL71: 3.011936589 | BM71: 2.700964813 | BN71: 2.366039374 | BP71: -0.00104563183 | BQ71: -0.001118900583 | BR71: -0.0004283977487 | BS71: 0.0002253830856 | BT71: -0.001936589215 | BU71: 18.18903519 | BV71: 18.52396063 | BX71: 1.005228159 | BY71: 1.002542956 | BZ71: 1.000366152 | CA71: 0.9998487362 | CB71: 1.000643385 | CC71: 0.1292946296 | CD71: 0.1132618178 | CF71: 0.5714285714 | CG71: 1.257142857 | CH71: 3.342857143 | CI71: 4.257142857 | CJ71: 8.6 | CK71: 59.68571429 | CL71: 59.68571429
A72: 62 | B72: ='Data Entry'!M64 -> 0.0322634577 | E72: 0.01033939797 | F72: 0.04260285567 | U72: 22 | V72: 0.02013772711 | W72: 0.04317136149 | X72: 0.08529388203 | Y72: 0.1684674448 | Z72: 0.384135781 | AA72: 0.62151527 | AB72: 0.8435271764 | AE72: 22 | AF72: 0.07 | AG72: 0.14 | AH72: 0.28 | AI72: 0.56 | AJ72: 1.25 | AK72: 1.89 | AL72: 1.99 | AO72: 22 | AP72: 0.22 | AQ72: 0.47 | AR72: 1.25 | AS72: 1.56 | AT72: 3.09 | AU72: 20.9 | AV72: 20.9 | AY72: 22 | AZ72: 0.1509618756 | BA72: 0.3330518205 | BB72: 0.9678673871 | BC72: 1.003898602 | BD72: 1.840863092 | BE72: 0.7685824078 | BF72: 0.2386328041 | BH72: 0.2209618756 | BI72: 0.4730518205 | BJ72: 1.247867387 | BK72: 1.563898602 | BL72: 3.090863092 | BM72: 2.658582408 | BN72: 2.228632804 | BP72: -0.0009618755566 | BQ72: -0.003051820492 | BR72: 0.002132612918 | BS72: -0.003898602316 | BT72: -0.0008630924474 | BU72: 18.24141759 | BV72: 18.6713672 | BX72: 1.004372162 | BY72: 1.006493235 | BZ72: 0.9982939097 | CA72: 1.002499104 | CB72: 1.000279318 | CC72: 0.1272048999 | CD72: 0.1066331485 | CF72: 0.6285714286 | CG72: 1.342857143 | CH72: 3.571428571 | CI72: 4.457142857 | CJ72: 8.828571429 | CK72: 59.71428571 | CL72: 59.71428571
A73: 63 | B73: ='Data Entry'!M65 -> 0.03241729314 | E73: 0.01033939797 | F73: 0.04275669111 | U73: 23 | V73: 0.02287432366 | W73: 0.04802621148 | X73: 0.09273273376 | Y73: 0.1790349424 | Z73: 0.397516693 | AA73: 0.6323798641 | AB73: 0.8481492723 | AE73: 23 | AF73: 0.07 | AG73: 0.15 | AH73: 0.29 | AI73: 0.56 | AJ73: 1.23 | AK73: 1.81 | AL73: 1.86 | AO73: 23 | AP73: 0.23 | AQ73: 0.51 | AR73: 1.33 | AS73: 1.63 | AT73: 3.17 | AU73: 20.91 | AV73: 20.91 | AY73: 23 | AZ73: 0.16117764 | BA73: 0.3557164257 | BB73: 1.038672916 | BC73: 1.070601918 | BD73: 1.943081406 | BE73: 0.8062030776 | BF73: 0.2510586115 | BH73: 0.23117764 | BI73: 0.5057164257 | BJ73: 1.328672916 | BK73: 1.630601918 | BL73: 3.173081406 | BM73: 2.616203078 | BN73: 2.111058611 | BP73: -0.001177639984 | BQ73: 0.004283574317 | BR73: 0.001327084455 | BS73: -0.0006019184445 | BT73: -0.003081406492 | BU73: 18.29379692 | BV73: 18.79894139 | BX73: 1.005120174 | BY73: 0.9916008347 | BZ73: 0.9990021921 | CA73: 1.000369275 | CB73: 1.000972053 | CC73: 0.125117316 | CD73: 0.1009592832 | CF73: 0.6571428571 | CG73: 1.457142857 | CH73: 3.8 | CI73: 4.657142857 | CJ73: 9.057142857 | CK73: 59.74285714 | CL73: 59.74285714
A74: 64 | B74: ='Data Entry'!M66 -> 0.03256634308 | E74: 0.01033939797 | F74: 0.04290574105 | U74: 24 | V74: 0.02582555845 | W74: 0.05313777129 | X74: 0.1003728601 | Y74: 0.1895882227 | Z74: 0.4103903272 | AA74: 0.6426354535 | AB74: 0.8525029379 | AE74: 24 | AF74: 0.08 | AG74: 0.16 | AH74: 0.3 | AI74: 0.57 | AJ74: 1.21 | AK74: 1.74 | AL74: 1.74 | AO74: 24 | AP74: 0.25 | AQ74: 0.54 | AR74: 1.42 | AS74: 1.71 | AT74: 3.26 | AU74: 20.91 | AV74: 20.91 | AY74: 24 | AZ74: 0.1717155149 | BA74: 0.3791790833 | BB74: 1.113290878 | BC74: 1.140251933 | BD74: 2.049359035 | BE74: 0.8439362481 | BF74: 0.2633373038 | BH74: 0.2517155149 | BI74: 0.5391790833 | BJ74: 1.413290878 | BK74: 1.710251933 | BL74: 3.259359035 | BM74: 2.583936248 | BN74: 2.003337304 | BP74: -0.001715514933 | BQ74: 0.0008209166787 | BR74: 0.006709121868 | BS74: -0.0002519334942 | BT74: 0.0006409646773 | BU74: 18.32606375 | BV74: 18.9066627 | BX74: 1.00686206 | BY74: 0.9984797839 | BZ74: 0.9952752663 | CA74: 1.00014733 | CB74: 0.9998033851 | CC74: 0.1235741869 | CD74: 0.09580761855 | CF74: 0.7142857143 | CG74: 1.542857143 | CH74: 4.057142857 | CI74: 4.885714286 | CJ74: 9.314285714 | CK74: 59.74285714 | CL74: 59.74285714
A75: 65 | B75: ='Data Entry'!M67 -> 0.0327108274 | E75: 0.01033939797 | F75: 0.04305022537 | U75: 25 | V75: 0.02899376846 | W75: 0.05849837225 | X75: 0.1081967202 | Y75: 0.2001109445 | Z75: 0.4227818715 | AA75: 0.6523321511 | AB75: 0.8566111471 | AE75: 25 | AF75: 0.08 | AG75: 0.17 | AH75: 0.31 | AI75: 0.58 | AJ75: 1.19 | AK75: 1.67 | AL75: 1.63 | AO75: 25 | AP75: 0.27 | AQ75: 0.57 | AR75: 1.51 | AS75: 1.79 | AT75: 3.35 | AU75: 20.91 | AV75: 20.91 | AY75: 25 | AZ75: 0.1825984547 | BA75: 0.4035092257 | BB75: 1.192228006 | BC75: 1.213257109 | BD75: 2.160556706 | BE75: 0.8818910037 | BF75: 0.2754893348 | BH75: 0.2625984547 | BI75: 0.5735092257 | BJ75: 1.502228006 | BK75: 1.793257109 | BL75: 3.350556706 | BM75: 2.551891004 | BN75: 1.905489335 | BP75: 0.007401545282 | BQ75: -0.00350922574 | BR75: 0.007771994104 | BS75: -0.00325710885 | BT75: -0.0005567060291 | BU75: 18.358109 | BV75: 19.00451067 | BX75: 0.9725868693 | BY75: 1.006156536 | BZ75: 0.994852984 | CA75: 1.001819614 | CB75: 1.000166181 | CC75: 0.1220416549 | CD75: 0.09112813653 | CF75: 0.7714285714 | CG75: 1.628571429 | CH75: 4.314285714 | CI75: 5.114285714 | CJ75: 9.571428571 | CK75: 59.74285714 | CL75: 59.74285714
A76: =1+A75 -> 66 | B76: ='Data Entry'!M68 -> 0.03285095272 | E76: 0.01033939797 | F76: =MAX(E76+B76,0) -> 0.04319035069 | U76: 26 | V76: 0.03238038035 | W76: 0.0640995403 | X76: 0.1161872153 | Y76: 0.2105888464 | Z76: 0.4347159156 | AA76: 0.6615149442 | AB76: 0.8604943985 | AE76: 26 | AF76: 0.09 | AG76: 0.18 | AH76: 0.32 | AI76: 0.58 | AJ76: 1.16 | AK76: 1.6 | AL76: 1.53 | AO76: 26 | AP76: 0.28 | AQ76: 0.61 | AR76: 1.6 | AS76: 1.87 | AT76: 3.44 | AU76: 20.92 | AV76: 20.92 | AY76: 26 | AZ76: 0.1938513245 | BA76: 0.4287832326 | BB76: 1.276077497 | BC76: 1.290087986 | BD76: 2.27768051 | BE76: 0.9201843195 | BF76: 0.287537035 | BH76: 0.2838513245 | BI76: 0.6087832326 | BJ76: 1.596077497 | BK76: 1.870087986 | BL76: 3.43768051 | BM76: 2.52018432 | BN76: 1.817537035 | BP76: -0.003851324479 | BQ76: 0.001216767387 | BR76: 0.003922503393 | BS76: -8.798617658e-05 | BT76: 0.002319490023 | BU76: 18.39981568 | BV76: 19.10246297 | BX76: 1.01375473 | BY76: 0.9980052994 | BZ76: 0.9975484354 | CA76: 1.000047051 | CB76: 0.9993257296 | CC76: 0.1204677017 | CD76: 0.0868803554 | CF76: 0.8 | CG76: 1.742857143 | CH76: 4.571428571 | CI76: 5.342857143 | CJ76: 9.828571429 | CK76: 59.77142857 | CL76: 59.77142857
A77: 67 | B77: ='Data Entry'!M69 -> 0.03298691337 | E77: 0.01033939797 | F77: 0.04332631134 | U77: 27 | V77: 0.03598592917 | W77: 0.06993211972 | X77: 0.1243277733 | Y77: 0.2210095364 | Z77: 0.4462162422 | AA77: 0.6702243331 | AB77: 0.8641710435 | AE77: 27 | AF77: 0.09 | AG77: 0.18 | AH77: 0.33 | AI77: 0.59 | AJ77: 1.14 | AK77: 1.53 | AL77: 1.44 | AO77: 27 | AP77: 0.3 | AQ77: 0.64 | AR77: 1.7 | AS77: 1.96 | AT77: 3.54 | AU77: 20.92 | AV77: 20.92 | AY77: 27 | AZ77: 0.2055070742 | BA77: 0.4550990494 | BB77: 1.36558644 | BC77: 1.371337969 | BD77: 2.402019197 | BE77: 0.9589728212 | BF77: 0.2995132306 | BH77: 0.2955070742 | BI77: 0.6350990494 | BJ77: 1.69558644 | BK77: 1.961337969 | BL77: 3.542019197 | BM77: 2.488972821 | BN77: 1.739513231 | BP77: 0.004492925829 | BQ77: 0.004900950615 | BR77: 0.004413559995 | BS77: -0.001337969198 | BT77: -0.002019197446 | BU77: 18.43102718 | BV77: 19.18048677 | BX77: 0.9850235806 | BY77: 0.9923422647 | BZ77: 0.9974037882 | CA77: 1.000682637 | CB77: 1.000570395 | CC77: 0.1189757563 | CD77: 0.08315072804 | CF77: 0.8571428571 | CG77: 1.828571429 | CH77: 4.857142857 | CI77: 5.6 | CJ77: 10.11428571 | CK77: 59.77142857 | CL77: 59.77142857
A78: 68 | B78: ='Data Entry'!M70 -> 0.03311889228 | E78: 0.01033939797 | F78: 0.04345829025 | U78: 28 | V78: 0.03981008565 | W78: 0.07598639078 | X78: 0.1326024128 | Y78: 0.2313622969 | Z78: 0.4573056891 | AA78: 0.6784968742 | AB78: 0.8676575622 | AE78: 28 | AF78: 0.1 | AG78: 0.19 | AH78: 0.34 | AI78: 0.59 | AJ78: 1.12 | AK78: 1.47 | AL78: 1.35 | AO78: 28 | AP78: 0.32 | AQ78: 0.68 | AR78: 1.8 | AS78: 2.05 | AT78: 3.66 | AU78: 20.92 | AV78: 20.92 | AY78: 28 | AZ78: 0.2176017886 | BA78: 0.4825657126 | BB78: 1.461648826 | BC78: 1.457705087 | BD78: 2.53513109 | BE78: 0.9984260303 | BF78: 0.3114528275 | BH78: 0.3176017886 | BI78: 0.6725657126 | BJ78: 1.801648826 | BK78: 2.047705087 | BL78: 3.65513109 | BM78: 2.46842603 | BN78: 1.661452827 | BP78: 0.002398211372 | BQ78: 0.007434287421 | BR78: -0.001648825955 | BS78: 0.002294912886 | BT78: 0.004868910047 | BU78: 18.45157397 | BV78: 19.25854717 | BX78: 0.9925055895 | BY78: 0.9890672244 | BZ78: 1.000916014 | CA78: 0.9988805303 | CB78: 0.9986696967 | CC78: 0.1179935961 | CD78: 0.07941935122 | CF78: 0.9142857143 | CG78: 1.942857143 | CH78: 5.142857143 | CI78: 5.857142857 | CJ78: 10.45714286 | CK78: 59.77142857 | CL78: 59.77142857
A79: 69 | B79: ='Data Entry'!M71 -> 0.03324706186 | E79: 0.01033939797 | F79: 0.04358645983 | U79: 29 | V79: 0.04385169069 | W79: 0.08225218041 | X79: 0.1409957913 | Y79: 0.2416379055 | Z79: 0.4680060642 | AA79: 0.6863656439 | AB79: 0.8709687964 | AE79: 29 | AF79: 0.11 | AG79: 0.2 | AH79: 0.35 | AI79: 0.59 | AJ79: 1.1 | AK79: 1.41 | AL79: 1.27 | AO79: 29 | AP79: 0.34 | AQ79: 0.71 | AR79: 1.92 | AS79: 2.14 | AT79: 3.78 | AU79: 20.92 | AV79: 20.92 | AY79: 29 | AZ79: 0.2301728191 | BA79: 0.5112998576 | BB79: 1.565328127 | BC79: 1.550000834 | BD79: 2.678897563 | BE79: 1.038717034 | BF79: 0.3233895828 | BH79: 0.3401728191 | BI79: 0.7112998576 | BJ79: 1.915328127 | BK79: 2.140000834 | BL79: 3.778897563 | BM79: 2.448717034 | BN79: 1.593389583 | BP79: -0.0001728190874 | BQ79: -0.001299857602 | BR79: 0.004671872814 | BS79: -8.337114843e-07 | BT79: 0.001102436811 | BU79: 18.47128297 | BV79: 19.32661042 | BX79: 1.000508291 | BY79: 1.001830785 | BZ79: 0.9975667329 | CA79: 1.00000039 | CB79: 0.99970835 | CC79: 0.1170514835 | CD79: 0.07616585004 | CF79: 0.9714285714 | CG79: 2.028571429 | CH79: 5.485714286 | CI79: 6.114285714 | CJ79: 10.8 | CK79: 59.77142857 | CL79: 59.77142857
A80: 70 | B80: ='Data Entry'!M72 -> 0.03337158468 | E80: 0.01033939797 | F80: 0.04371098265 | U80: 30 | V80: 0.0481087958 | W80: 0.0887189652 | X80: 0.1494932382 | Y80: 0.2518284708 | Z80: 0.4783381006 | AA80: 0.6938606368 | AB80: 0.8741181478 | AE80: 30 | AF80: 0.11 | AG80: 0.21 | AH80: 0.36 | AI80: 0.6 | AJ80: 1.08 | AK80: 1.36 | AL80: 1.2 | AO80: 30 | AP80: 0.36 | AQ80: 0.75 | AR80: 2.04 | AS80: 2.25 | AT80: 3.91 | AU80: 20.91 | AV80: 20.91 | AY80: 30 | AZ80: 0.2432587805 | BA80: 0.5414265777 | BB80: 1.677906419 | BC80: 1.649180307 | BD80: 2.835639023 | BE80: 1.080023278 | BF80: 0.3353558321 | BH80: 0.3532587805 | BI80: 0.7514265777 | BJ80: 2.037906419 | BK80: 2.249180307 | BL80: 3.915639023 | BM80: 2.440023278 | BN80: 1.535355832 | BP80: 0.006741219548 | BQ80: -0.001426577677 | BR80: 0.002093581022 | BS80: 0.0008196928698 | BT80: -0.005639023008 | BU80: 18.46997672 | BV80: 19.37464417 | BX80: 0.9812743901 | BY80: 1.001902104 | BZ80: 0.9989737348 | CA80: 0.9996356921 | CB80: 1.001442205 | CC80: 0.1166916919 | CD80: 0.07342686906 | CF80: 1.028571429 | CG80: 2.142857143 | CH80: 5.828571429 | CI80: 6.428571429 | CJ80: 11.17142857 | CK80: 59.74285714 | CL80: 59.74285714
A81: 71 | B81: ='Data Entry'!M73 -> 0.03349261418 | E81: 0.01033939797 | F81: 0.04383201215
A82: 72 | B82: ='Data Entry'!M74 -> 0.03361029535 | E82: 0.01033939797 | F82: 0.04394969332
A83: 73 | B83: ='Data Entry'!M75 -> 0.03372476523 | E83: 0.01033939797 | F83: 0.0440641632
A84: 74 | B84: ='Data Entry'!M76 -> 0.0338361535 | E84: 0.01033939797 | F84: 0.04417555147
A85: 75 | B85: ='Data Entry'!M77 -> 0.03394458294 | E85: 0.01033939797 | F85: 0.04428398091
A86: 76 | B86: ='Data Entry'!M78 -> 0.0340501699 | E86: 0.01033939797 | F86: 0.04438956787
A87: 77 | B87: ='Data Entry'!M79 -> 0.03415302471 | E87: 0.01033939797 | F87: 0.04449242268
A88: 78 | B88: ='Data Entry'!M80 -> 0.03425325206 | E88: 0.01033939797 | F88: 0.04459265003
A89: 79 | B89: ='Data Entry'!M81 -> 0.03435095136 | E89: 0.01033939797 | F89: 0.04469034933
A90: 80 | B90: ='Data Entry'!M82 -> 0.03444621705 | E90: 0.01033939797 | F90: 0.04478561502
A91: 81 | B91: ='Data Entry'!M83 -> 0.03453913896 | E91: 0.01033939797 | F91: 0.04487853693
A92: 82 | B92: ='Data Entry'!M84 -> 0.03462980253 | E92: 0.01033939797 | F92: 0.0449692005
A93: 83 | B93: ='Data Entry'!M85 -> 0.03471828909 | E93: 0.01033939797 | F93: 0.04505768706
A94: 84 | B94: ='Data Entry'!M86 -> 0.03480467613 | E94: 0.01033939797 | F94: 0.0451440741
A95: 85 | B95: ='Data Entry'!M87 -> 0.03488903749 | E95: =E94 -> 0.01033939797 | F95: 0.04522843546
A96: 86 | B96: ='Data Entry'!M88 -> 0.0349714436 | E96: 0.01033939797 | F96: 0.04531084157
A97: 87 | B97: ='Data Entry'!M89 -> 0.03505196166 | E97: 0.01033939797 | F97: 0.04539135963
A98: 88 | B98: ='Data Entry'!M90 -> 0.03513065581 | E98: 0.01033939797 | F98: 0.04547005378
A99: 89 | B99: ='Data Entry'!M91 -> 0.03520758733 | E99: 0.01033939797 | F99: 0.0455469853
A100: 90 | B100: ='Data Entry'!M92 -> 0.0352828148 | E100: 0.01033939797 | F100: 0.04562221277
A101: 91 | B101: ='Data Entry'!M93 -> 0.0353563942 | E101: 0.01033939797 | F101: 0.04569579217
A102: 92 | B102: ='Data Entry'!M94 -> 0.03542837911 | E102: 0.01033939797 | F102: 0.04576777708
A103: 93 | B103: ='Data Entry'!M95 -> 0.0354988208 | E103: 0.01033939797 | F103: 0.04583821877
A104: 94 | B104: ='Data Entry'!M96 -> 0.03556776837 | E104: 0.01033939797 | F104: 0.04590716634
A105: 95 | B105: ='Data Entry'!M97 -> 0.03563526886 | E105: 0.01033939797 | F105: 0.04597466683
A106: 96 | B106: ='Data Entry'!M98 -> 0.03570136736 | E106: 0.01033939797 | F106: 0.04604076533
A107: 97 | B107: ='Data Entry'!M99 -> 0.03576610708 | E107: 0.01033939797 | F107: 0.04610550505
A108: 98 | B108: ='Data Entry'!M100 -> 0.03582952952 | E108: 0.01033939797 | F108: 0.04616892749
A109: 99 | B109: ='Data Entry'!M101 -> 0.03589167445 | E109: 0.01033939797 | F109: 0.04623107242
A110: 100 | B110: ='Data Entry'!M102 -> 0.03595258011 | E110: 0.01033939797 | F110: 0.04629197808

Sheet Final Spread
B1: Final | E1: =N7 -> 0.05 | F1: =N8 -> 0.12 | G1: =N9 -> 0.45 | H1: =N10 -> 0.39 | I1: =N11 -> 0
A2: Duration | B2: Spread | D2: Maturity | E2: AAA | F2: AA | G2: A | H2: BBB | I2: BBB- | K2: Weighted
A3: 1 | B3: =B4+B4-B5 -> 0.003824037492 | D3: 1 | E3: =Results!J3 -> 0.004310153764 | F3: =Results!K3 -> 0.002723903151 | G3: =Results!L3 -> 0.01427343123 | H3: =Results!M3 -> 0.005411304619 | I3: =Results!N3 -> 0 | K3: =SUMPRODUCT(E$1:I$1,E3:I3) -> 0.00907582892
A4: =1+A3 -> 2 | B4: =B5+B5-B6 -> 0.005632117031 | D4: 2 | E4: =Results!J4 -> 0.01107057415 | F4: =Results!K4 -> 0.003915834935 | G4: =Results!L4 -> 0.01059973996 | H4: =Results!M4 -> 0.008907564691 | I4: =Results!N4 -> 0.005030425561 | K4: 0.009267262112 | M4: Weights
A5: 3 | B5: =B6+B6-B7 -> 0.007440196569 | D5: 3 | E5: =Results!J5 -> 0.0132658998 | F5: =Results!K5 -> 0.005134431096 | G5: =Results!L5 -> 0.006258883401 | H5: =Results!M5 -> 0.01121320421 | I5: =Results!N5 -> 0.01364473753 | K5: 0.008469073894 | M5: Actual | N5: Weights
A6: 4 | B6: =B7+B7-B8 -> 0.009248276108 | D6: 4 | E6: =Results!J6 -> 0.01411671982 | F6: =Results!K6 -> 0.006468164228 | G6: =Results!L6 -> 0.005741932052 | H6: =Results!M6 -> 0.01350771975 | I6: =Results!N6 -> 0.01788688754 | K6: 0.009333895824 | M6: Filings | N6: Used
A7: 5 | B7: =K7 -> 0.01105635565 | D7: 5 | E7: =Results!J7 -> 0.01435502536 | F7: =Results!K7 -> 0.00774467803 | G7: =Results!L7 -> 0.007182941888 | H7: =Results!M7 -> 0.01583825427 | I7: =Results!N7 -> 0.01949999986 | K7: 0.01105635565 | M7: AAA 5% | N7: =Instructions!F36/100 -> 0.05
A8: 6 | B8: =0.5*B7+0.5*B9 -> 0.01286443519 | D8: 6 | E8: =Results!J8 -> 0.01427001962 | F8: =Results!K8 -> 0.008870209319 | G8: =Results!L8 -> 0.009102515727 | H8: =Results!M8 -> 0.01807508582 | I8: =Results!N8 -> 0.01990261906 | K8: 0.01292334165 | M8: AA 10% | N8: =Instructions!G36/100 -> 0.12
A9: 7 | B9: =K9 -> 0.01467251472 | D9: 7 | E9: =Results!J9 -> 0.01407041731 | F9: =Results!K9 -> 0.009877615875 | G9: =Results!L9 -> 0.01092341127 | H9: =Results!M9 -> 0.02017473047 | I9: =Results!N9 -> 0.01989530242 | K9: 0.01467251472 | M9: A 40% | N9: =Instructions!H36/100 -> 0.45
A10: 8 | B10: =0.67*B9+0.33*B12 -> 0.01589440343 | D10: 8 | E10: =Results!J10 -> 0.01377938114 | F10: =Results!K10 -> 0.01071217432 | G10: =Results!L10 -> 0.01240888539 | H10: =Results!M10 -> 0.02202663138 | I10: =Results!N10 -> 0.01977596363 | K10: 0.01614881464 | M10: BBB 35% | N10: =Instructions!I36/100 -> 0.39
A11: 9 | B11: =0.33*B9+0.67*B12 -> 0.01715331906 | D11: 9 | E11: =Results!J11 -> 0.01346555571 | F11: =Results!K11 -> 0.01141344361 | G11: =Results!L11 -> 0.01358601301 | H11: =Results!M11 -> 0.0236425171 | I11: =Results!N11 -> 0.0197323745 | K11: 0.01737717854 | M11: BB 5%
A12: 10 | B12: =K12 -> 0.01837520777 | D12: 10 | E12: =Results!J12 -> 0.01313762569 | F12: =Results!K12 -> 0.01198518731 | G12: =Results!L12 -> 0.01449478796 | H12: =Results!M12 -> 0.02501910109 | I12: =Results!N12 -> 0.01981735525 | K12: 0.01837520777 | M12: B 5%
A13: 11 | B13: =0.9*B12+0.1*B22 -> 0.01884229085 | D13: 11 | E13: =Results!J13 -> 0.01279352923 | F13: =Results!K13 -> 0.01243176086 | G13: =Results!L13 -> 0.01517974344 | H13: =Results!M13 -> 0.0261658487 | I13: =Results!N13 -> 0.02003664605 | K13: 0.0191670533
A14: 12 | B14: =0.8*B12+0.2*B22 -> 0.01930937393 | D14: 12 | E14: =Results!J14 -> 0.01250302026 | F14: =Results!K14 -> 0.01283397304 | G14: =Results!L14 -> 0.01575337806 | H14: =Results!M14 -> 0.02717441842 | I14: =Results!N14 -> 0.02045045856 | K14: 0.01985227109
A15: 13 | B15: =0.7*B12+0.3*B22 -> 0.019776457 | D15: 13 | E15: =Results!J15 -> 0.01225219981 | F15: =Results!K15 -> 0.01319019405 | G15: =Results!L15 -> 0.01623625006 | H15: =Results!M15 -> 0.02805581247 | I15: =Results!N15 -> 0.02102764552 | K15: 0.02044351267
A16: 14 | B16: =0.6*B12+0.4*B22 -> 0.02024354008 | D16: 14 | E16: =Results!J16 -> 0.01202447255 | F16: =Results!K16 -> 0.0134956547 | G16: =Results!L16 -> 0.01663833327 | H16: =Results!M16 -> 0.02881755563 | I16: =Results!N16 -> 0.02173165832 | K16: 0.02094679886
A17: 15 | B17: =0.5*B12+0.5*B22 -> 0.02071062316 | D17: 15 | E17: =Results!J17 -> 0.01184016385 | F17: =Results!K17 -> 0.01378134845 | G17: =Results!L17 -> 0.01700020473 | H17: =Results!M17 -> 0.02950163834 | I17: =Results!N17 -> 0.02256276496 | K17: 0.02140150109
A18: 16 | B18: =0.4*B12+0.6*B22 -> 0.02117770624 | D18: 16 | E18: =Results!J18 -> 0.01166537259 | F18: =Results!K18 -> 0.01402265902 | G18: =Results!L18 -> 0.01730344752 | H18: =Results!M18 -> 0.03009284216 | I18: =Results!N18 -> 0.0234682182 | K18: 0.02178874754
A19: 17 | B19: =0.3*B12+0.7*B22 -> 0.02164478932 | D19: 17 | E19: =Results!J19 -> 0.0115162014 | F19: =Results!K19 -> 0.01424360701 | G19: =Results!L19 -> 0.01757611719 | H19: =Results!M19 -> 0.03062301698 | I19: =Results!N19 -> 0.02444709622 | K19: 0.02213727227
A20: 18 | B20: =0.2*B12+0.8*B22 -> 0.02211187239 | D20: 18 | E20: =Results!J20 -> 0.01140532324 | F20: =Results!K20 -> 0.01446354104 | G20: =Results!L20 -> 0.0178402254 | H20: =Results!M20 -> 0.03111794682 | I20: =Results!N20 -> 0.0254970899 | K20: 0.02246999178
A21: 19 | B21: =0.1*B12+0.9*B22 -> 0.02257895547 | D21: 19 | E21: =Results!J21 -> 0.01131032432 | F21: =Results!K21 -> 0.01466564276 | G21: =Results!L21 -> 0.01808074665 | H21: =Results!M21 -> 0.03156607253 | I21: =Results!N21 -> 0.02658285222 | K21: 0.02277249763
A22: 20 | B22: =K22 -> 0.02304603855 | D22: 20 | E22: =Results!J22 -> 0.01122578343 | F22: =Results!K22 -> 0.01484917082 | G22: =Results!L22 -> 0.01829817608 | H22: =Results!M22 -> 0.03197094781 | I22: =Results!N22 -> 0.02768797012 | K22: 0.02304603855
A23: 21 | B23: =0.9*B22+0.1*B32 -> 0.02325350278 | D23: 21 | E23: =Results!J23 -> 0.01117902592 | F23: =Results!K23 -> 0.01504536588 | G23: =Results!L23 -> 0.01852463061 | H23: =Results!M23 -> 0.03236733024 | I23: =Results!N23 -> 0.02883055515 | K23: 0.02332373777
A24: 22 | B24: =0.8*B22+0.2*B32 -> 0.02346096701 | D24: 22 | E24: =Results!J24 -> 0.01113671665 | F24: =Results!K24 -> 0.01522417507 | G24: =Results!L24 -> 0.01873069618 | H24: =Results!M24 -> 0.03272806052 | I24: =Results!N24 -> 0.02996965049 | K24: 0.02357649373
A25: 23 | B25: =0.7*B22+0.3*B32 -> 0.02366843124 | D25: 23 | E25: =Results!J25 -> 0.01109964821 | F25: =Results!K25 -> 0.01538915135 | G25: =Results!L25 -> 0.01892040489 | H25: =Results!M25 -> 0.03305908675 | I25: =Results!N25 -> 0.03109983023 | K25: 0.0238089066
A26: 24 | B26: =0.6*B22+0.4*B32 -> 0.02387589547 | D26: 24 | E26: =Results!J26 -> 0.01106846745 | F26: =Results!K26 -> 0.01554327203 | G26: =Results!L26 -> 0.0190971032 | H26: =Results!M26 -> 0.03336538221 | I26: =Results!N26 -> 0.03221674433 | K26: 0.02402481152
A27: 25 | B27: =0.5*B22+0.5*B32 -> 0.02408335969 | D27: 25 | E27: =Results!J27 -> 0.0110436975 | F27: =Results!K27 -> 0.01568903653 | G27: =Results!L27 -> 0.01926358201 | H27: =Results!M27 -> 0.03365112119 | I27: =Results!N27 -> 0.03331697237 | K27: 0.02422741843
A28: 26 | B28: =0.4*B22+0.6*B32 -> 0.02429082392 | D28: 26 | E28: =Results!J28 -> 0.01102554696 | F28: =Results!K28 -> 0.0158283372 | G28: =Results!L28 -> 0.0194219688 | H28: =Results!M28 -> 0.03391961114 | I28: =Results!N28 -> 0.03439768007 | K28: 0.02441921212
A29: 27 | B29: =0.3*B22+0.7*B32 -> 0.02449828815 | D29: 27 | E29: =Results!J29 -> 0.01101454609 | F29: =Results!K29 -> 0.01596314566 | G29: =Results!L29 -> 0.01957442842 | H29: =Results!M29 -> 0.03417402738 | I29: =Results!N29 -> 0.03545711922 | K29: 0.02460266825
A30: 28 | B30: =0.2*B22+0.8*B32 -> 0.02470575238 | D30: 28 | E30: =Results!J30 -> 0.01101093923 | F30: =Results!K30 -> 0.01609494607 | G30: =Results!L30 -> 0.0197226063 | H30: =Results!M30 -> 0.03441688429 | I30: =Results!N30 -> 0.03649389987 | K30: 0.0247796982
A31: 29 | B31: =0.1*B22+0.9*B32 -> 0.02491321661 | D31: 29 | E31: =Results!J31 -> 0.01101490202 | F31: =Results!K31 -> 0.01622498553 | G31: =Results!L31 -> 0.01986788591 | H31: =Results!M31 -> 0.0346503161 | I31: =Results!N31 -> 0.03750710255 | K31: 0.0249519153
A32: 30 | B32: =K32 -> 0.02512068084 | D32: 30 | E32: =Results!J32 -> 0.01102654955 | F32: =Results!K32 -> 0.01635430938 | G32: =Results!L32 -> 0.02001142914 | H32: =Results!M32 -> 0.0348761362 | I32: =Results!N32 -> 0.03849619515 | K32: 0.02512068084
D33: avg | E33: =AVERAGE(E3:E32) -> 0.01183326009 | F33: =AVERAGE(F3:F32) -> 0.01247266394 | G33: =AVERAGE(G3:G32) -> 0.01558712999 | H33: =AVERAGE(H3:H32) -> 0.02653700564 | I33: =AVERAGE(I3:I32) -> 0.0242154605

Sheet Results
K1: Spreads | R1: Raw Yields
I2: Maturity | J2: AAA | K2: AA | L2: A | M2: BBB | N2: BBB- | P2: Maturity | Q2: AAA | R2: AA | S2: A | T2: BBB | U2: BBB-
I3: ='All Curves'!A10 -> 1 | J3: ='All Curves'!H10 -> 0.004310153764 | K3: ='All Curves'!I10 -> 0.002723903151 | L3: ='All Curves'!J10 -> 0.01427343123 | M3: ='All Curves'!K10 -> 0.005411304619 | N3: ='All Curves'!L10 -> 0 | P3: =I3 -> 1 | Q3: ='All Curves'!C10 -> 0.02383944882 | R3: ='All Curves'!D10 -> 0.0222531982 | S3: ='All Curves'!E10 -> 0.03380272628 | T3: ='All Curves'!F10 -> 0.02494059967 | U3: ='All Curves'!G10 -> 0.01797891799
I4: ='All Curves'!A11 -> 2 | J4: ='All Curves'!H11 -> 0.01107057415 | K4: ='All Curves'!I11 -> 0.003915834935 | L4: ='All Curves'!J11 -> 0.01059973996 | M4: ='All Curves'!K11 -> 0.008907564691 | N4: ='All Curves'!L11 -> 0.005030425561 | P4: 2 | Q4: ='All Curves'!C11 -> 0.02847734509 | R4: ='All Curves'!D11 -> 0.02132260588 | S4: ='All Curves'!E11 -> 0.02800651091 | T4: ='All Curves'!F11 -> 0.02631433564 | U4: ='All Curves'!G11 -> 0.02243719651
I5: ='All Curves'!A12 -> 3 | J5: ='All Curves'!H12 -> 0.0132658998 | K5: ='All Curves'!I12 -> 0.005134431096 | L5: ='All Curves'!J12 -> 0.006258883401 | M5: ='All Curves'!K12 -> 0.01121320421 | N5: ='All Curves'!L12 -> 0.01364473753 | P5: 3 | Q5: ='All Curves'!C12 -> 0.03002331052 | R5: ='All Curves'!D12 -> 0.02189184182 | S5: ='All Curves'!E12 -> 0.02301629412 | T5: ='All Curves'!F12 -> 0.02797061493 | U5: ='All Curves'!G12 -> 0.03040214825
I6: ='All Curves'!A13 -> 4 | J6: ='All Curves'!H13 -> 0.01411671982 | K6: ='All Curves'!I13 -> 0.006468164228 | L6: ='All Curves'!J13 -> 0.005741932052 | M6: ='All Curves'!K13 -> 0.01350771975 | N6: ='All Curves'!L13 -> 0.01788688754 | P6: 4 | Q6: ='All Curves'!C13 -> 0.03079629323 | R6: ='All Curves'!D13 -> 0.02314773764 | S6: ='All Curves'!E13 -> 0.02242150546 | T6: ='All Curves'!F13 -> 0.03018729316 | U6: ='All Curves'!G13 -> 0.03456646095
I7: ='All Curves'!A14 -> 5 | J7: ='All Curves'!H14 -> 0.01435502536 | K7: ='All Curves'!I14 -> 0.00774467803 | L7: ='All Curves'!J14 -> 0.007182941888 | M7: ='All Curves'!K14 -> 0.01583825427 | N7: ='All Curves'!L14 -> 0.01949999986 | P7: 5 | Q7: ='All Curves'!C14 -> 0.03126008286 | R7: ='All Curves'!D14 -> 0.02464973553 | S7: ='All Curves'!E14 -> 0.02408799938 | T7: ='All Curves'!F14 -> 0.03274331177 | U7: ='All Curves'!G14 -> 0.03640505735
I8: ='All Curves'!A15 -> 6 | J8: ='All Curves'!H15 -> 0.01427001962 | K8: ='All Curves'!I15 -> 0.008870209319 | L8: ='All Curves'!J15 -> 0.009102515727 | M8: ='All Curves'!K15 -> 0.01807508582 | N8: ='All Curves'!L15 -> 0.01990261906 | P8: 6 | Q8: ='All Curves'!C15 -> 0.03156927594 | R8: ='All Curves'!D15 -> 0.02616946565 | S8: ='All Curves'!E15 -> 0.02640177206 | T8: ='All Curves'!F15 -> 0.03537434215 | U8: ='All Curves'!G15 -> 0.03720187539
I9: ='All Curves'!A16 -> 7 | J9: ='All Curves'!H16 -> 0.01407041731 | K9: ='All Curves'!I16 -> 0.009877615875 | L9: ='All Curves'!J16 -> 0.01092341127 | M9: ='All Curves'!K16 -> 0.02017473047 | N9: ='All Curves'!L16 -> 0.01989530242 | P9: 7 | Q9: ='All Curves'!C16 -> 0.03179012815 | R9: ='All Curves'!D16 -> 0.02759732671 | S9: ='All Curves'!E16 -> 0.02864312211 | T9: ='All Curves'!F16 -> 0.03789444131 | U9: ='All Curves'!G16 -> 0.03761501326
I10: ='All Curves'!A17 -> 8 | J10: ='All Curves'!H17 -> 0.01377938114 | K10: ='All Curves'!I17 -> 0.01071217432 | L10: ='All Curves'!J17 -> 0.01240888539 | M10: ='All Curves'!K17 -> 0.02202663138 | N10: ='All Curves'!L17 -> 0.01977596363 | P10: 8 | Q10: ='All Curves'!C17 -> 0.0319557673 | R10: ='All Curves'!D17 -> 0.02888856049 | S10: ='All Curves'!E17 -> 0.03058527156 | T10: ='All Curves'!F17 -> 0.04020301755 | U10: ='All Curves'!G17 -> 0.0379523498
I11: ='All Curves'!A18 -> 9 | J11: ='All Curves'!H18 -> 0.01346555571 | K11: ='All Curves'!I18 -> 0.01141344361 | L11: ='All Curves'!J18 -> 0.01358601301 | M11: ='All Curves'!K18 -> 0.0236425171 | N11: ='All Curves'!L18 -> 0.0197323745 | P11: 9 | Q11: ='All Curves'!C18 -> 0.03208459775 | R11: ='All Curves'!D18 -> 0.03003248565 | S11: ='All Curves'!E18 -> 0.03220505505 | T11: ='All Curves'!F18 -> 0.04226155914 | U11: ='All Curves'!G18 -> 0.03835141654
I12: ='All Curves'!A19 -> 10 | J12: ='All Curves'!H19 -> 0.01313762569 | K12: ='All Curves'!I19 -> 0.01198518731 | L12: ='All Curves'!J19 -> 0.01449478796 | M12: ='All Curves'!K19 -> 0.02501910109 | N12: ='All Curves'!L19 -> 0.01981735525 | P12: 10 | Q12: ='All Curves'!C19 -> 0.03218766212 | R12: ='All Curves'!D19 -> 0.03103522374 | S12: ='All Curves'!E19 -> 0.03354482438 | T12: ='All Curves'!F19 -> 0.04406913752 | U12: ='All Curves'!G19 -> 0.03886739168
I13: ='All Curves'!A20 -> 11 | J13: ='All Curves'!H20 -> 0.01279352923 | K13: ='All Curves'!I20 -> 0.01243176086 | L13: ='All Curves'!J20 -> 0.01517974344 | M13: ='All Curves'!K20 -> 0.0261658487 | N13: ='All Curves'!L20 -> 0.02003664605 | P13: 11 | Q13: ='All Curves'!C20 -> 0.0322719875 | R13: ='All Curves'!D20 -> 0.03191021913 | S13: ='All Curves'!E20 -> 0.03465820171 | T13: ='All Curves'!F20 -> 0.04564430697 | U13: ='All Curves'!G20 -> 0.03951510432
I14: ='All Curves'!A21 -> 12 | J14: ='All Curves'!H21 -> 0.01250302026 | K14: ='All Curves'!I21 -> 0.01283397304 | L14: ='All Curves'!J21 -> 0.01575337806 | M14: ='All Curves'!K21 -> 0.02717441842 | N14: ='All Curves'!L21 -> 0.02045045856 | P14: 12 | Q14: ='All Curves'!C21 -> 0.03234225866 | R14: ='All Curves'!D21 -> 0.03267321144 | S14: ='All Curves'!E21 -> 0.03559261646 | T14: ='All Curves'!F21 -> 0.04701365681 | U14: ='All Curves'!G21 -> 0.04028969696
I15: ='All Curves'!A22 -> 13 | J15: ='All Curves'!H22 -> 0.01225219981 | K15: ='All Curves'!I22 -> 0.01319019405 | L15: ='All Curves'!J22 -> 0.01623625006 | M15: ='All Curves'!K22 -> 0.02805581247 | N15: ='All Curves'!L22 -> 0.02102764552 | P15: 13 | Q15: ='All Curves'!C22 -> 0.03240171887 | R15: ='All Curves'!D22 -> 0.03333971311 | S15: ='All Curves'!E22 -> 0.03638576911 | T15: ='All Curves'!F22 -> 0.04820533153 | U15: ='All Curves'!G22 -> 0.04117716458
I16: ='All Curves'!A23 -> 14 | J16: ='All Curves'!H23 -> 0.01202447255 | K16: ='All Curves'!I23 -> 0.0134956547 | L16: ='All Curves'!J23 -> 0.01663833327 | M16: ='All Curves'!K23 -> 0.02881755563 | N16: ='All Curves'!L23 -> 0.02173165832 | P16: 14 | Q16: ='All Curves'!C23 -> 0.03245268476 | R16: ='All Curves'!D23 -> 0.03392386691 | S16: ='All Curves'!E23 -> 0.03706654548 | T16: ='All Curves'!F23 -> 0.04924576783 | U16: ='All Curves'!G23 -> 0.04215987052
I17: ='All Curves'!A24 -> 15 | J17: ='All Curves'!H24 -> 0.01184016385 | K17: ='All Curves'!I24 -> 0.01378134845 | L17: ='All Curves'!J24 -> 0.01700020473 | M17: ='All Curves'!K24 -> 0.02950163834 | N17: ='All Curves'!L24 -> 0.02256276496 | P17: 15 | Q17: ='All Curves'!C24 -> 0.0324968552 | R17: ='All Curves'!D24 -> 0.03443803981 | S17: ='All Curves'!E24 -> 0.03765689608 | T17: ='All Curves'!F24 -> 0.0501583297 | U17: ='All Curves'!G24 -> 0.04321945631
I18: ='All Curves'!A25 -> 16 | J18: ='All Curves'!H25 -> 0.01166537259 | K18: ='All Curves'!I25 -> 0.01402265902 | L18: ='All Curves'!J25 -> 0.01730344752 | M18: ='All Curves'!K25 -> 0.03009284216 | N18: ='All Curves'!L25 -> 0.0234682182 | P18: 16 | Q18: ='All Curves'!C25 -> 0.03253550434 | R18: ='All Curves'!D25 -> 0.03489279076 | S18: ='All Curves'!E25 -> 0.03817357927 | T18: ='All Curves'!F25 -> 0.0509629739 | U18: ='All Curves'!G25 -> 0.04433834994
I19: ='All Curves'!A26 -> 17 | J19: ='All Curves'!H26 -> 0.0115162014 | K19: ='All Curves'!I26 -> 0.01424360701 | L19: ='All Curves'!J26 -> 0.01757611719 | M19: ='All Curves'!K26 -> 0.03062301698 | N19: ='All Curves'!L26 -> 0.02444709622 | P19: 17 | Q19: ='All Curves'!C26 -> 0.03256960651 | R19: ='All Curves'!D26 -> 0.03529701212 | S19: ='All Curves'!E26 -> 0.0386295223 | T19: ='All Curves'!F26 -> 0.0516764221 | U19: ='All Curves'!G26 -> 0.04550050133
I20: ='All Curves'!A27 -> 18 | J20: ='All Curves'!H27 -> 0.01140532324 | K20: ='All Curves'!I27 -> 0.01446354104 | L20: ='All Curves'!J27 -> 0.0178402254 | M20: ='All Curves'!K27 -> 0.03111794682 | N20: ='All Curves'!L27 -> 0.0254970899 | P20: 18 | Q20: ='All Curves'!C27 -> 0.03259991956 | R20: ='All Curves'!D27 -> 0.03565813736 | S20: ='All Curves'!E27 -> 0.03903482172 | T20: ='All Curves'!F27 -> 0.05231254314 | U20: ='All Curves'!G27 -> 0.04669168622
I21: ='All Curves'!A28 -> 19 | J21: ='All Curves'!H28 -> 0.01131032432 | K21: ='All Curves'!I28 -> 0.01466564276 | L21: ='All Curves'!J28 -> 0.01808074665 | M21: ='All Curves'!K28 -> 0.03156607253 | N21: ='All Curves'!L28 -> 0.02658285222 | P21: 19 | Q21: ='All Curves'!C28 -> 0.03262704176 | R21: ='All Curves'!D28 -> 0.03598236021 | S21: ='All Curves'!E28 -> 0.03939746409 | T21: ='All Curves'!F28 -> 0.05288278997 | U21: ='All Curves'!G28 -> 0.04789956966
I22: ='All Curves'!A29 -> 20 | J22: ='All Curves'!H29 -> 0.01122578343 | K22: ='All Curves'!I29 -> 0.01484917082 | L22: ='All Curves'!J29 -> 0.01829817608 | M22: ='All Curves'!K29 -> 0.03197094781 | N22: ='All Curves'!L29 -> 0.02768797012 | P22: 20 | Q22: ='All Curves'!C29 -> 0.03265145174 | R22: ='All Curves'!D29 -> 0.03627483913 | S22: ='All Curves'!E29 -> 0.0397238444 | T22: ='All Curves'!F29 -> 0.05339661612 | U22: ='All Curves'!G29 -> 0.04911363844
I23: ='All Curves'!A30 -> 21 | J23: ='All Curves'!H30 -> 0.01117902592 | K23: ='All Curves'!I30 -> 0.01504536588 | L23: ='All Curves'!J30 -> 0.01852463061 | M23: ='All Curves'!K30 -> 0.03236733024 | N23: ='All Curves'!L30 -> 0.02883055515 | P23: 21 | Q23: ='All Curves'!C30 -> 0.03267353696 | R23: ='All Curves'!D30 -> 0.03653987692 | S23: ='All Curves'!E30 -> 0.04001914165 | T23: ='All Curves'!F30 -> 0.05386184128 | U23: ='All Curves'!G30 -> 0.0503250662
I24: ='All Curves'!A31 -> 22 | J24: ='All Curves'!H31 -> 0.01113671665 | K24: ='All Curves'!I31 -> 0.01522417507 | L24: ='All Curves'!J31 -> 0.01873069618 | M24: ='All Curves'!K31 -> 0.03272806052 | N24: ='All Curves'!L31 -> 0.02996965049 | P24: 22 | Q24: ='All Curves'!C31 -> 0.03269361444 | R24: ='All Curves'!D31 -> 0.03678107286 | S24: ='All Curves'!E31 -> 0.04028759397 | T24: ='All Curves'!F31 -> 0.05428495831 | U24: ='All Curves'!G31 -> 0.05152654828
I25: ='All Curves'!A32 -> 23 | J25: ='All Curves'!H32 -> 0.01109964821 | K25: ='All Curves'!I32 -> 0.01538915135 | L25: ='All Curves'!J32 -> 0.01892040489 | M25: ='All Curves'!K32 -> 0.03305908675 | N25: ='All Curves'!L32 -> 0.03109983023 | P25: 23 | Q25: ='All Curves'!C32 -> 0.03271194604 | R25: ='All Curves'!D32 -> 0.03700144917 | S25: ='All Curves'!E32 -> 0.04053270271 | T25: ='All Curves'!F32 -> 0.05467138458 | U25: ='All Curves'!G32 -> 0.05271212806
I26: ='All Curves'!A33 -> 24 | J26: ='All Curves'!H33 -> 0.01106846745 | K26: ='All Curves'!I33 -> 0.01554327203 | L26: ='All Curves'!J33 -> 0.0190971032 | M26: ='All Curves'!K33 -> 0.03336538221 | N26: ='All Curves'!L33 -> 0.03221674433 | P26: 24 | Q26: ='All Curves'!C33 -> 0.03272875001 | R26: ='All Curves'!D33 -> 0.03720355459 | S26: ='All Curves'!E33 -> 0.04075738576 | T26: ='All Curves'!F33 -> 0.05502566478 | U26: ='All Curves'!G33 -> 0.05387702689
I27: ='All Curves'!A34 -> 25 | J27: ='All Curves'!H34 -> 0.0110436975 | K27: ='All Curves'!I34 -> 0.01568903653 | L27: ='All Curves'!J34 -> 0.01926358201 | M27: ='All Curves'!K34 -> 0.03365112119 | N27: ='All Curves'!L34 -> 0.03331697237 | P27: 25 | Q27: ='All Curves'!C34 -> 0.03274420967 | R27: ='All Curves'!D34 -> 0.0373895487 | S27: ='All Curves'!E34 -> 0.04096409418 | T27: ='All Curves'!F34 -> 0.05535163336 | U27: ='All Curves'!G34 -> 0.05501748454
I28: ='All Curves'!A35 -> 26 | J28: ='All Curves'!H35 -> 0.01102554696 | K28: ='All Curves'!I35 -> 0.0158283372 | L28: ='All Curves'!J35 -> 0.0194219688 | M28: ='All Curves'!K35 -> 0.03391961114 | N28: ='All Curves'!L35 -> 0.03439768007 | P28: 26 | Q28: ='All Curves'!C35 -> 0.03275848012 | R28: ='All Curves'!D35 -> 0.03756127036 | S28: ='All Curves'!E35 -> 0.04115490196 | T28: ='All Curves'!F35 -> 0.0556525443 | U28: ='All Curves'!G35 -> 0.05613061323
I29: ='All Curves'!A36 -> 27 | J29: ='All Curves'!H36 -> 0.01101454609 | K29: ='All Curves'!I36 -> 0.01596314566 | L29: ='All Curves'!J36 -> 0.01957442842 | M29: ='All Curves'!K36 -> 0.03417402738 | N29: ='All Curves'!L36 -> 0.03545711922 | P29: 27 | Q29: ='All Curves'!C36 -> 0.0327716935 | R29: ='All Curves'!D36 -> 0.03772029307 | S29: ='All Curves'!E36 -> 0.04133157582 | T29: ='All Curves'!F36 -> 0.05593117478 | U29: ='All Curves'!G36 -> 0.05721426662
I30: ='All Curves'!A37 -> 28 | J30: ='All Curves'!H37 -> 0.01101093923 | K30: ='All Curves'!I37 -> 0.01609494607 | L30: ='All Curves'!J37 -> 0.0197226063 | M30: ='All Curves'!K37 -> 0.03441688429 | N30: ='All Curves'!L37 -> 0.03649389987 | P30: 28 | Q30: ='All Curves'!C37 -> 0.03278396307 | R30: ='All Curves'!D37 -> 0.0378679699 | S30: ='All Curves'!E37 -> 0.04149563013 | T30: ='All Curves'!F37 -> 0.05618990812 | U30: ='All Curves'!G37 -> 0.0582669237
I31: ='All Curves'!A38 -> 29 | J31: ='All Curves'!H38 -> 0.01101490202 | K31: ='All Curves'!I38 -> 0.01622498553 | L31: ='All Curves'!J38 -> 0.01986788591 | M31: ='All Curves'!K38 -> 0.0346503161 | N31: ='All Curves'!L38 -> 0.03750710255 | P31: 29 | Q31: ='All Curves'!C38 -> 0.03279538646 | R31: ='All Curves'!D38 -> 0.03800546996 | S31: ='All Curves'!E38 -> 0.04164837035 | T31: ='All Curves'!F38 -> 0.05643080053 | U31: ='All Curves'!G38 -> 0.05928758698
I32: ='All Curves'!A39 -> 30 | J32: ='All Curves'!H39 -> 0.01102654955 | K32: ='All Curves'!I39 -> 0.01635430938 | L32: ='All Curves'!J39 -> 0.02001142914 | M32: ='All Curves'!K39 -> 0.0348761362 | N32: ='All Curves'!L39 -> 0.03849619515 | P32: 30 | Q32: ='All Curves'!C39 -> 0.03280604829 | R32: ='All Curves'!D39 -> 0.03813380812 | S32: ='All Curves'!E39 -> 0.04179092788 | T32: ='All Curves'!F39 -> 0.05665563494 | U32: ='All Curves'!G39 -> 0.06027569389

Sheet Data Entry
L2: BMA US Yield Curve with Swap Adjustment
B3: AAA | C3: NXT_CPN_DT | D3: MATURITY | E3: CPN_FREQ | F3: PX_CLEAN_MID | G3: INT_ACC | H3: CPN | I3: PX_DIRTY_MID | J3: Check | L3: 1 Year | M3: 0.01952929505
B4: EJ970134 Corp | C4: 12/5/2019 | D4: 12/5/2023 | E4: 2 | F4: 105.706 | G4: 0.28125 | H4: 3.375 | I4: 105.98725 | J4: =IF(ROUND(F4+G4,2)=ROUND(I4,2),1,0) -> 1 | L4: 2 Years | M4: 0.01740677095
B5: EK131594 Corp | C5: #N/A Field Not Applicable | D5: 3/15/2017 | E5: 2 | F5: #N/A N/A | G5: 0 | H5: 0.921 | I5: #N/A N/A | J5: =IF(ROUND(F5+G5,2)=ROUND(I5,2),1,0) ->  | L5: 3 Years | M5: 0.01675741072
B6: EH686726 Corp | C6: 9/1/2019 | D6: 3/1/2039 | E6: 2 | F6: 138.604 | G6: 1.963333333 | H6: 5.7 | I6: 140.5673333 | J6: 1 | L6: 4 Years | M6: 0.01667957341
B7: EI355099 Corp | C7: 9/1/2019 | D7: 9/1/2020 | E7: 2 | F7: 101.058 | G7: 1.016111111 | H7: 2.95 | I7: 102.0741111 | J7: 1 | L7: 5 Years | M7: 0.0169050575
B8: EK612940 Corp | C8: #N/A Field Not Applicable | D8: 11/21/2017 | E8: 2 | F8: #N/A N/A | G8: 0 | H8: 1.125 | I8: #N/A N/A | L8: 6 Years | M8: 0.01729925633
B9: EC984187 Corp | C9: 11/15/2019 | D9: 5/15/2033 | E9: 2 | F9: 125.01 | G9: 0.6875 | H9: 4.95 | I9: 125.6975 | J9: 1 | L9: 7 Years | M9: 0.01771971084
B10: EJ897877 Corp | C10: 12/1/2019 | D10: 12/1/2020 | E10: 2 | F10: 99.5895 | G10: 0.2458388889 | H10: 2.603 | I10: 99.83533889 | J10: 1 | L10: 8 Years | M10: 0.01817638616
C11: #N/A Field Not Applicable | D11: 5/1/2016 | E11: 2 | F11: #N/A N/A | G11: 0 | H11: 4.25 | I11: #N/A N/A | L11: 9 Years | M11: 0.01861904204
B12: EG991342 Corp | C12: 11/6/2019 | D12: 11/6/2019 | E12: 1 | F12: 101.7635 | G12: 3.123287671 | H12: 4.75 | I12: 104.8867877 | J12: 1 | L12: 10 Years | M12: 0.01905003643
B13: EJ970116 Corp | C13: #N/A Field Not Applicable | D13: 11/28/2016 | E13: 2 | F13: #N/A N/A | G13: 0 | H13: 0.7 | I13: #N/A N/A | L13: 11 Years | M13: 0.01947845827
B14: EI459872 Corp | C14: 10/15/2019 | D14: 10/15/2040 | E14: 2 | F14: 123.7795 | G14: 1.083333333 | H14: 4.875 | I14: 124.8628333 | J14: 1 | L14: 12 Years | M14: 0.0198392384
B15: EJ483651 Corp | C15: #N/A Field Not Applicable | D15: 12/1/2018 | E15: 2 | F15: #N/A N/A | G15: 0 | H15: 1.491 | I15: #N/A N/A | L15: 13 Years | M15: 0.02014951906
B16: EJ115530 Corp | C16: 11/1/2019 | D16: 5/1/2042 | E16: 2 | F16: 110.927 | G16: 0.7134222222 | H16: 4.013 | I16: 111.6404222 | J16: 1 | L16: 14 Years | M16: 0.02042821221
C17: #N/A Field Not Applicable | D17: 6/30/2015 | E17: 2 | F17: #N/A N/A | G17: 0 | H17: 5.3 | I17: #N/A N/A | L17: 15 Years | M17: 0.02065669135
B18: EH318326 Corp | C18: 12/15/2019 | D18: 6/15/2038 | E18: 2 | F18: 137.882 | G18: 0.3541666667 | H18: 6.375 | I18: 138.2361667 | J18: 1 | L18: 16 Years | M18: 0.02087013174
B19: EF339848 Corp | C19: 10/1/2019 | D19: 4/1/2036 | E19: 2 | F19: 132.8855 | G19: 1.592777778 | H19: 6.1 | I19: 134.4782778 | J19: 1 | L19: 17 Years | M19: 0.02105340511
B20: EJ483631 Corp | C20: #N/A Field Not Applicable | D20: 12/1/2016 | E20: 2 | F20: #N/A N/A | G20: 0 | H20: 0.939 | I20: #N/A N/A | L20: 18 Years | M20: 0.02119459632
B21: EF339848 Corp | C21: 10/1/2019 | D21: 4/1/2036 | E21: 2 | F21: 132.8855 | G21: 1.592777778 | H21: 6.1 | I21: 134.4782778 | J21: 1 | L21: 19 Years | M21: 0.02131671745
B22: EJ897883 Corp | C22: 12/1/2019 | D22: 12/1/2021 | E22: 2 | F22: 100.1285 | G22: 0.2787055556 | H22: 2.951 | I22: 100.4072056 | J22: 1 | L22: 20 Years | M22: 0.02142566832
B23: EJ483701 Corp | C23: 12/1/2019 | D23: 12/1/2023 | E23: 2 | F23: 96.6455 | G23: 0.2632166667 | H23: 2.787 | I23: 96.90871667 | J23: 1 | L23: 21 Years | M23: 0.02149451104
B24: EJ897865 Corp | C24: #N/A Field Not Applicable | D24: 12/1/2018 | E24: 2 | F24: #N/A N/A | G24: 0 | H24: 1.85 | I24: #N/A N/A | L24: 22 Years | M24: 0.02155689779
B25: EJ483661 Corp | C25: 12/1/2019 | D25: 12/1/2019 | E25: 2 | F25: 99.43 | G25: 0.16915 | H25: 1.791 | I25: 99.59915 | J25: 1 | L25: 23 Years | M25: 0.02161229783
B26: EG738742 Corp | C26: #N/A Field Not Applicable | D26: 8/15/2017 | E26: 2 | F26: #N/A N/A | G26: 0 | H26: 5.55 | I26: #N/A N/A | L26: 24 Years | M26: 0.02166028256
B27: EH429154 Corp | C27: #N/A Field Not Applicable | D27: 7/15/2018 | E27: 2 | F27: #N/A N/A | G27: 0 | H27: 5.15 | I27: #N/A N/A | L27: 25 Years | M27: 0.02170051217
B28: EI682398 Corp | C28: 11/15/2019 | D28: 5/15/2021 | E28: 2 | F28: 102.819 | G28: 0.4930555556 | H28: 3.55 | I28: 103.3120556 | J28: 1 | L28: 26 Years | M28: 0.02173293316
B29: EI355103 Corp | C29: 9/1/2019 | D29: 9/1/2040 | E29: 2 | F29: 118.944 | G29: 1.55 | H29: 4.5 | I29: 120.494 | J29: 1 | L29: 27 Years | M29: 0.0217571474
B30: EG991354 Corp | C30: 11/6/2019 | D30: 11/6/2024 | E30: 1 | F30: 122.4305 | G30: 3.616438356 | H30: 5.5 | I30: 126.0469384 | J30: 1 | L30: 28 Years | M30: 0.02177302383
B31: EK510285 Corp | C31: 1/1/2020 | D31: 7/1/2026 | E31: 2 | F31: 105.0565 | G31: 0.03675555556 | H31: 3.308 | I31: 105.0932556 | J31: 1 | L31: 29 Years | M31: 0.02178048443
B32: EH499236 Corp | C32: #N/A Field Not Applicable | D32: 12/15/2018 | E32: 2 | F32: #N/A N/A | G32: 0 | H32: 6.5 | I32: #N/A N/A | L32: 30 Years | M32: 0.02177949874
B33: EH318322 Corp | C33: #N/A Field Not Applicable | D33: 6/15/2018 | E33: 2 | F33: #N/A N/A | G33: 0 | H33: 5.5 | I33: #N/A N/A | L33: 31 Years | M33: 0.02181913448
B34: EJ171306 Corp | C34: 10/1/2019 | D34: 10/1/2042 | E34: 2 | F34: 109.751 | G34: 0.9992722222 | H34: 3.827 | I34: 110.7502722 | J34: 1 | L34: 32 Years | M34: 0.02191107491
L35: 33 Years | M35: 0.02205199878
B36: AA | C36: NXT_CPN_DT | D36: MATURITY | E36: CPN_FREQ | F36: PX_CLEAN_MID | G36: INT_ACC | H36: CPN | I36: PX_DIRTY_MID | J36: Check | L36: 34 Years | M36: 0.02223857395
B37: EJ909974 Corp | C37: 11/1/2019 | D37: 11/1/2023 | E37: 2 | F37: 104.674 | G37: 0.5688888889 | H37: 3.2 | I37: 105.2428889 | J37: =IF(ROUND(F37+G37,2)=ROUND(I37,2),1,0) -> 1 | L37: 35 Years | M37: 0.02246745167
B38: EK493587 Corp | C38: 9/22/2019 | D38: 9/22/2026 | E38: 1 | F38: 112.186 | G38: 1.464041096 | H38: 1.875 | I38: 113.6500411 | J38: =IF(ROUND(F38+G38,2)=ROUND(I38,2),1,0) -> 1 | L38: 36 Years | M38: 0.0227352739
C39: #N/A Field Not Applicable | D39: 3/15/2015 | E39: 2 | F39: #N/A N/A | G39: 0 | H39: 5.35 | I39: #N/A N/A | L39: 37 Years | M39: 0.02303867078
B40: EK261776 Corp | C40: 1/14/2020 | D40: 1/14/2020 | E40: 1 | F40: 99.927 | G40: 1.009375 | H40: 2.125 | I40: 100.936375 | J40: 1 | L40: 38 Years | M40: 0.02337426097
B41: EH768987 Corp | C41: 9/1/2019 | D41: 9/1/2019 | E41: 2 | F41: 100.455 | G41: 1.9375 | H41: 5.625 | I41: 102.3925 | J41: 1 | L41: 39 Years | M41: 0.02373865496
B42: EJ622026 Corp | C42: #N/A Field Not Applicable | D42: 4/11/2018 | E42: 2 | F42: #N/A N/A | G42: 0 | H42: 1.125 | I42: #N/A N/A | L42: 40 Years | M42: 0.02412845123
B43: EI441363 Corp | C43: 10/25/2019 | D43: 10/25/2020 | E43: 2 | F43: 101.586 | G43: 0.6319444444 | H43: 3.25 | I43: 102.2179444 | J43: 1 | L43: 41 Years | M43: 0.02454024099
B44: EK087356 Corp | C44: 8/25/2019 | D44: 2/25/2024 | E44: 2 | F44: 104.8205 | G44: 1.21875 | H44: 3.375 | I44: 106.03925 | J44: 1 | L44: 42 Years | M44: 0.02497060401
B45: EH605081 Corp | C45: #N/A Field Not Applicable | D45: 5/15/2018 | E45: 2 | F45: #N/A N/A | G45: 0 | H45: 5.4 | I45: #N/A N/A | L45: 43 Years | M45: 0.02541611202
B46: EI569025 Corp | C46: 8/11/2019 | D46: 2/11/2021 | E46: 2 | F46: 103.748 | G46: 2.12 | H46: 5.3 | I46: 105.868 | J46: 1 | L46: 44 Years | M46: 0.02587332647
B47: EK270783 Corp | C47: #N/A Field Not Applicable | D47: 5/15/2019 | E47: 2 | F47: #N/A N/A | G47: 0 | H47: 2.1 | I47: #N/A N/A | L47: 45 Years | M47: 0.02633880079
B48: EJ815876 Corp | C48: #N/A Field Not Applicable | D48: 3/12/2019 | E48: 1 | F48: #N/A N/A | G48: 0 | H48: 2.25 | I48: #N/A N/A | L48: 46 Years | M48: 0.02680907757
B49: EJ909956 Corp | C49: #N/A Field Not Applicable | D49: 11/1/2018 | E49: 2 | F49: #N/A N/A | G49: 0 | H49: 1.65 | I49: #N/A N/A | L49: 47 Years | M49: 0.0272806914
C50: #N/A Field Not Applicable | D50: 4/11/2016 | E50: 2 | F50: #N/A N/A | G50: 0 | H50: 0.6 | I50: #N/A N/A | L50: 48 Years | M50: 0.02775016727
B51: EH728312 Corp | C51: 9/1/2019 | D51: 3/1/2039 | E51: 2 | F51: 150.1045 | G51: 2.411111111 | H51: 7 | I51: 152.5156111 | J51: 1 | L51: 49 Years | M51: 0.02821402196
C52: #N/A Field Not Applicable | D52: 7/15/2015 | E52: 2 | F52: #N/A N/A | G52: 0 | H52: 4.75 | I52: #N/A N/A | L52: 50 Years | M52: 0.02866876267
B53: EJ175871 Corp | C53: 11/15/2019 | D53: 5/15/2022 | E53: 2 | F53: 103.094 | G53: 0.4166666667 | H53: 3 | I53: 103.5106667 | J53: 1 | L53: 51 Years | M53: 0.02911088811
B54: EJ521080 Corp | C54: #N/A Field Not Applicable | D54: 7/24/2018 | E54: 1 | F54: #N/A N/A | G54: 0 | H54: 1.375 | I54: #N/A N/A | L54: 52 Years | M54: 0.02953688827
B55: EJ536181 Corp | C55: 8/11/2019 | D55: 2/11/2043 | E55: 2 | F55: 116.237 | G55: 1.8 | H55: 4.5 | I55: 118.037 | J55: 1 | L55: 53 Years | M55: 0.02994324527
B56: EH759728 Corp | C56: 9/15/2019 | D56: 3/15/2039 | E56: 2 | F56: 152.422 | G56: 2.2 | H56: 7.2 | I56: 154.622 | J56: 1 | L56: 54 Years | M56: 0.03032643173
C57: #N/A Field Not Applicable | D57: 12/15/2015 | E57: 2 | F57: #N/A N/A | G57: 0 | H57: 2.45 | I57: #N/A N/A | L57: 55 Years | M57: 0.03068291329
B58: EH699844 Corp | C58: #N/A Field Not Applicable | D58: 2/1/2019 | E58: 2 | F58: #N/A N/A | G58: 0 | H58: 8.875 | I58: #N/A N/A | L58: 56 Years | M58: 0.03100914698
B59: EI779847 Corp | C59: 8/15/2019 | D59: 8/15/2021 | E59: 2 | F59: 103.634 | G59: 1.458333333 | H59: 3.75 | I59: 105.0923333 | J59: 1 | L59: 57 Years | M59: 0.03130158236
B60: EK270849 Corp | C60: 11/15/2019 | D60: 5/15/2044 | E60: 2 | F60: 114.5465 | G60: 0.6111111111 | H60: 4.4 | I60: 115.1576111 | J60: 1 | L60: 58 Years | M60: 0.03155666094
B61: EK576959 Corp | C61: 11/15/2019 | D61: 5/15/2044 | E61: 2 | F61: 112.1665 | G61: 0.5927777778 | H61: 4.268 | I61: 112.7592778 | J61: 1 | L61: 59 Years | M61: 0.03177081714
B62: EI641376 Corp | C62: 10/15/2019 | D62: 4/15/2041 | E62: 2 | F62: 136.0345 | G62: 1.25 | H62: 5.625 | I62: 137.2845 | J62: 1 | L62: 60 Years | M62: 0.0319404779
B63: EK595367 Corp | C63: 8/15/2019 | D63: 11/15/2019 | E63: 4 | F63: 100.1545 | G63: 0.4148 | H63: 2.928 | I63: 100.5693 | J63: 1 | L63: 61 Years | M63: 0.03210460254
C64: #N/A Field Not Applicable | D64: 6/15/2015 | E64: 2 | F64: #N/A N/A | G64: 0 | H64: 3.625 | I64: #N/A N/A | L64: 62 Years | M64: 0.0322634577
B65: EJ536156 Corp | C65: #N/A Field Not Applicable | D65: 2/9/2018 | E65: 2 | F65: #N/A N/A | G65: 0 | H65: 1.55 | I65: #N/A N/A | L65: 63 Years | M65: 0.03241729314
B66: EI200133 Corp | C66: 10/1/2019 | D66: 4/1/2040 | E66: 2 | F66: 134.6585 | G66: 1.46875 | H66: 5.625 | I66: 136.12725 | J66: 1 | L66: 64 Years | M66: 0.03256634308
B67: EK745181 Corp | C67: #N/A Field Not Applicable | D67: 7/1/2018 | E67: 2 | F67: #N/A N/A | G67: 0 | H67: 1.477 | I67: #N/A N/A | L67: 65 Years | M67: 0.0327108274
B68: 881685AY Corp | C68: 10/1/2019 | D68: 4/1/2032 | E68: 2 | F68: 154.7045 | G68: 2.252083333 | H68: 8.625 | I68: 156.9565833 | J68: 1 | L68: 66 Years | M68: 0.03285095272
B69: EG057303 Corp | C69: 12/1/2019 | D69: 6/1/2037 | E69: 2 | F69: 136.864 | G69: 0.7555555556 | H69: 8 | I69: 137.6195556 | J69: 1 | L69: 67 Years | M69: 0.03298691337
L70: 68 Years | M70: 0.03311889228
B71: A | C71: NXT_CPN_DT | D71: MATURITY | E71: CPN_FREQ | F71: PX_CLEAN_MID | G71: INT_ACC | H71: CPN | I71: PX_DIRTY_MID | J71: Check | L71: 69 Years | M71: 0.03324706186
B72: EK549602 Corp | C72: 10/22/2019 | D72: 10/22/2019 | E72: 2 | F72: 99.968 | G72: 0.4461111111 | H72: 2.2 | I72: 100.4141111 | J72: =IF(ROUND(F72+G72,2)=ROUND(I72,2),1,0) -> 1 | L72: 70 Years | M72: 0.03337158468
B73: EJ704892 Corp | C73: 12/1/2019 | D73: 6/1/2020 | E73: 2 | F73: 99.51 | G73: 0.2502777778 | H73: 2.65 | I73: 99.76027778 | J73: =IF(ROUND(F73+G73,2)=ROUND(I73,2),1,0) -> 1 | L73: 71 Years | M73: 0.03349261418
B74: EF692665 Corp | C74: 9/15/2019 | D74: 9/15/2036 | E74: 2 | F74: 130.286 | G74: 1.871527778 | H74: 6.125 | I74: 132.1575278 | J74: 1 | L74: 72 Years | M74: 0.03361029535
B75: MM111537 Corp | C75: 10/15/2019 | D75: 10/20/2025 | E75: 2 | F75: 117.714 | G75: 1.621777778 | H75: 7.298 | I75: 119.3357778 | J75: 1 | L75: 73 Years | M75: 0.03372476523
B76: EK300188 Corp | C76: 12/3/2019 | D76: 6/3/2026 | E76: 2 | F76: 106.2225 | G76: 0.3644444444 | H76: 4.1 | I76: 106.5869444 | J76: 1 | L76: 74 Years | M76: 0.0338361535
B77: EK341022 Corp | C77: 1/1/2020 | D77: 7/1/2024 | E77: 2 | F77: 106.437 | G77: 0.03888888889 | H77: 3.5 | I77: 106.4758889 | J77: 1 | L77: 75 Years | M77: 0.03394458294
B78: EK038450 Corp | C78: #N/A Field Not Applicable | D78: 1/28/2019 | E78: 2 | F78: #N/A N/A | G78: 0 | H78: 2.35 | I78: #N/A N/A | L78: 76 Years | M78: 0.0340501699
B79: EK316141 Corp | C79: 12/10/2019 | D79: 6/10/2024 | E79: 2 | F79: 104.046 | G79: 0.2256944444 | H79: 3.25 | I79: 104.2716944 | J79: 1 | L79: 77 Years | M79: 0.03415302471
B80: EK581474 Corp | C80: 11/10/2019 | D80: 11/10/2024 | E80: 2 | F80: 103.5635 | G80: 0.4965277778 | H80: 3.25 | I80: 104.0600278 | J80: 1 | L80: 78 Years | M80: 0.03425325206
B81: EJ214112 Corp | C81: 12/1/2019 | D81: 6/1/2022 | E81: 2 | F81: 102.352 | G81: 0.2927777778 | H81: 3.1 | I81: 102.6447778 | J81: 1 | L81: 79 Years | M81: 0.03435095136
B82: EG823860 Corp | C82: 9/1/2019 | D82: 9/1/2037 | E82: 2 | F82: 129.2225 | G82: 2.195833333 | H82: 6.375 | I82: 131.4183333 | J82: 1 | L82: 80 Years | M82: 0.03444621705
C83: #N/A Field Not Applicable | D83: 3/25/2015 | E83: 2 | F83: #N/A N/A | G83: 0 | H83: 0.76 | I83: #N/A N/A | L83: 81 Years | M83: 0.03453913896
B84: EG472338 Corp | C84: #N/A Field Not Applicable | D84: 5/29/2017 | E84: 1 | F84: #N/A N/A | G84: 0 | H84: 4.875 | I84: #N/A N/A | L84: 82 Years | M84: 0.03462980253
B85: ED939425 Corp | C85: #N/A Field Not Applicable | D85: 5/15/2017 | E85: 2 | F85: #N/A N/A | G85: 0 | H85: 5 | I85: #N/A N/A | L85: 83 Years | M85: 0.03471828909
B86: EC527035 Corp | C86: 9/1/2019 | D86: 3/1/2032 | E86: 2 | F86: 145.1095 | G86: 2.411111111 | H86: 7 | I86: 147.5206111 | J86: 1 | L86: 84 Years | M86: 0.03480467613
B87: EJ280560 Corp | C87: #N/A Field Not Applicable | D87: 7/15/2017 | E87: 2 | F87: #N/A N/A | G87: 0 | H87: 1.375 | I87: #N/A N/A | L87: 85 Years | M87: 0.03488903749
B88: EI893089 Corp | C88: 12/1/2019 | D88: 12/1/2041 | E88: 2 | F88: 111.6765 | G88: 0.3895833333 | H88: 4.125 | I88: 112.0660833 | J88: 1 | L88: 86 Years | M88: 0.0349714436
B89: EG477923 Corp | C89: #N/A Field Not Applicable | D89: 12/15/2017 | E89: 2 | F89: #N/A N/A | G89: 0 | H89: 5.75 | I89: #N/A N/A | L89: 87 Years | M89: 0.03505196166
B90: EC181074 Corp | C90: 9/15/2019 | D90: 9/15/2029 | E90: 2 | F90: 138.0035 | G90: 2.291666667 | H90: 7.5 | I90: 140.2951667 | J90: 1 | L90: 88 Years | M90: 0.03513065581
C91: #N/A Field Not Applicable | D91: 3/15/2016 | E91: 2 | F91: #N/A N/A | G91: 0 | H91: 5.4 | I91: #N/A N/A | L91: 89 Years | M91: 0.03520758733
B92: ED212563 Corp | C92: #N/A Field Not Applicable | D92: 11/15/2018 | E92: 2 | F92: #N/A N/A | G92: 0 | H92: 5.5 | I92: #N/A N/A | L92: 90 Years | M92: 0.0352828148
C93: #N/A Field Not Applicable | D93: 7/15/2016 | E93: 2 | F93: #N/A N/A | G93: 0 | H93: 4.6 | I93: #N/A N/A | L93: 91 Years | M93: 0.0353563942
C94: #N/A Field Not Applicable | D94: 12/1/2018 | E94: 2 | F94: #N/A N/A | G94: 0 | H94: 8.625 | I94: #N/A N/A | L94: 92 Years | M94: 0.03542837911
B95: 097023AG Corp | C95: 11/15/2019 | D95: 11/15/2031 | E95: 2 | F95: 150.4705 | G95: 1.197916667 | H95: 8.625 | I95: 151.6684167 | J95: 1 | L95: 93 Years | M95: 0.0354988208
B96: EH258797 Corp | C96: 9/15/2019 | D96: 3/15/2038 | E96: 2 | F96: 132.849 | G96: 2.016666667 | H96: 6.6 | I96: 134.8656667 | J96: 1 | L96: 94 Years | M96: 0.03556776837
B97: ED965935 Corp | C97: 12/1/2019 | D97: 6/1/2035 | E97: 2 | F97: 118.609 | G97: 0.4675 | H97: 4.95 | I97: 119.0765 | J97: 1 | L97: 95 Years | M97: 0.03563526886
B98: EK482392 Corp | C98: 9/15/2019 | D98: 9/15/2021 | E98: 2 | F98: 99.355 | G98: 0.7791666667 | H98: 2.55 | I98: 100.1341667 | J98: 1 | L98: 96 Years | M98: 0.03570136736
B99: EJ919182 Corp | C99: 11/15/2019 | D99: 11/15/2023 | E99: 2 | F99: 102.028 | G99: 0.4652777778 | H99: 3.35 | I99: 102.4932778 | J99: 1 | L99: 97 Years | M99: 0.03576610708
B100: EJ609962 Corp | C100: 10/15/2019 | D100: 4/15/2020 | E100: 2 | F100: 98.924 | G100: 0.3777777778 | H100: 1.7 | I100: 99.30177778 | J100: 1 | L100: 98 Years | M100: 0.03582952952
B101: ED594712 Corp | C101: #N/A Field Not Applicable | D101: 7/1/2019 | E101: 2 | F101: 100 | G101: 0 | H101: 1 | I101: 100 | J101: 1 | L101: 99 Years | M101: 0.03589167445
B102: EF858355 Corp | C102: 11/29/2019 | D102: 11/29/2024 | E102: 2 | F102: 110.9885 | G102: 0.2381944444 | H102: 2.45 | I102: 111.2266944 | J102: 1 | L102: 100 Years | M102: 0.03595258011
B103: EG643792 Corp | C103: 7/15/2019 | D103: 7/15/2032 | E103: 2 | F103: 128.1575 | G103: 3.055277778 | H103: 6.47 | I103: 131.2127778 | J103: 1
C104: #N/A Field Not Applicable | D104: 4/15/2016 | E104: 2 | F104: #N/A N/A | G104: 0 | H104: 3 | I104: #N/A N/A
B106: BBB | C106: NXT_CPN_DT | D106: MATURITY | E106: CPN_FREQ | F106: PX_CLEAN_MID | G106: INT_ACC | H106: CPN | I106: PX_DIRTY_MID | J106: Check
B107: EJ477884 Corp | C107: 12/6/2019 | D107: 6/6/2022 | E107: 2 | F107: 102.7735 | G107: 0.2819444444 | H107: 3.5 | I107: 103.0554444 | J107: =IF(ROUND(F107+G107,2)=ROUND(I107,2),1,0) -> 1
B108: EJ341560 Corp | C108: 11/8/2019 | D108: 11/8/2042 | E108: 2 | F108: 109.905 | G108: 0.83125 | H108: 5.25 | I108: 110.73625 | J108: =IF(ROUND(F108+G108,2)=ROUND(I108,2),1,0) -> 1
B109: EH880957 Corp | C109: 12/15/2019 | D109: 6/15/2039 | E109: 2 | F109: 117.5995 | G109: 0.375 | H109: 6.75 | I109: 117.9745 | J109: 1
B110: EJ933647 Corp | C110: #N/A Field Not Applicable | D110: 11/30/2018 | E110: 2 | F110: #N/A N/A | G110: 0 | H110: 4.875 | I110: #N/A N/A
B111: EK685012 Corp | C111: 8/1/2019 | D111: 2/1/2025 | E111: 2 | F111: 103.2185 | G111: 1.368888889 | H111: 3.2 | I111: 104.5873889 | J111: 1
B112: EJ358587 Corp | C112: 9/15/2019 | D112: 9/15/2022 | E112: 2 | F112: 101.7955 | G112: 0.9472222222 | H112: 3.1 | I112: 102.7427222 | J112: 1
B113: EH706552 Corp | C113: #N/A Field Not Applicable | D113: 2/15/2019 | E113: 2 | F113: #N/A N/A | G113: 0 | H113: 8.125 | I113: #N/A N/A
B114: EG861825 Corp | C114: 10/1/2019 | D114: 10/1/2037 | E114: 2 | F114: 124.274 | G114: 1.723333333 | H114: 6.6 | I114: 125.9973333 | J114: 1
B115: EI136668 Corp | C115: 8/10/2019 | D115: 2/10/2020 | E115: 2 | F115: 101.7305 | G115: 2.164930556 | H115: 5.375 | I115: 103.8954306 | J115: 1
B116: EJ041884 Corp | C116: 8/27/2019 | D116: 2/27/2042 | E116: 2 | F116: 88.222 | G116: 1.6 | H116: 4.5 | I116: 89.822 | J116: 1
B117: EJ984579 Corp | C117: #N/A Field Not Applicable | D117: 12/15/2018 | E117: 2 | F117: #N/A N/A | G117: 0 | H117: 2.75 | I117: #N/A N/A
C118: #N/A Field Not Applicable | D118: 5/15/2016 | E118: 2 | F118: #N/A N/A | G118: 0 | H118: 3.125 | I118: #N/A N/A
B119: EI575686 Corp | C119: 9/1/2019 | D119: 3/1/2021 | E119: 2 | F119: 103.098 | G119: 1.55 | H119: 4.5 | I119: 104.648 | J119: 1
B120: EK576965 Corp | C120: 11/1/2019 | D120: 5/1/2025 | E120: 2 | F120: 103.7565 | G120: 0.6577777778 | H120: 3.7 | I120: 104.4142778 | J120: 1
B121: EJ297741 Corp | C121: 8/1/2019 | D121: 8/1/2042 | E121: 2 | F121: 95.275 | G121: 1.657638889 | H121: 3.875 | I121: 96.93263889 | J121: 1
C122: #N/A Field Not Applicable | D122: 4/1/2016 | E122: 2 | F122: #N/A N/A | G122: 0 | H122: 7.2 | I122: #N/A N/A
B123: EI398500 Corp | C123: 10/1/2019 | D123: 4/1/2020 | E123: 2 | F123: 102.02 | G123: 1.371616667 | H123: 5.253 | I123: 103.3916167 | J123: 1
B124: EK014362 Corp | C124: #N/A Field Not Applicable | D124: 1/13/2017 | E124: 2 | F124: #N/A N/A | G124: 0 | H124: 1.3 | I124: #N/A N/A
B125: EG045416 Corp | C125: #N/A Field Not Applicable | D125: 12/15/2016 | E125: 2 | F125: #N/A N/A | G125: 0 | H125: 5.75 | I125: #N/A N/A
B126: DD115366 Corp | C126: #N/A Field Not Applicable | D126: 1/15/2018 | E126: 2 | F126: #N/A N/A | G126: 0 | H126: 6.95 | I126: #N/A N/A
B127: EG860853 Corp | C127: #N/A Field Not Applicable | D127: 10/1/2017 | E127: 2 | F127: #N/A N/A | G127: 0 | H127: 6.625 | I127: #N/A N/A
C128: #N/A Field Not Applicable | D128: 6/15/2016 | E128: 2 | F128: #N/A N/A | G128: 0 | H128: 6.2 | I128: #N/A N/A
B129: EJ874752 Corp | C129: 10/15/2019 | D129: 10/15/2023 | E129: 2 | F129: 106.9695 | G129: 1.444444444 | H129: 6.5 | I129: 108.4139444 | J129: 1
B130: DD531687 Corp | C130: 11/1/2019 | D130: 11/1/2023 | E130: 2 | F130: 117.028 | G130: 1.266666667 | H130: 7.125 | I130: 118.2946667 | J130: 1
B131: EH650952 Corp | C131: #N/A Field Not Applicable | D131: 1/15/2019 | E131: 2 | F131: #N/A N/A | G131: 0 | H131: 9.375 | I131: #N/A N/A
B132: EH196213 Corp | C132: #N/A Field Not Applicable | D132: 2/15/2018 | E132: 2 | F132: #N/A N/A | G132: 0 | H132: 6 | I132: #N/A N/A
B133: EJ260550 Corp | C133: 1/1/2020 | D133: 7/1/2022 | E133: 2 | F133: 107.2285 | G133: 0.05444444444 | H133: 4.9 | I133: 107.2829444 | J133: 1
B134: ED994512 Corp | C134: 1/1/2020 | D134: 7/1/2035 | E134: 2 | F134: 108.4105 | G134: 0.06444444444 | H134: 5.8 | I134: 108.4749444 | J134: 1
B135: EG586145 Corp | C135: #N/A Field Not Applicable | D135: 6/15/2017 | E135: 2 | F135: #N/A N/A | G135: 0 | H135: 6.375 | I135: #N/A N/A
B136: EH781064 Corp | C136: #N/A Field Not Applicable | D136: 4/15/2019 | E136: 2 | F136: #N/A N/A | G136: 0 | H136: 7 | I136: #N/A N/A
C137: #N/A Field Not Applicable | D137: 6/1/2015 | E137: 2 | F137: #N/A N/A | G137: 0 | H137: 5.125 | I137: #N/A N/A
B138: EH680161 Corp | C138: #N/A Field Not Applicable | D138: 1/15/2019 | E138: 2 | F138: #N/A N/A | G138: 0 | H138: 9.25 | I138: #N/A N/A
C139: #N/A Field Not Applicable | D139: 7/15/2015 | E139: 2 | F139: #N/A N/A | G139: 0 | H139: 4 | I139: #N/A N/A
B141: BBB- | C141: NXT_CPN_DT | D141: MATURITY | E141: CPN_FREQ | F141: PX_CLEAN_MID | G141: INT_ACC | H141: CPN | I141: PX_DIRTY_MID | J141: Check
B142: EI409316 Corp | C142: 2016-11-15 | D142: 2020-11-15 | E142: 2 | F142: 96.125 | G142: 2.022222222 | H142: 6.5 | I142: 98.14722222 | J142: =IF(ROUND(F142+G142,2)=ROUND(I142,2),1,0) -> 1
B143: EI894388 Corp | C143: 2016-12-15 | D143: 2021-12-15 | E143: 2 | F143: 94.0625 | G143: 1.850694444 | H143: 8.125 | I143: 95.91319444 | J143: =IF(ROUND(F143+G143,2)=ROUND(I143,2),1,0) -> 1
B144: EI894384 Corp | C144: 2016-12-15 | D144: 2016-12-15 | E144: 2 | F144: 100.875 | G144: 1.548888889 | H144: 6.8 | I144: 102.4238889 | J144: 1
B145: EH675811 Corp | C145: 2017-03-01 | D145: 2019-03-01 | E145: 2 | F145: 109.5 | G145: 0.160416667 | H145: 9.625 | I145: 109.6604167 | J145: 1
B146: DD117603 Corp | C146: 2016-12-01 | D146: 2028-06-01 | E146: 2 | F146: 70.4375 | G146: 1.866666667 | H146: 7 | I146: 72.30416667 | J146: 1
B147: EK595553 Corp | C147: 2016-11-14 | D147: 2021-11-14 | E147: 2 | F147: 91.5 | G147: 1.255555556 | H147: 4 | I147: 92.75555556 | J147: 1
B148: EK684682 Corp | C148: 2017-01-09 | D148: 2018-01-09 | E148: 2 | F148: 100.6375 | G148: 0.345583333 | H148: 2.145 | I148: 100.9830833 | J148: 1
B149: EC157093 Corp | C149: 2017-01-16 | D149: 2031-07-16 | E149: 2 | F149: 136.0105 | G149: 1.055416667 | H149: 7.45 | I149: 137.0659167 | J149: 1
B150: EG565931 Corp | C150: 2016-12-15 | D150: 2017-06-15 | E150: 2 | F150: 103.805 | G150: 1.594444444 | H150: 7 | I150: 105.3994444 | J150: 1
B151: EI352606 Corp | C151: 2017-03-01 | D151: 2020-09-01 | E151: 2 | F151: 111.002 | G151: 0.084166667 | H151: 5.05 | I151: 111.0861667 | J151: 1
J152: 1
B153: EJ260575 Corp | C153: 2017-01-15 | D153: 2017-07-15 | E153: 2 | F153: 102.5285 | G153: 0.595833333 | H153: 4.125 | I153: 103.1243333 | J153: 1
B154: EJ516653 Corp | C154: 2017-01-20 | D154: 2043-01-20 | E154: 2 | F154: 105.2275 | G154: 0.848611111 | H154: 6.5 | I154: 106.0761111 | J154: 1
B155: EH906283 Corp | C155: 2017-02-01 | D155: 2019-08-01 | E155: 2 | F155: 105.75 | G155: 0.7875 | H155: 7.875 | I155: 106.5375 | J155: 1
B156: EJ358627 Corp | C156: 2016-09-15 | D156: 2022-09-15 | E156: 2 | F156: 103.7605 | G156: 1.552777778 | H156: 3.25 | I156: 105.3132778 | J156: 1
B157: EJ419344 Corp | C157: 2016-11-01 | D157: 2022-11-01 | E157: 2 | F157: 102.659 | G157: 1.1375 | H157: 3.25 | I157: 103.7965 | J157: 1
B158: EG441299 Corp | C158: 2016-11-15 | D158: 2017-05-15 | E158: 2 | F158: 102.767 | G158: 1.866666667 | H158: 6 | I158: 104.6336667 | J158: 1
B159: EJ923800 Corp | C159: 2017-01-17 | D159: 2017-01-17 | E159: 2 | F159: 100.1635 | G159: 0.208333333 | H159: 1.5 | I159: 100.3718333 | J159: 1
B160: DD115196 Corp | C160: 2017-01-15 | D160: 2028-01-15 | E160: 2 | F160: 124.876 | G160: 1.04 | H160: 7.2 | I160: 125.916 | J160: 1
B161: EJ923806 Corp | C161: 2016-10-17 | D161: 2017-01-17 | E161: 4 | F161: 100.1385 | G161: 0.206705833 | H161: 1.4591 | I161: 100.3452058 | J161: 1
B162: ED697672 Corp | C162: 2017-01-12 | D162: 2017-01-12 | E162: 2 | F162: 101.443 | G162: 0.782986111 | H162: 5.125 | I162: 102.2259861 | J162: 1
J163: 1
B164: EJ278979 Corp | C164: 2017-01-11 | D164: 2022-07-11 | E164: 2 | F164: 111.2265 | G164: 0.758333333 | H164: 4.875 | I164: 111.9848333 | J164: 1
B165: EH014946 Corp | C165: 2016-10-15 | D165: 2017-04-15 | E165: 2 | F165: 102.279 | G165: 2.346944444 | H165: 5.95 | I165: 104.6259444 | J165: 1
J166: 1
J167: 1
J168: 1
B169: EH985846 Corp | C169: 2016-09-15 | D169: 2019-09-29 | E169: 2 | F169: 112.4435 | G169: 3.344444444 | H169: 7 | I169: 115.7879444 | J169: 1
B170: EI773317 Corp | C170: 2017-03-01 | D170: 2041-09-01 | E170: 2 | F170: 100.7665 | G170: 0.09375 | H170: 5.625 | I170: 100.86025 | J170: 1
B171: EH991747 Corp | C171: 2016-10-01 | D171: 2038-10-01 | E171: 2 | F171: 116.5225 | G171: 2.665 | H171: 6.15 | I171: 119.1875 | J171: 1
B172: EI428303 Corp | C172: 2016-12-01 | D172: 2020-06-01 | E172: 2 | F172: 113.846 | G172: 1.766666667 | H172: 6.625 | I172: 115.6126667 | J172: 1
B173: EG278298 Corp | C173: 2016-10-01 | D173: 2017-04-01 | E173: 2 | F173: 102.5625 | G173: 2.556666667 | H173: 5.9 | I173: 105.1191667 | J173: 1
B174: EJ515547 Corp | C174: 2017-01-31 | D174: 2018-01-31 | E174: 2 | F174: 103.948 | G174: 0.475347222 | H174: 4.625 | I174: 104.4233472 | J174: 1

Sheet All Curves
A1: NSS | C1: AAA Rate | D1: AA Rate | E1: A Rate | F1: BBB Rate | G1: BBB- Rate
A2: b0 | C2: ='AAA Yield Curve'!B5 -> 0.03311524137 | D2: ='AA Yield Curve'!B5 -> 0.04185585553 | E2: ='A Yield Curve'!B5 -> 0.0459250964 | F2: ='BBB Yield Curve'!B5 -> 0.06317589025 | G2: ='BBB- Yield Curve'!B5 -> 0.097879217
A3: b1 | C3: ='AAA Yield Curve'!B6 -> 294.001344 | D3: ='AA Yield Curve'!B6 -> -0.01571282966 | E3: ='A Yield Curve'!B6 -> -0.04986372415 | F3: ='BBB Yield Curve'!B6 -> -0.04142707897 | G3: ='BBB- Yield Curve'!B6 -> 0.012505982
A4: b2 | C4: ='AAA Yield Curve'!B7 -> -276.3237034 | D4: ='AA Yield Curve'!B7 -> -0.0200601552 | E4: ='A Yield Curve'!B7 -> -1.008207112 | F4: ='BBB Yield Curve'!B7 -> -0.3367778202 | G4: ='BBB- Yield Curve'!B7 -> -0.251725083
A5: b3 | C5: ='AAA Yield Curve'!B8 -> -7.338181006 | D5: ='AA Yield Curve'!B8 -> -0.02005792738 | E5: ='A Yield Curve'!B8 -> 1.038415631 | F5: ='BBB Yield Curve'!B8 -> 0.2837294746 | G5: ='BBB- Yield Curve'!B8 -> -0.157348427
A6: tau | C6: ='AAA Yield Curve'!B9 -> 0.01412347041 | D6: ='AA Yield Curve'!B9 -> 2 | E6: ='A Yield Curve'!B9 -> 0.9550409618 | F6: ='BBB Yield Curve'!B9 -> 1.605168834 | G6: ='BBB- Yield Curve'!B9 -> 0.53364239
A7: rho | C7: ='AAA Yield Curve'!B10 -> 0.03528741334 | D7: ='AA Yield Curve'!B10 -> 2 | E7: ='A Yield Curve'!B10 -> 0.853681231 | F7: ='BBB Yield Curve'!B10 -> 1.45023701 | G7: ='BBB- Yield Curve'!B10 -> 6.806725876
A9: Year | B9: Risk Free Rate | C9: AAA Rate | D9: AA Rate | E9: A Rate | F9: BBB Rate | G9: BBB- Rate | H9: Spread AAA | I9: Spread AA | J9: Spread A | K9: Spread BBB | L9: Spread BBB-
A10: 1 | B10: ='Data Entry'!M3 -> 0.01952929505 | C10: =MAX(C$2+C$3*((1-EXP(-$A10/C$6))/($A10/C$6))+C$4*((1-EXP(-$A10/C$6))/($A10/C$6)-EXP(-$A10/C$6))+C$5*((1-EXP(-$A10/C$7))/($A10/C$7)-EXP(-$A10/C$7)),0) -> 0.02383944882 | D10: 0.0222531982 | E10: 0.03380272628 | F10: =F$2+F$3*((1-EXP(-$A10/F$6))/($A10/F$6))+F$4*((1-EXP(-$A10/F$6))/($A10/F$6)-EXP(-$A10/F$6))+F$5*((1-EXP(-$A10/F$7))/($A10/F$7)-EXP(-$A10/F$7)) -> 0.02494059967 | G10: 0.01797891799 | H10: =MAX(C10-$B10,0) -> 0.004310153764 | I10: =MAX(D10-$B10,0) -> 0.002723903151 | J10: =MAX(E10-$B10,0) -> 0.01427343123 | K10: 0.005411304619 | L10: 0
A11: =A10+1 -> 2 | B11: ='Data Entry'!M4 -> 0.01740677095 | C11: 0.02847734509 | D11: 0.02132260588 | E11: 0.02800651091 | F11: 0.02631433564 | G11: 0.02243719651 | H11: =MAX(C11-$B11,0) -> 0.01107057415 | I11: =MAX(D11-$B11,0) -> 0.003915834935 | J11: =MAX(E11-$B11,0) -> 0.01059973996 | K11: =MAX(F11-$B11,0) -> 0.008907564691 | L11: =MAX(G11-$B11,0) -> 0.005030425561
A12: =A11+1 -> 3 | B12: ='Data Entry'!M5 -> 0.01675741072 | C12: 0.03002331052 | D12: 0.02189184182 | E12: 0.02301629412 | F12: 0.02797061493 | G12: 0.03040214825 | H12: 0.0132658998 | I12: 0.005134431096 | J12: 0.006258883401 | K12: 0.01121320421 | L12: 0.01364473753
A13: 4 | B13: ='Data Entry'!M6 -> 0.01667957341 | C13: 0.03079629323 | D13: 0.02314773764 | E13: 0.02242150546 | F13: 0.03018729316 | G13: 0.03456646095 | H13: 0.01411671982 | I13: 0.006468164228 | J13: 0.005741932052 | K13: 0.01350771975 | L13: 0.01788688754
A14: 5 | B14: ='Data Entry'!M7 -> 0.0169050575 | C14: 0.03126008286 | D14: 0.02464973553 | E14: 0.02408799938 | F14: 0.03274331177 | G14: 0.03640505735 | H14: 0.01435502536 | I14: 0.00774467803 | J14: 0.007182941888 | K14: 0.01583825427 | L14: 0.01949999986
A15: 6 | B15: ='Data Entry'!M8 -> 0.01729925633 | C15: 0.03156927594 | D15: 0.02616946565 | E15: 0.02640177206 | F15: 0.03537434215 | G15: 0.03720187539 | H15: 0.01427001962 | I15: 0.008870209319 | J15: 0.009102515727 | K15: 0.01807508582 | L15: 0.01990261906
A16: 7 | B16: ='Data Entry'!M9 -> 0.01771971084 | C16: 0.03179012815 | D16: 0.02759732671 | E16: 0.02864312211 | F16: 0.03789444131 | G16: 0.03761501326 | H16: 0.01407041731 | I16: 0.009877615875 | J16: 0.01092341127 | K16: 0.02017473047 | L16: 0.01989530242
A17: 8 | B17: ='Data Entry'!M10 -> 0.01817638616 | C17: 0.0319557673 | D17: 0.02888856049 | E17: 0.03058527156 | F17: 0.04020301755 | G17: 0.0379523498 | H17: 0.01377938114 | I17: 0.01071217432 | J17: 0.01240888539 | K17: 0.02202663138 | L17: 0.01977596363
A18: 9 | B18: ='Data Entry'!M11 -> 0.01861904204 | C18: 0.03208459775 | D18: 0.03003248565 | E18: 0.03220505505 | F18: 0.04226155914 | G18: 0.03835141654 | H18: 0.01346555571 | I18: 0.01141344361 | J18: 0.01358601301 | K18: 0.0236425171 | L18: 0.0197323745
A19: 10 | B19: ='Data Entry'!M12 -> 0.01905003643 | C19: 0.03218766212 | D19: 0.03103522374 | E19: 0.03354482438 | F19: 0.04406913752 | G19: 0.03886739168 | H19: 0.01313762569 | I19: 0.01198518731 | J19: 0.01449478796 | K19: 0.02501910109 | L19: 0.01981735525
A20: 11 | B20: ='Data Entry'!M13 -> 0.01947845827 | C20: 0.0322719875 | D20: 0.03191021913 | E20: 0.03465820171 | F20: 0.04564430697 | G20: 0.03951510432 | H20: 0.01279352923 | I20: 0.01243176086 | J20: 0.01517974344 | K20: 0.0261658487 | L20: 0.02003664605
A21: 12 | B21: ='Data Entry'!M14 -> 0.0198392384 | C21: 0.03234225866 | D21: 0.03267321144 | E21: 0.03559261646 | F21: 0.04701365681 | G21: 0.04028969696 | H21: 0.01250302026 | I21: 0.01283397304 | J21: 0.01575337806 | K21: 0.02717441842 | L21: 0.02045045856
A22: 13 | B22: ='Data Entry'!M15 -> 0.02014951906 | C22: 0.03240171887 | D22: 0.03333971311 | E22: 0.03638576911 | F22: 0.04820533153 | G22: 0.04117716458 | H22: 0.01225219981 | I22: 0.01319019405 | J22: 0.01623625006 | K22: 0.02805581247 | L22: 0.02102764552
A23: 14 | B23: ='Data Entry'!M16 -> 0.02042821221 | C23: 0.03245268476 | D23: 0.03392386691 | E23: 0.03706654548 | F23: 0.04924576783 | G23: 0.04215987052 | H23: 0.01202447255 | I23: 0.0134956547 | J23: 0.01663833327 | K23: 0.02881755563 | L23: 0.02173165832
A24: 15 | B24: ='Data Entry'!M17 -> 0.02065669135 | C24: 0.0324968552 | D24: =MAX(D$2+D$3*((1-EXP(-$A24/D$6))/($A24/D$6))+D$4*((1-EXP(-$A24/D$6))/($A24/D$6)-EXP(-$A24/D$6))+D$5*((1-EXP(-$A24/D$7))/($A24/D$7)-EXP(-$A24/D$7)),0) -> 0.03443803981 | E24: 0.03765689608 | F24: 0.0501583297 | G24: 0.04321945631 | H24: 0.01184016385 | I24: 0.01378134845 | J24: 0.01700020473 | K24: 0.02950163834 | L24: 0.02256276496
A25: 16 | B25: ='Data Entry'!M18 -> 0.02087013174 | C25: 0.03253550434 | D25: 0.03489279076 | E25: 0.03817357927 | F25: 0.0509629739 | G25: 0.04433834994 | H25: 0.01166537259 | I25: 0.01402265902 | J25: 0.01730344752 | K25: 0.03009284216 | L25: 0.0234682182
A26: 17 | B26: ='Data Entry'!M19 -> 0.02105340511 | C26: 0.03256960651 | D26: 0.03529701212 | E26: 0.0386295223 | F26: 0.0516764221 | G26: 0.04550050133 | H26: 0.0115162014 | I26: 0.01424360701 | J26: 0.01757611719 | K26: 0.03062301698 | L26: 0.02444709622
A27: 18 | B27: ='Data Entry'!M20 -> 0.02119459632 | C27: 0.03259991956 | D27: 0.03565813736 | E27: 0.03903482172 | F27: 0.05231254314 | G27: 0.04669168622 | H27: 0.01140532324 | I27: 0.01446354104 | J27: 0.0178402254 | K27: 0.03111794682 | L27: 0.0254970899
A28: 19 | B28: ='Data Entry'!M21 -> 0.02131671745 | C28: 0.03262704176 | D28: 0.03598236021 | E28: 0.03939746409 | F28: 0.05288278997 | G28: 0.04789956966 | H28: 0.01131032432 | I28: 0.01466564276 | J28: 0.01808074665 | K28: 0.03156607253 | L28: 0.02658285222
A29: 20 | B29: ='Data Entry'!M22 -> 0.02142566832 | C29: 0.03265145174 | D29: 0.03627483913 | E29: 0.0397238444 | F29: 0.05339661612 | G29: 0.04911363844 | H29: 0.01122578343 | I29: 0.01484917082 | J29: 0.01829817608 | K29: 0.03197094781 | L29: 0.02768797012
A30: 21 | B30: ='Data Entry'!M23 -> 0.02149451104 | C30: 0.03267353696 | D30: 0.03653987692 | E30: 0.04001914165 | F30: 0.05386184128 | G30: 0.0503250662 | H30: 0.01117902592 | I30: 0.01504536588 | J30: 0.01852463061 | K30: 0.03236733024 | L30: 0.02883055515
A31: 22 | B31: ='Data Entry'!M24 -> 0.02155689779 | C31: 0.03269361444 | D31: 0.03678107286 | E31: 0.04028759397 | F31: 0.05428495831 | G31: 0.05152654828 | H31: 0.01113671665 | I31: 0.01522417507 | J31: 0.01873069618 | K31: 0.03272806052 | L31: 0.02996965049
A32: 23 | B32: ='Data Entry'!M25 -> 0.02161229783 | C32: 0.03271194604 | D32: 0.03700144917 | E32: 0.04053270271 | F32: 0.05467138458 | G32: 0.05271212806 | H32: 0.01109964821 | I32: 0.01538915135 | J32: 0.01892040489 | K32: 0.03305908675 | L32: 0.03109983023
A33: 24 | B33: ='Data Entry'!M26 -> 0.02166028256 | C33: 0.03272875001 | D33: 0.03720355459 | E33: 0.04075738576 | F33: 0.05502566478 | G33: 0.05387702689 | H33: 0.01106846745 | I33: 0.01554327203 | J33: 0.0190971032 | K33: 0.03336538221 | L33: 0.03221674433
A34: 25 | B34: ='Data Entry'!M27 -> 0.02170051217 | C34: 0.03274420967 | D34: 0.0373895487 | E34: 0.04096409418 | F34: 0.05535163336 | G34: 0.05501748454 | H34: 0.0110436975 | I34: 0.01568903653 | J34: 0.01926358201 | K34: 0.03365112119 | L34: 0.03331697237
A35: 26 | B35: ='Data Entry'!M28 -> 0.02173293316 | C35: 0.03275848012 | D35: 0.03756127036 | E35: 0.04115490196 | F35: 0.0556525443 | G35: 0.05613061323 | H35: 0.01102554696 | I35: 0.0158283372 | J35: 0.0194219688 | K35: 0.03391961114 | L35: 0.03439768007
A36: 27 | B36: ='Data Entry'!M29 -> 0.0217571474 | C36: 0.0327716935 | D36: 0.03772029307 | E36: 0.04133157582 | F36: 0.05593117478 | G36: 0.05721426662 | H36: 0.01101454609 | I36: 0.01596314566 | J36: 0.01957442842 | K36: 0.03417402738 | L36: 0.03545711922
A37: 28 | B37: ='Data Entry'!M30 -> 0.02177302383 | C37: 0.03278396307 | D37: 0.0378679699 | E37: 0.04149563013 | F37: 0.05618990812 | G37: 0.0582669237 | H37: 0.01101093923 | I37: 0.01609494607 | J37: 0.0197226063 | K37: 0.03441688429 | L37: 0.03649389987
A38: 29 | B38: ='Data Entry'!M31 -> 0.02178048443 | C38: 0.03279538646 | D38: 0.03800546996 | E38: 0.04164837035 | F38: 0.05643080053 | G38: 0.05928758698 | H38: 0.01101490202 | I38: 0.01622498553 | J38: 0.01986788591 | K38: 0.0346503161 | L38: 0.03750710255
A39: 30 | B39: ='Data Entry'!M32 -> 0.02177949874 | C39: 0.03280604829 | D39: 0.03813380812 | E39: 0.04179092788 | F39: 0.05665563494 | G39: 0.06027569389 | H39: 0.01102654955 | I39: 0.01635430938 | J39: 0.02001142914 | K39: 0.0348761362 | L39: 0.03849619515
A40: 31 | B40: ='Data Entry'!M33 -> 0.02181913448 | C40: 0.03281602226 | D40: 0.0382538693 | E40: 0.04192428816 | F40: 0.05686596472 | G40: 0.0612310402 | H40: 0.01099688778 | I40: 0.01643473482 | J40: 0.02010515368 | K40: 0.03504683024 | L40: 0.03941190572
A41: 32 | B41: ='Data Entry'!M34 -> 0.02191107491 | C41: 0.03282537285 | D41: 0.03836642842 | E41: 0.04204931341 | F41: 0.05706314933 | G41: 0.06215371424 | H41: 0.01091429794 | I41: 0.01645535351 | J41: 0.0201382385 | K41: 0.03515207443 | L41: 0.04024263933
A42: 33 | B42: ='Data Entry'!M35 -> 0.02205199878 | C42: 0.03283415675 | D42: 0.03847216685 | E42: 0.04216676138 | F42: 0.0572483836 | G42: 0.06304404062 | H42: 0.01078215797 | I42: 0.01642016806 | J42: 0.0201147626 | K42: 0.03519638482 | L42: 0.04099204184
A43: 34 | B43: ='Data Entry'!M36 -> 0.02223857395 | C43: 0.03284242394 | D43: 0.03857168602 | E43: 0.04227730065 | F43: 0.05742272187 | G43: 0.06390253242 | H43: 0.01060384999 | I43: 0.01633311206 | J43: 0.0200387267 | K43: 0.03518414792 | L43: 0.04166395847
A44: 35 | B44: ='Data Entry'!M37 -> 0.02246745167 | C44: 0.03285021873 | D44: 0.03866551877 | E44: 0.04238152338 | F44: 0.05758709802 | G44: 0.06472985063 | H44: 0.01038276705 | I44: 0.0161980671 | J44: 0.01991407171 | K44: 0.03511964635 | L44: 0.04226239895
A45: 36 | B45: ='Data Entry'!M38 -> 0.0227352739 | C45: 0.03285758047 | D45: 0.03875413884 | E45: 0.04247995597 | F45: 0.0577423422 | G45: 0.06552677003 | H45: 0.01012230656 | I45: 0.01601886494 | J45: 0.01974468207 | K45: 0.0350070683 | L45: 0.04279149613
A46: 37 | B46: ='Data Entry'!M39 -> 0.02303867078 | C46: 0.03286454428 | D46: 0.03883796878 | E46: 0.04257306787 | F46: 0.05788919483 | G46: 0.06629415056 | H46: 0.009825873496 | I46: 0.015799298 | J46: 0.01953439709 | K46: 0.03485052405 | L46: 0.04325547978
A47: 38 | B47: ='Data Entry'!M40 -> 0.02337426097 | C47: 0.03287114157 | D47: 0.0389173867 | E47: 0.04266127915 | F47: 0.05802831838 | G47: 0.06703291337 | H47: 0.009496880596 | I47: 0.01554312573 | J47: 0.01928701818 | K47: 0.03465405741 | L47: 0.04365865239
A48: 39 | B48: ='Data Entry'!M41 -> 0.02373865496 | C48: 0.03287740054 | D48: 0.03899273197 | E48: 0.04274496677 | F48: 0.05816030739 | G48: 0.06774402102 | H48: 0.009138745573 | I48: 0.01525407701 | J48: 0.01900631181 | K48: 0.03442165243 | L48: 0.04400536606
A49: 40 | B49: ='Data Entry'!M42 -> 0.02412845123 | C49: 0.03288334656 | D49: 0.03906431 | E49: 0.04282447001 | F49: 0.05828569696 | G49: 0.06842846113 | H49: 0.008754895327 | I49: 0.01493585877 | J49: 0.01869601878 | K49: 0.03415724573 | L49: 0.0443000099
A50: 41 | B50: ='Data Entry'!M43 -> 0.02454024099 | C50: 0.03288900253 | D50: 0.03913239645 | E50: 0.04290009505 | F50: 0.05840496996 | G50: 0.06908723297 | H50: 0.008348761536 | I50: 0.01459215546 | J50: 0.01835985405 | K50: 0.03386472897 | L50: 0.04454699198
A51: 42 | B51: ='Data Entry'!M44 -> 0.02497060401 | C51: 0.03289438917 | D51: 0.03919724069 | E51: 0.04297211889 | F51: 0.0585185633 | G51: 0.06972133656 | H51: 0.007923785157 | I51: 0.01422663668 | J51: 0.01800151488 | K51: 0.03354795929 | L51: 0.04475073255
A52: 43 | B52: ='Data Entry'!M45 -> 0.02541611202 | C52: 0.03289952527 | D52: 0.03925906893 | E52: 0.04304079278 | F52: 0.05862687323 | G52: 0.07033176397 | H52: 0.007483413244 | I52: 0.01384295691 | J52: 0.01762468076 | K52: 0.03321076121 | L52: 0.04491565195
A53: 44 | B53: ='Data Entry'!M46 -> 0.02587332647 | C53: 0.0329044279 | D53: 0.0393180868 | E53: 0.04310634514 | F53: 0.05873025998 | G53: 0.07091949232 | H53: 0.007031101435 | I53: 0.01344476033 | J53: 0.01723301867 | K53: 0.03285693351 | L53: 0.04504616585
A54: 45 | B54: ='Data Entry'!M47 -> 0.02633880079 | C54: 0.03290911265 | D54: 0.03937448166 | E54: 0.04316898406 | F54: 0.05882905177 | G54: 0.07148547834 | H54: 0.006570311858 | I54: 0.01303568087 | J54: 0.01683018327 | K54: 0.03249025098 | L54: 0.04514667755
A55: 46 | B55: ='Data Entry'!M48 -> 0.02680907757 | C55: 0.03291359371 | D55: 0.03942842457 | E55: 0.04322889954 | F55: 0.05892354825 | G55: 0.07203065423 | H55: 0.006104516134 | I55: 0.01261934699 | J55: 0.01641982197 | K55: 0.03211447068 | L55: 0.04522157666
A56: 47 | B56: ='Data Entry'!M49 -> 0.0272806914 | C56: 0.03291788408 | D56: 0.03948007203 | E56: 0.04328626543 | F56: 0.05901402362 | G56: 0.0725559245 | H56: 0.005637192687 | I56: 0.01219938064 | J56: 0.01600557404 | K56: 0.03173333222 | L56: 0.0452752331
A57: 48 | B57: ='Data Entry'!M50 -> 0.02775016727 | C57: 0.03292199569 | D57: 0.03952956752 | E57: 0.04334124108 | F57: 0.05910072917 | G57: 0.07306216372 | H57: 0.005171828421 | I57: 0.01177940025 | J57: 0.0155910738 | K57: 0.0313505619 | L57: 0.04531199645
A58: 49 | B58: ='Data Entry'!M51 -> 0.02821402196 | C58: 0.03292593948 | D58: 0.03957704278 | E58: 0.04339397282 | F58: 0.05918389572 | G58: 0.07355021503 | H58: 0.004711917521 | I58: 0.01136302082 | J58: 0.01517995086 | K58: 0.03096987376 | L58: 0.04533619307
A59: 50 | B59: ='Data Entry'!M52 -> 0.02866876267 | C59: 0.03292972552 | D59: 0.03962261904 | E59: 0.04344459529 | F59: 0.05926373561 | G59: 0.07402088918 | H59: 0.004260962848 | I59: 0.01095385637 | J59: 0.01477583262 | K59: 0.03059497294 | L59: 0.04535212651
A60: 51 | B60: ='Data Entry'!M53 -> 0.02911088811 | C60: 0.03293336309 | D60: 0.03966640799 | E60: 0.04349323257 | F60: 0.05934044453 | G60: 0.0744749641 | H60: 0.003822474973 | I60: 0.01055551988 | J60: 0.01438234445 | K60: 0.03022955642 | L60: 0.04536407598
A61: 52 | B61: ='Data Entry'!M54 -> 0.02953688827 | C61: 0.03293686075 | D61: 0.03970851275 | E61: 0.04353999918 | F61: 0.0594142031 | G61: 0.07491318483 | H61: 0.003399972473 | I61: 0.01017162448 | J61: 0.01400311091 | K61: 0.02987731483 | L61: 0.04537629655
A62: 53 | B62: ='Data Entry'!M55 -> 0.02994324527 | C62: 0.03294022642 | D62: 0.03974902865 | E62: 0.04358500101 | F62: 0.05948517833 | G62: 0.0753362638 | H62: 0.002996981147 | I62: 0.00980578338 | J62: 0.01364175574 | K62: 0.02954193306 | L62: 0.04539301853
A63: 54 | B63: ='Data Entry'!M56 -> 0.03032643173 | C63: 0.03294346743 | D63: 0.03978804396 | E63: 0.04362833611 | F63: 0.05955352485 | G63: 0.07574488135 | H63: 0.002617035708 | I63: 0.009461612236 | J63: 0.01330190439 | K63: 0.02922709312 | L63: 0.04541844962
A64: 55 | B64: ='Data Entry'!M57 -> 0.03068291329 | C64: 0.0329465906 | D64: 0.03982564054 | E64: 0.04367009539 | F64: =F$2+F$3*((1-EXP(-$A64/F$6))/($A64/F$6))+F$4*((1-EXP(-$A64/F$6))/($A64/F$6)-EXP(-$A64/F$6))+F$5*((1-EXP(-$A64/F$7))/($A64/F$7)-EXP(-$A64/F$7)) -> 0.05961938604 | G64: 0.07613968637 | H64: 0.002263677308 | I64: 0.009142727247 | J64: 0.0129871821 | K64: 0.02893647275 | L64: 0.04545677308
A65: 56 | B65: ='Data Entry'!M58 -> 0.03100914698 | C65: 0.03294960222 | D65: 0.03986189438 | E65: 0.04371036327 | F65: 0.05968289504 | G65: 0.07652129724 | H65: 0.00194045524 | I65: 0.008852747398 | J65: 0.01270121629 | K65: 0.02867374806 | L65: 0.04551215027
A66: 57 | B66: ='Data Entry'!M59 -> 0.03130158236 | C66: 0.03295250817 | D66: 0.03989687615 | E66: 0.04374921823 | F66: 0.05974417566 | G66: 0.07689030272 | H66: 0.001650925808 | I66: 0.00859529379 | J66: 0.01244763587 | K66: 0.0284425933 | L66: 0.04558872036
A67: 58 | B67: ='Data Entry'!M60 -> 0.03155666094 | C67: 0.03295531391 | D67: 0.03993065166 | E67: 0.04378673337 | F67: 0.05980334315 | G67: 0.07724726302 | H67: 0.001398652974 | I67: 0.008373990718 | J67: 0.01223007243 | K67: 0.02824668221 | L67: 0.04569060208
A68: 59 | B68: ='Data Entry'!M61 -> 0.03177081714 | C68: 0.03295802455 | D68: 0.03996328223 | E68: 0.04382297682 | F68: 0.05986050497 | G68: 0.07759271086 | H68: 0.001187207408 | I68: 0.008192465091 | J68: 0.01205215967 | K68: 0.02808968783 | L68: 0.04582189372
A69: 60 | B69: ='Data Entry'!M62 -> 0.0319404779 | C69: 0.03296064483 | D69: 0.03999482512 | E69: 0.04385801214 | F69: 0.05991576139 | G69: 0.07792715265 | H69: 0.001020166933 | I69: 0.008054347224 | J69: 0.01191753425 | K69: 0.02797528349 | L69: 0.04598667476
A70: 61 | B70: ='Data Entry'!M63 -> 0.03210460254 | C70: 0.0329631792 | D70: 0.04002533381 | E70: 0.04389189877 | F70: 0.05996920612 | G70: 0.07825106956 | H70: 0.0008585766536 | I70: 0.00792073127 | J70: 0.01178729622 | K70: 0.02786460358 | L70: 0.04614646701
A71: 62 | B71: ='Data Entry'!M64 -> 0.0322634577 | C71: 0.03296563181 | D71: 0.04005485836 | E71: 0.04392469228 | F71: 0.06002092683 | G71: 0.07856491868 | H71: 0.0007021741104 | I71: 0.007791400655 | J71: 0.01166123458 | K71: 0.02775746913 | L71: 0.04630146098
A72: 63 | B72: ='Data Entry'!M65 -> 0.03241729314 | C72: 0.03296800657 | D72: 0.04008344562 | E72: 0.04395644473 | F72: 0.06007100562 | G72: 0.07886913417 | H72: 0.0005507134293 | I72: 0.007666152476 | J72: 0.01153915159 | K72: 0.02765371248 | L72: 0.04645184103
A73: 64 | B73: ='Data Entry'!M66 -> 0.03256634308 | C73: 0.03297030711 | D73: 0.04011113952 | E73: 0.04398720491 | F73: 0.06011951944 | G73: 0.07916412832 | H73: 0.0004039640323 | I73: 0.00754479644 | J73: 0.01142086183 | K73: 0.02755317636 | L73: 0.04659778524
A74: 65 | B74: ='Data Entry'!M67 -> 0.0327108274 | C74: 0.03297253687 | D74: 0.0401379813 | E74: 0.04401701862 | F74: 0.06016654053 | G74: 0.07945029266 | H74: 0.0002617094661 | I74: 0.007427153901 | J74: 0.01130619122 | K74: 0.02745571313 | L74: 0.04673946526
A75: 66 | B75: ='Data Entry'!M68 -> 0.03285095272 | C75: =MAX(C$2+C$3*((1-EXP(-$A75/C$6))/($A75/C$6))+C$4*((1-EXP(-$A75/C$6))/($A75/C$6)-EXP(-$A75/C$6))+C$5*((1-EXP(-$A75/C$7))/($A75/C$7)-EXP(-$A75/C$7)),0) -> 0.03297469906 | D75: 0.0401640097 | E75: 0.04404592889 | F75: 0.06021213674 | G75: 0.07972799899 | H75: =MAX(C75-$B75,0) -> 0.0001237463366 | I75: =MAX(D75-$B75,0) -> 0.007313056979 | J75: =MAX(E75-$B75,0) -> 0.01119497617 | K75: =MAX(F75-$B75,0) -> 0.02736118402 | L75: =MAX(G75-$B75,0) -> 0.04687704626
A76: =A75+1 -> 67 | B76: ='Data Entry'!M69 -> 0.03298691337 | C76: 0.03297679671 | D76: 0.04018926113 | E76: 0.04407397617 | F76: 0.06025637187 | G76: 0.07999760039 | H76: 0 | I76: 0.007202347766 | J76: 0.0110870628 | K76: 0.0272694585 | L76: 0.04701068702
A77: 68 | B77: ='Data Entry'!M70 -> 0.03311889228 | C77: 0.03297883266 | D77: 0.04021376987 | E77: 0.04410119853 | F77: 0.06029930596 | G77: 0.08025943221 | H77: 0 | I77: 0.00709487759 | J77: 0.01098230624 | K77: 0.02718041368 | L77: 0.04714053992
A78: 69 | B78: ='Data Entry'!M71 -> 0.03324706186 | C78: 0.03298080959 | D78: 0.04023756822 | E78: 0.04412763183 | F78: 0.06034099559 | G78: 0.08051381299 | H78: 0 | I78: 0.006990506356 | J78: 0.01088056997 | K78: 0.02709393373 | L78: 0.04726675113
A79: 70 | B79: ='Data Entry'!M72 -> 0.03337158468 | C79: 0.03298273005 | D79: 0.04026068661 | E79: 0.04415330989 | F79: 0.06038149408 | G79: 0.08076104537 | H79: 0 | I79: 0.006889101931 | J79: 0.01078172522 | K79: 0.02700990941 | L79: 0.04738946069
A80: 71 | B80: ='Data Entry'!M73 -> 0.03349261418 | C80: 0.03298459641 | D80: 0.04028315377 | E80: 0.04417826463 | F80: 0.06042085178 | G80: 0.08100141691 | H80: 0 | I80: 0.00679053959 | J80: 0.01068565045 | K80: 0.02692823759 | L80: 0.04750880272
A81: 72 | B81: ='Data Entry'!M74 -> 0.03361029535 | C81: 0.03298641092 | D81: 0.04030499685 | E81: 0.04420252619 | F81: 0.0604591162 | G81: 0.08123520093 | H81: 0 | I81: 0.006694701502 | J81: 0.01059223083 | K81: 0.02684882085 | L81: 0.04762490558
A82: 73 | B82: ='Data Entry'!M75 -> 0.03372476523 | C82: 0.03298817572 | D82: 0.04032624149 | E82: 0.04422612304 | F82: 0.06049633228 | G82: 0.08146265729 | H82: 0 | I82: 0.00660147626 | J82: 0.0105013578 | K82: 0.02677156705 | L82: 0.04773789206
A83: 74 | B83: ='Data Entry'!M76 -> 0.0338361535 | C83: 0.03298989282 | D83: 0.04034691195 | E83: 0.04424908214 | F83: 0.06053254252 | G83: 0.0816840331 | H83: 0 | I83: 0.006510758452 | J83: 0.01041292864 | K83: 0.02669638902 | L83: 0.0478478796
A84: 75 | B84: ='Data Entry'!M77 -> 0.03394458294 | C84: 0.03299156414 | D84: 0.0403670312 | E84: 0.04427142899 | F84: 0.06056778716 | G84: 0.08189956341 | H84: 0 | I84: 0.006422448259 | J84: 0.01032684605 | K84: 0.02662320422 | L84: 0.04795498047
A85: 76 | B85: ='Data Entry'!M78 -> 0.0340501699 | C85: 0.03299319147 | D85: 0.04038662099 | E85: 0.04429318778 | F85: 0.06060210431 | G85: 0.08210947191 | H85: 0 | I85: 0.00633645109 | J85: 0.01024301787 | K85: 0.0265519344 | L85: 0.04805930201
A86: 77 | B86: ='Data Entry'!M79 -> 0.03415302471 | C86: 0.03299477653 | D86: 0.04040570196 | E86: 0.04431438139 | F86: 0.0606355301 | G86: 0.0823139715 | H86: 0 | I86: 0.006252677249 | J86: 0.01016135668 | K86: 0.02648250538 | L86: 0.04816094679
A87: 78 | B87: ='Data Entry'!M80 -> 0.03425325206 | C87: 0.03299632095 | D87: 0.04042429368 | E87: 0.04433503159 | F87: 0.06066809882 | G87: 0.08251326492 | H87: 0 | I87: 0.006171041614 | J87: 0.01008177953 | K87: 0.02641484676 | L87: 0.04826001285
A88: 79 | B88: ='Data Entry'!M81 -> 0.03435095136 | C88: 0.03299782628 | D88: 0.04044241471 | E88: 0.04435515899 | F88: 0.06069984301 | G88: 0.08270754527 | H88: 0 | I88: 0.006091463356 | J88: 0.01000420763 | K88: 0.02634889166 | L88: 0.04835659391
A89: 80 | B89: ='Data Entry'!M82 -> 0.03444621705 | C89: 0.03299929396 | D89: 0.04046008272 | E89: 0.04437478321 | F89: 0.0607307936 | G89: 0.08289699657 | H89: 0 | I89: 0.006013865668 | J89: 0.009928566154 | K89: 0.02628457655 | L89: 0.04845077952
A90: 81 | B90: ='Data Entry'!M83 -> 0.03453913896 | C90: 0.03300072541 | D90: 0.04047731448 | E90: 0.04439392288 | F90: 0.06076097998 | G90: 0.08308179424 | H90: 0 | I90: 0.005938175521 | J90: 0.009854783913 | K90: 0.02622184102 | L90: 0.04854265527
A91: 82 | B91: ='Data Entry'!M84 -> 0.03462980253 | C91: 0.03300212195 | D91: 0.04049412596 | E91: 0.04441259572 | F91: 0.06079043011 | G91: 0.08326210554 | H91: 0 | I91: 0.005864323431 | J91: 0.009782793195 | K91: 0.02616062758 | L91: 0.04863230301
A92: 83 | B92: ='Data Entry'!M85 -> 0.03471828909 | C92: 0.03300348483 | D92: 0.04051053234 | E92: 0.04443081862 | F92: 0.06081917059 | G92: 0.08343809005 | H92: 0 | I92: 0.005792243249 | J92: 0.009712529532 | K92: 0.0261008815 | L92: 0.04871980096
A93: 84 | B93: ='Data Entry'!M86 -> 0.03480467613 | C93: 0.03300481527 | D93: 0.04052654809 | E93: 0.04444860764 | F93: 0.06084722678 | G93: 0.08360990007 | H93: 0 | I93: 0.005721871963 | J93: 0.009643931514 | K93: 0.02604255065 | L93: 0.04880522394
A94: 85 | B94: ='Data Entry'!M87 -> 0.03488903749 | C94: 0.0330061144 | D94: 0.040542187 | E94: 0.0444659781 | F94: 0.06087462282 | G94: 0.08377768101 | H94: 0 | I94: 0.005653149511 | J94: 0.009576940607 | K94: 0.02598558533 | L94: 0.04888864351
A95: 86 | B95: ='Data Entry'!M88 -> 0.0349714436 | C95: 0.03300738332 | D95: 0.04055746222 | E95: 0.04448294459 | F95: 0.06090138174 | G95: 0.08394157172 | H95: 0 | I95: 0.005586018616 | J95: 0.009511500989 | K95: 0.02592993814 | L95: 0.04897012812
A96: 87 | B96: ='Data Entry'!M89 -> 0.03505196166 | C96: 0.03300862307 | D96: 0.04057238628 | E96: 0.04449952105 | F96: 0.06092752552 | G96: 0.08410170492 | H96: 0 | I96: 0.005520424624 | J96: 0.009447559393 | K96: 0.02587556386 | L96: 0.04904974327
A97: 88 | B97: ='Data Entry'!M90 -> 0.03513065581 | C97: 0.03300983464 | D97: 0.04058697116 | E97: 0.04451572077 | F97: 0.06095307512 | G97: 0.08425820745 | H97: 0 | I97: 0.005456315351 | J97: 0.009385064963 | K97: 0.02582241931 | L97: 0.04912755164
A98: 89 | B98: ='Data Entry'!M91 -> 0.03520758733 | C98: 0.03301101898 | D98: 0.04060122829 | E98: 0.04453155645 | F98: 0.06097805057 | G98: 0.0844112006 | H98: 0 | I98: 0.005393640954 | J98: 0.009323969119 | K98: 0.02577046324 | L98: 0.04920361327
A99: 90 | B99: ='Data Entry'!M92 -> 0.0352828148 | C99: 0.03301217701 | D99: 0.04061516859 | E99: 0.04454704023 | F99: 0.06100247101 | G99: 0.08456080041 | H99: 0 | I99: 0.005332353792 | J99: 0.009264225432 | K99: 0.02571965621 | L99: 0.04927798562
A100: 91 | B100: ='Data Entry'!M93 -> 0.0353563942 | C100: 0.03301330958 | D100: 0.04062880251 | E100: 0.0445621837 | F100: 0.06102635474 | G100: 0.08470711795 | H100: 0 | I100: 0.005272408313 | J100: 0.009205789505 | K100: 0.02566996054 | L100: 0.04935072375
A101: 92 | B101: ='Data Entry'!M94 -> 0.03542837911 | C101: 0.03301441754 | D101: 0.04064214004 | E101: 0.04457699797 | F101: 0.06104971925 | G101: 0.08485025953 | H101: 0 | I101: 0.005213760937 | J101: 0.009148618864 | K101: 0.02562134015 | L101: 0.04942188042
A102: 93 | B102: ='Data Entry'!M95 -> 0.0354988208 | C102: 0.03301550167 | D102: 0.04065519075 | E102: 0.04459149365 | F102: 0.06107258131 | G102: 0.084990327 | H102: 0 | I102: 0.00515636995 | J102: 0.009092672855 | K102: 0.02557376051 | L102: 0.0494915062
A103: 94 | B103: ='Data Entry'!M96 -> 0.03556776837 | C103: 0.03301656273 | D103: 0.04066796378 | E103: 0.04460568092 | F103: 0.06109495693 | G103: 0.08512741795 | H103: 0 | I103: 0.005100195407 | J103: 0.009037912546 | K103: 0.02552718856 | L103: 0.04955964958
A104: 95 | B104: ='Data Entry'!M97 -> 0.03563526886 | C104: 0.03301760145 | D104: 0.0406804679 | E104: 0.0446195695 | F104: 0.0611168615 | G104: 0.08526162591 | H104: 0 | I104: 0.00504519904 | J104: 0.008984300639 | K104: 0.02548159263 | L104: 0.04962635705
A105: 96 | B105: ='Data Entry'!M98 -> 0.03570136736 | C105: 0.03301861853 | D105: 0.04069271152 | E105: 0.04463316874 | F105: 0.06113830971 | G105: 0.08539304058 | H105: 0 | I105: 0.004991344167 | J105: 0.008931801384 | K105: 0.02543694236 | L105: 0.04969167323
A106: 97 | B106: ='Data Entry'!M99 -> 0.03576610708 | C106: 0.03301961464 | D106: 0.0407047027 | E106: 0.04464648758 | F106: 0.0611593157 | G106: 0.08552174802 | H106: 0 | I106: 0.004938595614 | J106: 0.008880380498 | K106: 0.02539320861 | L106: 0.04975564094
A107: 98 | B107: ='Data Entry'!M100 -> 0.03582952952 | C107: 0.03302059043 | D107: 0.04071644916 | E107: 0.04465953461 | F107: 0.06117989299 | G107: 0.0856478308 | H107: 0 | I107: 0.004886919639 | J107: 0.008830005094 | K107: 0.02535036347 | L107: 0.04981830128
A108: 99 | B108: ='Data Entry'!M101 -> 0.03589167445 | C108: 0.0330215465 | D108: 0.04072795831 | E108: 0.04467231806 | F108: 0.06120005458 | G108: 0.0857713682 | H108: 0 | I108: 0.004836283857 | J108: 0.008780643609 | K108: 0.02530838012 | L108: 0.04987969375
A109: 100 | B109: ='Data Entry'!M102 -> 0.03595258011 | C109: 0.03302248345 | D109: 0.04073923728 | E109: 0.04468484585 | F109: 0.06121981293 | G109: 0.08589243637 | H109: 0 | I109: 0.004786657172 | J109: 0.008732265736 | K109: 0.02526723282 | L109: 0.04993985626
A110: 101 | B110: ='Data Entry'!M103 -> 0 | C110: 0.03302340184 | D110: 0.04075029291 | E110: 0.04469712555 | F110: 0.06123918004 | G110: 0.08601110846 | H110: 0.03302340184 | I110: 0.04075029291 | J110: 0.04469712555 | K110: 0.06123918004 | L110: 0.08601110846
A111: 102 | B111: ='Data Entry'!M104 -> 0 | C111: 0.03302430223 | D111: 0.04076113176 | E111: 0.04470916448 | F111: 0.06125816739 | G111: 0.08612745477 | H111: 0.03302430223 | I111: 0.04076113176 | J111: 0.04470916448 | K111: 0.06125816739 | L111: 0.08612745477
A112: 103 | B112: ='Data Entry'!M105 -> 0 | C112: 0.03302518513 | D112: 0.04077176014 | E112: 0.04472096965 | F112: 0.06127678606 | G112: 0.08624154291 | H112: 0.03302518513 | I112: 0.04077176014 | J112: 0.04472096965 | K112: 0.06127678606 | L112: 0.08624154291
A113: 104 | B113: ='Data Entry'!M106 -> 0 | C113: 0.03302605106 | D113: 0.04078218414 | E113: 0.04473254779 | F113: 0.06129504668 | G113: 0.08635343789 | H113: 0.03302605106 | I113: 0.04078218414 | J113: 0.04473254779 | K113: 0.06129504668 | L113: 0.08635343789
A114: 105 | B114: ='Data Entry'!M107 -> 0 | C114: 0.03302690049 | D114: 0.04079240958 | E114: 0.0447439054 | F114: 0.06131295947 | G114: 0.08646320226 | H114: 0.03302690049 | I114: 0.04079240958 | J114: 0.0447439054 | K114: 0.06131295947 | L114: 0.08646320226
A115: 106 | B115: ='Data Entry'!M108 -> 0 | C115: 0.03302773389 | D115: 0.04080244209 | E115: 0.04475504871 | F115: =F$2+F$3*((1-EXP(-$A115/F$6))/($A115/F$6))+F$4*((1-EXP(-$A115/F$6))/($A115/F$6)-EXP(-$A115/F$6))+F$5*((1-EXP(-$A115/F$7))/($A115/F$7)-EXP(-$A115/F$7)) -> 0.06133053429 | G115: 0.08657089624 | H115: 0.03302773389 | I115: 0.04080244209 | J115: 0.04475504871 | K115: 0.06133053429 | L115: 0.08657089624
A116: 107 | B116: ='Data Entry'!M109 -> 0 | C116: 0.03302855172 | D116: 0.04081228707 | E116: 0.04476598373 | F116: 0.06134778061 | G116: 0.08667657779 | H116: 0.03302855172 | I116: 0.04081228707 | J116: 0.04476598373 | K116: 0.06134778061 | L116: 0.08667657779
A117: 108 | B117: ='Data Entry'!M110 -> 0 | C117: 0.0330293544 | D117: 0.04082194975 | E117: 0.04477671626 | F117: 0.06136470755 | G117: 0.08678030275 | H117: 0.0330293544 | I117: 0.04082194975 | J117: 0.04477671626 | K117: 0.06136470755 | L117: 0.08678030275
A118: 109 | B118: ='Data Entry'!M111 -> 0 | C118: 0.03303014236 | D118: 0.04083143512 | E118: 0.04478725186 | F118: 0.06138132391 | G118: 0.0868821249 | H118: 0.03303014236 | I118: 0.04083143512 | J118: 0.04478725186 | K118: 0.06138132391 | L118: 0.0868821249
A119: 110 | B119: ='Data Entry'!M112 -> 0 | C119: 0.03303091598 | D119: 0.04084074803 | E119: 0.0447975959 | F119: 0.06139763814 | G119: 0.08698209608 | H119: 0.03303091598 | I119: 0.04084074803 | J119: 0.0447975959 | K119: 0.06139763814 | L119: 0.08698209608
A120: 111 | B120: ='Data Entry'!M113 -> 0 | C120: 0.03303167567 | D120: 0.04084989314 | E120: 0.04480775356 | F120: 0.06141365843 | G120: 0.08708026629 | H120: 0.03303167567 | I120: 0.04084989314 | J120: 0.04480775356 | K120: 0.06141365843 | L120: 0.08708026629
A121: 112 | B121: ='Data Entry'!M114 -> 0 | C121: 0.03303242179 | D121: 0.04085887495 | E121: 0.04481772983 | F121: 0.06142939265 | G121: 0.08717668373 | H121: 0.03303242179 | I121: 0.04085887495 | J121: 0.04481772983 | K121: 0.06142939265 | L121: 0.08717668373
A122: 113 | B122: ='Data Entry'!M115 -> 0 | C122: 0.03303315471 | D122: 0.04086769779 | E122: 0.04482752954 | F122: 0.06144484838 | G122: 0.08727139488 | H122: 0.03303315471 | I122: 0.04086769779 | J122: 0.04482752954 | K122: 0.06144484838 | L122: 0.08727139488
A123: 114 | B123: ='Data Entry'!M116 -> 0 | C123: 0.03303387477 | D123: 0.04087636584 | E123: 0.04483715732 | F123: 0.06146003296 | G123: 0.08736444463 | H123: 0.03303387477 | I123: 0.04087636584 | J123: 0.04483715732 | K123: 0.06146003296 | L123: 0.08736444463
A124: 115 | B124: ='Data Entry'!M117 -> 0 | C124: 0.03303458231 | D124: 0.04088488314 | E124: 0.04484661766 | F124: 0.06147495345 | G124: 0.08745587629 | H124: 0.03303458231 | I124: 0.04088488314 | J124: 0.04484661766 | K124: 0.06147495345 | L124: 0.08745587629
A125: 116 | B125: ='Data Entry'!M118 -> 0 | C125: 0.03303527764 | D125: 0.04089325359 | E125: 0.04485591489 | F125: 0.0614896167 | G125: 0.0875457317 | H125: 0.03303527764 | I125: 0.04089325359 | J125: 0.04485591489 | K125: 0.0614896167 | L125: 0.0875457317
A126: 117 | B126: ='Data Entry'!M119 -> 0 | C126: 0.03303596109 | D126: 0.04090148096 | E126: 0.04486505319 | F126: 0.0615040293 | G126: 0.08763405123 | H126: 0.03303596109 | I126: 0.04090148096 | J126: 0.04486505319 | K126: 0.0615040293 | L126: 0.08763405123
A127: 118 | B127: ='Data Entry'!M120 -> 0 | C127: 0.03303663296 | D127: 0.04090956888 | E127: 0.04487403661 | F127: 0.06151819761 | G127: 0.08772087394 | H127: 0.03303663296 | I127: 0.04090956888 | J127: 0.04487403661 | K127: 0.06151819761 | L127: 0.08772087394
A128: 119 | B128: ='Data Entry'!M121 -> 0 | C128: 0.03303729353 | D128: 0.04091752087 | E128: 0.04488286904 | F128: 0.0615321278 | G128: 0.08780623753 | H128: 0.03303729353 | I128: 0.04091752087 | J128: 0.04488286904 | K128: 0.0615321278 | L128: 0.08780623753
A129: 120 | B129: ='Data Entry'!M122 -> 0 | C129: 0.0330379431 | D129: 0.04092534032 | E129: 0.04489155427 | F129: 0.06154582582 | G129: 0.08789017848 | H129: 0.0330379431 | I129: 0.04092534032 | J129: 0.04489155427 | K129: 0.06154582582 | L129: 0.08789017848
A130: 121 | B130: ='Data Entry'!M123 -> 0 | C130: 0.03303858193 | D130: 0.04093303053 | E130: 0.04490009594 | F130: 0.06155929743 | G130: 0.08797273205 | H130: 0.03303858193 | I130: 0.04093303053 | J130: 0.04490009594 | K130: 0.06155929743 | L130: 0.08797273205
A131: 122 | B131: ='Data Entry'!M124 -> 0 | C131: 0.03303921028 | D131: 0.04094059467 | E131: 0.04490849759 | F131: 0.06157254819 | G131: 0.08805393233 | H131: 0.03303921028 | I131: 0.04094059467 | J131: 0.04490849759 | K131: 0.06157254819 | L131: 0.08805393233
A132: 123 | B132: ='Data Entry'!M125 -> 0 | C132: 0.03303982842 | D132: 0.04094803582 | E132: 0.04491676262 | F132: 0.06158558349 | G132: 0.08813381235 | H132: 0.03303982842 | I132: 0.04094803582 | J132: 0.04491676262 | K132: 0.06158558349 | L132: 0.08813381235
A133: 124 | B133: ='Data Entry'!M126 -> 0 | C133: 0.03304043659 | D133: 0.04095535694 | E133: 0.04492489434 | F133: 0.06159840854 | G133: 0.08821240401 | H133: 0.03304043659 | I133: 0.04095535694 | J133: 0.04492489434 | K133: 0.06159840854 | L133: 0.08821240401
A134: 125 | B134: ='Data Entry'!M127 -> 0 | C134: 0.03304103503 | D134: 0.04096256093 | E134: 0.04493289596 | F134: 0.0616110284 | G134: 0.08828973826 | H134: 0.03304103503 | I134: 0.04096256093 | J134: 0.04493289596 | K134: 0.0616110284 | L134: 0.08828973826
A135: 126 | B135: ='Data Entry'!M128 -> 0 | C135: 0.03304162397 | D135: 0.04096965057 | E135: 0.04494077056 | F135: 0.06162344794 | G135: 0.088365845 | H135: 0.03304162397 | I135: 0.04096965057 | J135: 0.04494077056 | K135: 0.06162344794 | L135: 0.088365845
A136: 127 | B136: ='Data Entry'!M129 -> 0 | C136: 0.03304220363 | D136: 0.04097662856 | E136: 0.04494852116 | F136: 0.06163567189 | G136: 0.08844075325 | H136: 0.03304220363 | I136: 0.04097662856 | J136: 0.04494852116 | K136: 0.06163567189 | L136: 0.08844075325
A137: 128 | B137: ='Data Entry'!M130 -> 0 | C137: 0.03304277424 | D137: 0.04098349752 | E137: 0.04495615066 | F137: 0.06164770485 | G137: 0.08851449108 | H137: 0.03304277424 | I137: 0.04098349752 | J137: 0.04495615066 | K137: 0.06164770485 | L137: 0.08851449108
A138: 129 | B138: ='Data Entry'!M131 -> 0 | C138: 0.033043336 | D138: 0.04099025999 | E138: 0.04496366186 | F138: 0.06165955125 | G138: 0.08858708571 | H138: 0.033043336 | I138: 0.04099025999 | J138: 0.04496366186 | K138: 0.06165955125 | L138: 0.08858708571
A139: 130 | B139: ='Data Entry'!M132 -> 0 | C139: =MAX(C$2+C$3*((1-EXP(-$A139/C$6))/($A139/C$6))+C$4*((1-EXP(-$A139/C$6))/($A139/C$6)-EXP(-$A139/C$6))+C$5*((1-EXP(-$A139/C$7))/($A139/C$7)-EXP(-$A139/C$7)),0) -> 0.03304388912 | D139: 0.04099691842 | E139: 0.04497105751 | F139: 0.06167121539 | G139: 0.08865856351 | H139: =MAX(C139-$B139,0) -> 0.03304388912 | I139: =MAX(D139-$B139,0) -> 0.04099691842 | J139: =MAX(E139-$B139,0) -> 0.04497105751 | K139: =MAX(F139-$B139,0) -> 0.06167121539 | L139: =MAX(G139-$B139,0) -> 0.08865856351
A140: =A139+1 -> 131 | B140: ='Data Entry'!M133 -> 0 | C140: 0.03304443379 | D140: 0.04100347519 | E140: 0.04497834025 | F140: 0.06168270146 | G140: 0.08872895007 | H140: 0.03304443379 | I140: 0.04100347519 | J140: 0.04497834025 | K140: 0.06168270146 | L140: 0.08872895007
A141: 132 | B141: ='Data Entry'!M134 -> 0 | C141: 0.03304497022 | D141: 0.04100993261 | E141: 0.04498551265 | F141: 0.0616940135 | G141: 0.08879827018 | H141: 0.03304497022 | I141: 0.04100993261 | J141: 0.04498551265 | K141: 0.0616940135 | L141: 0.08879827018
A142: 133 | B142: ='Data Entry'!M135 -> 0 | C142: 0.03304549857 | D142: 0.04101629294 | E142: 0.04499257719 | F142: 0.06170515543 | G142: 0.0888665479 | H142: 0.03304549857 | I142: 0.04101629294 | J142: 0.04499257719 | K142: 0.06170515543 | L142: 0.0888665479
A143: 134 | B143: ='Data Entry'!M136 -> 0 | C143: 0.03304601904 | D143: 0.04102255833 | E143: 0.04499953629 | F143: 0.06171613106 | G143: 0.08893380655 | H143: 0.03304601904 | I143: 0.04102255833 | J143: 0.04499953629 | K143: 0.06171613106 | L143: 0.08893380655
A144: 135 | B144: ='Data Entry'!M137 -> 0 | C144: 0.0330465318 | D144: 0.0410287309 | E144: 0.04500639229 | F144: 0.06172694409 | G144: 0.08900006879 | H144: 0.0330465318 | I144: 0.0410287309 | J144: 0.04500639229 | K144: 0.06172694409 | L144: 0.08900006879
A145: 136 | B145: ='Data Entry'!M138 -> 0 | C145: 0.03304703701 | D145: 0.0410348127 | E145: 0.04501314746 | F145: 0.06173759811 | G145: 0.08906535659 | H145: 0.03304703701 | I145: 0.0410348127 | J145: 0.04501314746 | K145: 0.06173759811 | L145: 0.08906535659
A146: 137 | B146: ='Data Entry'!M139 -> 0 | C146: 0.03304753486 | D146: 0.04104080571 | E146: 0.04501980403 | F146: 0.06174809659 | G146: 0.0891296913 | H146: 0.03304753486 | I146: 0.04104080571 | J146: 0.04501980403 | K146: 0.06174809659 | L146: 0.0891296913
A147: 138 | B147: ='Data Entry'!M140 -> 0 | C147: 0.03304802548 | D147: 0.04104671187 | E147: 0.04502636411 | F147: 0.06175844292 | G147: 0.08919309362 | H147: 0.03304802548 | I147: 0.04104671187 | J147: 0.04502636411 | K147: 0.06175844292 | L147: 0.08919309362
A148: 139 | B148: ='Data Entry'!M141 -> 0 | C148: 0.03304850905 | D148: 0.04105253305 | E148: 0.04503282981 | F148: 0.06176864038 | G148: 0.08925558368 | H148: 0.03304850905 | I148: 0.04105253305 | J148: 0.04503282981 | K148: 0.06176864038 | L148: 0.08925558368
A149: 140 | B149: ='Data Entry'!M142 -> 0 | C149: 0.03304898571 | D149: 0.04105827107 | E149: 0.04503920315 | F149: 0.06177869217 | G149: 0.08931718103 | H149: 0.03304898571 | I149: 0.04105827107 | J149: 0.04503920315 | K149: 0.06177869217 | L149: 0.08931718103
A150: 141 | B150: ='Data Entry'!M143 -> 0 | C150: 0.03304945561 | D150: 0.04106392769 | E150: 0.04504548608 | F150: 0.06178860137 | G150: 0.08937790467 | H150: 0.03304945561 | I150: 0.04106392769 | J150: 0.04504548608 | K150: 0.06178860137 | L150: 0.08937790467
A151: 142 | B151: ='Data Entry'!M144 -> 0 | C151: 0.03304991889 | D151: 0.04106950465 | E151: 0.04505168052 | F151: 0.06179837101 | G151: 0.08943777304 | H151: 0.03304991889 | I151: 0.04106950465 | J151: 0.04505168052 | K151: 0.06179837101 | L151: 0.08943777304
A152: 143 | B152: ='Data Entry'!M145 -> 0 | C152: 0.03305037569 | D152: 0.04107500361 | E152: 0.04505778832 | F152: 0.06180800402 | G152: 0.0894968041 | H152: 0.03305037569 | I152: 0.04107500361 | J152: 0.04505778832 | K152: 0.06180800402 | L152: 0.0894968041
A153: 144 | B153: ='Data Entry'!M146 -> 0 | C153: 0.03305082615 | D153: 0.04108042619 | E153: 0.04506381129 | F153: 0.06181750323 | G153: 0.08955501528 | H153: 0.03305082615 | I153: 0.04108042619 | J153: 0.04506381129 | K153: 0.06181750323 | L153: 0.08955501528
A154: 145 | B154: ='Data Entry'!M147 -> 0 | C154: 0.03305127039 | D154: 0.04108577398 | E154: 0.04506975119 | F154: 0.06182687141 | G154: 0.08961242356 | H154: 0.03305127039 | I154: 0.04108577398 | J154: 0.04506975119 | K154: 0.06182687141 | L154: 0.08961242356
A155: 146 | B155: ='Data Entry'!M148 -> 0 | C155: 0.03305170855 | D155: 0.04109104851 | E155: 0.04507560972 | F155: 0.06183611127 | G155: 0.08966904542 | H155: 0.03305170855 | I155: 0.04109104851 | J155: 0.04507560972 | K155: 0.06183611127 | L155: 0.08966904542
A156: 147 | B156: ='Data Entry'!M149 -> 0 | C156: 0.03305214074 | D156: 0.04109625128 | E156: 0.04508138854 | F156: 0.06184522541 | G156: 0.08972489692 | H156: 0.03305214074 | I156: 0.04109625128 | J156: 0.04508138854 | K156: 0.06184522541 | L156: 0.08972489692
A157: 148 | B157: ='Data Entry'!M150 -> 0 | C157: 0.0330525671 | D157: 0.04110138374 | E157: 0.04508708927 | F157: 0.06185421639 | G157: 0.08977999366 | H157: 0.0330525671 | I157: 0.04110138374 | J157: 0.04508708927 | K157: 0.06185421639 | L157: 0.08977999366
A158: 149 | B158: ='Data Entry'!M151 -> 0 | C158: 0.03305298773 | D158: 0.04110644731 | E158: 0.04509271348 | F158: 0.06186308668 | G158: 0.08983435086 | H158: 0.03305298773 | I158: 0.04110644731 | J158: 0.04509271348 | K158: 0.06186308668 | L158: 0.08983435086
A159: 150 | B159: ='Data Entry'!M152 -> 0 | C159: 0.03305340275 | D159: 0.04111144336 | E159: 0.0450982627 | F159: 0.06187183871 | G159: 0.08988798329 | H159: 0.03305340275 | I159: 0.04111144336 | J159: 0.0450982627 | K159: 0.06187183871 | L159: 0.08988798329
A160: 151 | B160: ='Data Entry'!M153 -> 0 | C160: 0.03305381228 | D160: 0.04111637325 | E160: 0.04510373842 | F160: 0.06188047481 | G160: 0.08994090537 | H160: 0.03305381228 | I160: 0.04111637325 | J160: 0.04510373842 | K160: 0.06188047481 | L160: 0.08994090537
A161: 152 | B161: ='Data Entry'!M154 -> 0 | C161: 0.03305421642 | D161: 0.04112123826 | E161: 0.04510914209 | F161: 0.06188899728 | G161: 0.0899931311 | H161: 0.03305421642 | I161: 0.04112123826 | J161: 0.04510914209 | K161: 0.06188899728 | L161: 0.0899931311
A162: 153 | B162: ='Data Entry'!M155 -> 0 | C162: 0.03305461528 | D162: 0.04112603968 | E162: 0.04511447512 | F162: 0.06189740835 | G162: 0.09004467414 | H162: 0.03305461528 | I162: 0.04112603968 | J162: 0.04511447512 | K162: 0.06189740835 | L162: 0.09004467414
A163: 154 | B163: ='Data Entry'!M156 -> 0 | C163: 0.03305500895 | D163: 0.04113077875 | E163: 0.0451197389 | F163: 0.06190571018 | G163: 0.09009554779 | H163: 0.03305500895 | I163: 0.04113077875 | J163: 0.0451197389 | K163: 0.06190571018 | L163: 0.09009554779
A164: 155 | B164: ='Data Entry'!M157 -> 0 | C164: 0.03305539755 | D164: 0.04113545666 | E164: 0.04512493475 | F164: 0.06191390489 | G164: 0.09014576501 | H164: 0.03305539755 | I164: 0.04113545666 | J164: 0.04512493475 | K164: 0.06191390489 | L164: 0.09014576501
A165: 156 | B165: ='Data Entry'!M158 -> 0 | C165: 0.03305578116 | D165: 0.0411400746 | E165: 0.04513006399 | F165: 0.06192199454 | G165: 0.09019533841 | H165: 0.03305578116 | I165: 0.0411400746 | J165: 0.04513006399 | K165: 0.06192199454 | L165: 0.09019533841
A166: 157 | B166: ='Data Entry'!M159 -> 0 | C166: 0.03305615989 | D166: 0.04114463372 | E166: 0.04513512789 | F166: =F$2+F$3*((1-EXP(-$A166/F$6))/($A166/F$6))+F$4*((1-EXP(-$A166/F$6))/($A166/F$6)-EXP(-$A166/F$6))+F$5*((1-EXP(-$A166/F$7))/($A166/F$7)-EXP(-$A166/F$7)) -> 0.06192998113 | G166: 0.09024428031 | H166: 0.03305615989 | I166: 0.04114463372 | J166: 0.04513512789 | K166: 0.06192998113 | L166: 0.09024428031
A167: 158 | B167: ='Data Entry'!M160 -> 0 | C167: 0.03305653382 | D167: 0.04114913512 | E167: 0.0451401277 | F167: 0.06193786663 | G167: 0.09029260269 | H167: 0.03305653382 | I167: 0.04114913512 | J167: 0.0451401277 | K167: 0.06193786663 | L167: 0.09029260269
A168: 159 | B168: ='Data Entry'!M161 -> 0 | C168: 0.03305690305 | D168: 0.0411535799 | E168: 0.04514506461 | F168: 0.06194565295 | G168: 0.09034031725 | H168: 0.03305690305 | I168: 0.0411535799 | J168: 0.04514506461 | K168: 0.06194565295 | L168: 0.09034031725
A169: 160 | B169: ='Data Entry'!M162 -> 0 | C169: 0.03305726767 | D169: 0.04115796912 | E169: 0.0451499398 | F169: 0.06195334193 | G169: 0.09038743537 | H169: 0.03305726767 | I169: 0.04115796912 | J169: 0.0451499398 | K169: 0.06195334193 | L169: 0.09038743537
A170: 161 | B170: ='Data Entry'!M163 -> 0 | C170: 0.03305762775 | D170: 0.04116230382 | E170: 0.04515475444 | F170: 0.0619609354 | G170: 0.09043396817 | H170: 0.03305762775 | I170: 0.04116230382 | J170: 0.04515475444 | K170: 0.0619609354 | L170: 0.09043396817
A171: 162 | B171: ='Data Entry'!M164 -> 0 | C171: 0.03305798339 | D171: 0.04116658501 | E171: 0.04515950964 | F171: 0.06196843512 | G171: 0.0904799265 | H171: 0.03305798339 | I171: 0.04116658501 | J171: 0.04515950964 | K171: 0.06196843512 | L171: 0.0904799265
A172: 163 | B172: ='Data Entry'!M165 -> 0 | C172: 0.03305833467 | D172: 0.04117081366 | E172: 0.04516420649 | F172: 0.06197584282 | G172: 0.09052532092 | H172: 0.03305833467 | I172: 0.04117081366 | J172: 0.04516420649 | K172: 0.06197584282 | L172: 0.09052532092
A173: 164 | B173: ='Data Entry'!M166 -> 0 | C173: 0.03305868166 | D173: 0.04117499074 | E173: 0.04516884606 | F173: 0.06198316018 | G173: 0.09057016175 | H173: 0.03305868166 | I173: 0.04117499074 | J173: 0.04516884606 | K173: 0.06198316018 | L173: 0.09057016175
A174: 165 | B174: ='Data Entry'!M167 -> 0 | C174: 0.03305902445 | D174: 0.0411791172 | E174: 0.0451734294 | F174: 0.06199038885 | G174: 0.09061445905 | H174: 0.03305902445 | I174: 0.0411791172 | J174: 0.0451734294 | K174: 0.06199038885 | L174: 0.09061445905
A175: 166 | B175: ='Data Entry'!M168 -> 0 | C175: 0.0330593631 | D175: 0.04118319393 | E175: 0.04517795751 | F175: 0.06199753042 | G175: 0.09065822265 | H175: 0.0330593631 | I175: 0.04118319393 | J175: 0.04517795751 | K175: 0.06199753042 | L175: 0.09065822265
A176: 167 | B176: ='Data Entry'!M169 -> 0 | C176: 0.0330596977 | D176: 0.04118722185 | E176: 0.0451824314 | F176: 0.06200458647 | G176: 0.09070146214 | H176: 0.0330596977 | I176: 0.04118722185 | J176: 0.0451824314 | K176: 0.06200458647 | L176: 0.09070146214
A177: 168 | B177: ='Data Entry'!M170 -> 0 | C177: 0.03306002832 | D177: 0.04119120181 | E177: 0.04518685202 | F177: 0.06201155852 | G177: 0.09074418687 | H177: 0.03306002832 | I177: 0.04119120181 | J177: 0.04518685202 | K177: 0.06201155852 | L177: 0.09074418687
A178: 169 | B178: ='Data Entry'!M171 -> 0 | C178: 0.03306035502 | D178: 0.04119513467 | E178: 0.04519122033 | F178: 0.06201844805 | G178: 0.09078640598 | H178: 0.03306035502 | I178: 0.04119513467 | J178: 0.04519122033 | K178: 0.06201844805 | L178: 0.09078640598
A179: 170 | B179: ='Data Entry'!M172 -> 0 | C179: 0.03306067789 | D179: 0.04119902127 | E179: 0.04519553725 | F179: 0.06202525654 | G179: 0.0908281284 | H179: 0.03306067789 | I179: 0.04119902127 | J179: 0.04519553725 | K179: 0.06202525654 | L179: 0.0908281284
A180: 171 | B180: ='Data Entry'!M173 -> 0 | C180: 0.03306099697 | D180: 0.0412028624 | E180: 0.04519980368 | F180: 0.06203198539 | G180: 0.09086936284 | H180: 0.03306099697 | I180: 0.0412028624 | J180: 0.04519980368 | K180: 0.06203198539 | L180: 0.09086936284
A181: 172 | B181: ='Data Entry'!M174 -> 0 | C181: 0.03306131234 | D181: 0.04120665887 | E181: 0.0452040205 | F181: 0.062038636 | G181: 0.0909101178 | H181: 0.03306131234 | I181: 0.04120665887 | J181: 0.0452040205 | K181: 0.062038636 | L181: 0.0909101178
A182: 173 | B182: ='Data Entry'!M175 -> 0 | C182: 0.03306162407 | D182: 0.04121041146 | E182: 0.04520818857 | F182: 0.06204520972 | G182: 0.09095040161 | H182: 0.03306162407 | I182: 0.04121041146 | J182: 0.04520818857 | K182: 0.06204520972 | L182: 0.09095040161
A183: 174 | B183: ='Data Entry'!M176 -> 0 | C183: 0.03306193222 | D183: 0.0412141209 | E183: 0.04521230873 | F183: 0.06205170789 | G183: 0.09099022239 | H183: 0.03306193222 | I183: 0.0412141209 | J183: 0.04521230873 | K183: 0.06205170789 | L183: 0.09099022239
A184: 175 | B184: ='Data Entry'!M177 -> 0 | C184: 0.03306223684 | D184: 0.04121778796 | E184: 0.0452163818 | F184: 0.06205813178 | G184: 0.09102958807 | H184: 0.03306223684 | I184: 0.04121778796 | J184: 0.0452163818 | K184: 0.06205813178 | L184: 0.09102958807
A185: 176 | B185: ='Data Entry'!M178 -> 0 | C185: 0.033062538 | D185: 0.04122141334 | E185: 0.04522040859 | F185: 0.06206448269 | G185: 0.09106850642 | H185: 0.033062538 | I185: 0.04122141334 | J185: 0.04522040859 | K185: 0.06206448269 | L185: 0.09106850642
A186: 177 | B186: ='Data Entry'!M179 -> 0 | C186: 0.03306283576 | D186: 0.04122499776 | E186: 0.04522438987 | F186: 0.06207076182 | G186: 0.09110698501 | H186: 0.03306283576 | I186: 0.04122499776 | J186: 0.04522438987 | K186: 0.06207076182 | L186: 0.09110698501
A187: 178 | B187: ='Data Entry'!M180 -> 0 | C187: 0.03306313018 | D187: 0.04122854191 | E187: 0.04522832643 | F187: 0.06207697041 | G187: 0.09114503126 | H187: 0.03306313018 | I187: 0.04122854191 | J187: 0.04522832643 | K187: 0.06207697041 | L187: 0.09114503126
A188: 179 | B188: ='Data Entry'!M181 -> 0 | C188: 0.0330634213 | D188: 0.04123204645 | E188: 0.045232219 | F188: 0.06208310963 | G188: 0.09118265241 | H188: 0.0330634213 | I188: 0.04123204645 | J188: 0.045232219 | K188: 0.06208310963 | L188: 0.09118265241
A189: 180 | B189: ='Data Entry'!M182 -> 0 | C189: 0.03306370919 | D189: 0.04123551206 | E189: 0.04523606832 | F189: 0.06208918063 | G189: 0.09121985554 | H189: 0.03306370919 | I189: 0.04123551206 | J189: 0.04523606832 | K189: 0.06208918063 | L189: 0.09121985554
A190: 181 | B190: ='Data Entry'!M183 -> 0 | C190: 0.0330639939 | D190: 0.04123893937 | E190: 0.0452398751 | F190: 0.06209518455 | G190: 0.09125664759 | H190: 0.0330639939 | I190: 0.04123893937 | J190: 0.0452398751 | K190: 0.06209518455 | L190: 0.09125664759
A191: 182 | B191: ='Data Entry'!M184 -> 0 | C191: 0.03306427548 | D191: 0.04124232902 | E191: 0.04524364005 | F191: 0.0621011225 | G191: 0.09129303534 | H191: 0.03306427548 | I191: 0.04124232902 | J191: 0.04524364005 | K191: 0.0621011225 | L191: 0.09129303534
A192: 183 | B192: ='Data Entry'!M185 -> 0 | C192: 0.03306455398 | D192: 0.04124568162 | E192: 0.04524736386 | F192: 0.06210699554 | G192: 0.0913290254 | H192: 0.03306455398 | I192: 0.04124568162 | J192: 0.04524736386 | K192: 0.06210699554 | L192: 0.0913290254
A193: 184 | B193: ='Data Entry'!M186 -> 0 | C193: 0.03306482946 | D193: 0.04124899779 | E193: 0.04525104719 | F193: 0.06211280475 | G193: 0.09136462427 | H193: 0.03306482946 | I193: 0.04124899779 | J193: 0.04525104719 | K193: 0.06211280475 | L193: 0.09136462427
A194: 185 | B194: ='Data Entry'!M187 -> 0 | C194: 0.03306510195 | D194: 0.0412522781 | E194: 0.0452546907 | F194: 0.06211855116 | G194: 0.09139983828 | H194: 0.03306510195 | I194: 0.0412522781 | J194: 0.0452546907 | K194: 0.06211855116 | L194: 0.09139983828
A195: 186 | B195: ='Data Entry'!M188 -> 0 | C195: 0.03306537152 | D195: 0.04125552314 | E195: 0.04525829503 | F195: 0.06212423578 | G195: 0.09143467365 | H195: 0.03306537152 | I195: 0.04125552314 | J195: 0.04525829503 | K195: 0.06212423578 | L195: 0.09143467365
A196: 187 | B196: ='Data Entry'!M189 -> 0 | C196: 0.0330656382 | D196: 0.04125873347 | E196: 0.04526186081 | F196: 0.0621298596 | G196: 0.09146913645 | H196: 0.0330656382 | I196: 0.04125873347 | J196: 0.04526186081 | K196: 0.0621298596 | L196: 0.09146913645
A197: 188 | B197: ='Data Entry'!M190 -> 0 | C197: 0.03306590205 | D197: 0.04126190965 | E197: 0.04526538866 | F197: 0.06213542359 | G197: 0.09150323263 | H197: 0.03306590205 | I197: 0.04126190965 | J197: 0.04526538866 | K197: 0.06213542359 | L197: 0.09150323263
A198: 189 | B198: ='Data Entry'!M191 -> 0 | C198: 0.0330661631 | D198: 0.04126505222 | E198: 0.04526887918 | F198: 0.06214092871 | G198: 0.09153696799 | H198: 0.0330661631 | I198: 0.04126505222 | J198: 0.04526887918 | K198: 0.06214092871 | L198: 0.09153696799
A199: 190 | B199: ='Data Entry'!M192 -> 0 | C199: 0.03306642141 | D199: 0.04126816171 | E199: 0.04527233295 | F199: 0.06214637587 | G199: 0.09157034825 | H199: 0.03306642141 | I199: 0.04126816171 | J199: 0.04527233295 | K199: 0.06214637587 | L199: 0.09157034825
A200: 191 | B200: ='Data Entry'!M193 -> 0 | C200: 0.03306667701 | D200: 0.04127123865 | E200: 0.04527575056 | F200: 0.062151766 | G200: 0.09160337898 | H200: 0.03306667701 | I200: 0.04127123865 | J200: 0.04527575056 | K200: 0.062151766 | L200: 0.09160337898
A201: 192 | B201: ='Data Entry'!M194 -> 0 | C201: 0.03306692995 | D201: 0.04127428353 | E201: 0.04527913257 | F201: 0.06215709998 | G201: 0.09163606563 | H201: 0.03306692995 | I201: 0.04127428353 | J201: 0.04527913257 | K201: 0.06215709998 | L201: 0.09163606563
... 168 more rows

Sheet AAA Yield Curve
D1: Bond Name | E1: Next Coupon Date | F1: Maturity | G1: Cpn Payment Freq | H1: Clean Price | I1: AI | J1: Coupon Rate | K1: Cash Price | L1: Yield to Maturity | M1: Macauley Duration | N1: Duration | O1: Inverse of Macauley Duration | P1: Weights for Optimization
A2: Parameters | C2: 1 | D2: ='Data Entry'!B4 -> EJ970134 Corp | E2: ='Data Entry'!C4 -> 12/5/2019 | F2: ='Data Entry'!D4 -> 12/5/2023 | G2: ='Data Entry'!E4 -> 2 | H2: ='Data Entry'!F4 -> 105.706 | I2: ='Data Entry'!G4 -> 0.28125 | J2: ='Data Entry'!H4/100 -> 0.03375 | K2: ='Data Entry'!I4 -> 105.98725 | L2: =YIELD(B$3,F2,J2,H2,100,G2,0) -> 0.02020257951 | M2: =MDURATION(B$3,F2,J2,L2,G2,0) -> 4.105830923 | N2: =DURATION(B$3,F2,J2,L2,G2,0) -> 4.14730511 | O2: =1/M2 -> 0.2435560594 | P2: =O2/$O$33 -> 0.03445113603
A3: Current Day t=0 | B3: =Instructions!D35 -> 2019-07-02 | C3: =C2+1 -> 2 | D3: ='Data Entry'!B5 -> EK131594 Corp | G3: ='Data Entry'!E5 -> 2
A4: Nelson Siegel Parameters | C4: 3 | D4: ='Data Entry'!B6 -> EH686726 Corp | E4: ='Data Entry'!C6 -> 9/1/2019 | F4: ='Data Entry'!D6 -> 3/1/2039 | G4: ='Data Entry'!E6 -> 2 | H4: ='Data Entry'!F6 -> 138.604 | I4: ='Data Entry'!G6 -> 1.963333333 | J4: ='Data Entry'!H6/100 -> 0.057 | K4: ='Data Entry'!I6 -> 140.5673333 | L4: =YIELD(B$3,F4,J4,H4,100,G4,0) -> 0.03070051693 | M4: =MDURATION(B$3,F4,J4,L4,G4,0) -> 12.9126299 | N4: =DURATION(B$3,F4,J4,L4,G4,0) -> 13.11084211 | O4: 0.07744355777 | P4: 0.01095443304
A5: b0 | B5: 0.03311524137 | C5: 4 | D5: ='Data Entry'!B7 -> EI355099 Corp | E5: ='Data Entry'!C7 -> 9/1/2019 | F5: ='Data Entry'!D7 -> 9/1/2020 | G5: ='Data Entry'!E7 -> 2 | H5: ='Data Entry'!F7 -> 101.058 | I5: ='Data Entry'!G7 -> 1.016111111 | J5: ='Data Entry'!H7/100 -> 0.0295 | K5: ='Data Entry'!I7 -> 102.0741111 | L5: 0.02024205709 | M5: 1.130905926 | N5: 1.142351857 | O5: 0.8842468479 | P5: 0.1250771938
A6: b1 | B6: 294.001344 | C6: 5 | D6: ='Data Entry'!B8 -> EK612940 Corp
A7: b2 | B7: -276.3237034 | C7: 6 | D7: ='Data Entry'!B9 -> EC984187 Corp | E7: ='Data Entry'!C9 -> 11/15/2019 | F7: ='Data Entry'!D9 -> 5/15/2033 | G7: ='Data Entry'!E9 -> 2 | H7: ='Data Entry'!F9 -> 125.01 | I7: ='Data Entry'!G9 -> 0.6875 | J7: ='Data Entry'!H9/100 -> 0.0495 | K7: ='Data Entry'!I9 -> 125.6975 | L7: 0.02766200203 | M7: 10.44083218 | N7: 10.58523934 | O7: 0.09577780607 | P7: 0.01354782236
A8: b3 | B8: -7.338181006 | C8: 7 | D8: ='Data Entry'!B10 -> EJ897877 Corp | E8: ='Data Entry'!C10 -> 12/1/2019 | F8: ='Data Entry'!D10 -> 12/1/2020 | G8: ='Data Entry'!E10 -> 2 | H8: ='Data Entry'!F10 -> 99.5895 | I8: ='Data Entry'!G10 -> 0.2458388889 | J8: ='Data Entry'!H10/100 -> 0.02603 | K8: ='Data Entry'!I10 -> 99.83533889 | L8: 0.02900458231 | M8: 1.374717214 | N8: 1.394653763 | O8: 0.7274223309 | P8: 0.1028942812
A9: tau | B9: 0.01412347041 | C9: 8
A10: rho | B10: 0.03528741334 | C10: 9 | D10: ='Data Entry'!B12 -> EG991342 Corp | E10: ='Data Entry'!C12 -> 11/6/2019 | F10: ='Data Entry'!D12 -> 11/6/2019 | G10: ='Data Entry'!E12 -> 1 | H10: ='Data Entry'!F12 -> 101.7635 | I10: ='Data Entry'!G12 -> 3.123287671 | J10: ='Data Entry'!H12/100 -> 0.0475 | K10: ='Data Entry'!I12 -> 104.8867877 | L10: -0.00352639128 | O10: 1 | P10: 0.1414505396
C11: 10 | D11: ='Data Entry'!B13 -> EJ970116 Corp
C12: 11 | D12: ='Data Entry'!B14 -> EI459872 Corp | E12: ='Data Entry'!C14 -> 10/15/2019 | F12: ='Data Entry'!D14 -> 10/15/2040 | G12: ='Data Entry'!E14 -> 2 | H12: ='Data Entry'!F14 -> 123.7795 | I12: ='Data Entry'!G14 -> 1.083333333 | J12: ='Data Entry'!H14/100 -> 0.04875 | K12: ='Data Entry'!I14 -> 124.8628333 | L12: 0.03309394333 | M12: 13.98347101 | N12: 14.21485511 | O12: 0.07151300267 | P12: 0.01011555282
C13: 12 | D13: ='Data Entry'!B15 -> EJ483651 Corp | P13: 0
C14: 13 | D14: ='Data Entry'!B16 -> EJ115530 Corp | E14: ='Data Entry'!C16 -> 11/1/2019 | F14: ='Data Entry'!D16 -> 5/1/2042 | G14: ='Data Entry'!E16 -> 2 | H14: ='Data Entry'!F16 -> 110.927 | I14: ='Data Entry'!G16 -> 0.7134222222 | J14: ='Data Entry'!H16/100 -> 0.04013 | K14: ='Data Entry'!I16 -> 111.6404222 | L14: 0.03325881995 | M14: 15.24174343 | N14: 15.49520463 | O14: 0.0656092923 | P14: 0.009280469802
C15: 14
C16: 15 | D16: ='Data Entry'!B18 -> EH318326 Corp | E16: ='Data Entry'!C18 -> 12/15/2019 | F16: ='Data Entry'!D18 -> 6/15/2038 | G16: ='Data Entry'!E18 -> 2 | H16: ='Data Entry'!F18 -> 137.882 | I16: ='Data Entry'!G18 -> 0.3541666667 | J16: ='Data Entry'!H18/100 -> 0.06375 | K16: ='Data Entry'!I18 -> 138.2361667 | L16: 0.03599985586 | M16: 12.2142938 | N16: 12.43415021 | O16: 0.08187129083 | P16: 0.01158073827
C17: 16 | D17: ='Data Entry'!B19 -> EF339848 Corp
C18: 17 | D18: ='Data Entry'!B20 -> EJ483631 Corp
C19: 18 | D19: ='Data Entry'!B21 -> EF339848 Corp
C20: 19 | D20: ='Data Entry'!B22 -> EJ897883 Corp | E20: ='Data Entry'!C22 -> 12/1/2019 | F20: ='Data Entry'!D22 -> 12/1/2021 | G20: ='Data Entry'!E22 -> 2 | H20: ='Data Entry'!F22 -> 100.1285 | I20: ='Data Entry'!G22 -> 0.2787055556 | J20: ='Data Entry'!H22/100 -> 0.02951 | K20: ='Data Entry'!I22 -> 100.4072056 | L20: 0.02894848855 | M20: 2.308873774 | N20: 2.342292977 | O20: 0.4331115937 | P20: 0.06126386866
C21: 20 | D21: ='Data Entry'!B23 -> EJ483701 Corp | E21: ='Data Entry'!C23 -> 12/1/2019 | F21: ='Data Entry'!D23 -> 12/1/2023 | G21: ='Data Entry'!E23 -> 2 | H21: ='Data Entry'!F23 -> 96.6455 | I21: ='Data Entry'!G23 -> 0.2632166667 | J21: ='Data Entry'!H23/100 -> 0.02787 | K21: ='Data Entry'!I23 -> 96.90871667 | L21: 0.03615638753 | M21: 4.09506788 | N21: 4.169099311 | O21: 0.2441961963 | P21: 0.03454168375
C22: 21 | D22: ='Data Entry'!B24 -> EJ897865 Corp | P22: 0
C23: 22 | D23: ='Data Entry'!B25 -> EJ483661 Corp | E23: ='Data Entry'!C25 -> 12/1/2019 | F23: ='Data Entry'!D25 -> 12/1/2019 | G23: ='Data Entry'!E25 -> 2 | H23: ='Data Entry'!F25 -> 99.43 | I23: ='Data Entry'!G25 -> 0.16915 | J23: ='Data Entry'!H25/100 -> 0.01791 | K23: ='Data Entry'!I25 -> 99.59915 | L23: 0.0318140871 | M23: 0.4074082285 | N23: 0.4138888889 | O23: 2.454540508 | P23: 0.3471960794
C24: 23 | D24: ='Data Entry'!B26 -> EG738742 Corp | P24: 0
C25: 24 | D25: ='Data Entry'!B27 -> EH429154 Corp
C26: 25 | D26: ='Data Entry'!B28 -> EI682398 Corp | E26: ='Data Entry'!C28 -> 11/15/2019 | F26: ='Data Entry'!D28 -> 5/15/2021 | G26: ='Data Entry'!E28 -> 2 | H26: ='Data Entry'!F28 -> 102.819 | I26: ='Data Entry'!G28 -> 0.4930555556 | J26: ='Data Entry'!H28/100 -> 0.0355 | K26: ='Data Entry'!I28 -> 103.3120556 | L26: 0.02005145887 | M26: 1.800551438 | N26: 1.81860328 | O26: 0.5553854108 | P26: 0.07855956606
C27: 26 | D27: ='Data Entry'!B29 -> EI355103 Corp | E27: ='Data Entry'!C29 -> 9/1/2019 | F27: ='Data Entry'!D29 -> 9/1/2040 | G27: ='Data Entry'!E29 -> 2 | H27: ='Data Entry'!F29 -> 118.944 | I27: ='Data Entry'!G29 -> 1.55 | J27: ='Data Entry'!H29/100 -> 0.045 | K27: ='Data Entry'!I29 -> 120.494 | L27: 0.03254289568 | M27: 14.12011877 | N27: 14.34987354 | O27: 0.07082093406 | P27: 0.01001765934
C28: 27 | D28: ='Data Entry'!B30 -> EG991354 Corp
C29: 28 | D29: ='Data Entry'!B31 -> EK510285 Corp
C30: 29 | D30: ='Data Entry'!B32 -> EH499236 Corp | P30: =O30/$O$33 -> 0
C31: 30 | D31: ='Data Entry'!B33 -> EH318322 Corp
C32: 31 | D32: ='Data Entry'!B34 -> EJ171306 Corp | E32: ='Data Entry'!C34 -> 10/1/2019 | F32: ='Data Entry'!D34 -> 10/1/2042 | G32: ='Data Entry'!E34 -> 2 | H32: ='Data Entry'!F34 -> 109.751 | I32: ='Data Entry'!G34 -> 0.9992722222 | J32: ='Data Entry'!H34/100 -> 0.03827 | K32: ='Data Entry'!I34 -> 110.7502722 | L32: 0.03227256899 | M32: 15.59719023 | N32: 15.84887093 | O32: =1/M32 -> 0.06411411193 | P32: 0.009068975732
N33: Sum | O33: =SUM(O2:O32) -> 7.069608943
A35: Payment Dates | B35: =IF(E2=0,F2,E2) -> 12/5/2019 | C35: =B35+IF($G2=1,365,182.5) -> 2020-06-04T12:00:00 | D35: 2020-12-04 | E35: 2021-06-04T12:00:00 | F35: 2021-12-04 | G35: 2022-06-04T12:00:00 | H35: 2022-12-04 | I35: 2023-06-04T12:00:00 | J35: 2023-12-04 | K35: 2024-06-03T12:00:00 | L35: 2024-12-03 | M35: 2025-06-03T12:00:00 | N35: 2025-12-03 | O35: 2026-06-03T12:00:00 | P35: 2026-12-03 | Q35: 2027-06-03T12:00:00 | R35: 2027-12-03 | S35: 2028-06-02T12:00:00 | T35: 2028-12-02 | U35: 2029-06-02T12:00:00 | V35: 2029-12-02 | W35: 2030-06-02T12:00:00 | X35: 2030-12-02 | Y35: 2031-06-02T12:00:00 | Z35: 2031-12-02 | AA35: 2032-06-01T12:00:00 | AB35: 2032-12-01 | AC35: 2033-06-01T12:00:00 | AD35: 2033-12-01 | AE35: 2034-06-01T12:00:00 | AF35: 2034-12-01 | AG35: 2035-06-01T12:00:00 | AH35: 2035-12-01 | AI35: 2036-05-31T12:00:00 | AJ35: 2036-11-30 | AK35: 2037-05-31T12:00:00 | AL35: 2037-11-30 | AM35: 2038-05-31T12:00:00 | AN35: 2038-11-30 | AO35: 2039-05-31T12:00:00 | AP35: 2039-11-30 | AQ35: 2040-05-30T12:00:00 | AR35: 2040-11-29 | AS35: 2041-05-30T12:00:00 | AT35: 2041-11-29 | AU35: 2042-05-30T12:00:00 | AV35: 2042-11-29 | AW35: 2043-05-30T12:00:00 | AX35: 2043-11-29 | AY35: 2044-05-29T12:00:00 | AZ35: 2044-11-28 | BA35: 2045-05-29T12:00:00 | BB35: 2045-11-28 | BC35: 2046-05-29T12:00:00 | BD35: 2046-11-28 | BE35: 2047-05-29T12:00:00 | BF35: 2047-11-28 | BG35: 2048-05-28T12:00:00 | BH35: 2048-11-27 | BI35: 2049-05-28T12:00:00 | BJ35: 2049-11-27 | BK35: 2050-05-28T12:00:00 | BL35: 2050-11-27 | BM35: 2051-05-28T12:00:00 | BN35: 2051-11-27 | BO35: =BN35+IF($G2=1,365,182.5) -> 2052-05-27T12:00:00 | BP35: 2052-11-26 | BQ35: 2053-05-27T12:00:00 | BR35: 2053-11-26 | BS35: 2054-05-27T12:00:00 | BT35: 2054-11-26 | BU35: 2055-05-27T12:00:00 | BV35: 2055-11-26 | BW35: 2056-05-26T12:00:00 | BX35: 2056-11-25 | BY35: 2057-05-26T12:00:00 | BZ35: 2057-11-25 | CA35: 2058-05-26T12:00:00 | CB35: 2058-11-25 | CC35: =CB35+IF($G2=1,365,182.5) -> 2059-05-26T12:00:00 | CD35: =CC35+IF($G2=1,365,182.5) -> 2059-11-25 | CE35: =CD35+IF($G2=1,365,182.5) -> 2060-05-25T12:00:00 | CF35: =CE35+IF($G2=1,365,182.5) -> 2060-11-24 | CG35: =CF35+IF($G2=1,365,182.5) -> 2061-05-25T12:00:00 | CH35: =CG35+IF($G2=1,365,182.5) -> 2061-11-24 | CI35: =CH35+IF($G2=1,365,182.5) -> 2062-05-25T12:00:00 | CJ35: =CI35+IF($G2=1,365,182.5) -> 2062-11-24 | CK35: =CJ35+IF($G2=1,365,182.5) -> 2063-05-25T12:00:00 | CL35: =CK35+IF($G2=1,365,182.5) -> 2063-11-24 | CM35: =CL35+IF($G2=1,365,182.5) -> 2064-05-24T12:00:00 | CN35: =CM35+IF($G2=1,365,182.5) -> 2064-11-23 | CO35: =CN35+IF($G2=1,365,182.5) -> 2065-05-24T12:00:00 | CP35: =CO35+IF($G2=1,365,182.5) -> 2065-11-23 | CQ35: =CP35+IF($G2=1,365,182.5) -> 2066-05-24T12:00:00 | CR35: =CQ35+IF($G2=1,365,182.5) -> 2066-11-23 | CS35: =CR35+IF($G2=1,365,182.5) -> 2067-05-24T12:00:00 | CT35: =CS35+IF($G2=1,365,182.5) -> 2067-11-23 | CU35: =CT35+IF($G2=1,365,182.5) -> 2068-05-23T12:00:00 | CV35: =CU35+IF($G2=1,365,182.5) -> 2068-11-22 | CW35: =CV35+IF($G2=1,365,182.5) -> 2069-05-23T12:00:00 | CX35: =CW35+IF($G2=1,365,182.5) -> 2069-11-22 | CY35: =CX35+IF($G2=1,365,182.5) -> 2070-05-23T12:00:00 | CZ35: =CY35+IF($G2=1,365,182.5) -> 2070-11-22 | DA35: =CZ35+IF($G2=1,365,182.5) -> 2071-05-23T12:00:00 | DB35: =DA35+IF($G2=1,365,182.5) -> 2071-11-22 | DC35: =DB35+IF($G2=1,365,182.5) -> 2072-05-22T12:00:00 | DD35: =DC35+IF($G2=1,365,182.5) -> 2072-11-21 | DE35: =DD35+IF($G2=1,365,182.5) -> 2073-05-22T12:00:00 | DF35: =DE35+IF($G2=1,365,182.5) -> 2073-11-21 | DG35: =DF35+IF($G2=1,365,182.5) -> 2074-05-22T12:00:00 | DH35: =DG35+IF($G2=1,365,182.5) -> 2074-11-21 | DI35: =DH35+IF($G2=1,365,182.5) -> 2075-05-22T12:00:00 | DJ35: =DI35+IF($G2=1,365,182.5) -> 2075-11-21 | DK35: =DJ35+IF($G2=1,365,182.5) -> 2076-05-21T12:00:00 | DL35: =DK35+IF($G2=1,365,182.5) -> 2076-11-20 | DM35: =DL35+IF($G2=1,365,182.5) -> 2077-05-21T12:00:00 | DN35: =DM35+IF($G2=1,365,182.5) -> 2077-11-20 | DO35: =DN35+IF($G2=1,365,182.5) -> 2078-05-21T12:00:00 | DP35: =DO35+IF($G2=1,365,182.5) -> 2078-11-20 | DQ35: =DP35+IF($G2=1,365,182.5) -> 2079-05-21T12:00:00 | DR35: =DQ35+IF($G2=1,365,182.5) -> 2079-11-20 | DS35: =DR35+IF($G2=1,365,182.5) -> 2080-05-20T12:00:00 | DT35: =DS35+IF($G2=1,365,182.5) -> 2080-11-19 | DU35: =DT35+IF($G2=1,365,182.5) -> 2081-05-20T12:00:00 | DV35: =DU35+IF($G2=1,365,182.5) -> 2081-11-19 | DW35: =DV35+IF($G2=1,365,182.5) -> 2082-05-20T12:00:00 | DX35: =DW35+IF($G2=1,365,182.5) -> 2082-11-19 | DY35: =DX35+IF($G2=1,365,182.5) -> 2083-05-20T12:00:00 | DZ35: =DY35+IF($G2=1,365,182.5) -> 2083-11-19 | EA35: =DZ35+IF($G2=1,365,182.5) -> 2084-05-19T12:00:00 | EB35: =EA35+IF($G2=1,365,182.5) -> 2084-11-18 | EC35: =EB35+IF($G2=1,365,182.5) -> 2085-05-19T12:00:00 | ED35: =EC35+IF($G2=1,365,182.5) -> 2085-11-18 | EE35: =ED35+IF($G2=1,365,182.5) -> 2086-05-19T12:00:00 | EF35: =EE35+IF($G2=1,365,182.5) -> 2086-11-18 | EG35: =EF35+IF($G2=1,365,182.5) -> 2087-05-19T12:00:00 | EH35: =EG35+IF($G2=1,365,182.5) -> 2087-11-18 | EI35: =EH35+IF($G2=1,365,182.5) -> 2088-05-18T12:00:00 | EJ35: =EI35+IF($G2=1,365,182.5) -> 2088-11-17 | EK35: =EJ35+IF($G2=1,365,182.5) -> 2089-05-18T12:00:00 | EL35: =EK35+IF($G2=1,365,182.5) -> 2089-11-17 | EM35: =EL35+IF($G2=1,365,182.5) -> 2090-05-18T12:00:00 | EN35: =EM35+IF($G2=1,365,182.5) -> 2090-11-17 | EO35: =EN35+IF($G2=1,365,182.5) -> 2091-05-18T12:00:00 | EP35: =EO35+IF($G2=1,365,182.5) -> 2091-11-17 | EQ35: =EP35+IF($G2=1,365,182.5) -> 2092-05-17T12:00:00 | ER35: =EQ35+IF($G2=1,365,182.5) -> 2092-11-16 | ES35: =ER35+IF($G2=1,365,182.5) -> 2093-05-17T12:00:00 | ET35: =ES35+IF($G2=1,365,182.5) -> 2093-11-16 | EU35: =ET35+IF($G2=1,365,182.5) -> 2094-05-17T12:00:00 | EV35: =EU35+IF($G2=1,365,182.5) -> 2094-11-16 | EW35: =EV35+IF($G2=1,365,182.5) -> 2095-05-17T12:00:00 | EX35: =EW35+IF($G2=1,365,182.5) -> 2095-11-16 | EY35: =EX35+IF($G2=1,365,182.5) -> 2096-05-16T12:00:00 | EZ35: =EY35+IF($G2=1,365,182.5) -> 2096-11-15 | FA35: =EZ35+IF($G2=1,365,182.5) -> 2097-05-16T12:00:00 | FB35: =FA35+IF($G2=1,365,182.5) -> 2097-11-15 | FC35: =FB35+IF($G2=1,365,182.5) -> 2098-05-16T12:00:00 | FD35: =FC35+IF($G2=1,365,182.5) -> 2098-11-15 | FE35: =FD35+IF($G2=1,365,182.5) -> 2099-05-16T12:00:00 | FF35: =FE35+IF($G2=1,365,182.5) -> 2099-11-15 | FG35: =FF35+IF($G2=1,365,182.5) -> 2100-05-16T12:00:00 | FH35: =FG35+IF($G2=1,365,182.5) -> 2100-11-15 | FI35: =FH35+IF($G2=1,365,182.5) -> 2101-05-16T12:00:00 | FJ35: =FI35+IF($G2=1,365,182.5) -> 2101-11-15 | FK35: =FJ35+IF($G2=1,365,182.5) -> 2102-05-16T12:00:00 | FL35: =FK35+IF($G2=1,365,182.5) -> 2102-11-15 | FM35: =FL35+IF($G2=1,365,182.5) -> 2103-05-16T12:00:00 | FN35: =FM35+IF($G2=1,365,182.5) -> 2103-11-15 | FO35: =FN35+IF($G2=1,365,182.5) -> 2104-05-15T12:00:00 | FP35: =FO35+IF($G2=1,365,182.5) -> 2104-11-14 | FQ35: =FP35+IF($G2=1,365,182.5) -> 2105-05-15T12:00:00 | FR35: =FQ35+IF($G2=1,365,182.5) -> 2105-11-14 | FS35: =FR35+IF($G2=1,365,182.5) -> 2106-05-15T12:00:00 | FT35: =FS35+IF($G2=1,365,182.5) -> 2106-11-14 | FU35: =FT35+IF($G2=1,365,182.5) -> 2107-05-15T12:00:00 | FV35: =FU35+IF($G2=1,365,182.5) -> 2107-11-14 | FW35: =FV35+IF($G2=1,365,182.5) -> 2108-05-14T12:00:00 | FX35: =FW35+IF($G2=1,365,182.5) -> 2108-11-13 | FY35: =FX35+IF($G2=1,365,182.5) -> 2109-05-14T12:00:00 | FZ35: =FY35+IF($G2=1,365,182.5) -> 2109-11-13 | GA35: =FZ35+IF($G2=1,365,182.5) -> 2110-05-14T12:00:00 | GB35: =GA35+IF($G2=1,365,182.5) -> 2110-11-13 | GC35: =GB35+IF($G2=1,365,182.5) -> 2111-05-14T12:00:00 | GD35: =GC35+IF($G2=1,365,182.5) -> 2111-11-13 | GE35: =GD35+IF($G2=1,365,182.5) -> 2112-05-13T12:00:00 | GF35: =GE35+IF($G2=1,365,182.5) -> 2112-11-12 | GG35: =GF35+IF($G2=1,365,182.5) -> 2113-05-13T12:00:00 | GH35: =GG35+IF($G2=1,365,182.5) -> 2113-11-12 | GI35: =GH35+IF($G2=1,365,182.5) -> 2114-05-13T12:00:00 | GJ35: =GI35+IF($G2=1,365,182.5) -> 2114-11-12 | GK35: =GJ35+IF($G2=1,365,182.5) -> 2115-05-13T12:00:00 | GL35: =GK35+IF($G2=1,365,182.5) -> 2115-11-12 | GM35: =GL35+IF($G2=1,365,182.5) -> 2116-05-12T12:00:00 | GN35: =GM35+IF($G2=1,365,182.5) -> 2116-11-11 | GO35: =GN35+IF($G2=1,365,182.5) -> 2117-05-12T12:00:00 | GP35: =GO35+IF($G2=1,365,182.5) -> 2117-11-11 | GQ35: =GP35+IF($G2=1,365,182.5) -> 2118-05-12T12:00:00 | GR35: =GQ35+IF($G2=1,365,182.5) -> 2118-11-11 | GS35: =GR35+IF($G2=1,365,182.5) -> 2119-05-12T12:00:00
A36: Bond 1 | B36: =(IF(B35=F2,100,0)+IF(G2=1,1,0.5)*J2*100)*IF(ISBLANK(F2)=TRUE,0,1) -> 1.6875 | C36: =IF(C35>$F2+1,0,1)*(IF(D36=0,100,0)+IF($G2=1,1,0.5)*$J2*100) -> 1.6875 | D36: 1.6875 | E36: 1.6875 | F36: 1.6875 | G36: 1.6875 | H36: 1.6875 | I36: 1.6875 | J36: 101.6875 | K36: 0 | L36: 0 | M36: 0 | N36: 0 | O36: 0 | P36: 0 | Q36: 0 | R36: 0 | S36: 0 | T36: 0 | U36: 0 | V36: 0 | W36: 0 | X36: 0 | Y36: 0 | Z36: 0 | AA36: 0 | AB36: 0 | AC36: 0 | AD36: 0 | AE36: 0 | AF36: 0 | AG36: 0 | AH36: 0 | AI36: 0 | AJ36: 0 | AK36: 0 | AL36: 0 | AM36: 0 | AN36: 0 | AO36: 0 | AP36: 0 | AQ36: 0 | AR36: 0 | AS36: 0 | AT36: 0 | AU36: 0 | AV36: 0 | AW36: 0 | AX36: 0 | AY36: 0 | AZ36: 0 | BA36: 0 | BB36: 0 | BC36: 0 | BD36: 0 | BE36: 0 | BF36: 0 | BG36: 0 | BH36: 0 | BI36: 0 | BJ36: 0 | BK36: 0 | BL36: 0 | BM36: 0 | BN36: 0 | BO36: =IF(BO35>$F2+1,0,1)*(IF(BP36=0,100,0)+IF($G2=1,1,0.5)*$J2*100) -> 0 | BP36: 0 | BQ36: 0 | BR36: 0 | BS36: 0 | BT36: 0 | BU36: 0 | BV36: 0 | BW36: 0 | BX36: 0 | BY36: 0 | BZ36: 0 | CA36: 0 | CB36: =IF(CB35>$F2+1,0,1)*(IF(CC36=0,100,0)+IF($G2=1,1,0.5)*$J2*100) -> 0 | CC36: =IF(CC35>$F2+1,0,1)*(IF(CD36=0,100,0)+IF($G2=1,1,0.5)*$J2*100) -> 0 | CD36: 0 | CE36: 0 | CF36: 0 | CG36: 0 | CH36: 0 | CI36: =IF(CI35>$F2+1,0,1)*(IF(CJ36=0,100,0)+IF($G2=1,1,0.5)*$J2*100) -> 0 | CJ36: =IF(CJ35>$F2+1,0,1)*(IF(CK36=0,100,0)+IF($G2=1,1,0.5)*$J2*100) -> 0 | CK36: =IF(CK35>$F2+1,0,1)*(IF(CL36=0,100,0)+IF($G2=1,1,0.5)*$J2*100) -> 0 | CL36: =IF(CL35>$F2+1,0,1)*(IF(CM36=0,100,0)+IF($G2=1,1,0.5)*$J2*100) -> 0 | CM36: =IF(CM35>$F2+1,0,1)*(IF(CN36=0,100,0)+IF($G2=1,1,0.5)*$J2*100) -> 0 | CN36: 0 | CO36: =IF(CO35>$F2+1,0,1)*(IF(CP36=0,100,0)+IF($G2=1,1,0.5)*$J2*100) -> 0 | CP36: =IF(CP35>$F2+1,0,1)*(IF(CQ36=0,100,0)+IF($G2=1,1,0.5)*$J2*100) -> 0 | CQ36: =IF(CQ35>$F2+1,0,1)*(IF(CR36=0,100,0)+IF($G2=1,1,0.5)*$J2*100) -> 0 | CR36: =IF(CR35>$F2+1,0,1)*(IF(CS36=0,100,0)+IF($G2=1,1,0.5)*$J2*100) -> 0 | CS36: =IF(CS35>$F2+1,0,1)*(IF(CT36=0,100,0)+IF($G2=1,1,0.5)*$J2*100) -> 0 | CT36: 0 | CU36: =IF(CU35>$F2+1,0,1)*(IF(CV36=0,100,0)+IF($G2=1,1,0.5)*$J2*100) -> 0 | CV36: =IF(CV35>$F2+1,0,1)*(IF(CW36=0,100,0)+IF($G2=1,1,0.5)*$J2*100) -> 0 | CW36: =IF(CW35>$F2+1,0,1)*(IF(CX36=0,100,0)+IF($G2=1,1,0.5)*$J2*100) -> 0 | CX36: =IF(CX35>$F2+1,0,1)*(IF(CY36=0,100,0)+IF($G2=1,1,0.5)*$J2*100) -> 0 | CY36: =IF(CY35>$F2+1,0,1)*(IF(CZ36=0,100,0)+IF($G2=1,1,0.5)*$J2*100) -> 0 | CZ36: 0 | DA36: =IF(DA35>$F2+1,0,1)*(IF(DB36=0,100,0)+IF($G2=1,1,0.5)*$J2*100) -> 0 | DB36: =IF(DB35>$F2+1,0,1)*(IF(DC36=0,100,0)+IF($G2=1,1,0.5)*$J2*100) -> 0 | DC36: =IF(DC35>$F2+1,0,1)*(IF(DD36=0,100,0)+IF($G2=1,1,0.5)*$J2*100) -> 0 | DD36: =IF(DD35>$F2+1,0,1)*(IF(DE36=0,100,0)+IF($G2=1,1,0.5)*$J2*100) -> 0 | DE36: =IF(DE35>$F2+1,0,1)*(IF(DF36=0,100,0)+IF($G2=1,1,0.5)*$J2*100) -> 0 | DF36: =IF(DF35>$F2+1,0,1)*(IF(DG36=0,100,0)+IF($G2=1,1,0.5)*$J2*100) -> 0 | DG36: =IF(DG35>$F2+1,0,1)*(IF(DH36=0,100,0)+IF($G2=1,1,0.5)*$J2*100) -> 0 | DH36: =IF(DH35>$F2+1,0,1)*(IF(DI36=0,100,0)+IF($G2=1,1,0.5)*$J2*100) -> 0 | DI36: =IF(DI35>$F2+1,0,1)*(IF(DJ36=0,100,0)+IF($G2=1,1,0.5)*$J2*100) -> 0 | DJ36: =IF(DJ35>$F2+1,0,1)*(IF(DK36=0,100,0)+IF($G2=1,1,0.5)*$J2*100) -> 0 | DK36: =IF(DK35>$F2+1,0,1)*(IF(DL36=0,100,0)+IF($G2=1,1,0.5)*$J2*100) -> 0 | DL36: =IF(DL35>$F2+1,0,1)*(IF(DM36=0,100,0)+IF($G2=1,1,0.5)*$J2*100) -> 0 | DM36: =IF(DM35>$F2+1,0,1)*(IF(DN36=0,100,0)+IF($G2=1,1,0.5)*$J2*100) -> 0 | DN36: =IF(DN35>$F2+1,0,1)*(IF(DO36=0,100,0)+IF($G2=1,1,0.5)*$J2*100) -> 0 | DO36: =IF(DO35>$F2+1,0,1)*(IF(DP36=0,100,0)+IF($G2=1,1,0.5)*$J2*100) -> 0 | DP36: =IF(DP35>$F2+1,0,1)*(IF(DQ36=0,100,0)+IF($G2=1,1,0.5)*$J2*100) -> 0 | DQ36: =IF(DQ35>$F2+1,0,1)*(IF(DR36=0,100,0)+IF($G2=1,1,0.5)*$J2*100) -> 0 | DR36: =IF(DR35>$F2+1,0,1)*(IF(DS36=0,100,0)+IF($G2=1,1,0.5)*$J2*100) -> 0 | DS36: =IF(DS35>$F2+1,0,1)*(IF(DT36=0,100,0)+IF($G2=1,1,0.5)*$J2*100) -> 0 | DT36: =IF(DT35>$F2+1,0,1)*(IF(DU36=0,100,0)+IF($G2=1,1,0.5)*$J2*100) -> 0 | DU36: =IF(DU35>$F2+1,0,1)*(IF(DV36=0,100,0)+IF($G2=1,1,0.5)*$J2*100) -> 0 | DV36: =IF(DV35>$F2+1,0,1)*(IF(DW36=0,100,0)+IF($G2=1,1,0.5)*$J2*100) -> 0 | DW36: =IF(DW35>$F2+1,0,1)*(IF(DX36=0,100,0)+IF($G2=1,1,0.5)*$J2*100) -> 0 | DX36: =IF(DX35>$F2+1,0,1)*(IF(DY36=0,100,0)+IF($G2=1,1,0.5)*$J2*100) -> 0 | DY36: =IF(DY35>$F2+1,0,1)*(IF(DZ36=0,100,0)+IF($G2=1,1,0.5)*$J2*100) -> 0 | DZ36: =IF(DZ35>$F2+1,0,1)*(IF(EA36=0,100,0)+IF($G2=1,1,0.5)*$J2*100) -> 0 | EA36: =IF(EA35>$F2+1,0,1)*(IF(EB36=0,100,0)+IF($G2=1,1,0.5)*$J2*100) -> 0 | EB36: =IF(EB35>$F2+1,0,1)*(IF(EC36=0,100,0)+IF($G2=1,1,0.5)*$J2*100) -> 0 | EC36: =IF(EC35>$F2+1,0,1)*(IF(ED36=0,100,0)+IF($G2=1,1,0.5)*$J2*100) -> 0 | ED36: =IF(ED35>$F2+1,0,1)*(IF(EE36=0,100,0)+IF($G2=1,1,0.5)*$J2*100) -> 0 | EE36: =IF(EE35>$F2+1,0,1)*(IF(EF36=0,100,0)+IF($G2=1,1,0.5)*$J2*100) -> 0 | EF36: =IF(EF35>$F2+1,0,1)*(IF(EG36=0,100,0)+IF($G2=1,1,0.5)*$J2*100) -> 0 | EG36: =IF(EG35>$F2+1,0,1)*(IF(EH36=0,100,0)+IF($G2=1,1,0.5)*$J2*100) -> 0 | EH36: =IF(EH35>$F2+1,0,1)*(IF(EI36=0,100,0)+IF($G2=1,1,0.5)*$J2*100) -> 0 | EI36: =IF(EI35>$F2+1,0,1)*(IF(EJ36=0,100,0)+IF($G2=1,1,0.5)*$J2*100) -> 0 | EJ36: =IF(EJ35>$F2+1,0,1)*(IF(EK36=0,100,0)+IF($G2=1,1,0.5)*$J2*100) -> 0 | EK36: =IF(EK35>$F2+1,0,1)*(IF(EL36=0,100,0)+IF($G2=1,1,0.5)*$J2*100) -> 0 | EL36: =IF(EL35>$F2+1,0,1)*(IF(EM36=0,100,0)+IF($G2=1,1,0.5)*$J2*100) -> 0 | EM36: =IF(EM35>$F2+1,0,1)*(IF(EN36=0,100,0)+IF($G2=1,1,0.5)*$J2*100) -> 0 | EN36: =IF(EN35>$F2+1,0,1)*(IF(EO36=0,100,0)+IF($G2=1,1,0.5)*$J2*100) -> 0 | EO36: =IF(EO35>$F2+1,0,1)*(IF(EP36=0,100,0)+IF($G2=1,1,0.5)*$J2*100) -> 0 | EP36: =IF(EP35>$F2+1,0,1)*(IF(EQ36=0,100,0)+IF($G2=1,1,0.5)*$J2*100) -> 0 | EQ36: =IF(EQ35>$F2+1,0,1)*(IF(ER36=0,100,0)+IF($G2=1,1,0.5)*$J2*100) -> 0 | ER36: =IF(ER35>$F2+1,0,1)*(IF(ES36=0,100,0)+IF($G2=1,1,0.5)*$J2*100) -> 0 | ES36: =IF(ES35>$F2+1,0,1)*(IF(ET36=0,100,0)+IF($G2=1,1,0.5)*$J2*100) -> 0 | ET36: =IF(ET35>$F2+1,0,1)*(IF(EU36=0,100,0)+IF($G2=1,1,0.5)*$J2*100) -> 0 | EU36: =IF(EU35>$F2+1,0,1)*(IF(EV36=0,100,0)+IF($G2=1,1,0.5)*$J2*100) -> 0 | EV36: =IF(EV35>$F2+1,0,1)*(IF(EW36=0,100,0)+IF($G2=1,1,0.5)*$J2*100) -> 0 | EW36: =IF(EW35>$F2+1,0,1)*(IF(EX36=0,100,0)+IF($G2=1,1,0.5)*$J2*100) -> 0 | EX36: =IF(EX35>$F2+1,0,1)*(IF(EY36=0,100,0)+IF($G2=1,1,0.5)*$J2*100) -> 0 | EY36: =IF(EY35>$F2+1,0,1)*(IF(EZ36=0,100,0)+IF($G2=1,1,0.5)*$J2*100) -> 0 | EZ36: =IF(EZ35>$F2+1,0,1)*(IF(FA36=0,100,0)+IF($G2=1,1,0.5)*$J2*100) -> 0 | FA36: =IF(FA35>$F2+1,0,1)*(IF(FB36=0,100,0)+IF($G2=1,1,0.5)*$J2*100) -> 0 | FB36: =IF(FB35>$F2+1,0,1)*(IF(FC36=0,100,0)+IF($G2=1,1,0.5)*$J2*100) -> 0 | FC36: =IF(FC35>$F2+1,0,1)*(IF(FD36=0,100,0)+IF($G2=1,1,0.5)*$J2*100) -> 0 | FD36: =IF(FD35>$F2+1,0,1)*(IF(FE36=0,100,0)+IF($G2=1,1,0.5)*$J2*100) -> 0 | FE36: =IF(FE35>$F2+1,0,1)*(IF(FF36=0,100,0)+IF($G2=1,1,0.5)*$J2*100) -> 0 | FF36: =IF(FF35>$F2+1,0,1)*(IF(FG36=0,100,0)+IF($G2=1,1,0.5)*$J2*100) -> 0 | FG36: =IF(FG35>$F2+1,0,1)*(IF(FH36=0,100,0)+IF($G2=1,1,0.5)*$J2*100) -> 0 | FH36: =IF(FH35>$F2+1,0,1)*(IF(FI36=0,100,0)+IF($G2=1,1,0.5)*$J2*100) -> 0 | FI36: =IF(FI35>$F2+1,0,1)*(IF(FJ36=0,100,0)+IF($G2=1,1,0.5)*$J2*100) -> 0 | FJ36: =IF(FJ35>$F2+1,0,1)*(IF(FK36=0,100,0)+IF($G2=1,1,0.5)*$J2*100) -> 0 | FK36: =IF(FK35>$F2+1,0,1)*(IF(FL36=0,100,0)+IF($G2=1,1,0.5)*$J2*100) -> 0 | FL36: =IF(FL35>$F2+1,0,1)*(IF(FM36=0,100,0)+IF($G2=1,1,0.5)*$J2*100) -> 0 | FM36: =IF(FM35>$F2+1,0,1)*(IF(FN36=0,100,0)+IF($G2=1,1,0.5)*$J2*100) -> 0 | FN36: =IF(FN35>$F2+1,0,1)*(IF(FO36=0,100,0)+IF($G2=1,1,0.5)*$J2*100) -> 0 | FO36: =IF(FO35>$F2+1,0,1)*(IF(FP36=0,100,0)+IF($G2=1,1,0.5)*$J2*100) -> 0 | FP36: =IF(FP35>$F2+1,0,1)*(IF(FQ36=0,100,0)+IF($G2=1,1,0.5)*$J2*100) -> 0 | FQ36: =IF(FQ35>$F2+1,0,1)*(IF(FR36=0,100,0)+IF($G2=1,1,0.5)*$J2*100) -> 0 | FR36: =IF(FR35>$F2+1,0,1)*(IF(FS36=0,100,0)+IF($G2=1,1,0.5)*$J2*100) -> 0 | FS36: =IF(FS35>$F2+1,0,1)*(IF(FT36=0,100,0)+IF($G2=1,1,0.5)*$J2*100) -> 0 | FT36: =IF(FT35>$F2+1,0,1)*(IF(FU36=0,100,0)+IF($G2=1,1,0.5)*$J2*100) -> 0 | FU36: =IF(FU35>$F2+1,0,1)*(IF(FV36=0,100,0)+IF($G2=1,1,0.5)*$J2*100) -> 0 | FV36: =IF(FV35>$F2+1,0,1)*(IF(FW36=0,100,0)+IF($G2=1,1,0.5)*$J2*100) -> 0 | FW36: =IF(FW35>$F2+1,0,1)*(IF(FX36=0,100,0)+IF($G2=1,1,0.5)*$J2*100) -> 0 | FX36: =IF(FX35>$F2+1,0,1)*(IF(FY36=0,100,0)+IF($G2=1,1,0.5)*$J2*100) -> 0 | FY36: =IF(FY35>$F2+1,0,1)*(IF(FZ36=0,100,0)+IF($G2=1,1,0.5)*$J2*100) -> 0 | FZ36: =IF(FZ35>$F2+1,0,1)*(IF(GA36=0,100,0)+IF($G2=1,1,0.5)*$J2*100) -> 0 | GA36: =IF(GA35>$F2+1,0,1)*(IF(GB36=0,100,0)+IF($G2=1,1,0.5)*$J2*100) -> 0 | GB36: =IF(GB35>$F2+1,0,1)*(IF(GC36=0,100,0)+IF($G2=1,1,0.5)*$J2*100) -> 0 | GC36: =IF(GC35>$F2+1,0,1)*(IF(GD36=0,100,0)+IF($G2=1,1,0.5)*$J2*100) -> 0 | GD36: =IF(GD35>$F2+1,0,1)*(IF(GE36=0,100,0)+IF($G2=1,1,0.5)*$J2*100) -> 0 | GE36: =IF(GE35>$F2+1,0,1)*(IF(GF36=0,100,0)+IF($G2=1,1,0.5)*$J2*100) -> 0 | GF36: =IF(GF35>$F2+1,0,1)*(IF(GG36=0,100,0)+IF($G2=1,1,0.5)*$J2*100) -> 0 | GG36: =IF(GG35>$F2+1,0,1)*(IF(GH36=0,100,0)+IF($G2=1,1,0.5)*$J2*100) -> 0 | GH36: =IF(GH35>$F2+1,0,1)*(IF(GI36=0,100,0)+IF($G2=1,1,0.5)*$J2*100) -> 0 | GI36: =IF(GI35>$F2+1,0,1)*(IF(GJ36=0,100,0)+IF($G2=1,1,0.5)*$J2*100) -> 0 | GJ36: =IF(GJ35>$F2+1,0,1)*(IF(GK36=0,100,0)+IF($G2=1,1,0.5)*$J2*100) -> 0 | GK36: =IF(GK35>$F2+1,0,1)*(IF(GL36=0,100,0)+IF($G2=1,1,0.5)*$J2*100) -> 0 | GL36: =IF(GL35>$F2+1,0,1)*(IF(GM36=0,100,0)+IF($G2=1,1,0.5)*$J2*100) -> 0 | GM36: =IF(GM35>$F2+1,0,1)*(IF(GN36=0,100,0)+IF($G2=1,1,0.5)*$J2*100) -> 0 | GN36: =IF(GN35>$F2+1,0,1)*(IF(GO36=0,100,0)+IF($G2=1,1,0.5)*$J2*100) -> 0 | GO36: =IF(GO35>$F2+1,0,1)*(IF(GP36=0,100,0)+IF($G2=1,1,0.5)*$J2*100) -> 0 | GP36: =IF(GP35>$F2+1,0,1)*(IF(GQ36=0,100,0)+IF($G2=1,1,0.5)*$J2*100) -> 0 | GQ36: =IF(GQ35>$F2+1,0,1)*(IF(GR36=0,100,0)+IF($G2=1,1,0.5)*$J2*100) -> 0 | GR36: =IF(GR35>$F2+1,0,1)*(IF(GS36=0,100,0)+IF($G2=1,1,0.5)*$J2*100) -> 0 | GS36: =IF(GS35>$F2+1,0,1)*(IF(GT36=0,100,0)+IF($G2=1,1,0.5)*$J2*100) -> 0
A37: Payment Dates | B37: =IF(E3=0,F3,E3) -> 00:00:00 | C37: =B37+IF($G3=1,365,182.5) -> 1900-06-30T12:00:00 | D37: 1900-12-30 | E37: 1901-06-30T12:00:00 | F37: 1901-12-30 | G37: 1902-06-30T12:00:00 | H37: 1902-12-30 | I37: 1903-06-30T12:00:00 | J37: 1903-12-30 | K37: 1904-06-29T12:00:00 | L37: 1904-12-29 | M37: 1905-06-29T12:00:00 | N37: 1905-12-29 | O37: 1906-06-29T12:00:00 | P37: 1906-12-29 | Q37: 1907-06-29T12:00:00 | R37: 1907-12-29 | S37: 1908-06-28T12:00:00 | T37: 1908-12-28 | U37: 1909-06-28T12:00:00 | V37: 1909-12-28 | W37: 1910-06-28T12:00:00 | X37: 1910-12-28 | Y37: 1911-06-28T12:00:00 | Z37: 1911-12-28 | AA37: 1912-06-27T12:00:00 | AB37: 1912-12-27 | AC37: 1913-06-27T12:00:00 | AD37: 1913-12-27 | AE37: 1914-06-27T12:00:00 | AF37: 1914-12-27 | AG37: 1915-06-27T12:00:00 | AH37: 1915-12-27 | AI37: 1916-06-26T12:00:00 | AJ37: 1916-12-26 | AK37: 1917-06-26T12:00:00 | AL37: 1917-12-26 | AM37: 1918-06-26T12:00:00 | AN37: 1918-12-26 | AO37: 1919-06-26T12:00:00 | AP37: 1919-12-26 | AQ37: 1920-06-25T12:00:00 | AR37: 1920-12-25 | AS37: 1921-06-25T12:00:00 | AT37: 1921-12-25 | AU37: 1922-06-25T12:00:00 | AV37: 1922-12-25 | AW37: 1923-06-25T12:00:00 | AX37: 1923-12-25 | AY37: 1924-06-24T12:00:00 | AZ37: 1924-12-24 | BA37: 1925-06-24T12:00:00 | BB37: 1925-12-24 | BC37: 1926-06-24T12:00:00 | BD37: 1926-12-24 | BE37: 1927-06-24T12:00:00 | BF37: 1927-12-24 | BG37: 1928-06-23T12:00:00 | BH37: 1928-12-23 | BI37: 1929-06-23T12:00:00 | BJ37: 1929-12-23 | BK37: 1930-06-23T12:00:00 | BL37: 1930-12-23 | BM37: 1931-06-23T12:00:00 | BN37: 1931-12-23 | BO37: =BN37+IF($G3=1,365,182.5) -> 1932-06-22T12:00:00 | BP37: 1932-12-22 | BQ37: 1933-06-22T12:00:00 | BR37: 1933-12-22 | BS37: 1934-06-22T12:00:00 | BT37: 1934-12-22 | BU37: 1935-06-22T12:00:00 | BV37: 1935-12-22 | BW37: 1936-06-21T12:00:00 | BX37: 1936-12-21 | BY37: 1937-06-21T12:00:00 | BZ37: 1937-12-21 | CA37: 1938-06-21T12:00:00 | CB37: 1938-12-21 | CC37: =CB37+IF($G3=1,365,182.5) -> 1939-06-21T12:00:00 | CD37: =CC37+IF($G3=1,365,182.5) -> 1939-12-21 | CE37: =CD37+IF($G3=1,365,182.5) -> 1940-06-20T12:00:00 | CF37: =CE37+IF($G3=1,365,182.5) -> 1940-12-20 | CG37: =CF37+IF($G3=1,365,182.5) -> 1941-06-20T12:00:00 | CH37: =CG37+IF($G3=1,365,182.5) -> 1941-12-20 | CI37: =CH37+IF($G3=1,365,182.5) -> 1942-06-20T12:00:00 | CJ37: =CI37+IF($G3=1,365,182.5) -> 1942-12-20 | CK37: =CJ37+IF($G3=1,365,182.5) -> 1943-06-20T12:00:00 | CL37: =CK37+IF($G3=1,365,182.5) -> 1943-12-20 | CM37: =CL37+IF($G3=1,365,182.5) -> 1944-06-19T12:00:00 | CN37: =CM37+IF($G3=1,365,182.5) -> 1944-12-19 | CO37: =CN37+IF($G3=1,365,182.5) -> 1945-06-19T12:00:00 | CP37: =CO37+IF($G3=1,365,182.5) -> 1945-12-19 | CQ37: =CP37+IF($G3=1,365,182.5) -> 1946-06-19T12:00:00 | CR37: =CQ37+IF($G3=1,365,182.5) -> 1946-12-19 | CS37: =CR37+IF($G3=1,365,182.5) -> 1947-06-19T12:00:00 | CT37: =CS37+IF($G3=1,365,182.5) -> 1947-12-19 | CU37: =CT37+IF($G3=1,365,182.5) -> 1948-06-18T12:00:00 | CV37: =CU37+IF($G3=1,365,182.5) -> 1948-12-18 | CW37: =CV37+IF($G3=1,365,182.5) -> 1949-06-18T12:00:00 | CX37: =CW37+IF($G3=1,365,182.5) -> 1949-12-18 | CY37: =CX37+IF($G3=1,365,182.5) -> 1950-06-18T12:00:00 | CZ37: =CY37+IF($G3=1,365,182.5) -> 1950-12-18 | DA37: =CZ37+IF($G3=1,365,182.5) -> 1951-06-18T12:00:00 | DB37: =DA37+IF($G3=1,365,182.5) -> 1951-12-18 | DC37: =DB37+IF($G3=1,365,182.5) -> 1952-06-17T12:00:00 | DD37: =DC37+IF($G3=1,365,182.5) -> 1952-12-17 | DE37: =DD37+IF($G3=1,365,182.5) -> 1953-06-17T12:00:00 | DF37: =DE37+IF($G3=1,365,182.5) -> 1953-12-17 | DG37: =DF37+IF($G3=1,365,182.5) -> 1954-06-17T12:00:00 | DH37: =DG37+IF($G3=1,365,182.5) -> 1954-12-17 | DI37: =DH37+IF($G3=1,365,182.5) -> 1955-06-17T12:00:00 | DJ37: =DI37+IF($G3=1,365,182.5) -> 1955-12-17 | DK37: =DJ37+IF($G3=1,365,182.5) -> 1956-06-16T12:00:00 | DL37: =DK37+IF($G3=1,365,182.5) -> 1956-12-16 | DM37: =DL37+IF($G3=1,365,182.5) -> 1957-06-16T12:00:00 | DN37: =DM37+IF($G3=1,365,182.5) -> 1957-12-16 | DO37: =DN37+IF($G3=1,365,182.5) -> 1958-06-16T12:00:00 | DP37: =DO37+IF($G3=1,365,182.5) -> 1958-12-16 | DQ37: =DP37+IF($G3=1,365,182.5) -> 1959-06-16T12:00:00 | DR37: =DQ37+IF($G3=1,365,182.5) -> 1959-12-16 | DS37: =DR37+IF($G3=1,365,182.5) -> 1960-06-15T12:00:00 | DT37: =DS37+IF($G3=1,365,182.5) -> 1960-12-15 | DU37: =DT37+IF($G3=1,365,182.5) -> 1961-06-15T12:00:00 | DV37: =DU37+IF($G3=1,365,182.5) -> 1961-12-15 | DW37: =DV37+IF($G3=1,365,182.5) -> 1962-06-15T12:00:00 | DX37: =DW37+IF($G3=1,365,182.5) -> 1962-12-15 | DY37: =DX37+IF($G3=1,365,182.5) -> 1963-06-15T12:00:00 | DZ37: =DY37+IF($G3=1,365,182.5) -> 1963-12-15 | EA37: =DZ37+IF($G3=1,365,182.5) -> 1964-06-14T12:00:00 | EB37: =EA37+IF($G3=1,365,182.5) -> 1964-12-14 | EC37: =EB37+IF($G3=1,365,182.5) -> 1965-06-14T12:00:00 | ED37: =EC37+IF($G3=1,365,182.5) -> 1965-12-14 | EE37: =ED37+IF($G3=1,365,182.5) -> 1966-06-14T12:00:00 | EF37: =EE37+IF($G3=1,365,182.5) -> 1966-12-14 | EG37: =EF37+IF($G3=1,365,182.5) -> 1967-06-14T12:00:00 | EH37: =EG37+IF($G3=1,365,182.5) -> 1967-12-14 | EI37: =EH37+IF($G3=1,365,182.5) -> 1968-06-13T12:00:00 | EJ37: =EI37+IF($G3=1,365,182.5) -> 1968-12-13 | EK37: =EJ37+IF($G3=1,365,182.5) -> 1969-06-13T12:00:00 | EL37: =EK37+IF($G3=1,365,182.5) -> 1969-12-13 | EM37: =EL37+IF($G3=1,365,182.5) -> 1970-06-13T12:00:00 | EN37: =EM37+IF($G3=1,365,182.5) -> 1970-12-13 | EO37: =EN37+IF($G3=1,365,182.5) -> 1971-06-13T12:00:00 | EP37: =EO37+IF($G3=1,365,182.5) -> 1971-12-13 | EQ37: =EP37+IF($G3=1,365,182.5) -> 1972-06-12T12:00:00 | ER37: =EQ37+IF($G3=1,365,182.5) -> 1972-12-12 | ES37: =ER37+IF($G3=1,365,182.5) -> 1973-06-12T12:00:00 | ET37: =ES37+IF($G3=1,365,182.5) -> 1973-12-12 | EU37: =ET37+IF($G3=1,365,182.5) -> 1974-06-12T12:00:00 | EV37: =EU37+IF($G3=1,365,182.5) -> 1974-12-12 | EW37: =EV37+IF($G3=1,365,182.5) -> 1975-06-12T12:00:00 | EX37: =EW37+IF($G3=1,365,182.5) -> 1975-12-12 | EY37: =EX37+IF($G3=1,365,182.5) -> 1976-06-11T12:00:00 | EZ37: =EY37+IF($G3=1,365,182.5) -> 1976-12-11 | FA37: =EZ37+IF($G3=1,365,182.5) -> 1977-06-11T12:00:00 | FB37: =FA37+IF($G3=1,365,182.5) -> 1977-12-11 | FC37: =FB37+IF($G3=1,365,182.5) -> 1978-06-11T12:00:00 | FD37: =FC37+IF($G3=1,365,182.5) -> 1978-12-11 | FE37: =FD37+IF($G3=1,365,182.5) -> 1979-06-11T12:00:00 | FF37: =FE37+IF($G3=1,365,182.5) -> 1979-12-11 | FG37: =FF37+IF($G3=1,365,182.5) -> 1980-06-10T12:00:00 | FH37: =FG37+IF($G3=1,365,182.5) -> 1980-12-10 | FI37: =FH37+IF($G3=1,365,182.5) -> 1981-06-10T12:00:00 | FJ37: =FI37+IF($G3=1,365,182.5) -> 1981-12-10 | FK37: =FJ37+IF($G3=1,365,182.5) -> 1982-06-10T12:00:00 | FL37: =FK37+IF($G3=1,365,182.5) -> 1982-12-10 | FM37: =FL37+IF($G3=1,365,182.5) -> 1983-06-10T12:00:00 | FN37: =FM37+IF($G3=1,365,182.5) -> 1983-12-10 | FO37: =FN37+IF($G3=1,365,182.5) -> 1984-06-09T12:00:00 | FP37: =FO37+IF($G3=1,365,182.5) -> 1984-12-09 | FQ37: =FP37+IF($G3=1,365,182.5) -> 1985-06-09T12:00:00 | FR37: =FQ37+IF($G3=1,365,182.5) -> 1985-12-09 | FS37: =FR37+IF($G3=1,365,182.5) -> 1986-06-09T12:00:00 | FT37: =FS37+IF($G3=1,365,182.5) -> 1986-12-09 | FU37: =FT37+IF($G3=1,365,182.5) -> 1987-06-09T12:00:00 | FV37: =FU37+IF($G3=1,365,182.5) -> 1987-12-09 | FW37: =FV37+IF($G3=1,365,182.5) -> 1988-06-08T12:00:00 | FX37: =FW37+IF($G3=1,365,182.5) -> 1988-12-08 | FY37: =FX37+IF($G3=1,365,182.5) -> 1989-06-08T12:00:00 | FZ37: =FY37+IF($G3=1,365,182.5) -> 1989-12-08 | GA37: =FZ37+IF($G3=1,365,182.5) -> 1990-06-08T12:00:00 | GB37: =GA37+IF($G3=1,365,182.5) -> 1990-12-08 | GC37: =GB37+IF($G3=1,365,182.5) -> 1991-06-08T12:00:00 | GD37: =GC37+IF($G3=1,365,182.5) -> 1991-12-08 | GE37: =GD37+IF($G3=1,365,182.5) -> 1992-06-07T12:00:00 | GF37: =GE37+IF($G3=1,365,182.5) -> 1992-12-07 | GG37: =GF37+IF($G3=1,365,182.5) -> 1993-06-07T12:00:00 | GH37: =GG37+IF($G3=1,365,182.5) -> 1993-12-07 | GI37: =GH37+IF($G3=1,365,182.5) -> 1994-06-07T12:00:00 | GJ37: =GI37+IF($G3=1,365,182.5) -> 1994-12-07 | GK37: =GJ37+IF($G3=1,365,182.5) -> 1995-06-07T12:00:00 | GL37: =GK37+IF($G3=1,365,182.5) -> 1995-12-07 | GM37: =GL37+IF($G3=1,365,182.5) -> 1996-06-06T12:00:00 | GN37: =GM37+IF($G3=1,365,182.5) -> 1996-12-06 | GO37: =GN37+IF($G3=1,365,182.5) -> 1997-06-06T12:00:00 | GP37: =GO37+IF($G3=1,365,182.5) -> 1997-12-06 | GQ37: =GP37+IF($G3=1,365,182.5) -> 1998-06-06T12:00:00 | GR37: =GQ37+IF($G3=1,365,182.5) -> 1998-12-06 | GS37: =GR37+IF($G3=1,365,182.5) -> 1999-06-06T12:00:00
A38: Bond 2 | B38: =(IF(B37=F3,100,0)+IF(G3=1,1,0.5)*J3*100)*IF(ISBLANK(F3)=TRUE,0,1) -> 0 | C38: =IF(C37>$F3+2,0,1)*(IF(D38=0,100,0)+IF($G3=1,1,0.5)*$J3*100) -> 0 | D38: =IF(D37>$F3+1,0,1)*(IF(E38=0,100,0)+IF($G3=1,1,0.5)*$J3*100) -> 0 | E38: 0 | F38: 0 | G38: 0 | H38: 0 | I38: 0 | J38: 0 | K38: 0 | L38: 0 | M38: 0 | N38: 0 | O38: 0 | P38: 0 | Q38: 0 | R38: 0 | S38: 0 | T38: 0 | U38: 0 | V38: 0 | W38: 0 | X38: 0 | Y38: 0 | Z38: 0 | AA38: 0 | AB38: 0 | AC38: 0 | AD38: 0 | AE38: 0 | AF38: 0 | AG38: 0 | AH38: 0 | AI38: 0 | AJ38: 0 | AK38: 0 | AL38: 0 | AM38: 0 | AN38: 0 | AO38: 0 | AP38: 0 | AQ38: 0 | AR38: 0 | AS38: 0 | AT38: 0 | AU38: 0 | AV38: 0 | AW38: 0 | AX38: 0 | AY38: 0 | AZ38: 0 | BA38: 0 | BB38: 0 | BC38: 0 | BD38: 0 | BE38: 0 | BF38: 0 | BG38: 0 | BH38: 0 | BI38: 0 | BJ38: 0 | BK38: 0 | BL38: 0 | BM38: 0 | BN38: 0 | BO38: =IF(BO37>$F3+1,0,1)*(IF(BP38=0,100,0)+IF($G3=1,1,0.5)*$J3*100) -> 0 | BP38: 0 | BQ38: 0 | BR38: 0 | BS38: 0 | BT38: 0 | BU38: 0 | BV38: 0 | BW38: 0 | BX38: 0 | BY38: 0 | BZ38: 0 | CA38: 0 | CB38: =IF(CB37>$F3+1,0,1)*(IF(CC38=0,100,0)+IF($G3=1,1,0.5)*$J3*100) -> 0 | CC38: =IF(CC37>$F3+1,0,1)*(IF(CD38=0,100,0)+IF($G3=1,1,0.5)*$J3*100) -> 0 | CD38: 0 | CE38: 0 | CF38: 0 | CG38: 0 | CH38: 0 | CI38: =IF(CI37>$F3+1,0,1)*(IF(CJ38=0,100,0)+IF($G3=1,1,0.5)*$J3*100) -> 0 | CJ38: =IF(CJ37>$F3+1,0,1)*(IF(CK38=0,100,0)+IF($G3=1,1,0.5)*$J3*100) -> 0 | CK38: =IF(CK37>$F3+1,0,1)*(IF(CL38=0,100,0)+IF($G3=1,1,0.5)*$J3*100) -> 0 | CL38: =IF(CL37>$F3+1,0,1)*(IF(CM38=0,100,0)+IF($G3=1,1,0.5)*$J3*100) -> 0 | CM38: =IF(CM37>$F3+1,0,1)*(IF(CN38=0,100,0)+IF($G3=1,1,0.5)*$J3*100) -> 0 | CN38: 0 | CO38: =IF(CO37>$F3+1,0,1)*(IF(CP38=0,100,0)+IF($G3=1,1,0.5)*$J3*100) -> 0 | CP38: =IF(CP37>$F3+1,0,1)*(IF(CQ38=0,100,0)+IF($G3=1,1,0.5)*$J3*100) -> 0 | CQ38: =IF(CQ37>$F3+1,0,1)*(IF(CR38=0,100,0)+IF($G3=1,1,0.5)*$J3*100) -> 0 | CR38: =IF(CR37>$F3+1,0,1)*(IF(CS38=0,100,0)+IF($G3=1,1,0.5)*$J3*100) -> 0 | CS38: =IF(CS37>$F3+1,0,1)*(IF(CT38=0,100,0)+IF($G3=1,1,0.5)*$J3*100) -> 0 | CT38: 0 | CU38: =IF(CU37>$F3+1,0,1)*(IF(CV38=0,100,0)+IF($G3=1,1,0.5)*$J3*100) -> 0 | CV38: =IF(CV37>$F3+1,0,1)*(IF(CW38=0,100,0)+IF($G3=1,1,0.5)*$J3*100) -> 0 | CW38: =IF(CW37>$F3+1,0,1)*(IF(CX38=0,100,0)+IF($G3=1,1,0.5)*$J3*100) -> 0 | CX38: =IF(CX37>$F3+1,0,1)*(IF(CY38=0,100,0)+IF($G3=1,1,0.5)*$J3*100) -> 0 | CY38: =IF(CY37>$F3+1,0,1)*(IF(CZ38=0,100,0)+IF($G3=1,1,0.5)*$J3*100) -> 0 | CZ38: 0 | DA38: =IF(DA37>$F3+1,0,1)*(IF(DB38=0,100,0)+IF($G3=1,1,0.5)*$J3*100) -> 0 | DB38: =IF(DB37>$F3+1,0,1)*(IF(DC38=0,100,0)+IF($G3=1,1,0.5)*$J3*100) -> 0 | DC38: =IF(DC37>$F3+1,0,1)*(IF(DD38=0,100,0)+IF($G3=1,1,0.5)*$J3*100) -> 0 | DD38: =IF(DD37>$F3+1,0,1)*(IF(DE38=0,100,0)+IF($G3=1,1,0.5)*$J3*100) -> 0 | DE38: =IF(DE37>$F3+1,0,1)*(IF(DF38=0,100,0)+IF($G3=1,1,0.5)*$J3*100) -> 0 | DF38: =IF(DF37>$F3+1,0,1)*(IF(DG38=0,100,0)+IF($G3=1,1,0.5)*$J3*100) -> 0 | DG38: =IF(DG37>$F3+1,0,1)*(IF(DH38=0,100,0)+IF($G3=1,1,0.5)*$J3*100) -> 0 | DH38: =IF(DH37>$F3+1,0,1)*(IF(DI38=0,100,0)+IF($G3=1,1,0.5)*$J3*100) -> 0 | DI38: =IF(DI37>$F3+1,0,1)*(IF(DJ38=0,100,0)+IF($G3=1,1,0.5)*$J3*100) -> 0 | DJ38: =IF(DJ37>$F3+1,0,1)*(IF(DK38=0,100,0)+IF($G3=1,1,0.5)*$J3*100) -> 0 | DK38: =IF(DK37>$F3+1,0,1)*(IF(DL38=0,100,0)+IF($G3=1,1,0.5)*$J3*100) -> 0 | DL38: =IF(DL37>$F3+1,0,1)*(IF(DM38=0,100,0)+IF($G3=1,1,0.5)*$J3*100) -> 0 | DM38: =IF(DM37>$F3+1,0,1)*(IF(DN38=0,100,0)+IF($G3=1,1,0.5)*$J3*100) -> 0 | DN38: =IF(DN37>$F3+1,0,1)*(IF(DO38=0,100,0)+IF($G3=1,1,0.5)*$J3*100) -> 0 | DO38: =IF(DO37>$F3+1,0,1)*(IF(DP38=0,100,0)+IF($G3=1,1,0.5)*$J3*100) -> 0 | DP38: =IF(DP37>$F3+1,0,1)*(IF(DQ38=0,100,0)+IF($G3=1,1,0.5)*$J3*100) -> 0 | DQ38: =IF(DQ37>$F3+1,0,1)*(IF(DR38=0,100,0)+IF($G3=1,1,0.5)*$J3*100) -> 0 | DR38: =IF(DR37>$F3+1,0,1)*(IF(DS38=0,100,0)+IF($G3=1,1,0.5)*$J3*100) -> 0 | DS38: =IF(DS37>$F3+1,0,1)*(IF(DT38=0,100,0)+IF($G3=1,1,0.5)*$J3*100) -> 0 | DT38: =IF(DT37>$F3+1,0,1)*(IF(DU38=0,100,0)+IF($G3=1,1,0.5)*$J3*100) -> 0 | DU38: =IF(DU37>$F3+1,0,1)*(IF(DV38=0,100,0)+IF($G3=1,1,0.5)*$J3*100) -> 0 | DV38: =IF(DV37>$F3+1,0,1)*(IF(DW38=0,100,0)+IF($G3=1,1,0.5)*$J3*100) -> 0 | DW38: =IF(DW37>$F3+1,0,1)*(IF(DX38=0,100,0)+IF($G3=1,1,0.5)*$J3*100) -> 0 | DX38: =IF(DX37>$F3+1,0,1)*(IF(DY38=0,100,0)+IF($G3=1,1,0.5)*$J3*100) -> 0 | DY38: =IF(DY37>$F3+1,0,1)*(IF(DZ38=0,100,0)+IF($G3=1,1,0.5)*$J3*100) -> 0 | DZ38: =IF(DZ37>$F3+1,0,1)*(IF(EA38=0,100,0)+IF($G3=1,1,0.5)*$J3*100) -> 0 | EA38: =IF(EA37>$F3+1,0,1)*(IF(EB38=0,100,0)+IF($G3=1,1,0.5)*$J3*100) -> 0 | EB38: =IF(EB37>$F3+1,0,1)*(IF(EC38=0,100,0)+IF($G3=1,1,0.5)*$J3*100) -> 0 | EC38: =IF(EC37>$F3+1,0,1)*(IF(ED38=0,100,0)+IF($G3=1,1,0.5)*$J3*100) -> 0 | ED38: =IF(ED37>$F3+1,0,1)*(IF(EE38=0,100,0)+IF($G3=1,1,0.5)*$J3*100) -> 0 | EE38: =IF(EE37>$F3+1,0,1)*(IF(EF38=0,100,0)+IF($G3=1,1,0.5)*$J3*100) -> 0 | EF38: =IF(EF37>$F3+1,0,1)*(IF(EG38=0,100,0)+IF($G3=1,1,0.5)*$J3*100) -> 0 | EG38: =IF(EG37>$F3+1,0,1)*(IF(EH38=0,100,0)+IF($G3=1,1,0.5)*$J3*100) -> 0 | EH38: =IF(EH37>$F3+1,0,1)*(IF(EI38=0,100,0)+IF($G3=1,1,0.5)*$J3*100) -> 0 | EI38: =IF(EI37>$F3+1,0,1)*(IF(EJ38=0,100,0)+IF($G3=1,1,0.5)*$J3*100) -> 0 | EJ38: =IF(EJ37>$F3+1,0,1)*(IF(EK38=0,100,0)+IF($G3=1,1,0.5)*$J3*100) -> 0 | EK38: =IF(EK37>$F3+1,0,1)*(IF(EL38=0,100,0)+IF($G3=1,1,0.5)*$J3*100) -> 0 | EL38: =IF(EL37>$F3+1,0,1)*(IF(EM38=0,100,0)+IF($G3=1,1,0.5)*$J3*100) -> 0 | EM38: =IF(EM37>$F3+1,0,1)*(IF(EN38=0,100,0)+IF($G3=1,1,0.5)*$J3*100) -> 0 | EN38: =IF(EN37>$F3+1,0,1)*(IF(EO38=0,100,0)+IF($G3=1,1,0.5)*$J3*100) -> 0 | EO38: =IF(EO37>$F3+1,0,1)*(IF(EP38=0,100,0)+IF($G3=1,1,0.5)*$J3*100) -> 0 | EP38: =IF(EP37>$F3+1,0,1)*(IF(EQ38=0,100,0)+IF($G3=1,1,0.5)*$J3*100) -> 0 | EQ38: =IF(EQ37>$F3+1,0,1)*(IF(ER38=0,100,0)+IF($G3=1,1,0.5)*$J3*100) -> 0 | ER38: =IF(ER37>$F3+1,0,1)*(IF(ES38=0,100,0)+IF($G3=1,1,0.5)*$J3*100) -> 0 | ES38: =IF(ES37>$F3+1,0,1)*(IF(ET38=0,100,0)+IF($G3=1,1,0.5)*$J3*100) -> 0 | ET38: =IF(ET37>$F3+1,0,1)*(IF(EU38=0,100,0)+IF($G3=1,1,0.5)*$J3*100) -> 0 | EU38: =IF(EU37>$F3+1,0,1)*(IF(EV38=0,100,0)+IF($G3=1,1,0.5)*$J3*100) -> 0 | EV38: =IF(EV37>$F3+1,0,1)*(IF(EW38=0,100,0)+IF($G3=1,1,0.5)*$J3*100) -> 0 | EW38: =IF(EW37>$F3+1,0,1)*(IF(EX38=0,100,0)+IF($G3=1,1,0.5)*$J3*100) -> 0 | EX38: =IF(EX37>$F3+1,0,1)*(IF(EY38=0,100,0)+IF($G3=1,1,0.5)*$J3*100) -> 0 | EY38: =IF(EY37>$F3+1,0,1)*(IF(EZ38=0,100,0)+IF($G3=1,1,0.5)*$J3*100) -> 0 | EZ38: =IF(EZ37>$F3+1,0,1)*(IF(FA38=0,100,0)+IF($G3=1,1,0.5)*$J3*100) -> 0 | FA38: =IF(FA37>$F3+1,0,1)*(IF(FB38=0,100,0)+IF($G3=1,1,0.5)*$J3*100) -> 0 | FB38: =IF(FB37>$F3+1,0,1)*(IF(FC38=0,100,0)+IF($G3=1,1,0.5)*$J3*100) -> 0 | FC38: =IF(FC37>$F3+1,0,1)*(IF(FD38=0,100,0)+IF($G3=1,1,0.5)*$J3*100) -> 0 | FD38: =IF(FD37>$F3+1,0,1)*(IF(FE38=0,100,0)+IF($G3=1,1,0.5)*$J3*100) -> 0 | FE38: =IF(FE37>$F3+1,0,1)*(IF(FF38=0,100,0)+IF($G3=1,1,0.5)*$J3*100) -> 0 | FF38: =IF(FF37>$F3+1,0,1)*(IF(FG38=0,100,0)+IF($G3=1,1,0.5)*$J3*100) -> 0 | FG38: =IF(FG37>$F3+1,0,1)*(IF(FH38=0,100,0)+IF($G3=1,1,0.5)*$J3*100) -> 0 | FH38: =IF(FH37>$F3+1,0,1)*(IF(FI38=0,100,0)+IF($G3=1,1,0.5)*$J3*100) -> 0 | FI38: =IF(FI37>$F3+1,0,1)*(IF(FJ38=0,100,0)+IF($G3=1,1,0.5)*$J3*100) -> 0 | FJ38: =IF(FJ37>$F3+1,0,1)*(IF(FK38=0,100,0)+IF($G3=1,1,0.5)*$J3*100) -> 0 | FK38: =IF(FK37>$F3+1,0,1)*(IF(FL38=0,100,0)+IF($G3=1,1,0.5)*$J3*100) -> 0 | FL38: =IF(FL37>$F3+1,0,1)*(IF(FM38=0,100,0)+IF($G3=1,1,0.5)*$J3*100) -> 0 | FM38: =IF(FM37>$F3+1,0,1)*(IF(FN38=0,100,0)+IF($G3=1,1,0.5)*$J3*100) -> 0 | FN38: =IF(FN37>$F3+1,0,1)*(IF(FO38=0,100,0)+IF($G3=1,1,0.5)*$J3*100) -> 0 | FO38: =IF(FO37>$F3+1,0,1)*(IF(FP38=0,100,0)+IF($G3=1,1,0.5)*$J3*100) -> 0 | FP38: =IF(FP37>$F3+1,0,1)*(IF(FQ38=0,100,0)+IF($G3=1,1,0.5)*$J3*100) -> 0 | FQ38: =IF(FQ37>$F3+1,0,1)*(IF(FR38=0,100,0)+IF($G3=1,1,0.5)*$J3*100) -> 0 | FR38: =IF(FR37>$F3+1,0,1)*(IF(FS38=0,100,0)+IF($G3=1,1,0.5)*$J3*100) -> 0 | FS38: =IF(FS37>$F3+1,0,1)*(IF(FT38=0,100,0)+IF($G3=1,1,0.5)*$J3*100) -> 0 | FT38: =IF(FT37>$F3+1,0,1)*(IF(FU38=0,100,0)+IF($G3=1,1,0.5)*$J3*100) -> 0 | FU38: =IF(FU37>$F3+1,0,1)*(IF(FV38=0,100,0)+IF($G3=1,1,0.5)*$J3*100) -> 0 | FV38: =IF(FV37>$F3+1,0,1)*(IF(FW38=0,100,0)+IF($G3=1,1,0.5)*$J3*100) -> 0 | FW38: =IF(FW37>$F3+1,0,1)*(IF(FX38=0,100,0)+IF($G3=1,1,0.5)*$J3*100) -> 0 | FX38: =IF(FX37>$F3+1,0,1)*(IF(FY38=0,100,0)+IF($G3=1,1,0.5)*$J3*100) -> 0 | FY38: =IF(FY37>$F3+1,0,1)*(IF(FZ38=0,100,0)+IF($G3=1,1,0.5)*$J3*100) -> 0 | FZ38: =IF(FZ37>$F3+1,0,1)*(IF(GA38=0,100,0)+IF($G3=1,1,0.5)*$J3*100) -> 0 | GA38: =IF(GA37>$F3+1,0,1)*(IF(GB38=0,100,0)+IF($G3=1,1,0.5)*$J3*100) -> 0 | GB38: =IF(GB37>$F3+1,0,1)*(IF(GC38=0,100,0)+IF($G3=1,1,0.5)*$J3*100) -> 0 | GC38: =IF(GC37>$F3+1,0,1)*(IF(GD38=0,100,0)+IF($G3=1,1,0.5)*$J3*100) -> 0 | GD38: =IF(GD37>$F3+1,0,1)*(IF(GE38=0,100,0)+IF($G3=1,1,0.5)*$J3*100) -> 0 | GE38: =IF(GE37>$F3+1,0,1)*(IF(GF38=0,100,0)+IF($G3=1,1,0.5)*$J3*100) -> 0 | GF38: =IF(GF37>$F3+1,0,1)*(IF(GG38=0,100,0)+IF($G3=1,1,0.5)*$J3*100) -> 0 | GG38: =IF(GG37>$F3+1,0,1)*(IF(GH38=0,100,0)+IF($G3=1,1,0.5)*$J3*100) -> 0 | GH38: =IF(GH37>$F3+1,0,1)*(IF(GI38=0,100,0)+IF($G3=1,1,0.5)*$J3*100) -> 0 | GI38: =IF(GI37>$F3+1,0,1)*(IF(GJ38=0,100,0)+IF($G3=1,1,0.5)*$J3*100) -> 0 | GJ38: =IF(GJ37>$F3+1,0,1)*(IF(GK38=0,100,0)+IF($G3=1,1,0.5)*$J3*100) -> 0 | GK38: =IF(GK37>$F3+1,0,1)*(IF(GL38=0,100,0)+IF($G3=1,1,0.5)*$J3*100) -> 0 | GL38: =IF(GL37>$F3+1,0,1)*(IF(GM38=0,100,0)+IF($G3=1,1,0.5)*$J3*100) -> 0 | GM38: =IF(GM37>$F3+1,0,1)*(IF(GN38=0,100,0)+IF($G3=1,1,0.5)*$J3*100) -> 0 | GN38: =IF(GN37>$F3+1,0,1)*(IF(GO38=0,100,0)+IF($G3=1,1,0.5)*$J3*100) -> 0 | GO38: =IF(GO37>$F3+1,0,1)*(IF(GP38=0,100,0)+IF($G3=1,1,0.5)*$J3*100) -> 0 | GP38: =IF(GP37>$F3+1,0,1)*(IF(GQ38=0,100,0)+IF($G3=1,1,0.5)*$J3*100) -> 0 | GQ38: =IF(GQ37>$F3+1,0,1)*(IF(GR38=0,100,0)+IF($G3=1,1,0.5)*$J3*100) -> 0 | GR38: =IF(GR37>$F3+1,0,1)*(IF(GS38=0,100,0)+IF($G3=1,1,0.5)*$J3*100) -> 0 | GS38: =IF(GS37>$F3+1,0,1)*(IF(GT38=0,100,0)+IF($G3=1,1,0.5)*$J3*100) -> 0
A39: Payment Dates | B39: =IF(E4=0,F4,E4) -> 9/1/2019 | C39: =B39+IF($G4=1,365,182.5) -> 2020-03-01T12:00:00 | D39: 2020-08-31 | E39: 2021-03-01T12:00:00 | F39: 2021-08-31 | G39: 2022-03-01T12:00:00 | H39: 2022-08-31 | I39: 2023-03-01T12:00:00 | J39: 2023-08-31 | K39: 2024-02-29T12:00:00 | L39: 2024-08-30 | M39: 2025-02-28T12:00:00 | N39: 2025-08-30 | O39: 2026-02-28T12:00:00 | P39: 2026-08-30 | Q39: 2027-02-28T12:00:00 | R39: 2027-08-30 | S39: 2028-02-28T12:00:00 | T39: 2028-08-29 | U39: 2029-02-27T12:00:00 | V39: 2029-08-29 | W39: 2030-02-27T12:00:00 | X39: 2030-08-29 | Y39: 2031-02-27T12:00:00 | Z39: 2031-08-29 | AA39: 2032-02-27T12:00:00 | AB39: 2032-08-28 | AC39: 2033-02-26T12:00:00 | AD39: 2033-08-28 | AE39: 2034-02-26T12:00:00 | AF39: 2034-08-28 | AG39: 2035-02-26T12:00:00 | AH39: 2035-08-28 | AI39: 2036-02-26T12:00:00 | AJ39: 2036-08-27 | AK39: 2037-02-25T12:00:00 | AL39: 2037-08-27 | AM39: 2038-02-25T12:00:00 | AN39: 2038-08-27 | AO39: 2039-02-25T12:00:00 | AP39: 2039-08-27 | AQ39: 2040-02-25T12:00:00 | AR39: 2040-08-26 | AS39: 2041-02-24T12:00:00 | AT39: 2041-08-26 | AU39: 2042-02-24T12:00:00 | AV39: 2042-08-26 | AW39: 2043-02-24T12:00:00 | AX39: 2043-08-26 | AY39: 2044-02-24T12:00:00 | AZ39: 2044-08-25 | BA39: 2045-02-23T12:00:00 | BB39: 2045-08-25 | BC39: 2046-02-23T12:00:00 | BD39: 2046-08-25 | BE39: 2047-02-23T12:00:00 | BF39: 2047-08-25 | BG39: 2048-02-23T12:00:00 | BH39: 2048-08-24 | BI39: 2049-02-22T12:00:00 | BJ39: 2049-08-24 | BK39: 2050-02-22T12:00:00 | BL39: 2050-08-24 | BM39: 2051-02-22T12:00:00 | BN39: 2051-08-24 | BO39: =BN39+IF($G4=1,365,182.5) -> 2052-02-22T12:00:00 | BP39: 2052-08-23 | BQ39: 2053-02-21T12:00:00 | BR39: 2053-08-23 | BS39: 2054-02-21T12:00:00 | BT39: 2054-08-23 | BU39: 2055-02-21T12:00:00 | BV39: 2055-08-23 | BW39: 2056-02-21T12:00:00 | BX39: 2056-08-22 | BY39: 2057-02-20T12:00:00 | BZ39: 2057-08-22 | CA39: 2058-02-20T12:00:00 | CB39: 2058-08-22 | CC39: =CB39+IF($G4=1,365,182.5) -> 2059-02-20T12:00:00 | CD39: =CC39+IF($G4=1,365,182.5) -> 2059-08-22 | CE39: =CD39+IF($G4=1,365,182.5) -> 2060-02-20T12:00:00 | CF39: =CE39+IF($G4=1,365,182.5) -> 2060-08-21 | CG39: =CF39+IF($G4=1,365,182.5) -> 2061-02-19T12:00:00 | CH39: =CG39+IF($G4=1,365,182.5) -> 2061-08-21 | CI39: =CH39+IF($G4=1,365,182.5) -> 2062-02-19T12:00:00 | CJ39: =CI39+IF($G4=1,365,182.5) -> 2062-08-21 | CK39: =CJ39+IF($G4=1,365,182.5) -> 2063-02-19T12:00:00 | CL39: =CK39+IF($G4=1,365,182.5) -> 2063-08-21 | CM39: =CL39+IF($G4=1,365,182.5) -> 2064-02-19T12:00:00 | CN39: =CM39+IF($G4=1,365,182.5) -> 2064-08-20 | CO39: =CN39+IF($G4=1,365,182.5) -> 2065-02-18T12:00:00 | CP39: =CO39+IF($G4=1,365,182.5) -> 2065-08-20 | CQ39: =CP39+IF($G4=1,365,182.5) -> 2066-02-18T12:00:00 | CR39: =CQ39+IF($G4=1,365,182.5) -> 2066-08-20 | CS39: =CR39+IF($G4=1,365,182.5) -> 2067-02-18T12:00:00 | CT39: =CS39+IF($G4=1,365,182.5) -> 2067-08-20 | CU39: =CT39+IF($G4=1,365,182.5) -> 2068-02-18T12:00:00 | CV39: =CU39+IF($G4=1,365,182.5) -> 2068-08-19 | CW39: =CV39+IF($G4=1,365,182.5) -> 2069-02-17T12:00:00 | CX39: =CW39+IF($G4=1,365,182.5) -> 2069-08-19 | CY39: =CX39+IF($G4=1,365,182.5) -> 2070-02-17T12:00:00 | CZ39: =CY39+IF($G4=1,365,182.5) -> 2070-08-19 | DA39: =CZ39+IF($G4=1,365,182.5) -> 2071-02-17T12:00:00 | DB39: =DA39+IF($G4=1,365,182.5) -> 2071-08-19 | DC39: =DB39+IF($G4=1,365,182.5) -> 2072-02-17T12:00:00 | DD39: =DC39+IF($G4=1,365,182.5) -> 2072-08-18 | DE39: =DD39+IF($G4=1,365,182.5) -> 2073-02-16T12:00:00 | DF39: =DE39+IF($G4=1,365,182.5) -> 2073-08-18 | DG39: =DF39+IF($G4=1,365,182.5) -> 2074-02-16T12:00:00 | DH39: =DG39+IF($G4=1,365,182.5) -> 2074-08-18 | DI39: =DH39+IF($G4=1,365,182.5) -> 2075-02-16T12:00:00 | DJ39: =DI39+IF($G4=1,365,182.5) -> 2075-08-18 | DK39: =DJ39+IF($G4=1,365,182.5) -> 2076-02-16T12:00:00 | DL39: =DK39+IF($G4=1,365,182.5) -> 2076-08-17 | DM39: =DL39+IF($G4=1,365,182.5) -> 2077-02-15T12:00:00 | DN39: =DM39+IF($G4=1,365,182.5) -> 2077-08-17 | DO39: =DN39+IF($G4=1,365,182.5) -> 2078-02-15T12:00:00 | DP39: =DO39+IF($G4=1,365,182.5) -> 2078-08-17 | DQ39: =DP39+IF($G4=1,365,182.5) -> 2079-02-15T12:00:00 | DR39: =DQ39+IF($G4=1,365,182.5) -> 2079-08-17 | DS39: =DR39+IF($G4=1,365,182.5) -> 2080-02-15T12:00:00 | DT39: =DS39+IF($G4=1,365,182.5) -> 2080-08-16 | DU39: =DT39+IF($G4=1,365,182.5) -> 2081-02-14T12:00:00 | DV39: =DU39+IF($G4=1,365,182.5) -> 2081-08-16 | DW39: =DV39+IF($G4=1,365,182.5) -> 2082-02-14T12:00:00 | DX39: =DW39+IF($G4=1,365,182.5) -> 2082-08-16 | DY39: =DX39+IF($G4=1,365,182.5) -> 2083-02-14T12:00:00 | DZ39: =DY39+IF($G4=1,365,182.5) -> 2083-08-16 | EA39: =DZ39+IF($G4=1,365,182.5) -> 2084-02-14T12:00:00 | EB39: =EA39+IF($G4=1,365,182.5) -> 2084-08-15 | EC39: =EB39+IF($G4=1,365,182.5) -> 2085-02-13T12:00:00 | ED39: =EC39+IF($G4=1,365,182.5) -> 2085-08-15 | EE39: =ED39+IF($G4=1,365,182.5) -> 2086-02-13T12:00:00 | EF39: =EE39+IF($G4=1,365,182.5) -> 2086-08-15 | EG39: =EF39+IF($G4=1,365,182.5) -> 2087-02-13T12:00:00 | EH39: =EG39+IF($G4=1,365,182.5) -> 2087-08-15 | EI39: =EH39+IF($G4=1,365,182.5) -> 2088-02-13T12:00:00 | EJ39: =EI39+IF($G4=1,365,182.5) -> 2088-08-14 | EK39: =EJ39+IF($G4=1,365,182.5) -> 2089-02-12T12:00:00 | EL39: =EK39+IF($G4=1,365,182.5) -> 2089-08-14 | EM39: =EL39+IF($G4=1,365,182.5) -> 2090-02-12T12:00:00 | EN39: =EM39+IF($G4=1,365,182.5) -> 2090-08-14 | EO39: =EN39+IF($G4=1,365,182.5) -> 2091-02-12T12:00:00 | EP39: =EO39+IF($G4=1,365,182.5) -> 2091-08-14 | EQ39: =EP39+IF($G4=1,365,182.5) -> 2092-02-12T12:00:00 | ER39: =EQ39+IF($G4=1,365,182.5) -> 2092-08-13 | ES39: =ER39+IF($G4=1,365,182.5) -> 2093-02-11T12:00:00 | ET39: =ES39+IF($G4=1,365,182.5) -> 2093-08-13 | EU39: =ET39+IF($G4=1,365,182.5) -> 2094-02-11T12:00:00 | EV39: =EU39+IF($G4=1,365,182.5) -> 2094-08-13 | EW39: =EV39+IF($G4=1,365,182.5) -> 2095-02-11T12:00:00 | EX39: =EW39+IF($G4=1,365,182.5) -> 2095-08-13 | EY39: =EX39+IF($G4=1,365,182.5) -> 2096-02-11T12:00:00 | EZ39: =EY39+IF($G4=1,365,182.5) -> 2096-08-12 | FA39: =EZ39+IF($G4=1,365,182.5) -> 2097-02-10T12:00:00 | FB39: =FA39+IF($G4=1,365,182.5) -> 2097-08-12 | FC39: =FB39+IF($G4=1,365,182.5) -> 2098-02-10T12:00:00 | FD39: =FC39+IF($G4=1,365,182.5) -> 2098-08-12 | FE39: =FD39+IF($G4=1,365,182.5) -> 2099-02-10T12:00:00 | FF39: =FE39+IF($G4=1,365,182.5) -> 2099-08-12 | FG39: =FF39+IF($G4=1,365,182.5) -> 2100-02-10T12:00:00 | FH39: =FG39+IF($G4=1,365,182.5) -> 2100-08-12 | FI39: =FH39+IF($G4=1,365,182.5) -> 2101-02-10T12:00:00 | FJ39: =FI39+IF($G4=1,365,182.5) -> 2101-08-12 | FK39: =FJ39+IF($G4=1,365,182.5) -> 2102-02-10T12:00:00 | FL39: =FK39+IF($G4=1,365,182.5) -> 2102-08-12 | FM39: =FL39+IF($G4=1,365,182.5) -> 2103-02-10T12:00:00 | FN39: =FM39+IF($G4=1,365,182.5) -> 2103-08-12 | FO39: =FN39+IF($G4=1,365,182.5) -> 2104-02-10T12:00:00 | FP39: =FO39+IF($G4=1,365,182.5) -> 2104-08-11 | FQ39: =FP39+IF($G4=1,365,182.5) -> 2105-02-09T12:00:00 | FR39: =FQ39+IF($G4=1,365,182.5) -> 2105-08-11 | FS39: =FR39+IF($G4=1,365,182.5) -> 2106-02-09T12:00:00 | FT39: =FS39+IF($G4=1,365,182.5) -> 2106-08-11 | FU39: =FT39+IF($G4=1,365,182.5) -> 2107-02-09T12:00:00 | FV39: =FU39+IF($G4=1,365,182.5) -> 2107-08-11 | FW39: =FV39+IF($G4=1,365,182.5) -> 2108-02-09T12:00:00 | FX39: =FW39+IF($G4=1,365,182.5) -> 2108-08-10 | FY39: =FX39+IF($G4=1,365,182.5) -> 2109-02-08T12:00:00 | FZ39: =FY39+IF($G4=1,365,182.5) -> 2109-08-10 | GA39: =FZ39+IF($G4=1,365,182.5) -> 2110-02-08T12:00:00 | GB39: =GA39+IF($G4=1,365,182.5) -> 2110-08-10 | GC39: =GB39+IF($G4=1,365,182.5) -> 2111-02-08T12:00:00 | GD39: =GC39+IF($G4=1,365,182.5) -> 2111-08-10 | GE39: =GD39+IF($G4=1,365,182.5) -> 2112-02-08T12:00:00 | GF39: =GE39+IF($G4=1,365,182.5) -> 2112-08-09 | GG39: =GF39+IF($G4=1,365,182.5) -> 2113-02-07T12:00:00 | GH39: =GG39+IF($G4=1,365,182.5) -> 2113-08-09 | GI39: =GH39+IF($G4=1,365,182.5) -> 2114-02-07T12:00:00 | GJ39: =GI39+IF($G4=1,365,182.5) -> 2114-08-09 | GK39: =GJ39+IF($G4=1,365,182.5) -> 2115-02-07T12:00:00 | GL39: =GK39+IF($G4=1,365,182.5) -> 2115-08-09 | GM39: =GL39+IF($G4=1,365,182.5) -> 2116-02-07T12:00:00 | GN39: =GM39+IF($G4=1,365,182.5) -> 2116-08-08 | GO39: =GN39+IF($G4=1,365,182.5) -> 2117-02-06T12:00:00 | GP39: =GO39+IF($G4=1,365,182.5) -> 2117-08-08 | GQ39: =GP39+IF($G4=1,365,182.5) -> 2118-02-06T12:00:00 | GR39: =GQ39+IF($G4=1,365,182.5) -> 2118-08-08 | GS39: =GR39+IF($G4=1,365,182.5) -> 2119-02-06T12:00:00
A40: Bond 3 | B40: =(IF(B39=F4,100,0)+IF(G4=1,1,0.5)*J4*100)*IF(ISBLANK(F4)=TRUE,0,1) -> 2.85 | C40: =IF(C39>$F4+1,0,1)*(IF(D40=0,100,0)+IF($G4=1,1,0.5)*$J4*100) -> 2.85 | D40: 2.85 | E40: 2.85 | F40: 2.85 | G40: 2.85 | H40: 2.85 | I40: 2.85 | J40: 2.85 | K40: 2.85 | L40: 2.85 | M40: 2.85 | N40: 2.85 | O40: 2.85 | P40: 2.85 | Q40: 2.85 | R40: 2.85 | S40: 2.85 | T40: 2.85 | U40: 2.85 | V40: 2.85 | W40: 2.85 | X40: 2.85 | Y40: 2.85 | Z40: 2.85 | AA40: 2.85 | AB40: 2.85 | AC40: 2.85 | AD40: 2.85 | AE40: 2.85 | AF40: 2.85 | AG40: 2.85 | AH40: 2.85 | AI40: 2.85 | AJ40: 2.85 | AK40: 2.85 | AL40: 2.85 | AM40: 2.85 | AN40: 2.85 | AO40: 102.85 | AP40: 0 | AQ40: 0 | AR40: 0 | AS40: 0 | AT40: 0 | AU40: 0 | AV40: 0 | AW40: 0 | AX40: 0 | AY40: 0 | AZ40: 0 | BA40: 0 | BB40: 0 | BC40: 0 | BD40: 0 | BE40: 0 | BF40: 0 | BG40: 0 | BH40: 0 | BI40: 0 | BJ40: 0 | BK40: 0 | BL40: 0 | BM40: 0 | BN40: 0 | BO40: =IF(BO39>$F4+1,0,1)*(IF(BP40=0,100,0)+IF($G4=1,1,0.5)*$J4*100) -> 0 | BP40: 0 | BQ40: 0 | BR40: 0 | BS40: 0 | BT40: 0 | BU40: 0 | BV40: 0 | BW40: 0 | BX40: 0 | BY40: 0 | BZ40: 0 | CA40: 0 | CB40: =IF(CB39>$F4+1,0,1)*(IF(CC40=0,100,0)+IF($G4=1,1,0.5)*$J4*100) -> 0 | CC40: =IF(CC39>$F4+1,0,1)*(IF(CD40=0,100,0)+IF($G4=1,1,0.5)*$J4*100) -> 0 | CD40: 0 | CE40: 0 | CF40: 0 | CG40: 0 | CH40: 0 | CI40: =IF(CI39>$F4+1,0,1)*(IF(CJ40=0,100,0)+IF($G4=1,1,0.5)*$J4*100) -> 0 | CJ40: =IF(CJ39>$F4+1,0,1)*(IF(CK40=0,100,0)+IF($G4=1,1,0.5)*$J4*100) -> 0 | CK40: =IF(CK39>$F4+1,0,1)*(IF(CL40=0,100,0)+IF($G4=1,1,0.5)*$J4*100) -> 0 | CL40: =IF(CL39>$F4+1,0,1)*(IF(CM40=0,100,0)+IF($G4=1,1,0.5)*$J4*100) -> 0 | CM40: =IF(CM39>$F4+1,0,1)*(IF(CN40=0,100,0)+IF($G4=1,1,0.5)*$J4*100) -> 0 | CN40: 0 | CO40: =IF(CO39>$F4+1,0,1)*(IF(CP40=0,100,0)+IF($G4=1,1,0.5)*$J4*100) -> 0 | CP40: =IF(CP39>$F4+1,0,1)*(IF(CQ40=0,100,0)+IF($G4=1,1,0.5)*$J4*100) -> 0 | CQ40: =IF(CQ39>$F4+1,0,1)*(IF(CR40=0,100,0)+IF($G4=1,1,0.5)*$J4*100) -> 0 | CR40: =IF(CR39>$F4+1,0,1)*(IF(CS40=0,100,0)+IF($G4=1,1,0.5)*$J4*100) -> 0 | CS40: =IF(CS39>$F4+1,0,1)*(IF(CT40=0,100,0)+IF($G4=1,1,0.5)*$J4*100) -> 0 | CT40: 0 | CU40: =IF(CU39>$F4+1,0,1)*(IF(CV40=0,100,0)+IF($G4=1,1,0.5)*$J4*100) -> 0 | CV40: =IF(CV39>$F4+1,0,1)*(IF(CW40=0,100,0)+IF($G4=1,1,0.5)*$J4*100) -> 0 | CW40: =IF(CW39>$F4+1,0,1)*(IF(CX40=0,100,0)+IF($G4=1,1,0.5)*$J4*100) -> 0 | CX40: =IF(CX39>$F4+1,0,1)*(IF(CY40=0,100,0)+IF($G4=1,1,0.5)*$J4*100) -> 0 | CY40: =IF(CY39>$F4+1,0,1)*(IF(CZ40=0,100,0)+IF($G4=1,1,0.5)*$J4*100) -> 0 | CZ40: 0 | DA40: =IF(DA39>$F4+1,0,1)*(IF(DB40=0,100,0)+IF($G4=1,1,0.5)*$J4*100) -> 0 | DB40: =IF(DB39>$F4+1,0,1)*(IF(DC40=0,100,0)+IF($G4=1,1,0.5)*$J4*100) -> 0 | DC40: =IF(DC39>$F4+1,0,1)*(IF(DD40=0,100,0)+IF($G4=1,1,0.5)*$J4*100) -> 0 | DD40: =IF(DD39>$F4+1,0,1)*(IF(DE40=0,100,0)+IF($G4=1,1,0.5)*$J4*100) -> 0 | DE40: =IF(DE39>$F4+1,0,1)*(IF(DF40=0,100,0)+IF($G4=1,1,0.5)*$J4*100) -> 0 | DF40: =IF(DF39>$F4+1,0,1)*(IF(DG40=0,100,0)+IF($G4=1,1,0.5)*$J4*100) -> 0 | DG40: =IF(DG39>$F4+1,0,1)*(IF(DH40=0,100,0)+IF($G4=1,1,0.5)*$J4*100) -> 0 | DH40: =IF(DH39>$F4+1,0,1)*(IF(DI40=0,100,0)+IF($G4=1,1,0.5)*$J4*100) -> 0 | DI40: =IF(DI39>$F4+1,0,1)*(IF(DJ40=0,100,0)+IF($G4=1,1,0.5)*$J4*100) -> 0 | DJ40: =IF(DJ39>$F4+1,0,1)*(IF(DK40=0,100,0)+IF($G4=1,1,0.5)*$J4*100) -> 0 | DK40: =IF(DK39>$F4+1,0,1)*(IF(DL40=0,100,0)+IF($G4=1,1,0.5)*$J4*100) -> 0 | DL40: =IF(DL39>$F4+1,0,1)*(IF(DM40=0,100,0)+IF($G4=1,1,0.5)*$J4*100) -> 0 | DM40: =IF(DM39>$F4+1,0,1)*(IF(DN40=0,100,0)+IF($G4=1,1,0.5)*$J4*100) -> 0 | DN40: =IF(DN39>$F4+1,0,1)*(IF(DO40=0,100,0)+IF($G4=1,1,0.5)*$J4*100) -> 0 | DO40: =IF(DO39>$F4+1,0,1)*(IF(DP40=0,100,0)+IF($G4=1,1,0.5)*$J4*100) -> 0 | DP40: =IF(DP39>$F4+1,0,1)*(IF(DQ40=0,100,0)+IF($G4=1,1,0.5)*$J4*100) -> 0 | DQ40: =IF(DQ39>$F4+1,0,1)*(IF(DR40=0,100,0)+IF($G4=1,1,0.5)*$J4*100) -> 0 | DR40: =IF(DR39>$F4+1,0,1)*(IF(DS40=0,100,0)+IF($G4=1,1,0.5)*$J4*100) -> 0 | DS40: =IF(DS39>$F4+1,0,1)*(IF(DT40=0,100,0)+IF($G4=1,1,0.5)*$J4*100) -> 0 | DT40: =IF(DT39>$F4+1,0,1)*(IF(DU40=0,100,0)+IF($G4=1,1,0.5)*$J4*100) -> 0 | DU40: =IF(DU39>$F4+1,0,1)*(IF(DV40=0,100,0)+IF($G4=1,1,0.5)*$J4*100) -> 0 | DV40: =IF(DV39>$F4+1,0,1)*(IF(DW40=0,100,0)+IF($G4=1,1,0.5)*$J4*100) -> 0 | DW40: =IF(DW39>$F4+1,0,1)*(IF(DX40=0,100,0)+IF($G4=1,1,0.5)*$J4*100) -> 0 | DX40: =IF(DX39>$F4+1,0,1)*(IF(DY40=0,100,0)+IF($G4=1,1,0.5)*$J4*100) -> 0 | DY40: =IF(DY39>$F4+1,0,1)*(IF(DZ40=0,100,0)+IF($G4=1,1,0.5)*$J4*100) -> 0 | DZ40: =IF(DZ39>$F4+1,0,1)*(IF(EA40=0,100,0)+IF($G4=1,1,0.5)*$J4*100) -> 0 | EA40: =IF(EA39>$F4+1,0,1)*(IF(EB40=0,100,0)+IF($G4=1,1,0.5)*$J4*100) -> 0 | EB40: =IF(EB39>$F4+1,0,1)*(IF(EC40=0,100,0)+IF($G4=1,1,0.5)*$J4*100) -> 0 | EC40: =IF(EC39>$F4+1,0,1)*(IF(ED40=0,100,0)+IF($G4=1,1,0.5)*$J4*100) -> 0 | ED40: =IF(ED39>$F4+1,0,1)*(IF(EE40=0,100,0)+IF($G4=1,1,0.5)*$J4*100) -> 0 | EE40: =IF(EE39>$F4+1,0,1)*(IF(EF40=0,100,0)+IF($G4=1,1,0.5)*$J4*100) -> 0 | EF40: =IF(EF39>$F4+1,0,1)*(IF(EG40=0,100,0)+IF($G4=1,1,0.5)*$J4*100) -> 0 | EG40: =IF(EG39>$F4+1,0,1)*(IF(EH40=0,100,0)+IF($G4=1,1,0.5)*$J4*100) -> 0 | EH40: =IF(EH39>$F4+1,0,1)*(IF(EI40=0,100,0)+IF($G4=1,1,0.5)*$J4*100) -> 0 | EI40: =IF(EI39>$F4+1,0,1)*(IF(EJ40=0,100,0)+IF($G4=1,1,0.5)*$J4*100) -> 0 | EJ40: =IF(EJ39>$F4+1,0,1)*(IF(EK40=0,100,0)+IF($G4=1,1,0.5)*$J4*100) -> 0 | EK40: =IF(EK39>$F4+1,0,1)*(IF(EL40=0,100,0)+IF($G4=1,1,0.5)*$J4*100) -> 0 | EL40: =IF(EL39>$F4+1,0,1)*(IF(EM40=0,100,0)+IF($G4=1,1,0.5)*$J4*100) -> 0 | EM40: =IF(EM39>$F4+1,0,1)*(IF(EN40=0,100,0)+IF($G4=1,1,0.5)*$J4*100) -> 0 | EN40: =IF(EN39>$F4+1,0,1)*(IF(EO40=0,100,0)+IF($G4=1,1,0.5)*$J4*100) -> 0 | EO40: =IF(EO39>$F4+1,0,1)*(IF(EP40=0,100,0)+IF($G4=1,1,0.5)*$J4*100) -> 0 | EP40: =IF(EP39>$F4+1,0,1)*(IF(EQ40=0,100,0)+IF($G4=1,1,0.5)*$J4*100) -> 0 | EQ40: =IF(EQ39>$F4+1,0,1)*(IF(ER40=0,100,0)+IF($G4=1,1,0.5)*$J4*100) -> 0 | ER40: =IF(ER39>$F4+1,0,1)*(IF(ES40=0,100,0)+IF($G4=1,1,0.5)*$J4*100) -> 0 | ES40: =IF(ES39>$F4+1,0,1)*(IF(ET40=0,100,0)+IF($G4=1,1,0.5)*$J4*100) -> 0 | ET40: =IF(ET39>$F4+1,0,1)*(IF(EU40=0,100,0)+IF($G4=1,1,0.5)*$J4*100) -> 0 | EU40: =IF(EU39>$F4+1,0,1)*(IF(EV40=0,100,0)+IF($G4=1,1,0.5)*$J4*100) -> 0 | EV40: =IF(EV39>$F4+1,0,1)*(IF(EW40=0,100,0)+IF($G4=1,1,0.5)*$J4*100) -> 0 | EW40: =IF(EW39>$F4+1,0,1)*(IF(EX40=0,100,0)+IF($G4=1,1,0.5)*$J4*100) -> 0 | EX40: =IF(EX39>$F4+1,0,1)*(IF(EY40=0,100,0)+IF($G4=1,1,0.5)*$J4*100) -> 0 | EY40: =IF(EY39>$F4+1,0,1)*(IF(EZ40=0,100,0)+IF($G4=1,1,0.5)*$J4*100) -> 0 | EZ40: =IF(EZ39>$F4+1,0,1)*(IF(FA40=0,100,0)+IF($G4=1,1,0.5)*$J4*100) -> 0 | FA40: =IF(FA39>$F4+1,0,1)*(IF(FB40=0,100,0)+IF($G4=1,1,0.5)*$J4*100) -> 0 | FB40: =IF(FB39>$F4+1,0,1)*(IF(FC40=0,100,0)+IF($G4=1,1,0.5)*$J4*100) -> 0 | FC40: =IF(FC39>$F4+1,0,1)*(IF(FD40=0,100,0)+IF($G4=1,1,0.5)*$J4*100) -> 0 | FD40: =IF(FD39>$F4+1,0,1)*(IF(FE40=0,100,0)+IF($G4=1,1,0.5)*$J4*100) -> 0 | FE40: =IF(FE39>$F4+1,0,1)*(IF(FF40=0,100,0)+IF($G4=1,1,0.5)*$J4*100) -> 0 | FF40: =IF(FF39>$F4+1,0,1)*(IF(FG40=0,100,0)+IF($G4=1,1,0.5)*$J4*100) -> 0 | FG40: =IF(FG39>$F4+1,0,1)*(IF(FH40=0,100,0)+IF($G4=1,1,0.5)*$J4*100) -> 0 | FH40: =IF(FH39>$F4+1,0,1)*(IF(FI40=0,100,0)+IF($G4=1,1,0.5)*$J4*100) -> 0 | FI40: =IF(FI39>$F4+1,0,1)*(IF(FJ40=0,100,0)+IF($G4=1,1,0.5)*$J4*100) -> 0 | FJ40: =IF(FJ39>$F4+1,0,1)*(IF(FK40=0,100,0)+IF($G4=1,1,0.5)*$J4*100) -> 0 | FK40: =IF(FK39>$F4+1,0,1)*(IF(FL40=0,100,0)+IF($G4=1,1,0.5)*$J4*100) -> 0 | FL40: =IF(FL39>$F4+1,0,1)*(IF(FM40=0,100,0)+IF($G4=1,1,0.5)*$J4*100) -> 0 | FM40: =IF(FM39>$F4+1,0,1)*(IF(FN40=0,100,0)+IF($G4=1,1,0.5)*$J4*100) -> 0 | FN40: =IF(FN39>$F4+1,0,1)*(IF(FO40=0,100,0)+IF($G4=1,1,0.5)*$J4*100) -> 0 | FO40: =IF(FO39>$F4+1,0,1)*(IF(FP40=0,100,0)+IF($G4=1,1,0.5)*$J4*100) -> 0 | FP40: =IF(FP39>$F4+1,0,1)*(IF(FQ40=0,100,0)+IF($G4=1,1,0.5)*$J4*100) -> 0 | FQ40: =IF(FQ39>$F4+1,0,1)*(IF(FR40=0,100,0)+IF($G4=1,1,0.5)*$J4*100) -> 0 | FR40: =IF(FR39>$F4+1,0,1)*(IF(FS40=0,100,0)+IF($G4=1,1,0.5)*$J4*100) -> 0 | FS40: =IF(FS39>$F4+1,0,1)*(IF(FT40=0,100,0)+IF($G4=1,1,0.5)*$J4*100) -> 0 | FT40: =IF(FT39>$F4+1,0,1)*(IF(FU40=0,100,0)+IF($G4=1,1,0.5)*$J4*100) -> 0 | FU40: =IF(FU39>$F4+1,0,1)*(IF(FV40=0,100,0)+IF($G4=1,1,0.5)*$J4*100) -> 0 | FV40: =IF(FV39>$F4+1,0,1)*(IF(FW40=0,100,0)+IF($G4=1,1,0.5)*$J4*100) -> 0 | FW40: =IF(FW39>$F4+1,0,1)*(IF(FX40=0,100,0)+IF($G4=1,1,0.5)*$J4*100) -> 0 | FX40: =IF(FX39>$F4+1,0,1)*(IF(FY40=0,100,0)+IF($G4=1,1,0.5)*$J4*100) -> 0 | FY40: =IF(FY39>$F4+1,0,1)*(IF(FZ40=0,100,0)+IF($G4=1,1,0.5)*$J4*100) -> 0 | FZ40: =IF(FZ39>$F4+1,0,1)*(IF(GA40=0,100,0)+IF($G4=1,1,0.5)*$J4*100) -> 0 | GA40: =IF(GA39>$F4+1,0,1)*(IF(GB40=0,100,0)+IF($G4=1,1,0.5)*$J4*100) -> 0 | GB40: =IF(GB39>$F4+1,0,1)*(IF(GC40=0,100,0)+IF($G4=1,1,0.5)*$J4*100) -> 0 | GC40: =IF(GC39>$F4+1,0,1)*(IF(GD40=0,100,0)+IF($G4=1,1,0.5)*$J4*100) -> 0 | GD40: =IF(GD39>$F4+1,0,1)*(IF(GE40=0,100,0)+IF($G4=1,1,0.5)*$J4*100) -> 0 | GE40: =IF(GE39>$F4+1,0,1)*(IF(GF40=0,100,0)+IF($G4=1,1,0.5)*$J4*100) -> 0 | GF40: =IF(GF39>$F4+1,0,1)*(IF(GG40=0,100,0)+IF($G4=1,1,0.5)*$J4*100) -> 0 | GG40: =IF(GG39>$F4+1,0,1)*(IF(GH40=0,100,0)+IF($G4=1,1,0.5)*$J4*100) -> 0 | GH40: =IF(GH39>$F4+1,0,1)*(IF(GI40=0,100,0)+IF($G4=1,1,0.5)*$J4*100) -> 0 | GI40: =IF(GI39>$F4+1,0,1)*(IF(GJ40=0,100,0)+IF($G4=1,1,0.5)*$J4*100) -> 0 | GJ40: =IF(GJ39>$F4+1,0,1)*(IF(GK40=0,100,0)+IF($G4=1,1,0.5)*$J4*100) -> 0 | GK40: =IF(GK39>$F4+1,0,1)*(IF(GL40=0,100,0)+IF($G4=1,1,0.5)*$J4*100) -> 0 | GL40: =IF(GL39>$F4+1,0,1)*(IF(GM40=0,100,0)+IF($G4=1,1,0.5)*$J4*100) -> 0 | GM40: =IF(GM39>$F4+1,0,1)*(IF(GN40=0,100,0)+IF($G4=1,1,0.5)*$J4*100) -> 0 | GN40: =IF(GN39>$F4+1,0,1)*(IF(GO40=0,100,0)+IF($G4=1,1,0.5)*$J4*100) -> 0 | GO40: =IF(GO39>$F4+1,0,1)*(IF(GP40=0,100,0)+IF($G4=1,1,0.5)*$J4*100) -> 0 | GP40: =IF(GP39>$F4+1,0,1)*(IF(GQ40=0,100,0)+IF($G4=1,1,0.5)*$J4*100) -> 0 | GQ40: =IF(GQ39>$F4+1,0,1)*(IF(GR40=0,100,0)+IF($G4=1,1,0.5)*$J4*100) -> 0 | GR40: =IF(GR39>$F4+1,0,1)*(IF(GS40=0,100,0)+IF($G4=1,1,0.5)*$J4*100) -> 0 | GS40: =IF(GS39>$F4+1,0,1)*(IF(GT40=0,100,0)+IF($G4=1,1,0.5)*$J4*100) -> 0
A41: Payment Dates | B41: =IF(E5=0,F5,E5) -> 9/1/2019 | C41: =B41+IF($G5=1,365,182.5) -> 2020-03-01T12:00:00 | D41: 2020-08-31 | E41: 2021-03-01T12:00:00 | F41: 2021-08-31 | G41: 2022-03-01T12:00:00 | H41: 2022-08-31 | I41: 2023-03-01T12:00:00 | J41: 2023-08-31 | K41: 2024-02-29T12:00:00 | L41: 2024-08-30 | M41: 2025-02-28T12:00:00 | N41: 2025-08-30 | O41: 2026-02-28T12:00:00 | P41: 2026-08-30 | Q41: 2027-02-28T12:00:00 | R41: 2027-08-30 | S41: 2028-02-28T12:00:00 | T41: 2028-08-29 | U41: 2029-02-27T12:00:00 | V41: 2029-08-29 | W41: 2030-02-27T12:00:00 | X41: 2030-08-29 | Y41: 2031-02-27T12:00:00 | Z41: 2031-08-29 | AA41: 2032-02-27T12:00:00 | AB41: 2032-08-28 | AC41: 2033-02-26T12:00:00 | AD41: 2033-08-28 | AE41: 2034-02-26T12:00:00 | AF41: 2034-08-28 | AG41: 2035-02-26T12:00:00 | AH41: 2035-08-28 | AI41: 2036-02-26T12:00:00 | AJ41: 2036-08-27 | AK41: 2037-02-25T12:00:00 | AL41: 2037-08-27 | AM41: 2038-02-25T12:00:00 | AN41: 2038-08-27 | AO41: 2039-02-25T12:00:00 | AP41: 2039-08-27 | AQ41: 2040-02-25T12:00:00 | AR41: 2040-08-26 | AS41: 2041-02-24T12:00:00 | AT41: 2041-08-26 | AU41: 2042-02-24T12:00:00 | AV41: 2042-08-26 | AW41: 2043-02-24T12:00:00 | AX41: 2043-08-26 | AY41: 2044-02-24T12:00:00 | AZ41: 2044-08-25 | BA41: 2045-02-23T12:00:00 | BB41: 2045-08-25 | BC41: 2046-02-23T12:00:00 | BD41: 2046-08-25 | BE41: 2047-02-23T12:00:00 | BF41: 2047-08-25 | BG41: 2048-02-23T12:00:00 | BH41: 2048-08-24 | BI41: 2049-02-22T12:00:00 | BJ41: 2049-08-24 | BK41: 2050-02-22T12:00:00 | BL41: 2050-08-24 | BM41: 2051-02-22T12:00:00 | BN41: 2051-08-24 | BO41: =BN41+IF($G5=1,365,182.5) -> 2052-02-22T12:00:00 | BP41: 2052-08-23 | BQ41: 2053-02-21T12:00:00 | BR41: 2053-08-23 | BS41: 2054-02-21T12:00:00 | BT41: 2054-08-23 | BU41: 2055-02-21T12:00:00 | BV41: 2055-08-23 | BW41: 2056-02-21T12:00:00 | BX41: 2056-08-22 | BY41: 2057-02-20T12:00:00 | BZ41: 2057-08-22 | CA41: 2058-02-20T12:00:00 | CB41: 2058-08-22 | CC41: =CB41+IF($G5=1,365,182.5) -> 2059-02-20T12:00:00 | CD41: =CC41+IF($G5=1,365,182.5) -> 2059-08-22 | CE41: =CD41+IF($G5=1,365,182.5) -> 2060-02-20T12:00:00 | CF41: =CE41+IF($G5=1,365,182.5) -> 2060-08-21 | CG41: =CF41+IF($G5=1,365,182.5) -> 2061-02-19T12:00:00 | CH41: =CG41+IF($G5=1,365,182.5) -> 2061-08-21 | CI41: =CH41+IF($G5=1,365,182.5) -> 2062-02-19T12:00:00 | CJ41: =CI41+IF($G5=1,365,182.5) -> 2062-08-21 | CK41: =CJ41+IF($G5=1,365,182.5) -> 2063-02-19T12:00:00 | CL41: =CK41+IF($G5=1,365,182.5) -> 2063-08-21 | CM41: =CL41+IF($G5=1,365,182.5) -> 2064-02-19T12:00:00 | CN41: =CM41+IF($G5=1,365,182.5) -> 2064-08-20 | CO41: =CN41+IF($G5=1,365,182.5) -> 2065-02-18T12:00:00 | CP41: =CO41+IF($G5=1,365,182.5) -> 2065-08-20 | CQ41: =CP41+IF($G5=1,365,182.5) -> 2066-02-18T12:00:00 | CR41: =CQ41+IF($G5=1,365,182.5) -> 2066-08-20 | CS41: =CR41+IF($G5=1,365,182.5) -> 2067-02-18T12:00:00 | CT41: =CS41+IF($G5=1,365,182.5) -> 2067-08-20 | CU41: =CT41+IF($G5=1,365,182.5) -> 2068-02-18T12:00:00 | CV41: =CU41+IF($G5=1,365,182.5) -> 2068-08-19 | CW41: =CV41+IF($G5=1,365,182.5) -> 2069-02-17T12:00:00 | CX41: =CW41+IF($G5=1,365,182.5) -> 2069-08-19 | CY41: =CX41+IF($G5=1,365,182.5) -> 2070-02-17T12:00:00 | CZ41: =CY41+IF($G5=1,365,182.5) -> 2070-08-19 | DA41: =CZ41+IF($G5=1,365,182.5) -> 2071-02-17T12:00:00 | DB41: =DA41+IF($G5=1,365,182.5) -> 2071-08-19 | DC41: =DB41+IF($G5=1,365,182.5) -> 2072-02-17T12:00:00 | DD41: =DC41+IF($G5=1,365,182.5) -> 2072-08-18 | DE41: =DD41+IF($G5=1,365,182.5) -> 2073-02-16T12:00:00 | DF41: =DE41+IF($G5=1,365,182.5) -> 2073-08-18 | DG41: =DF41+IF($G5=1,365,182.5) -> 2074-02-16T12:00:00 | DH41: =DG41+IF($G5=1,365,182.5) -> 2074-08-18 | DI41: =DH41+IF($G5=1,365,182.5) -> 2075-02-16T12:00:00 | DJ41: =DI41+IF($G5=1,365,182.5) -> 2075-08-18 | DK41: =DJ41+IF($G5=1,365,182.5) -> 2076-02-16T12:00:00 | DL41: =DK41+IF($G5=1,365,182.5) -> 2076-08-17 | DM41: =DL41+IF($G5=1,365,182.5) -> 2077-02-15T12:00:00 | DN41: =DM41+IF($G5=1,365,182.5) -> 2077-08-17 | DO41: =DN41+IF($G5=1,365,182.5) -> 2078-02-15T12:00:00 | DP41: =DO41+IF($G5=1,365,182.5) -> 2078-08-17 | DQ41: =DP41+IF($G5=1,365,182.5) -> 2079-02-15T12:00:00 | DR41: =DQ41+IF($G5=1,365,182.5) -> 2079-08-17 | DS41: =DR41+IF($G5=1,365,182.5) -> 2080-02-15T12:00:00 | DT41: =DS41+IF($G5=1,365,182.5) -> 2080-08-16 | DU41: =DT41+IF($G5=1,365,182.5) -> 2081-02-14T12:00:00 | DV41: =DU41+IF($G5=1,365,182.5) -> 2081-08-16 | DW41: =DV41+IF($G5=1,365,182.5) -> 2082-02-14T12:00:00 | DX41: =DW41+IF($G5=1,365,182.5) -> 2082-08-16 | DY41: =DX41+IF($G5=1,365,182.5) -> 2083-02-14T12:00:00 | DZ41: =DY41+IF($G5=1,365,182.5) -> 2083-08-16 | EA41: =DZ41+IF($G5=1,365,182.5) -> 2084-02-14T12:00:00 | EB41: =EA41+IF($G5=1,365,182.5) -> 2084-08-15 | EC41: =EB41+IF($G5=1,365,182.5) -> 2085-02-13T12:00:00 | ED41: =EC41+IF($G5=1,365,182.5) -> 2085-08-15 | EE41: =ED41+IF($G5=1,365,182.5) -> 2086-02-13T12:00:00 | EF41: =EE41+IF($G5=1,365,182.5) -> 2086-08-15 | EG41: =EF41+IF($G5=1,365,182.5) -> 2087-02-13T12:00:00 | EH41: =EG41+IF($G5=1,365,182.5) -> 2087-08-15 | EI41: =EH41+IF($G5=1,365,182.5) -> 2088-02-13T12:00:00 | EJ41: =EI41+IF($G5=1,365,182.5) -> 2088-08-14 | EK41: =EJ41+IF($G5=1,365,182.5) -> 2089-02-12T12:00:00 | EL41: =EK41+IF($G5=1,365,182.5) -> 2089-08-14 | EM41: =EL41+IF($G5=1,365,182.5) -> 2090-02-12T12:00:00 | EN41: =EM41+IF($G5=1,365,182.5) -> 2090-08-14 | EO41: =EN41+IF($G5=1,365,182.5) -> 2091-02-12T12:00:00 | EP41: =EO41+IF($G5=1,365,182.5) -> 2091-08-14 | EQ41: =EP41+IF($G5=1,365,182.5) -> 2092-02-12T12:00:00 | ER41: =EQ41+IF($G5=1,365,182.5) -> 2092-08-13 | ES41: =ER41+IF($G5=1,365,182.5) -> 2093-02-11T12:00:00 | ET41: =ES41+IF($G5=1,365,182.5) -> 2093-08-13 | EU41: =ET41+IF($G5=1,365,182.5) -> 2094-02-11T12:00:00 | EV41: =EU41+IF($G5=1,365,182.5) -> 2094-08-13 | EW41: =EV41+IF($G5=1,365,182.5) -> 2095-02-11T12:00:00 | EX41: =EW41+IF($G5=1,365,182.5) -> 2095-08-13 | EY41: =EX41+IF($G5=1,365,182.5) -> 2096-02-11T12:00:00 | EZ41: =EY41+IF($G5=1,365,182.5) -> 2096-08-12 | FA41: =EZ41+IF($G5=1,365,182.5) -> 2097-02-10T12:00:00 | FB41: =FA41+IF($G5=1,365,182.5) -> 2097-08-12 | FC41: =FB41+IF($G5=1,365,182.5) -> 2098-02-10T12:00:00 | FD41: =FC41+IF($G5=1,365,182.5) -> 2098-08-12 | FE41: =FD41+IF($G5=1,365,182.5) -> 2099-02-10T12:00:00 | FF41: =FE41+IF($G5=1,365,182.5) -> 2099-08-12 | FG41: =FF41+IF($G5=1,365,182.5) -> 2100-02-10T12:00:00 | FH41: =FG41+IF($G5=1,365,182.5) -> 2100-08-12 | FI41: =FH41+IF($G5=1,365,182.5) -> 2101-02-10T12:00:00 | FJ41: =FI41+IF($G5=1,365,182.5) -> 2101-08-12 | FK41: =FJ41+IF($G5=1,365,182.5) -> 2102-02-10T12:00:00 | FL41: =FK41+IF($G5=1,365,182.5) -> 2102-08-12 | FM41: =FL41+IF($G5=1,365,182.5) -> 2103-02-10T12:00:00 | FN41: =FM41+IF($G5=1,365,182.5) -> 2103-08-12 | FO41: =FN41+IF($G5=1,365,182.5) -> 2104-02-10T12:00:00 | FP41: =FO41+IF($G5=1,365,182.5) -> 2104-08-11 | FQ41: =FP41+IF($G5=1,365,182.5) -> 2105-02-09T12:00:00 | FR41: =FQ41+IF($G5=1,365,182.5) -> 2105-08-11 | FS41: =FR41+IF($G5=1,365,182.5) -> 2106-02-09T12:00:00 | FT41: =FS41+IF($G5=1,365,182.5) -> 2106-08-11 | FU41: =FT41+IF($G5=1,365,182.5) -> 2107-02-09T12:00:00 | FV41: =FU41+IF($G5=1,365,182.5) -> 2107-08-11 | FW41: =FV41+IF($G5=1,365,182.5) -> 2108-02-09T12:00:00 | FX41: =FW41+IF($G5=1,365,182.5) -> 2108-08-10 | FY41: =FX41+IF($G5=1,365,182.5) -> 2109-02-08T12:00:00 | FZ41: =FY41+IF($G5=1,365,182.5) -> 2109-08-10 | GA41: =FZ41+IF($G5=1,365,182.5) -> 2110-02-08T12:00:00 | GB41: =GA41+IF($G5=1,365,182.5) -> 2110-08-10 | GC41: =GB41+IF($G5=1,365,182.5) -> 2111-02-08T12:00:00 | GD41: =GC41+IF($G5=1,365,182.5) -> 2111-08-10 | GE41: =GD41+IF($G5=1,365,182.5) -> 2112-02-08T12:00:00 | GF41: =GE41+IF($G5=1,365,182.5) -> 2112-08-09 | GG41: =GF41+IF($G5=1,365,182.5) -> 2113-02-07T12:00:00 | GH41: =GG41+IF($G5=1,365,182.5) -> 2113-08-09 | GI41: =GH41+IF($G5=1,365,182.5) -> 2114-02-07T12:00:00 | GJ41: =GI41+IF($G5=1,365,182.5) -> 2114-08-09 | GK41: =GJ41+IF($G5=1,365,182.5) -> 2115-02-07T12:00:00 | GL41: =GK41+IF($G5=1,365,182.5) -> 2115-08-09 | GM41: =GL41+IF($G5=1,365,182.5) -> 2116-02-07T12:00:00 | GN41: =GM41+IF($G5=1,365,182.5) -> 2116-08-08 | GO41: =GN41+IF($G5=1,365,182.5) -> 2117-02-06T12:00:00 | GP41: =GO41+IF($G5=1,365,182.5) -> 2117-08-08 | GQ41: =GP41+IF($G5=1,365,182.5) -> 2118-02-06T12:00:00 | GR41: =GQ41+IF($G5=1,365,182.5) -> 2118-08-08 | GS41: =GR41+IF($G5=1,365,182.5) -> 2119-02-06T12:00:00
A42: Bond 4 | B42: =(IF(B41=F5,100,0)+IF(G5=1,1,0.5)*J5*100)*IF(ISBLANK(F5)=TRUE,0,1) -> 1.475 | C42: =IF(C41>$F5+1,0,1)*(IF(D42=0,100,0)+IF($G5=1,1,0.5)*$J5*100) -> 1.475 | D42: 101.475 | E42: 0 | F42: 0 | G42: 0 | H42: 0 | I42: 0 | J42: 0 | K42: 0 | L42: 0 | M42: 0 | N42: 0 | O42: 0 | P42: 0 | Q42: 0 | R42: 0 | S42: 0 | T42: 0 | U42: 0 | V42: 0 | W42: 0 | X42: 0 | Y42: 0 | Z42: 0 | AA42: 0 | AB42: 0 | AC42: 0 | AD42: 0 | AE42: 0 | AF42: 0 | AG42: 0 | AH42: 0 | AI42: 0 | AJ42: 0 | AK42: 0 | AL42: 0 | AM42: 0 | AN42: 0 | AO42: 0 | AP42: 0 | AQ42: 0 | AR42: 0 | AS42: 0 | AT42: 0 | AU42: 0 | AV42: 0 | AW42: 0 | AX42: 0 | AY42: 0 | AZ42: 0 | BA42: 0 | BB42: 0 | BC42: 0 | BD42: 0 | BE42: 0 | BF42: 0 | BG42: 0 | BH42: 0 | BI42: 0 | BJ42: 0 | BK42: 0 | BL42: 0 | BM42: 0 | BN42: 0 | BO42: =IF(BO41>$F5+1,0,1)*(IF(BP42=0,100,0)+IF($G5=1,1,0.5)*$J5*100) -> 0 | BP42: 0 | BQ42: 0 | BR42: 0 | BS42: 0 | BT42: 0 | BU42: 0 | BV42: 0 | BW42: 0 | BX42: 0 | BY42: 0 | BZ42: 0 | CA42: 0 | CB42: =IF(CB41>$F5+1,0,1)*(IF(CC42=0,100,0)+IF($G5=1,1,0.5)*$J5*100) -> 0 | CC42: =IF(CC41>$F5+1,0,1)*(IF(CD42=0,100,0)+IF($G5=1,1,0.5)*$J5*100) -> 0 | CD42: 0 | CE42: 0 | CF42: 0 | CG42: 0 | CH42: 0 | CI42: =IF(CI41>$F5+1,0,1)*(IF(CJ42=0,100,0)+IF($G5=1,1,0.5)*$J5*100) -> 0 | CJ42: =IF(CJ41>$F5+1,0,1)*(IF(CK42=0,100,0)+IF($G5=1,1,0.5)*$J5*100) -> 0 | CK42: =IF(CK41>$F5+1,0,1)*(IF(CL42=0,100,0)+IF($G5=1,1,0.5)*$J5*100) -> 0 | CL42: =IF(CL41>$F5+1,0,1)*(IF(CM42=0,100,0)+IF($G5=1,1,0.5)*$J5*100) -> 0 | CM42: =IF(CM41>$F5+1,0,1)*(IF(CN42=0,100,0)+IF($G5=1,1,0.5)*$J5*100) -> 0 | CN42: 0 | CO42: =IF(CO41>$F5+1,0,1)*(IF(CP42=0,100,0)+IF($G5=1,1,0.5)*$J5*100) -> 0 | CP42: =IF(CP41>$F5+1,0,1)*(IF(CQ42=0,100,0)+IF($G5=1,1,0.5)*$J5*100) -> 0 | CQ42: =IF(CQ41>$F5+1,0,1)*(IF(CR42=0,100,0)+IF($G5=1,1,0.5)*$J5*100) -> 0 | CR42: =IF(CR41>$F5+1,0,1)*(IF(CS42=0,100,0)+IF($G5=1,1,0.5)*$J5*100) -> 0 | CS42: =IF(CS41>$F5+1,0,1)*(IF(CT42=0,100,0)+IF($G5=1,1,0.5)*$J5*100) -> 0 | CT42: 0 | CU42: =IF(CU41>$F5+1,0,1)*(IF(CV42=0,100,0)+IF($G5=1,1,0.5)*$J5*100) -> 0 | CV42: =IF(CV41>$F5+1,0,1)*(IF(CW42=0,100,0)+IF($G5=1,1,0.5)*$J5*100) -> 0 | CW42: =IF(CW41>$F5+1,0,1)*(IF(CX42=0,100,0)+IF($G5=1,1,0.5)*$J5*100) -> 0 | CX42: =IF(CX41>$F5+1,0,1)*(IF(CY42=0,100,0)+IF($G5=1,1,0.5)*$J5*100) -> 0 | CY42: =IF(CY41>$F5+1,0,1)*(IF(CZ42=0,100,0)+IF($G5=1,1,0.5)*$J5*100) -> 0 | CZ42: 0 | DA42: =IF(DA41>$F5+1,0,1)*(IF(DB42=0,100,0)+IF($G5=1,1,0.5)*$J5*100) -> 0 | DB42: =IF(DB41>$F5+1,0,1)*(IF(DC42=0,100,0)+IF($G5=1,1,0.5)*$J5*100) -> 0 | DC42: =IF(DC41>$F5+1,0,1)*(IF(DD42=0,100,0)+IF($G5=1,1,0.5)*$J5*100) -> 0 | DD42: =IF(DD41>$F5+1,0,1)*(IF(DE42=0,100,0)+IF($G5=1,1,0.5)*$J5*100) -> 0 | DE42: =IF(DE41>$F5+1,0,1)*(IF(DF42=0,100,0)+IF($G5=1,1,0.5)*$J5*100) -> 0 | DF42: =IF(DF41>$F5+1,0,1)*(IF(DG42=0,100,0)+IF($G5=1,1,0.5)*$J5*100) -> 0 | DG42: =IF(DG41>$F5+1,0,1)*(IF(DH42=0,100,0)+IF($G5=1,1,0.5)*$J5*100) -> 0 | DH42: =IF(DH41>$F5+1,0,1)*(IF(DI42=0,100,0)+IF($G5=1,1,0.5)*$J5*100) -> 0 | DI42: =IF(DI41>$F5+1,0,1)*(IF(DJ42=0,100,0)+IF($G5=1,1,0.5)*$J5*100) -> 0 | DJ42: =IF(DJ41>$F5+1,0,1)*(IF(DK42=0,100,0)+IF($G5=1,1,0.5)*$J5*100) -> 0 | DK42: =IF(DK41>$F5+1,0,1)*(IF(DL42=0,100,0)+IF($G5=1,1,0.5)*$J5*100) -> 0 | DL42: =IF(DL41>$F5+1,0,1)*(IF(DM42=0,100,0)+IF($G5=1,1,0.5)*$J5*100) -> 0 | DM42: =IF(DM41>$F5+1,0,1)*(IF(DN42=0,100,0)+IF($G5=1,1,0.5)*$J5*100) -> 0 | DN42: =IF(DN41>$F5+1,0,1)*(IF(DO42=0,100,0)+IF($G5=1,1,0.5)*$J5*100) -> 0 | DO42: =IF(DO41>$F5+1,0,1)*(IF(DP42=0,100,0)+IF($G5=1,1,0.5)*$J5*100) -> 0 | DP42: =IF(DP41>$F5+1,0,1)*(IF(DQ42=0,100,0)+IF($G5=1,1,0.5)*$J5*100) -> 0 | DQ42: =IF(DQ41>$F5+1,0,1)*(IF(DR42=0,100,0)+IF($G5=1,1,0.5)*$J5*100) -> 0 | DR42: =IF(DR41>$F5+1,0,1)*(IF(DS42=0,100,0)+IF($G5=1,1,0.5)*$J5*100) -> 0 | DS42: =IF(DS41>$F5+1,0,1)*(IF(DT42=0,100,0)+IF($G5=1,1,0.5)*$J5*100) -> 0 | DT42: =IF(DT41>$F5+1,0,1)*(IF(DU42=0,100,0)+IF($G5=1,1,0.5)*$J5*100) -> 0 | DU42: =IF(DU41>$F5+1,0,1)*(IF(DV42=0,100,0)+IF($G5=1,1,0.5)*$J5*100) -> 0 | DV42: =IF(DV41>$F5+1,0,1)*(IF(DW42=0,100,0)+IF($G5=1,1,0.5)*$J5*100) -> 0 | DW42: =IF(DW41>$F5+1,0,1)*(IF(DX42=0,100,0)+IF($G5=1,1,0.5)*$J5*100) -> 0 | DX42: =IF(DX41>$F5+1,0,1)*(IF(DY42=0,100,0)+IF($G5=1,1,0.5)*$J5*100) -> 0 | DY42: =IF(DY41>$F5+1,0,1)*(IF(DZ42=0,100,0)+IF($G5=1,1,0.5)*$J5*100) -> 0 | DZ42: =IF(DZ41>$F5+1,0,1)*(IF(EA42=0,100,0)+IF($G5=1,1,0.5)*$J5*100) -> 0 | EA42: =IF(EA41>$F5+1,0,1)*(IF(EB42=0,100,0)+IF($G5=1,1,0.5)*$J5*100) -> 0 | EB42: =IF(EB41>$F5+1,0,1)*(IF(EC42=0,100,0)+IF($G5=1,1,0.5)*$J5*100) -> 0 | EC42: =IF(EC41>$F5+1,0,1)*(IF(ED42=0,100,0)+IF($G5=1,1,0.5)*$J5*100) -> 0 | ED42: =IF(ED41>$F5+1,0,1)*(IF(EE42=0,100,0)+IF($G5=1,1,0.5)*$J5*100) -> 0 | EE42: =IF(EE41>$F5+1,0,1)*(IF(EF42=0,100,0)+IF($G5=1,1,0.5)*$J5*100) -> 0 | EF42: =IF(EF41>$F5+1,0,1)*(IF(EG42=0,100,0)+IF($G5=1,1,0.5)*$J5*100) -> 0 | EG42: =IF(EG41>$F5+1,0,1)*(IF(EH42=0,100,0)+IF($G5=1,1,0.5)*$J5*100) -> 0 | EH42: =IF(EH41>$F5+1,0,1)*(IF(EI42=0,100,0)+IF($G5=1,1,0.5)*$J5*100) -> 0 | EI42: =IF(EI41>$F5+1,0,1)*(IF(EJ42=0,100,0)+IF($G5=1,1,0.5)*$J5*100) -> 0 | EJ42: =IF(EJ41>$F5+1,0,1)*(IF(EK42=0,100,0)+IF($G5=1,1,0.5)*$J5*100) -> 0 | EK42: =IF(EK41>$F5+1,0,1)*(IF(EL42=0,100,0)+IF($G5=1,1,0.5)*$J5*100) -> 0 | EL42: =IF(EL41>$F5+1,0,1)*(IF(EM42=0,100,0)+IF($G5=1,1,0.5)*$J5*100) -> 0 | EM42: =IF(EM41>$F5+1,0,1)*(IF(EN42=0,100,0)+IF($G5=1,1,0.5)*$J5*100) -> 0 | EN42: =IF(EN41>$F5+1,0,1)*(IF(EO42=0,100,0)+IF($G5=1,1,0.5)*$J5*100) -> 0 | EO42: =IF(EO41>$F5+1,0,1)*(IF(EP42=0,100,0)+IF($G5=1,1,0.5)*$J5*100) -> 0 | EP42: =IF(EP41>$F5+1,0,1)*(IF(EQ42=0,100,0)+IF($G5=1,1,0.5)*$J5*100) -> 0 | EQ42: =IF(EQ41>$F5+1,0,1)*(IF(ER42=0,100,0)+IF($G5=1,1,0.5)*$J5*100) -> 0 | ER42: =IF(ER41>$F5+1,0,1)*(IF(ES42=0,100,0)+IF($G5=1,1,0.5)*$J5*100) -> 0 | ES42: =IF(ES41>$F5+1,0,1)*(IF(ET42=0,100,0)+IF($G5=1,1,0.5)*$J5*100) -> 0 | ET42: =IF(ET41>$F5+1,0,1)*(IF(EU42=0,100,0)+IF($G5=1,1,0.5)*$J5*100) -> 0 | EU42: =IF(EU41>$F5+1,0,1)*(IF(EV42=0,100,0)+IF($G5=1,1,0.5)*$J5*100) -> 0 | EV42: =IF(EV41>$F5+1,0,1)*(IF(EW42=0,100,0)+IF($G5=1,1,0.5)*$J5*100) -> 0 | EW42: =IF(EW41>$F5+1,0,1)*(IF(EX42=0,100,0)+IF($G5=1,1,0.5)*$J5*100) -> 0 | EX42: =IF(EX41>$F5+1,0,1)*(IF(EY42=0,100,0)+IF($G5=1,1,0.5)*$J5*100) -> 0 | EY42: =IF(EY41>$F5+1,0,1)*(IF(EZ42=0,100,0)+IF($G5=1,1,0.5)*$J5*100) -> 0 | EZ42: =IF(EZ41>$F5+1,0,1)*(IF(FA42=0,100,0)+IF($G5=1,1,0.5)*$J5*100) -> 0 | FA42: =IF(FA41>$F5+1,0,1)*(IF(FB42=0,100,0)+IF($G5=1,1,0.5)*$J5*100) -> 0 | FB42: =IF(FB41>$F5+1,0,1)*(IF(FC42=0,100,0)+IF($G5=1,1,0.5)*$J5*100) -> 0 | FC42: =IF(FC41>$F5+1,0,1)*(IF(FD42=0,100,0)+IF($G5=1,1,0.5)*$J5*100) -> 0 | FD42: =IF(FD41>$F5+1,0,1)*(IF(FE42=0,100,0)+IF($G5=1,1,0.5)*$J5*100) -> 0 | FE42: =IF(FE41>$F5+1,0,1)*(IF(FF42=0,100,0)+IF($G5=1,1,0.5)*$J5*100) -> 0 | FF42: =IF(FF41>$F5+1,0,1)*(IF(FG42=0,100,0)+IF($G5=1,1,0.5)*$J5*100) -> 0 | FG42: =IF(FG41>$F5+1,0,1)*(IF(FH42=0,100,0)+IF($G5=1,1,0.5)*$J5*100) -> 0 | FH42: =IF(FH41>$F5+1,0,1)*(IF(FI42=0,100,0)+IF($G5=1,1,0.5)*$J5*100) -> 0 | FI42: =IF(FI41>$F5+1,0,1)*(IF(FJ42=0,100,0)+IF($G5=1,1,0.5)*$J5*100) -> 0 | FJ42: =IF(FJ41>$F5+1,0,1)*(IF(FK42=0,100,0)+IF($G5=1,1,0.5)*$J5*100) -> 0 | FK42: =IF(FK41>$F5+1,0,1)*(IF(FL42=0,100,0)+IF($G5=1,1,0.5)*$J5*100) -> 0 | FL42: =IF(FL41>$F5+1,0,1)*(IF(FM42=0,100,0)+IF($G5=1,1,0.5)*$J5*100) -> 0 | FM42: =IF(FM41>$F5+1,0,1)*(IF(FN42=0,100,0)+IF($G5=1,1,0.5)*$J5*100) -> 0 | FN42: =IF(FN41>$F5+1,0,1)*(IF(FO42=0,100,0)+IF($G5=1,1,0.5)*$J5*100) -> 0 | FO42: =IF(FO41>$F5+1,0,1)*(IF(FP42=0,100,0)+IF($G5=1,1,0.5)*$J5*100) -> 0 | FP42: =IF(FP41>$F5+1,0,1)*(IF(FQ42=0,100,0)+IF($G5=1,1,0.5)*$J5*100) -> 0 | FQ42: =IF(FQ41>$F5+1,0,1)*(IF(FR42=0,100,0)+IF($G5=1,1,0.5)*$J5*100) -> 0 | FR42: =IF(FR41>$F5+1,0,1)*(IF(FS42=0,100,0)+IF($G5=1,1,0.5)*$J5*100) -> 0 | FS42: =IF(FS41>$F5+1,0,1)*(IF(FT42=0,100,0)+IF($G5=1,1,0.5)*$J5*100) -> 0 | FT42: =IF(FT41>$F5+1,0,1)*(IF(FU42=0,100,0)+IF($G5=1,1,0.5)*$J5*100) -> 0 | FU42: =IF(FU41>$F5+1,0,1)*(IF(FV42=0,100,0)+IF($G5=1,1,0.5)*$J5*100) -> 0 | FV42: =IF(FV41>$F5+1,0,1)*(IF(FW42=0,100,0)+IF($G5=1,1,0.5)*$J5*100) -> 0 | FW42: =IF(FW41>$F5+1,0,1)*(IF(FX42=0,100,0)+IF($G5=1,1,0.5)*$J5*100) -> 0 | FX42: =IF(FX41>$F5+1,0,1)*(IF(FY42=0,100,0)+IF($G5=1,1,0.5)*$J5*100) -> 0 | FY42: =IF(FY41>$F5+1,0,1)*(IF(FZ42=0,100,0)+IF($G5=1,1,0.5)*$J5*100) -> 0 | FZ42: =IF(FZ41>$F5+1,0,1)*(IF(GA42=0,100,0)+IF($G5=1,1,0.5)*$J5*100) -> 0 | GA42: =IF(GA41>$F5+1,0,1)*(IF(GB42=0,100,0)+IF($G5=1,1,0.5)*$J5*100) -> 0 | GB42: =IF(GB41>$F5+1,0,1)*(IF(GC42=0,100,0)+IF($G5=1,1,0.5)*$J5*100) -> 0 | GC42: =IF(GC41>$F5+1,0,1)*(IF(GD42=0,100,0)+IF($G5=1,1,0.5)*$J5*100) -> 0 | GD42: =IF(GD41>$F5+1,0,1)*(IF(GE42=0,100,0)+IF($G5=1,1,0.5)*$J5*100) -> 0 | GE42: =IF(GE41>$F5+1,0,1)*(IF(GF42=0,100,0)+IF($G5=1,1,0.5)*$J5*100) -> 0 | GF42: =IF(GF41>$F5+1,0,1)*(IF(GG42=0,100,0)+IF($G5=1,1,0.5)*$J5*100) -> 0 | GG42: =IF(GG41>$F5+1,0,1)*(IF(GH42=0,100,0)+IF($G5=1,1,0.5)*$J5*100) -> 0 | GH42: =IF(GH41>$F5+1,0,1)*(IF(GI42=0,100,0)+IF($G5=1,1,0.5)*$J5*100) -> 0 | GI42: =IF(GI41>$F5+1,0,1)*(IF(GJ42=0,100,0)+IF($G5=1,1,0.5)*$J5*100) -> 0 | GJ42: =IF(GJ41>$F5+1,0,1)*(IF(GK42=0,100,0)+IF($G5=1,1,0.5)*$J5*100) -> 0 | GK42: =IF(GK41>$F5+1,0,1)*(IF(GL42=0,100,0)+IF($G5=1,1,0.5)*$J5*100) -> 0 | GL42: =IF(GL41>$F5+1,0,1)*(IF(GM42=0,100,0)+IF($G5=1,1,0.5)*$J5*100) -> 0 | GM42: =IF(GM41>$F5+1,0,1)*(IF(GN42=0,100,0)+IF($G5=1,1,0.5)*$J5*100) -> 0 | GN42: =IF(GN41>$F5+1,0,1)*(IF(GO42=0,100,0)+IF($G5=1,1,0.5)*$J5*100) -> 0 | GO42: =IF(GO41>$F5+1,0,1)*(IF(GP42=0,100,0)+IF($G5=1,1,0.5)*$J5*100) -> 0 | GP42: =IF(GP41>$F5+1,0,1)*(IF(GQ42=0,100,0)+IF($G5=1,1,0.5)*$J5*100) -> 0 | GQ42: =IF(GQ41>$F5+1,0,1)*(IF(GR42=0,100,0)+IF($G5=1,1,0.5)*$J5*100) -> 0 | GR42: =IF(GR41>$F5+1,0,1)*(IF(GS42=0,100,0)+IF($G5=1,1,0.5)*$J5*100) -> 0 | GS42: =IF(GS41>$F5+1,0,1)*(IF(GT42=0,100,0)+IF($G5=1,1,0.5)*$J5*100) -> 0
A43: Payment Dates | B43: =IF(E6=0,F6,E6) -> 00:00:00 | C43: =B43+IF($G6=1,365,182.5) -> 1900-06-30T12:00:00 | D43: 1900-12-30 | E43: 1901-06-30T12:00:00 | F43: 1901-12-30 | G43: 1902-06-30T12:00:00 | H43: 1902-12-30 | I43: 1903-06-30T12:00:00 | J43: 1903-12-30 | K43: 1904-06-29T12:00:00 | L43: 1904-12-29 | M43: 1905-06-29T12:00:00 | N43: 1905-12-29 | O43: 1906-06-29T12:00:00 | P43: 1906-12-29 | Q43: 1907-06-29T12:00:00 | R43: 1907-12-29 | S43: 1908-06-28T12:00:00 | T43: 1908-12-28 | U43: 1909-06-28T12:00:00 | V43: 1909-12-28 | W43: 1910-06-28T12:00:00 | X43: 1910-12-28 | Y43: 1911-06-28T12:00:00 | Z43: 1911-12-28 | AA43: 1912-06-27T12:00:00 | AB43: 1912-12-27 | AC43: 1913-06-27T12:00:00 | AD43: 1913-12-27 | AE43: 1914-06-27T12:00:00 | AF43: 1914-12-27 | AG43: 1915-06-27T12:00:00 | AH43: 1915-12-27 | AI43: 1916-06-26T12:00:00 | AJ43: 1916-12-26 | AK43: 1917-06-26T12:00:00 | AL43: 1917-12-26 | AM43: 1918-06-26T12:00:00 | AN43: 1918-12-26 | AO43: 1919-06-26T12:00:00 | AP43: 1919-12-26 | AQ43: 1920-06-25T12:00:00 | AR43: 1920-12-25 | AS43: 1921-06-25T12:00:00 | AT43: 1921-12-25 | AU43: 1922-06-25T12:00:00 | AV43: 1922-12-25 | AW43: 1923-06-25T12:00:00 | AX43: 1923-12-25 | AY43: 1924-06-24T12:00:00 | AZ43: 1924-12-24 | BA43: 1925-06-24T12:00:00 | BB43: 1925-12-24 | BC43: 1926-06-24T12:00:00 | BD43: 1926-12-24 | BE43: 1927-06-24T12:00:00 | BF43: 1927-12-24 | BG43: 1928-06-23T12:00:00 | BH43: 1928-12-23 | BI43: 1929-06-23T12:00:00 | BJ43: 1929-12-23 | BK43: 1930-06-23T12:00:00 | BL43: 1930-12-23 | BM43: 1931-06-23T12:00:00 | BN43: 1931-12-23 | BO43: =BN43+IF($G6=1,365,182.5) -> 1932-06-22T12:00:00 | BP43: 1932-12-22 | BQ43: 1933-06-22T12:00:00 | BR43: 1933-12-22 | BS43: 1934-06-22T12:00:00 | BT43: 1934-12-22 | BU43: 1935-06-22T12:00:00 | BV43: 1935-12-22 | BW43: 1936-06-21T12:00:00 | BX43: 1936-12-21 | BY43: 1937-06-21T12:00:00 | BZ43: 1937-12-21 | CA43: 1938-06-21T12:00:00 | CB43: 1938-12-21 | CC43: =CB43+IF($G6=1,365,182.5) -> 1939-06-21T12:00:00 | CD43: =CC43+IF($G6=1,365,182.5) -> 1939-12-21 | CE43: =CD43+IF($G6=1,365,182.5) -> 1940-06-20T12:00:00 | CF43: =CE43+IF($G6=1,365,182.5) -> 1940-12-20 | CG43: =CF43+IF($G6=1,365,182.5) -> 1941-06-20T12:00:00 | CH43: =CG43+IF($G6=1,365,182.5) -> 1941-12-20 | CI43: =CH43+IF($G6=1,365,182.5) -> 1942-06-20T12:00:00 | CJ43: =CI43+IF($G6=1,365,182.5) -> 1942-12-20 | CK43: =CJ43+IF($G6=1,365,182.5) -> 1943-06-20T12:00:00 | CL43: =CK43+IF($G6=1,365,182.5) -> 1943-12-20 | CM43: =CL43+IF($G6=1,365,182.5) -> 1944-06-19T12:00:00 | CN43: =CM43+IF($G6=1,365,182.5) -> 1944-12-19 | CO43: =CN43+IF($G6=1,365,182.5) -> 1945-06-19T12:00:00 | CP43: =CO43+IF($G6=1,365,182.5) -> 1945-12-19 | CQ43: =CP43+IF($G6=1,365,182.5) -> 1946-06-19T12:00:00 | CR43: =CQ43+IF($G6=1,365,182.5) -> 1946-12-19 | CS43: =CR43+IF($G6=1,365,182.5) -> 1947-06-19T12:00:00 | CT43: =CS43+IF($G6=1,365,182.5) -> 1947-12-19 | CU43: =CT43+IF($G6=1,365,182.5) -> 1948-06-18T12:00:00 | CV43: =CU43+IF($G6=1,365,182.5) -> 1948-12-18 | CW43: =CV43+IF($G6=1,365,182.5) -> 1949-06-18T12:00:00 | CX43: =CW43+IF($G6=1,365,182.5) -> 1949-12-18 | CY43: =CX43+IF($G6=1,365,182.5) -> 1950-06-18T12:00:00 | CZ43: =CY43+IF($G6=1,365,182.5) -> 1950-12-18 | DA43: =CZ43+IF($G6=1,365,182.5) -> 1951-06-18T12:00:00 | DB43: =DA43+IF($G6=1,365,182.5) -> 1951-12-18 | DC43: =DB43+IF($G6=1,365,182.5) -> 1952-06-17T12:00:00 | DD43: =DC43+IF($G6=1,365,182.5) -> 1952-12-17 | DE43: =DD43+IF($G6=1,365,182.5) -> 1953-06-17T12:00:00 | DF43: =DE43+IF($G6=1,365,182.5) -> 1953-12-17 | DG43: =DF43+IF($G6=1,365,182.5) -> 1954-06-17T12:00:00 | DH43: =DG43+IF($G6=1,365,182.5) -> 1954-12-17 | DI43: =DH43+IF($G6=1,365,182.5) -> 1955-06-17T12:00:00 | DJ43: =DI43+IF($G6=1,365,182.5) -> 1955-12-17 | DK43: =DJ43+IF($G6=1,365,182.5) -> 1956-06-16T12:00:00 | DL43: =DK43+IF($G6=1,365,182.5) -> 1956-12-16 | DM43: =DL43+IF($G6=1,365,182.5) -> 1957-06-16T12:00:00 | DN43: =DM43+IF($G6=1,365,182.5) -> 1957-12-16 | DO43: =DN43+IF($G6=1,365,182.5) -> 1958-06-16T12:00:00 | DP43: =DO43+IF($G6=1,365,182.5) -> 1958-12-16 | DQ43: =DP43+IF($G6=1,365,182.5) -> 1959-06-16T12:00:00 | DR43: =DQ43+IF($G6=1,365,182.5) -> 1959-12-16 | DS43: =DR43+IF($G6=1,365,182.5) -> 1960-06-15T12:00:00 | DT43: =DS43+IF($G6=1,365,182.5) -> 1960-12-15 | DU43: =DT43+IF($G6=1,365,182.5) -> 1961-06-15T12:00:00 | DV43: =DU43+IF($G6=1,365,182.5) -> 1961-12-15 | DW43: =DV43+IF($G6=1,365,182.5) -> 1962-06-15T12:00:00 | DX43: =DW43+IF($G6=1,365,182.5) -> 1962-12-15 | DY43: =DX43+IF($G6=1,365,182.5) -> 1963-06-15T12:00:00 | DZ43: =DY43+IF($G6=1,365,182.5) -> 1963-12-15 | EA43: =DZ43+IF($G6=1,365,182.5) -> 1964-06-14T12:00:00 | EB43: =EA43+IF($G6=1,365,182.5) -> 1964-12-14 | EC43: =EB43+IF($G6=1,365,182.5) -> 1965-06-14T12:00:00 | ED43: =EC43+IF($G6=1,365,182.5) -> 1965-12-14 | EE43: =ED43+IF($G6=1,365,182.5) -> 1966-06-14T12:00:00 | EF43: =EE43+IF($G6=1,365,182.5) -> 1966-12-14 | EG43: =EF43+IF($G6=1,365,182.5) -> 1967-06-14T12:00:00 | EH43: =EG43+IF($G6=1,365,182.5) -> 1967-12-14 | EI43: =EH43+IF($G6=1,365,182.5) -> 1968-06-13T12:00:00 | EJ43: =EI43+IF($G6=1,365,182.5) -> 1968-12-13 | EK43: =EJ43+IF($G6=1,365,182.5) -> 1969-06-13T12:00:00 | EL43: =EK43+IF($G6=1,365,182.5) -> 1969-12-13 | EM43: =EL43+IF($G6=1,365,182.5) -> 1970-06-13T12:00:00 | EN43: =EM43+IF($G6=1,365,182.5) -> 1970-12-13 | EO43: =EN43+IF($G6=1,365,182.5) -> 1971-06-13T12:00:00 | EP43: =EO43+IF($G6=1,365,182.5) -> 1971-12-13 | EQ43: =EP43+IF($G6=1,365,182.5) -> 1972-06-12T12:00:00 | ER43: =EQ43+IF($G6=1,365,182.5) -> 1972-12-12 | ES43: =ER43+IF($G6=1,365,182.5) -> 1973-06-12T12:00:00 | ET43: =ES43+IF($G6=1,365,182.5) -> 1973-12-12 | EU43: =ET43+IF($G6=1,365,182.5) -> 1974-06-12T12:00:00 | EV43: =EU43+IF($G6=1,365,182.5) -> 1974-12-12 | EW43: =EV43+IF($G6=1,365,182.5) -> 1975-06-12T12:00:00 | EX43: =EW43+IF($G6=1,365,182.5) -> 1975-12-12 | EY43: =EX43+IF($G6=1,365,182.5) -> 1976-06-11T12:00:00 | EZ43: =EY43+IF($G6=1,365,182.5) -> 1976-12-11 | FA43: =EZ43+IF($G6=1,365,182.5) -> 1977-06-11T12:00:00 | FB43: =FA43+IF($G6=1,365,182.5) -> 1977-12-11 | FC43: =FB43+IF($G6=1,365,182.5) -> 1978-06-11T12:00:00 | FD43: =FC43+IF($G6=1,365,182.5) -> 1978-12-11 | FE43: =FD43+IF($G6=1,365,182.5) -> 1979-06-11T12:00:00 | FF43: =FE43+IF($G6=1,365,182.5) -> 1979-12-11 | FG43: =FF43+IF($G6=1,365,182.5) -> 1980-06-10T12:00:00 | FH43: =FG43+IF($G6=1,365,182.5) -> 1980-12-10 | FI43: =FH43+IF($G6=1,365,182.5) -> 1981-06-10T12:00:00 | FJ43: =FI43+IF($G6=1,365,182.5) -> 1981-12-10 | FK43: =FJ43+IF($G6=1,365,182.5) -> 1982-06-10T12:00:00 | FL43: =FK43+IF($G6=1,365,182.5) -> 1982-12-10 | FM43: =FL43+IF($G6=1,365,182.5) -> 1983-06-10T12:00:00 | FN43: =FM43+IF($G6=1,365,182.5) -> 1983-12-10 | FO43: =FN43+IF($G6=1,365,182.5) -> 1984-06-09T12:00:00 | FP43: =FO43+IF($G6=1,365,182.5) -> 1984-12-09 | FQ43: =FP43+IF($G6=1,365,182.5) -> 1985-06-09T12:00:00 | FR43: =FQ43+IF($G6=1,365,182.5) -> 1985-12-09 | FS43: =FR43+IF($G6=1,365,182.5) -> 1986-06-09T12:00:00 | FT43: =FS43+IF($G6=1,365,182.5) -> 1986-12-09 | FU43: =FT43+IF($G6=1,365,182.5) -> 1987-06-09T12:00:00 | FV43: =FU43+IF($G6=1,365,182.5) -> 1987-12-09 | FW43: =FV43+IF($G6=1,365,182.5) -> 1988-06-08T12:00:00 | FX43: =FW43+IF($G6=1,365,182.5) -> 1988-12-08 | FY43: =FX43+IF($G6=1,365,182.5) -> 1989-06-08T12:00:00 | FZ43: =FY43+IF($G6=1,365,182.5) -> 1989-12-08 | GA43: =FZ43+IF($G6=1,365,182.5) -> 1990-06-08T12:00:00 | GB43: =GA43+IF($G6=1,365,182.5) -> 1990-12-08 | GC43: =GB43+IF($G6=1,365,182.5) -> 1991-06-08T12:00:00 | GD43: =GC43+IF($G6=1,365,182.5) -> 1991-12-08 | GE43: =GD43+IF($G6=1,365,182.5) -> 1992-06-07T12:00:00 | GF43: =GE43+IF($G6=1,365,182.5) -> 1992-12-07 | GG43: =GF43+IF($G6=1,365,182.5) -> 1993-06-07T12:00:00 | GH43: =GG43+IF($G6=1,365,182.5) -> 1993-12-07 | GI43: =GH43+IF($G6=1,365,182.5) -> 1994-06-07T12:00:00 | GJ43: =GI43+IF($G6=1,365,182.5) -> 1994-12-07 | GK43: =GJ43+IF($G6=1,365,182.5) -> 1995-06-07T12:00:00 | GL43: =GK43+IF($G6=1,365,182.5) -> 1995-12-07 | GM43: =GL43+IF($G6=1,365,182.5) -> 1996-06-06T12:00:00 | GN43: =GM43+IF($G6=1,365,182.5) -> 1996-12-06 | GO43: =GN43+IF($G6=1,365,182.5) -> 1997-06-06T12:00:00 | GP43: =GO43+IF($G6=1,365,182.5) -> 1997-12-06 | GQ43: =GP43+IF($G6=1,365,182.5) -> 1998-06-06T12:00:00 | GR43: =GQ43+IF($G6=1,365,182.5) -> 1998-12-06 | GS43: =GR43+IF($G6=1,365,182.5) -> 1999-06-06T12:00:00
A44: Bond 5 | B44: =(IF(B43=F6,100,0)+IF(G6=1,1,0.5)*J6*100)*IF(ISBLANK(F6)=TRUE,0,1) -> 0 | C44: =IF(C43>$F6+1,0,1)*(IF(D44=0,100,0)+IF($G6=1,1,0.5)*$J6*100) -> 0 | D44: 0 | E44: 0 | F44: 0 | G44: 0 | H44: 0 | I44: 0 | J44: 0 | K44: 0 | L44: 0 | M44: 0 | N44: 0 | O44: 0 | P44: 0 | Q44: 0 | R44: 0 | S44: 0 | T44: 0 | U44: 0 | V44: 0 | W44: 0 | X44: 0 | Y44: 0 | Z44: 0 | AA44: 0 | AB44: 0 | AC44: 0 | AD44: 0 | AE44: 0 | AF44: 0 | AG44: 0 | AH44: 0 | AI44: 0 | AJ44: 0 | AK44: 0 | AL44: 0 | AM44: 0 | AN44: 0 | AO44: 0 | AP44: 0 | AQ44: 0 | AR44: 0 | AS44: 0 | AT44: 0 | AU44: 0 | AV44: 0 | AW44: 0 | AX44: 0 | AY44: 0 | AZ44: 0 | BA44: 0 | BB44: 0 | BC44: 0 | BD44: 0 | BE44: 0 | BF44: 0 | BG44: 0 | BH44: 0 | BI44: 0 | BJ44: 0 | BK44: 0 | BL44: 0 | BM44: 0 | BN44: 0 | BO44: =IF(BO43>$F6+1,0,1)*(IF(BP44=0,100,0)+IF($G6=1,1,0.5)*$J6*100) -> 0 | BP44: 0 | BQ44: 0 | BR44: 0 | BS44: 0 | BT44: 0 | BU44: 0 | BV44: 0 | BW44: 0 | BX44: 0 | BY44: 0 | BZ44: 0 | CA44: 0 | CB44: =IF(CB43>$F6+1,0,1)*(IF(CC44=0,100,0)+IF($G6=1,1,0.5)*$J6*100) -> 0 | CC44: =IF(CC43>$F6+1,0,1)*(IF(CD44=0,100,0)+IF($G6=1,1,0.5)*$J6*100) -> 0 | CD44: 0 | CE44: 0 | CF44: 0 | CG44: 0 | CH44: 0 | CI44: =IF(CI43>$F6+1,0,1)*(IF(CJ44=0,100,0)+IF($G6=1,1,0.5)*$J6*100) -> 0 | CJ44: =IF(CJ43>$F6+1,0,1)*(IF(CK44=0,100,0)+IF($G6=1,1,0.5)*$J6*100) -> 0 | CK44: =IF(CK43>$F6+1,0,1)*(IF(CL44=0,100,0)+IF($G6=1,1,0.5)*$J6*100) -> 0 | CL44: =IF(CL43>$F6+1,0,1)*(IF(CM44=0,100,0)+IF($G6=1,1,0.5)*$J6*100) -> 0 | CM44: =IF(CM43>$F6+1,0,1)*(IF(CN44=0,100,0)+IF($G6=1,1,0.5)*$J6*100) -> 0 | CN44: 0 | CO44: =IF(CO43>$F6+1,0,1)*(IF(CP44=0,100,0)+IF($G6=1,1,0.5)*$J6*100) -> 0 | CP44: =IF(CP43>$F6+1,0,1)*(IF(CQ44=0,100,0)+IF($G6=1,1,0.5)*$J6*100) -> 0 | CQ44: =IF(CQ43>$F6+1,0,1)*(IF(CR44=0,100,0)+IF($G6=1,1,0.5)*$J6*100) -> 0 | CR44: =IF(CR43>$F6+1,0,1)*(IF(CS44=0,100,0)+IF($G6=1,1,0.5)*$J6*100) -> 0 | CS44: =IF(CS43>$F6+1,0,1)*(IF(CT44=0,100,0)+IF($G6=1,1,0.5)*$J6*100) -> 0 | CT44: 0 | CU44: =IF(CU43>$F6+1,0,1)*(IF(CV44=0,100,0)+IF($G6=1,1,0.5)*$J6*100) -> 0 | CV44: =IF(CV43>$F6+1,0,1)*(IF(CW44=0,100,0)+IF($G6=1,1,0.5)*$J6*100) -> 0 | CW44: =IF(CW43>$F6+1,0,1)*(IF(CX44=0,100,0)+IF($G6=1,1,0.5)*$J6*100) -> 0 | CX44: =IF(CX43>$F6+1,0,1)*(IF(CY44=0,100,0)+IF($G6=1,1,0.5)*$J6*100) -> 0 | CY44: =IF(CY43>$F6+1,0,1)*(IF(CZ44=0,100,0)+IF($G6=1,1,0.5)*$J6*100) -> 0 | CZ44: 0 | DA44: =IF(DA43>$F6+1,0,1)*(IF(DB44=0,100,0)+IF($G6=1,1,0.5)*$J6*100) -> 0 | DB44: =IF(DB43>$F6+1,0,1)*(IF(DC44=0,100,0)+IF($G6=1,1,0.5)*$J6*100) -> 0 | DC44: =IF(DC43>$F6+1,0,1)*(IF(DD44=0,100,0)+IF($G6=1,1,0.5)*$J6*100) -> 0 | DD44: =IF(DD43>$F6+1,0,1)*(IF(DE44=0,100,0)+IF($G6=1,1,0.5)*$J6*100) -> 0 | DE44: =IF(DE43>$F6+1,0,1)*(IF(DF44=0,100,0)+IF($G6=1,1,0.5)*$J6*100) -> 0 | DF44: =IF(DF43>$F6+1,0,1)*(IF(DG44=0,100,0)+IF($G6=1,1,0.5)*$J6*100) -> 0 | DG44: =IF(DG43>$F6+1,0,1)*(IF(DH44=0,100,0)+IF($G6=1,1,0.5)*$J6*100) -> 0 | DH44: =IF(DH43>$F6+1,0,1)*(IF(DI44=0,100,0)+IF($G6=1,1,0.5)*$J6*100) -> 0 | DI44: =IF(DI43>$F6+1,0,1)*(IF(DJ44=0,100,0)+IF($G6=1,1,0.5)*$J6*100) -> 0 | DJ44: =IF(DJ43>$F6+1,0,1)*(IF(DK44=0,100,0)+IF($G6=1,1,0.5)*$J6*100) -> 0 | DK44: =IF(DK43>$F6+1,0,1)*(IF(DL44=0,100,0)+IF($G6=1,1,0.5)*$J6*100) -> 0 | DL44: =IF(DL43>$F6+1,0,1)*(IF(DM44=0,100,0)+IF($G6=1,1,0.5)*$J6*100) -> 0 | DM44: =IF(DM43>$F6+1,0,1)*(IF(DN44=0,100,0)+IF($G6=1,1,0.5)*$J6*100) -> 0 | DN44: =IF(DN43>$F6+1,0,1)*(IF(DO44=0,100,0)+IF($G6=1,1,0.5)*$J6*100) -> 0 | DO44: =IF(DO43>$F6+1,0,1)*(IF(DP44=0,100,0)+IF($G6=1,1,0.5)*$J6*100) -> 0 | DP44: =IF(DP43>$F6+1,0,1)*(IF(DQ44=0,100,0)+IF($G6=1,1,0.5)*$J6*100) -> 0 | DQ44: =IF(DQ43>$F6+1,0,1)*(IF(DR44=0,100,0)+IF($G6=1,1,0.5)*$J6*100) -> 0 | DR44: =IF(DR43>$F6+1,0,1)*(IF(DS44=0,100,0)+IF($G6=1,1,0.5)*$J6*100) -> 0 | DS44: =IF(DS43>$F6+1,0,1)*(IF(DT44=0,100,0)+IF($G6=1,1,0.5)*$J6*100) -> 0 | DT44: =IF(DT43>$F6+1,0,1)*(IF(DU44=0,100,0)+IF($G6=1,1,0.5)*$J6*100) -> 0 | DU44: =IF(DU43>$F6+1,0,1)*(IF(DV44=0,100,0)+IF($G6=1,1,0.5)*$J6*100) -> 0 | DV44: =IF(DV43>$F6+1,0,1)*(IF(DW44=0,100,0)+IF($G6=1,1,0.5)*$J6*100) -> 0 | DW44: =IF(DW43>$F6+1,0,1)*(IF(DX44=0,100,0)+IF($G6=1,1,0.5)*$J6*100) -> 0 | DX44: =IF(DX43>$F6+1,0,1)*(IF(DY44=0,100,0)+IF($G6=1,1,0.5)*$J6*100) -> 0 | DY44: =IF(DY43>$F6+1,0,1)*(IF(DZ44=0,100,0)+IF($G6=1,1,0.5)*$J6*100) -> 0 | DZ44: =IF(DZ43>$F6+1,0,1)*(IF(EA44=0,100,0)+IF($G6=1,1,0.5)*$J6*100) -> 0 | EA44: =IF(EA43>$F6+1,0,1)*(IF(EB44=0,100,0)+IF($G6=1,1,0.5)*$J6*100) -> 0 | EB44: =IF(EB43>$F6+1,0,1)*(IF(EC44=0,100,0)+IF($G6=1,1,0.5)*$J6*100) -> 0 | EC44: =IF(EC43>$F6+1,0,1)*(IF(ED44=0,100,0)+IF($G6=1,1,0.5)*$J6*100) -> 0 | ED44: =IF(ED43>$F6+1,0,1)*(IF(EE44=0,100,0)+IF($G6=1,1,0.5)*$J6*100) -> 0 | EE44: =IF(EE43>$F6+1,0,1)*(IF(EF44=0,100,0)+IF($G6=1,1,0.5)*$J6*100) -> 0 | EF44: =IF(EF43>$F6+1,0,1)*(IF(EG44=0,100,0)+IF($G6=1,1,0.5)*$J6*100) -> 0 | EG44: =IF(EG43>$F6+1,0,1)*(IF(EH44=0,100,0)+IF($G6=1,1,0.5)*$J6*100) -> 0 | EH44: =IF(EH43>$F6+1,0,1)*(IF(EI44=0,100,0)+IF($G6=1,1,0.5)*$J6*100) -> 0 | EI44: =IF(EI43>$F6+1,0,1)*(IF(EJ44=0,100,0)+IF($G6=1,1,0.5)*$J6*100) -> 0 | EJ44: =IF(EJ43>$F6+1,0,1)*(IF(EK44=0,100,0)+IF($G6=1,1,0.5)*$J6*100) -> 0 | EK44: =IF(EK43>$F6+1,0,1)*(IF(EL44=0,100,0)+IF($G6=1,1,0.5)*$J6*100) -> 0 | EL44: =IF(EL43>$F6+1,0,1)*(IF(EM44=0,100,0)+IF($G6=1,1,0.5)*$J6*100) -> 0 | EM44: =IF(EM43>$F6+1,0,1)*(IF(EN44=0,100,0)+IF($G6=1,1,0.5)*$J6*100) -> 0 | EN44: =IF(EN43>$F6+1,0,1)*(IF(EO44=0,100,0)+IF($G6=1,1,0.5)*$J6*100) -> 0 | EO44: =IF(EO43>$F6+1,0,1)*(IF(EP44=0,100,0)+IF($G6=1,1,0.5)*$J6*100) -> 0 | EP44: =IF(EP43>$F6+1,0,1)*(IF(EQ44=0,100,0)+IF($G6=1,1,0.5)*$J6*100) -> 0 | EQ44: =IF(EQ43>$F6+1,0,1)*(IF(ER44=0,100,0)+IF($G6=1,1,0.5)*$J6*100) -> 0 | ER44: =IF(ER43>$F6+1,0,1)*(IF(ES44=0,100,0)+IF($G6=1,1,0.5)*$J6*100) -> 0 | ES44: =IF(ES43>$F6+1,0,1)*(IF(ET44=0,100,0)+IF($G6=1,1,0.5)*$J6*100) -> 0 | ET44: =IF(ET43>$F6+1,0,1)*(IF(EU44=0,100,0)+IF($G6=1,1,0.5)*$J6*100) -> 0 | EU44: =IF(EU43>$F6+1,0,1)*(IF(EV44=0,100,0)+IF($G6=1,1,0.5)*$J6*100) -> 0 | EV44: =IF(EV43>$F6+1,0,1)*(IF(EW44=0,100,0)+IF($G6=1,1,0.5)*$J6*100) -> 0 | EW44: =IF(EW43>$F6+1,0,1)*(IF(EX44=0,100,0)+IF($G6=1,1,0.5)*$J6*100) -> 0 | EX44: =IF(EX43>$F6+1,0,1)*(IF(EY44=0,100,0)+IF($G6=1,1,0.5)*$J6*100) -> 0 | EY44: =IF(EY43>$F6+1,0,1)*(IF(EZ44=0,100,0)+IF($G6=1,1,0.5)*$J6*100) -> 0 | EZ44: =IF(EZ43>$F6+1,0,1)*(IF(FA44=0,100,0)+IF($G6=1,1,0.5)*$J6*100) -> 0 | FA44: =IF(FA43>$F6+1,0,1)*(IF(FB44=0,100,0)+IF($G6=1,1,0.5)*$J6*100) -> 0 | FB44: =IF(FB43>$F6+1,0,1)*(IF(FC44=0,100,0)+IF($G6=1,1,0.5)*$J6*100) -> 0 | FC44: =IF(FC43>$F6+1,0,1)*(IF(FD44=0,100,0)+IF($G6=1,1,0.5)*$J6*100) -> 0 | FD44: =IF(FD43>$F6+1,0,1)*(IF(FE44=0,100,0)+IF($G6=1,1,0.5)*$J6*100) -> 0 | FE44: =IF(FE43>$F6+1,0,1)*(IF(FF44=0,100,0)+IF($G6=1,1,0.5)*$J6*100) -> 0 | FF44: =IF(FF43>$F6+1,0,1)*(IF(FG44=0,100,0)+IF($G6=1,1,0.5)*$J6*100) -> 0 | FG44: =IF(FG43>$F6+1,0,1)*(IF(FH44=0,100,0)+IF($G6=1,1,0.5)*$J6*100) -> 0 | FH44: =IF(FH43>$F6+1,0,1)*(IF(FI44=0,100,0)+IF($G6=1,1,0.5)*$J6*100) -> 0 | FI44: =IF(FI43>$F6+1,0,1)*(IF(FJ44=0,100,0)+IF($G6=1,1,0.5)*$J6*100) -> 0 | FJ44: =IF(FJ43>$F6+1,0,1)*(IF(FK44=0,100,0)+IF($G6=1,1,0.5)*$J6*100) -> 0 | FK44: =IF(FK43>$F6+1,0,1)*(IF(FL44=0,100,0)+IF($G6=1,1,0.5)*$J6*100) -> 0 | FL44: =IF(FL43>$F6+1,0,1)*(IF(FM44=0,100,0)+IF($G6=1,1,0.5)*$J6*100) -> 0 | FM44: =IF(FM43>$F6+1,0,1)*(IF(FN44=0,100,0)+IF($G6=1,1,0.5)*$J6*100) -> 0 | FN44: =IF(FN43>$F6+1,0,1)*(IF(FO44=0,100,0)+IF($G6=1,1,0.5)*$J6*100) -> 0 | FO44: =IF(FO43>$F6+1,0,1)*(IF(FP44=0,100,0)+IF($G6=1,1,0.5)*$J6*100) -> 0 | FP44: =IF(FP43>$F6+1,0,1)*(IF(FQ44=0,100,0)+IF($G6=1,1,0.5)*$J6*100) -> 0 | FQ44: =IF(FQ43>$F6+1,0,1)*(IF(FR44=0,100,0)+IF($G6=1,1,0.5)*$J6*100) -> 0 | FR44: =IF(FR43>$F6+1,0,1)*(IF(FS44=0,100,0)+IF($G6=1,1,0.5)*$J6*100) -> 0 | FS44: =IF(FS43>$F6+1,0,1)*(IF(FT44=0,100,0)+IF($G6=1,1,0.5)*$J6*100) -> 0 | FT44: =IF(FT43>$F6+1,0,1)*(IF(FU44=0,100,0)+IF($G6=1,1,0.5)*$J6*100) -> 0 | FU44: =IF(FU43>$F6+1,0,1)*(IF(FV44=0,100,0)+IF($G6=1,1,0.5)*$J6*100) -> 0 | FV44: =IF(FV43>$F6+1,0,1)*(IF(FW44=0,100,0)+IF($G6=1,1,0.5)*$J6*100) -> 0 | FW44: =IF(FW43>$F6+1,0,1)*(IF(FX44=0,100,0)+IF($G6=1,1,0.5)*$J6*100) -> 0 | FX44: =IF(FX43>$F6+1,0,1)*(IF(FY44=0,100,0)+IF($G6=1,1,0.5)*$J6*100) -> 0 | FY44: =IF(FY43>$F6+1,0,1)*(IF(FZ44=0,100,0)+IF($G6=1,1,0.5)*$J6*100) -> 0 | FZ44: =IF(FZ43>$F6+1,0,1)*(IF(GA44=0,100,0)+IF($G6=1,1,0.5)*$J6*100) -> 0 | GA44: =IF(GA43>$F6+1,0,1)*(IF(GB44=0,100,0)+IF($G6=1,1,0.5)*$J6*100) -> 0 | GB44: =IF(GB43>$F6+1,0,1)*(IF(GC44=0,100,0)+IF($G6=1,1,0.5)*$J6*100) -> 0 | GC44: =IF(GC43>$F6+1,0,1)*(IF(GD44=0,100,0)+IF($G6=1,1,0.5)*$J6*100) -> 0 | GD44: =IF(GD43>$F6+1,0,1)*(IF(GE44=0,100,0)+IF($G6=1,1,0.5)*$J6*100) -> 0 | GE44: =IF(GE43>$F6+1,0,1)*(IF(GF44=0,100,0)+IF($G6=1,1,0.5)*$J6*100) -> 0 | GF44: =IF(GF43>$F6+1,0,1)*(IF(GG44=0,100,0)+IF($G6=1,1,0.5)*$J6*100) -> 0 | GG44: =IF(GG43>$F6+1,0,1)*(IF(GH44=0,100,0)+IF($G6=1,1,0.5)*$J6*100) -> 0 | GH44: =IF(GH43>$F6+1,0,1)*(IF(GI44=0,100,0)+IF($G6=1,1,0.5)*$J6*100) -> 0 | GI44: =IF(GI43>$F6+1,0,1)*(IF(GJ44=0,100,0)+IF($G6=1,1,0.5)*$J6*100) -> 0 | GJ44: =IF(GJ43>$F6+1,0,1)*(IF(GK44=0,100,0)+IF($G6=1,1,0.5)*$J6*100) -> 0 | GK44: =IF(GK43>$F6+1,0,1)*(IF(GL44=0,100,0)+IF($G6=1,1,0.5)*$J6*100) -> 0 | GL44: =IF(GL43>$F6+1,0,1)*(IF(GM44=0,100,0)+IF($G6=1,1,0.5)*$J6*100) -> 0 | GM44: =IF(GM43>$F6+1,0,1)*(IF(GN44=0,100,0)+IF($G6=1,1,0.5)*$J6*100) -> 0 | GN44: =IF(GN43>$F6+1,0,1)*(IF(GO44=0,100,0)+IF($G6=1,1,0.5)*$J6*100) -> 0 | GO44: =IF(GO43>$F6+1,0,1)*(IF(GP44=0,100,0)+IF($G6=1,1,0.5)*$J6*100) -> 0 | GP44: =IF(GP43>$F6+1,0,1)*(IF(GQ44=0,100,0)+IF($G6=1,1,0.5)*$J6*100) -> 0 | GQ44: =IF(GQ43>$F6+1,0,1)*(IF(GR44=0,100,0)+IF($G6=1,1,0.5)*$J6*100) -> 0 | GR44: =IF(GR43>$F6+1,0,1)*(IF(GS44=0,100,0)+IF($G6=1,1,0.5)*$J6*100) -> 0 | GS44: =IF(GS43>$F6+1,0,1)*(IF(GT44=0,100,0)+IF($G6=1,1,0.5)*$J6*100) -> 0
A45: Payment Dates | B45: =IF(E7=0,F7,E7) -> 11/15/2019 | C45: =B45+IF($G7=1,365,182.5) -> 2020-05-15T12:00:00 | D45: 2020-11-14 | E45: 2021-05-15T12:00:00 | F45: 2021-11-14 | G45: 2022-05-15T12:00:00 | H45: 2022-11-14 | I45: 2023-05-15T12:00:00 | J45: 2023-11-14 | K45: 2024-05-14T12:00:00 | L45: 2024-11-13 | M45: 2025-05-14T12:00:00 | N45: 2025-11-13 | O45: 2026-05-14T12:00:00 | P45: 2026-11-13 | Q45: 2027-05-14T12:00:00 | R45: 2027-11-13 | S45: 2028-05-13T12:00:00 | T45: 2028-11-12 | U45: 2029-05-13T12:00:00 | V45: 2029-11-12 | W45: 2030-05-13T12:00:00 | X45: 2030-11-12 | Y45: 2031-05-13T12:00:00 | Z45: 2031-11-12 | AA45: 2032-05-12T12:00:00 | AB45: 2032-11-11 | AC45: 2033-05-12T12:00:00 | AD45: 2033-11-11 | AE45: 2034-05-12T12:00:00 | AF45: 2034-11-11 | AG45: 2035-05-12T12:00:00 | AH45: 2035-11-11 | AI45: 2036-05-11T12:00:00 | AJ45: 2036-11-10 | AK45: 2037-05-11T12:00:00 | AL45: 2037-11-10 | AM45: 2038-05-11T12:00:00 | AN45: 2038-11-10 | AO45: 2039-05-11T12:00:00 | AP45: 2039-11-10 | AQ45: 2040-05-10T12:00:00 | AR45: 2040-11-09 | AS45: 2041-05-10T12:00:00 | AT45: 2041-11-09 | AU45: 2042-05-10T12:00:00 | AV45: 2042-11-09 | AW45: 2043-05-10T12:00:00 | AX45: 2043-11-09 | AY45: 2044-05-09T12:00:00 | AZ45: 2044-11-08 | BA45: 2045-05-09T12:00:00 | BB45: 2045-11-08 | BC45: 2046-05-09T12:00:00 | BD45: 2046-11-08 | BE45: 2047-05-09T12:00:00 | BF45: 2047-11-08 | BG45: 2048-05-08T12:00:00 | BH45: 2048-11-07 | BI45: 2049-05-08T12:00:00 | BJ45: 2049-11-07 | BK45: 2050-05-08T12:00:00 | BL45: 2050-11-07 | BM45: 2051-05-08T12:00:00 | BN45: 2051-11-07 | BO45: =BN45+IF($G7=1,365,182.5) -> 2052-05-07T12:00:00 | BP45: 2052-11-06 | BQ45: 2053-05-07T12:00:00 | BR45: 2053-11-06 | BS45: 2054-05-07T12:00:00 | BT45: 2054-11-06 | BU45: 2055-05-07T12:00:00 | BV45: 2055-11-06 | BW45: 2056-05-06T12:00:00 | BX45: 2056-11-05 | BY45: 2057-05-06T12:00:00 | BZ45: 2057-11-05 | CA45: 2058-05-06T12:00:00 | CB45: 2058-11-05 | CC45: =CB45+IF($G7=1,365,182.5) -> 2059-05-06T12:00:00 | CD45: =CC45+IF($G7=1,365,182.5) -> 2059-11-05 | CE45: =CD45+IF($G7=1,365,182.5) -> 2060-05-05T12:00:00 | CF45: =CE45+IF($G7=1,365,182.5) -> 2060-11-04 | CG45: =CF45+IF($G7=1,365,182.5) -> 2061-05-05T12:00:00 | CH45: =CG45+IF($G7=1,365,182.5) -> 2061-11-04 | CI45: =CH45+IF($G7=1,365,182.5) -> 2062-05-05T12:00:00 | CJ45: =CI45+IF($G7=1,365,182.5) -> 2062-11-04 | CK45: =CJ45+IF($G7=1,365,182.5) -> 2063-05-05T12:00:00 | CL45: =CK45+IF($G7=1,365,182.5) -> 2063-11-04 | CM45: =CL45+IF($G7=1,365,182.5) -> 2064-05-04T12:00:00 | CN45: =CM45+IF($G7=1,365,182.5) -> 2064-11-03 | CO45: =CN45+IF($G7=1,365,182.5) -> 2065-05-04T12:00:00 | CP45: =CO45+IF($G7=1,365,182.5) -> 2065-11-03 | CQ45: =CP45+IF($G7=1,365,182.5) -> 2066-05-04T12:00:00 | CR45: =CQ45+IF($G7=1,365,182.5) -> 2066-11-03 | CS45: =CR45+IF($G7=1,365,182.5) -> 2067-05-04T12:00:00 | CT45: =CS45+IF($G7=1,365,182.5) -> 2067-11-03 | CU45: =CT45+IF($G7=1,365,182.5) -> 2068-05-03T12:00:00 | CV45: =CU45+IF($G7=1,365,182.5) -> 2068-11-02 | CW45: =CV45+IF($G7=1,365,182.5) -> 2069-05-03T12:00:00 | CX45: =CW45+IF($G7=1,365,182.5) -> 2069-11-02 | CY45: =CX45+IF($G7=1,365,182.5) -> 2070-05-03T12:00:00 | CZ45: =CY45+IF($G7=1,365,182.5) -> 2070-11-02 | DA45: =CZ45+IF($G7=1,365,182.5) -> 2071-05-03T12:00:00 | DB45: =DA45+IF($G7=1,365,182.5) -> 2071-11-02 | DC45: =DB45+IF($G7=1,365,182.5) -> 2072-05-02T12:00:00 | DD45: =DC45+IF($G7=1,365,182.5) -> 2072-11-01 | DE45: =DD45+IF($G7=1,365,182.5) -> 2073-05-02T12:00:00 | DF45: =DE45+IF($G7=1,365,182.5) -> 2073-11-01 | DG45: =DF45+IF($G7=1,365,182.5) -> 2074-05-02T12:00:00 | DH45: =DG45+IF($G7=1,365,182.5) -> 2074-11-01 | DI45: =DH45+IF($G7=1,365,182.5) -> 2075-05-02T12:00:00 | DJ45: =DI45+IF($G7=1,365,182.5) -> 2075-11-01 | DK45: =DJ45+IF($G7=1,365,182.5) -> 2076-05-01T12:00:00 | DL45: =DK45+IF($G7=1,365,182.5) -> 2076-10-31 | DM45: =DL45+IF($G7=1,365,182.5) -> 2077-05-01T12:00:00 | DN45: =DM45+IF($G7=1,365,182.5) -> 2077-10-31 | DO45: =DN45+IF($G7=1,365,182.5) -> 2078-05-01T12:00:00 | DP45: =DO45+IF($G7=1,365,182.5) -> 2078-10-31 | DQ45: =DP45+IF($G7=1,365,182.5) -> 2079-05-01T12:00:00 | DR45: =DQ45+IF($G7=1,365,182.5) -> 2079-10-31 | DS45: =DR45+IF($G7=1,365,182.5) -> 2080-04-30T12:00:00 | DT45: =DS45+IF($G7=1,365,182.5) -> 2080-10-30 | DU45: =DT45+IF($G7=1,365,182.5) -> 2081-04-30T12:00:00 | DV45: =DU45+IF($G7=1,365,182.5) -> 2081-10-30 | DW45: =DV45+IF($G7=1,365,182.5) -> 2082-04-30T12:00:00 | DX45: =DW45+IF($G7=1,365,182.5) -> 2082-10-30 | DY45: =DX45+IF($G7=1,365,182.5) -> 2083-04-30T12:00:00 | DZ45: =DY45+IF($G7=1,365,182.5) -> 2083-10-30 | EA45: =DZ45+IF($G7=1,365,182.5) -> 2084-04-29T12:00:00 | EB45: =EA45+IF($G7=1,365,182.5) -> 2084-10-29 | EC45: =EB45+IF($G7=1,365,182.5) -> 2085-04-29T12:00:00 | ED45: =EC45+IF($G7=1,365,182.5) -> 2085-10-29 | EE45: =ED45+IF($G7=1,365,182.5) -> 2086-04-29T12:00:00 | EF45: =EE45+IF($G7=1,365,182.5) -> 2086-10-29 | EG45: =EF45+IF($G7=1,365,182.5) -> 2087-04-29T12:00:00 | EH45: =EG45+IF($G7=1,365,182.5) -> 2087-10-29 | EI45: =EH45+IF($G7=1,365,182.5) -> 2088-04-28T12:00:00 | EJ45: =EI45+IF($G7=1,365,182.5) -> 2088-10-28 | EK45: =EJ45+IF($G7=1,365,182.5) -> 2089-04-28T12:00:00 | EL45: =EK45+IF($G7=1,365,182.5) -> 2089-10-28 | EM45: =EL45+IF($G7=1,365,182.5) -> 2090-04-28T12:00:00 | EN45: =EM45+IF($G7=1,365,182.5) -> 2090-10-28 | EO45: =EN45+IF($G7=1,365,182.5) -> 2091-04-28T12:00:00 | EP45: =EO45+IF($G7=1,365,182.5) -> 2091-10-28 | EQ45: =EP45+IF($G7=1,365,182.5) -> 2092-04-27T12:00:00 | ER45: =EQ45+IF($G7=1,365,182.5) -> 2092-10-27 | ES45: =ER45+IF($G7=1,365,182.5) -> 2093-04-27T12:00:00 | ET45: =ES45+IF($G7=1,365,182.5) -> 2093-10-27 | EU45: =ET45+IF($G7=1,365,182.5) -> 2094-04-27T12:00:00 | EV45: =EU45+IF($G7=1,365,182.5) -> 2094-10-27 | EW45: =EV45+IF($G7=1,365,182.5) -> 2095-04-27T12:00:00 | EX45: =EW45+IF($G7=1,365,182.5) -> 2095-10-27 | EY45: =EX45+IF($G7=1,365,182.5) -> 2096-04-26T12:00:00 | EZ45: =EY45+IF($G7=1,365,182.5) -> 2096-10-26 | FA45: =EZ45+IF($G7=1,365,182.5) -> 2097-04-26T12:00:00 | FB45: =FA45+IF($G7=1,365,182.5) -> 2097-10-26 | FC45: =FB45+IF($G7=1,365,182.5) -> 2098-04-26T12:00:00 | FD45: =FC45+IF($G7=1,365,182.5) -> 2098-10-26 | FE45: =FD45+IF($G7=1,365,182.5) -> 2099-04-26T12:00:00 | FF45: =FE45+IF($G7=1,365,182.5) -> 2099-10-26 | FG45: =FF45+IF($G7=1,365,182.5) -> 2100-04-26T12:00:00 | FH45: =FG45+IF($G7=1,365,182.5) -> 2100-10-26 | FI45: =FH45+IF($G7=1,365,182.5) -> 2101-04-26T12:00:00 | FJ45: =FI45+IF($G7=1,365,182.5) -> 2101-10-26 | FK45: =FJ45+IF($G7=1,365,182.5) -> 2102-04-26T12:00:00 | FL45: =FK45+IF($G7=1,365,182.5) -> 2102-10-26 | FM45: =FL45+IF($G7=1,365,182.5) -> 2103-04-26T12:00:00 | FN45: =FM45+IF($G7=1,365,182.5) -> 2103-10-26 | FO45: =FN45+IF($G7=1,365,182.5) -> 2104-04-25T12:00:00 | FP45: =FO45+IF($G7=1,365,182.5) -> 2104-10-25 | FQ45: =FP45+IF($G7=1,365,182.5) -> 2105-04-25T12:00:00 | FR45: =FQ45+IF($G7=1,365,182.5) -> 2105-10-25 | FS45: =FR45+IF($G7=1,365,182.5) -> 2106-04-25T12:00:00 | FT45: =FS45+IF($G7=1,365,182.5) -> 2106-10-25 | FU45: =FT45+IF($G7=1,365,182.5) -> 2107-04-25T12:00:00 | FV45: =FU45+IF($G7=1,365,182.5) -> 2107-10-25 | FW45: =FV45+IF($G7=1,365,182.5) -> 2108-04-24T12:00:00 | FX45: =FW45+IF($G7=1,365,182.5) -> 2108-10-24 | FY45: =FX45+IF($G7=1,365,182.5) -> 2109-04-24T12:00:00 | FZ45: =FY45+IF($G7=1,365,182.5) -> 2109-10-24 | GA45: =FZ45+IF($G7=1,365,182.5) -> 2110-04-24T12:00:00 | GB45: =GA45+IF($G7=1,365,182.5) -> 2110-10-24 | GC45: =GB45+IF($G7=1,365,182.5) -> 2111-04-24T12:00:00 | GD45: =GC45+IF($G7=1,365,182.5) -> 2111-10-24 | GE45: =GD45+IF($G7=1,365,182.5) -> 2112-04-23T12:00:00 | GF45: =GE45+IF($G7=1,365,182.5) -> 2112-10-23 | GG45: =GF45+IF($G7=1,365,182.5) -> 2113-04-23T12:00:00 | GH45: =GG45+IF($G7=1,365,182.5) -> 2113-10-23 | GI45: =GH45+IF($G7=1,365,182.5) -> 2114-04-23T12:00:00 | GJ45: =GI45+IF($G7=1,365,182.5) -> 2114-10-23 | GK45: =GJ45+IF($G7=1,365,182.5) -> 2115-04-23T12:00:00 | GL45: =GK45+IF($G7=1,365,182.5) -> 2115-10-23 | GM45: =GL45+IF($G7=1,365,182.5) -> 2116-04-22T12:00:00 | GN45: =GM45+IF($G7=1,365,182.5) -> 2116-10-22 | GO45: =GN45+IF($G7=1,365,182.5) -> 2117-04-22T12:00:00 | GP45: =GO45+IF($G7=1,365,182.5) -> 2117-10-22 | GQ45: =GP45+IF($G7=1,365,182.5) -> 2118-04-22T12:00:00 | GR45: =GQ45+IF($G7=1,365,182.5) -> 2118-10-22 | GS45: =GR45+IF($G7=1,365,182.5) -> 2119-04-22T12:00:00
